Workbook

Sheet Cover
A1: Optionality Valuation Model
B4: Prepared for | C4: Prepared by
B12: September 2025
B15: Valuation Framework
C46: *Optionality Value and Other value streams may be assessed in the future as better data and quantification methods become available.
B49: Instructions
B51: Enter user inputs on the dashboard to inform the Optionality Value and Deferral Value calculations.
B52: Review the blue calculation tabs to understand how the value streams are calculated.
B56: Table of Contents
B59: Sheet | C59: Description
B60: Dashboard | C60: User inputs for project-specific data.
B61: Optionality Value Calculation | C61: Calculations for Optionality Value
B62: Deferral Value Calculation | C62: Calculations for Deferral Value - the Optionality Value relies on the Deferral Value calculations
B65: Cell Style Legend
B67: Cells in this tool are color-coded to indicate intent:
B69: User Inputs
B70: Dropdown User Inputs
B71: Hard-coded input - Do not modify
B72: Calculations or Fixed Values - Do not modify
B73: Calculations (different formula than neighboring cells) - Do not modify
B74: Outputs - Do not modify
B76: Table Headers
B77: Table Sub-Headers
B78: Table Index (Row Descriptions)

Sheet Dashboard
B4: User Inputs
B6: Project-Specific Planning Inputs | D6: Explanation
B7: In-Service Date of Planned Upgrade (by Jan 1) | C7: =INDEX($C$15:$AB$15,MATCH(TRUE,$C$20:$AB$20,0)) -> 2032 | D7: Plant-in-service year of the traditional asset upgrade without the deferral solution. A non-blank user input overrides use of the specified load forecast and capacity limit
B8: Adjusted Plant-in-service Year (by Jan 1) | C8: =INDEX($C$15:$AB$15,MATCH(TRUE,$C$21:$AB$21,0)) -> 2035 | D8: Plant-in-service Year of traditional asset upgrade once the deferral solution has been implemented. A non-blank user input overrides use of the specified load forecast and capacity limit plus DER impact
B9: Years of Deferral | C9: =C8-C7 -> 3
B10: Lead Time Required for Investment Decision | C10: 3
B11: Capacity limit (MW) | C11: 110
B12: Planning Standard Forecast Percentile (Annual) | C12: 0.7
B13: Maximum reliable DER capacity (MW) | C13: 10
B15: Project-Specific Planning Inputs | C15: 2025 | D15: =+C15+1 -> 2026 | E15: 2027 | F15: 2028 | G15: 2029 | H15: 2030 | I15: 2031 | J15: 2032 | K15: 2033 | L15: 2034 | M15: 2035 | N15: 2036 | O15: 2037 | P15: 2038 | Q15: 2039 | R15: 2040 | S15: 2041 | T15: 2042 | U15: 2043 | V15: 2044 | W15: 2045 | X15: 2046 | Y15: 2047 | Z15: 2048 | AA15: 2049 | AB15: 2050
B16: 1-in-2 Peak Load Forecast (MW) | C16: 90 | D16: =C16*1.025 -> 92.25 | E16: 94.55625 | F16: 96.92015625 | G16: 99.34316016 | H16: 101.8267392 | I16: 104.3724076 | J16: 106.9817178 | K16: 109.6562608 | L16: 112.3976673 | M16: 115.207609 | N16: 118.0877992 | O16: 121.0399942 | P16: 124.065994 | Q16: 127.1676439 | R16: 130.346835 | S16: 133.6055059 | T16: 136.9456435 | U16: 140.3692846 | V16: 143.8785167 | W16: 147.4754796 | X16: 151.1623666 | Y16: 154.9414258 | Z16: 158.8149614 | AA16: 162.7853355 | AB16: 166.8549688
B17: Annual Forecast Volatility (MW) | C17: 0 | D17: =D19/2 -> 1.125 | E17: 1.153125 | F17: 1.181953125 | G17: 1.211501953 | H17: 1.241789502 | I17: 1.27283424 | J17: 1.304655095 | K17: 1.337271473 | L17: 1.37070326 | M17: 1.404970841 | N17: 1.440095112 | O17: 1.47609749 | P17: 1.512999927 | Q17: 1.550824925 | R17: 1.589595549 | S17: 1.629335437 | T17: 1.670068823 | U17: 1.711820544 | V17: 1.754616057 | W17: 1.798481459 | X17: 1.843443495 | Y17: 1.889529583 | Z17: 1.936767822 | AA17: 1.985187018 | AB17: 2.034816693
B18: Planning Standard Peak Load Forecast (MW) | C18: ='Optionality Value Calculation'!BG72 -> 90 | D18: ='Optionality Value Calculation'!BH72 -> 92.83995058 | E18: ='Optionality Value Calculation'!BI72 -> 95.75089992 | F18: ='Optionality Value Calculation'!BJ72 -> 98.73462299 | G18: ='Optionality Value Calculation'!BK72 -> 101.7929391 | H18: ='Optionality Value Calculation'!BL72 -> 104.9277132 | I18: ='Optionality Value Calculation'!BM72 -> 108.1408566 | J18: ='Optionality Value Calculation'!BN72 -> 111.4343286 | K18: ='Optionality Value Calculation'!BO72 -> 114.8101374 | L18: ='Optionality Value Calculation'!BP72 -> 118.2703414 | M18: ='Optionality Value Calculation'!BQ72 -> 121.8170505 | N18: ='Optionality Value Calculation'!BR72 -> 125.4524274 | O18: ='Optionality Value Calculation'!BS72 -> 129.1786886 | P18: ='Optionality Value Calculation'!BT72 -> 132.9981064 | Q18: ='Optionality Value Calculation'!BU72 -> 136.9130096 | R18: ='Optionality Value Calculation'!BV72 -> 140.9257855 | S18: ='Optionality Value Calculation'!BW72 -> 145.0388807 | T18: ='Optionality Value Calculation'!BX72 -> 149.2548033 | U18: ='Optionality Value Calculation'!BY72 -> 153.5761239 | V18: ='Optionality Value Calculation'!BZ72 -> 158.0054776 | W18: ='Optionality Value Calculation'!CA72 -> 162.5455651 | X18: ='Optionality Value Calculation'!CB72 -> 167.1991548 | Y18: ='Optionality Value Calculation'!CC72 -> 171.9690843 | Z18: ='Optionality Value Calculation'!CD72 -> 176.858262 | AA18: ='Optionality Value Calculation'!CE72 -> 181.8696691 | AB18: ='Optionality Value Calculation'!CF72 -> 187.0063614
B19: Forecast Growth (MW) | C19: 0 | D19: =D16-C16 -> 2.25 | E19: 2.30625 | F19: 2.36390625 | G19: 2.423003906 | H19: 2.483579004 | I19: 2.545668479 | J19: 2.609310191 | K19: 2.674542946 | L19: 2.741406519 | M19: 2.809941682 | N19: 2.880190224 | O19: 2.95219498 | P19: 3.025999855 | Q19: 3.101649851 | R19: 3.179191097 | S19: 3.258670875 | T19: 3.340137646 | U19: 3.423641088 | V19: 3.509232115 | W19: 3.596962918 | X19: 3.686886991 | Y19: 3.779059165 | Z19: 3.873535645 | AA19: 3.970374036 | AB19: 4.069633387
B20: Planning Standard Exceeds Capacity Limit | C20: =C18>$C$11 -> FALSE | D20: FALSE | E20: FALSE | F20: FALSE | G20: FALSE | H20: FALSE | I20: FALSE | J20: TRUE | K20: TRUE | L20: TRUE | M20: TRUE | N20: TRUE | O20: TRUE | P20: TRUE | Q20: TRUE | R20: TRUE | S20: TRUE | T20: TRUE | U20: TRUE | V20: TRUE | W20: TRUE | X20: TRUE | Y20: TRUE | Z20: TRUE | AA20: TRUE | AB20: TRUE
B21: Planning Standard + Max DER Capacity Exceeds Limit | C21: =C18>($C$11+$C$13) -> FALSE | D21: FALSE | E21: FALSE | F21: FALSE | G21: FALSE | H21: FALSE | I21: FALSE | J21: FALSE | K21: FALSE | L21: FALSE | M21: TRUE | N21: TRUE | O21: TRUE | P21: TRUE | Q21: TRUE | R21: TRUE | S21: TRUE | T21: TRUE | U21: TRUE | V21: TRUE | W21: TRUE | X21: TRUE | Y21: TRUE | Z21: TRUE | AA21: TRUE | AB21: TRUE
B23: Capacity Need for Load Relief (MW) | C23: 2025 | D23: 2026 | E23: 2027 | F23: 2028 | G23: 2029 | H23: 2030 | I23: 2031 | J23: 2032 | K23: 2033 | L23: 2034 | M23: 2035 | N23: 2036 | O23: 2037 | P23: 2038 | Q23: 2039 | R23: 2040 | S23: 2041 | T23: 2042 | U23: 2043 | V23: 2044 | W23: 2045 | X23: 2046 | Y23: 2047 | Z23: 2048 | AA23: 2049 | AB23: 2050
B24: Annual Capacity Need | C24: =IF(MAX(0,Dashboard!C18-Dashboard!$C$11)>Dashboard!$C$13,0,MAX(0,Dashboard!C18-Dashboard!$C$11)) -> 0 | D24: =IF(MAX(0,Dashboard!D18-Dashboard!$C$11)>Dashboard!$C$13,0,MAX(0,Dashboard!D18-Dashboard!$C$11)) -> 0 | E24: =IF(MAX(0,Dashboard!E18-Dashboard!$C$11)>Dashboard!$C$13,0,MAX(0,Dashboard!E18-Dashboard!$C$11)) -> 0 | F24: =IF(MAX(0,Dashboard!F18-Dashboard!$C$11)>Dashboard!$C$13,0,MAX(0,Dashboard!F18-Dashboard!$C$11)) -> 0 | G24: =IF(MAX(0,Dashboard!G18-Dashboard!$C$11)>Dashboard!$C$13,0,MAX(0,Dashboard!G18-Dashboard!$C$11)) -> 0 | H24: =IF(MAX(0,Dashboard!H18-Dashboard!$C$11)>Dashboard!$C$13,0,MAX(0,Dashboard!H18-Dashboard!$C$11)) -> 0 | I24: =IF(MAX(0,Dashboard!I18-Dashboard!$C$11)>Dashboard!$C$13,0,MAX(0,Dashboard!I18-Dashboard!$C$11)) -> 0 | J24: =IF(MAX(0,Dashboard!J18-Dashboard!$C$11)>Dashboard!$C$13,0,MAX(0,Dashboard!J18-Dashboard!$C$11)) -> 1.434328599 | K24: =IF(MAX(0,Dashboard!K18-Dashboard!$C$11)>Dashboard!$C$13,0,MAX(0,Dashboard!K18-Dashboard!$C$11)) -> 4.81013739 | L24: =IF(MAX(0,Dashboard!L18-Dashboard!$C$11)>Dashboard!$C$13,0,MAX(0,Dashboard!L18-Dashboard!$C$11)) -> 8.270341402 | M24: =IF(MAX(0,Dashboard!M18-Dashboard!$C$11)>Dashboard!$C$13,0,MAX(0,Dashboard!M18-Dashboard!$C$11)) -> 0 | N24: =IF(MAX(0,Dashboard!N18-Dashboard!$C$11)>Dashboard!$C$13,0,MAX(0,Dashboard!N18-Dashboard!$C$11)) -> 0 | O24: =IF(MAX(0,Dashboard!O18-Dashboard!$C$11)>Dashboard!$C$13,0,MAX(0,Dashboard!O18-Dashboard!$C$11)) -> 0 | P24: =IF(MAX(0,Dashboard!P18-Dashboard!$C$11)>Dashboard!$C$13,0,MAX(0,Dashboard!P18-Dashboard!$C$11)) -> 0 | Q24: =IF(MAX(0,Dashboard!Q18-Dashboard!$C$11)>Dashboard!$C$13,0,MAX(0,Dashboard!Q18-Dashboard!$C$11)) -> 0 | R24: =IF(MAX(0,Dashboard!R18-Dashboard!$C$11)>Dashboard!$C$13,0,MAX(0,Dashboard!R18-Dashboard!$C$11)) -> 0 | S24: =IF(MAX(0,Dashboard!S18-Dashboard!$C$11)>Dashboard!$C$13,0,MAX(0,Dashboard!S18-Dashboard!$C$11)) -> 0 | T24: =IF(MAX(0,Dashboard!T18-Dashboard!$C$11)>Dashboard!$C$13,0,MAX(0,Dashboard!T18-Dashboard!$C$11)) -> 0 | U24: =IF(MAX(0,Dashboard!U18-Dashboard!$C$11)>Dashboard!$C$13,0,MAX(0,Dashboard!U18-Dashboard!$C$11)) -> 0 | V24: =IF(MAX(0,Dashboard!V18-Dashboard!$C$11)>Dashboard!$C$13,0,MAX(0,Dashboard!V18-Dashboard!$C$11)) -> 0 | W24: =IF(MAX(0,Dashboard!W18-Dashboard!$C$11)>Dashboard!$C$13,0,MAX(0,Dashboard!W18-Dashboard!$C$11)) -> 0 | X24: =IF(MAX(0,Dashboard!X18-Dashboard!$C$11)>Dashboard!$C$13,0,MAX(0,Dashboard!X18-Dashboard!$C$11)) -> 0 | Y24: =IF(MAX(0,Dashboard!Y18-Dashboard!$C$11)>Dashboard!$C$13,0,MAX(0,Dashboard!Y18-Dashboard!$C$11)) -> 0 | Z24: =IF(MAX(0,Dashboard!Z18-Dashboard!$C$11)>Dashboard!$C$13,0,MAX(0,Dashboard!Z18-Dashboard!$C$11)) -> 0 | AA24: =IF(MAX(0,Dashboard!AA18-Dashboard!$C$11)>Dashboard!$C$13,0,MAX(0,Dashboard!AA18-Dashboard!$C$11)) -> 0 | AB24: =IF(MAX(0,Dashboard!AB18-Dashboard!$C$11)>Dashboard!$C$13,0,MAX(0,Dashboard!AB18-Dashboard!$C$11)) -> 0
B25: Forecasted capacity need at deferral or bridge-to-wires project location

Sheet Optionality Value Calculation
B3: Optionality Value Stream
B6: Optionality value captures the benefit of decreasing uncertainty in the forecast used to determine investment timing
B40: Optionality Value Calculation
H42: Simulated Frequency of Additional Years of Deferral | T42: Peak Load Foreacst
D46: Results Summary
D47: Unitized Optionality Value ($/kW-yr) | E47: =E49/E50/1000/(E52-E51) -> 34.99706692
D48: Optimal Deferral Period (yrs) | E48: =$DP$61 -> 0.6536 | J48: =$DP$61 -> 0.6536 | K48: 0 | Q48: =Dashboard!C15 -> 2025 | R48: =Dashboard!$C$11 -> 110
D49: Total Optionality Value ($) | E49: =$DQ$61 -> 868313.0744 | J49: =$DP$61 -> 0.6536 | K49: =MAX(DT73:DT93) -> 1860 | Q49: =Dashboard!AB15 -> 2050 | R49: =Dashboard!$C$11 -> 110
D50: Capacity Need with Optimal Deferral Period (MW) | E50: =MAX(Dashboard!$C$24:$AB$24) -> 8.270341402
D51: In-Service Date of Planned Upgrade | E51: =Dashboard!$C$7 -> 2032
D52: Adjusted Plant-in-service Year | E52: =Dashboard!$C$8 -> 2035
D53: Years of Deferral calculated from Planned Upgrade (N) | E53: =E52-E51 -> 3
CH58: Lead Time | DM58: Lead Time
CH59: =Dashboard!C10 -> 3 | DM59: =$CH59 -> 3
CH60: Max Capacity | DM60: Max Capacity | DP60: Average Optionality Value (yrs) | DQ60: Average Optionality Value ($)
CH61: =Dashboard!$C$11 -> 110 | DM61: =Dashboard!$C$11 -> 110 | DP61: =AVERAGE(DP73:DP5072) -> 0.6536 | DQ61: =AVERAGE(DQ73:DQ5072) -> 868313.0744
D63: Year | E63: =Dashboard!C15 -> 2025 | F63: =Dashboard!D15 -> 2026 | G63: =Dashboard!E15 -> 2027 | H63: =Dashboard!F15 -> 2028 | I63: =Dashboard!G15 -> 2029 | J63: =Dashboard!H15 -> 2030 | K63: =Dashboard!I15 -> 2031 | L63: =Dashboard!J15 -> 2032 | M63: =Dashboard!K15 -> 2033 | N63: =Dashboard!L15 -> 2034 | O63: =Dashboard!M15 -> 2035 | P63: =Dashboard!N15 -> 2036 | Q63: =Dashboard!O15 -> 2037 | R63: =Dashboard!P15 -> 2038 | S63: =Dashboard!Q15 -> 2039 | T63: =Dashboard!R15 -> 2040 | U63: =Dashboard!S15 -> 2041 | V63: =Dashboard!T15 -> 2042 | W63: =Dashboard!U15 -> 2043 | X63: =Dashboard!V15 -> 2044 | Y63: =Dashboard!W15 -> 2045 | Z63: =Dashboard!X15 -> 2046 | AA63: =Dashboard!Y15 -> 2047 | AB63: =Dashboard!Z15 -> 2048 | AC63: =Dashboard!AA15 -> 2049 | AD63: =Dashboard!AB15 -> 2050 | AF63: =Dashboard!C15 -> 2025 | AG63: =Dashboard!D15 -> 2026 | AH63: =Dashboard!E15 -> 2027 | AI63: =Dashboard!F15 -> 2028 | AJ63: =Dashboard!G15 -> 2029 | AK63: =Dashboard!H15 -> 2030 | AL63: =Dashboard!I15 -> 2031 | AM63: =Dashboard!J15 -> 2032 | AN63: =Dashboard!K15 -> 2033 | AO63: =Dashboard!L15 -> 2034 | AP63: =Dashboard!M15 -> 2035 | AQ63: =Dashboard!N15 -> 2036 | AR63: =Dashboard!O15 -> 2037 | AS63: =Dashboard!P15 -> 2038 | AT63: =Dashboard!Q15 -> 2039 | AU63: =Dashboard!R15 -> 2040 | AV63: =Dashboard!S15 -> 2041 | AW63: =Dashboard!T15 -> 2042 | AX63: =Dashboard!U15 -> 2043 | AY63: =Dashboard!V15 -> 2044 | AZ63: =Dashboard!W15 -> 2045 | BA63: =Dashboard!X15 -> 2046 | BB63: =Dashboard!Y15 -> 2047 | BC63: =Dashboard!Z15 -> 2048 | BD63: =Dashboard!AA15 -> 2049 | BE63: =Dashboard!AB15 -> 2050 | BG63: =Dashboard!C15 -> 2025 | BH63: =Dashboard!D15 -> 2026 | BI63: =Dashboard!E15 -> 2027 | BJ63: =Dashboard!F15 -> 2028 | BK63: =Dashboard!G15 -> 2029 | BL63: =Dashboard!H15 -> 2030 | BM63: =Dashboard!I15 -> 2031 | BN63: =Dashboard!J15 -> 2032 | BO63: =Dashboard!K15 -> 2033 | BP63: =Dashboard!L15 -> 2034 | BQ63: =Dashboard!M15 -> 2035 | BR63: =Dashboard!N15 -> 2036 | BS63: =Dashboard!O15 -> 2037 | BT63: =Dashboard!P15 -> 2038 | BU63: =Dashboard!Q15 -> 2039 | BV63: =Dashboard!R15 -> 2040 | BW63: =Dashboard!S15 -> 2041 | BX63: =Dashboard!T15 -> 2042 | BY63: =Dashboard!U15 -> 2043 | BZ63: =Dashboard!V15 -> 2044 | CA63: =Dashboard!W15 -> 2045 | CB63: =Dashboard!X15 -> 2046 | CC63: =Dashboard!Y15 -> 2047 | CD63: =Dashboard!Z15 -> 2048 | CE63: =Dashboard!AA15 -> 2049 | CF63: =Dashboard!AB15 -> 2050 | CL63: =Dashboard!C15 -> 2025 | CM63: =Dashboard!D15 -> 2026 | CN63: =Dashboard!E15 -> 2027 | CO63: =Dashboard!F15 -> 2028 | CP63: =Dashboard!G15 -> 2029 | CQ63: =Dashboard!H15 -> 2030 | CR63: =Dashboard!I15 -> 2031 | CS63: =Dashboard!J15 -> 2032 | CT63: =Dashboard!K15 -> 2033 | CU63: =Dashboard!L15 -> 2034 | CV63: =Dashboard!M15 -> 2035 | CW63: =Dashboard!N15 -> 2036 | CX63: =Dashboard!O15 -> 2037 | CY63: =Dashboard!P15 -> 2038 | CZ63: =Dashboard!Q15 -> 2039 | DA63: =Dashboard!R15 -> 2040 | DB63: =Dashboard!S15 -> 2041 | DC63: =Dashboard!T15 -> 2042 | DD63: =Dashboard!U15 -> 2043 | DE63: =Dashboard!V15 -> 2044 | DF63: =Dashboard!W15 -> 2045 | DG63: =Dashboard!X15 -> 2046 | DH63: =Dashboard!Y15 -> 2047 | DI63: =Dashboard!Z15 -> 2048 | DJ63: =Dashboard!AA15 -> 2049 | DK63: =Dashboard!AB15 -> 2050
D64: Median Peak Load Forecast (MW) | E64: =Dashboard!C16 -> 90 | F64: =Dashboard!D16 -> 92.25 | G64: =Dashboard!E16 -> 94.55625 | H64: =Dashboard!F16 -> 96.92015625 | I64: =Dashboard!G16 -> 99.34316016 | J64: =Dashboard!H16 -> 101.8267392 | K64: =Dashboard!I16 -> 104.3724076 | L64: =Dashboard!J16 -> 106.9817178 | M64: =Dashboard!K16 -> 109.6562608 | N64: =Dashboard!L16 -> 112.3976673 | O64: =Dashboard!M16 -> 115.207609 | P64: =Dashboard!N16 -> 118.0877992 | Q64: =Dashboard!O16 -> 121.0399942 | R64: =Dashboard!P16 -> 124.065994 | S64: =Dashboard!Q16 -> 127.1676439 | T64: =Dashboard!R16 -> 130.346835 | U64: =Dashboard!S16 -> 133.6055059 | V64: =Dashboard!T16 -> 136.9456435 | W64: =Dashboard!U16 -> 140.3692846 | X64: =Dashboard!V16 -> 143.8785167 | Y64: =Dashboard!W16 -> 147.4754796 | Z64: =Dashboard!X16 -> 151.1623666 | AA64: =Dashboard!Y16 -> 154.9414258 | AB64: =Dashboard!Z16 -> 158.8149614 | AC64: =Dashboard!AA16 -> 162.7853355 | AD64: =Dashboard!AB16 -> 166.8549688 | AF64: =SUM(OFFSET(AF$72,0,1,1,Dashboard!$C$10)) -> 8.734622993 | AG64: =SUM(OFFSET(AG$72,0,1,1,Dashboard!$C$10)) -> 8.952988568 | AH64: =SUM(OFFSET(AH$72,0,1,1,Dashboard!$C$10)) -> 9.176813282 | AI64: =SUM(OFFSET(AI$72,0,1,1,Dashboard!$C$10)) -> 9.406233614 | AJ64: =SUM(OFFSET(AJ$72,0,1,1,Dashboard!$C$10)) -> 9.641389454 | AK64: =SUM(OFFSET(AK$72,0,1,1,Dashboard!$C$10)) -> 9.882424191 | AL64: =SUM(OFFSET(AL$72,0,1,1,Dashboard!$C$10)) -> 10.1294848 | AM64: =SUM(OFFSET(AM$72,0,1,1,Dashboard!$C$10)) -> 10.38272192 | AN64: =SUM(OFFSET(AN$72,0,1,1,Dashboard!$C$10)) -> 10.64228996 | AO64: =SUM(OFFSET(AO$72,0,1,1,Dashboard!$C$10)) -> 10.90834721 | AP64: =SUM(OFFSET(AP$72,0,1,1,Dashboard!$C$10)) -> 11.18105589 | AQ64: =SUM(OFFSET(AQ$72,0,1,1,Dashboard!$C$10)) -> 11.46058229 | AR64: =SUM(OFFSET(AR$72,0,1,1,Dashboard!$C$10)) -> 11.74709685 | AS64: =SUM(OFFSET(AS$72,0,1,1,Dashboard!$C$10)) -> 12.04077427 | AT64: =SUM(OFFSET(AT$72,0,1,1,Dashboard!$C$10)) -> 12.34179362 | AU64: =SUM(OFFSET(AU$72,0,1,1,Dashboard!$C$10)) -> 12.65033847 | AV64: =SUM(OFFSET(AV$72,0,1,1,Dashboard!$C$10)) -> 12.96659693 | AW64: =SUM(OFFSET(AW$72,0,1,1,Dashboard!$C$10)) -> 13.29076185 | AX64: =SUM(OFFSET(AX$72,0,1,1,Dashboard!$C$10)) -> 13.6230309 | AY64: =SUM(OFFSET(AY$72,0,1,1,Dashboard!$C$10)) -> 13.96360667 | AZ64: =SUM(OFFSET(AZ$72,0,1,1,Dashboard!$C$10)) -> 14.31269684 | BA64: =SUM(OFFSET(BA$72,0,1,1,Dashboard!$C$10)) -> 14.67051426 | BB64: =SUM(OFFSET(BB$72,0,1,1,Dashboard!$C$10)) -> 15.03727711 | BC64: =SUM(OFFSET(BC$72,0,1,1,Dashboard!$C$10)) ->  | BD64: =SUM(OFFSET(BD$72,0,1,1,Dashboard!$C$10)) ->  | BE64: =SUM(OFFSET(BE$72,0,1,1,Dashboard!$C$10)) ->  | BF64: Min Forecast | BG64: =MIN(BG$73:BG$5072) -> 90 | BH64: 88.70163411 | BI64: 88.5524354 | BJ64: 89.27541658 | BK64: 90.83304564 | BL64: 92.14519994 | BM64: 92.94130173 | BN64: 93.46478554 | BO64: 95.7336723 | BP64: 98.29910914 | BQ64: 101.1467706 | BR64: 102.1956101 | BS64: 104.4389143 | BT64: 107.0826871 | BU64: 108.4807976 | BV64: 109.733865 | BW64: 111.2648047 | BX64: 116.5739798 | BY64: 117.648376 | BZ64: 120.3795436 | CA64: 122.5873023 | CB64: 126.9041089 | CC64: 129.7482845 | CD64: 131.4711429 | CE64: 135.1736773 | CF64: =MIN(CF$73:CF$5072) -> 138.7006101
D65: Annual Forecast Volatility (MW) | E65: =Dashboard!C17 -> 0 | F65: =Dashboard!D17 -> 1.125 | G65: =Dashboard!E17 -> 1.153125 | H65: =Dashboard!F17 -> 1.181953125 | I65: =Dashboard!G17 -> 1.211501953 | J65: =Dashboard!H17 -> 1.241789502 | K65: =Dashboard!I17 -> 1.27283424 | L65: =Dashboard!J17 -> 1.304655095 | M65: =Dashboard!K17 -> 1.337271473 | N65: =Dashboard!L17 -> 1.37070326 | O65: =Dashboard!M17 -> 1.404970841 | P65: =Dashboard!N17 -> 1.440095112 | Q65: =Dashboard!O17 -> 1.47609749 | R65: =Dashboard!P17 -> 1.512999927 | S65: =Dashboard!Q17 -> 1.550824925 | T65: =Dashboard!R17 -> 1.589595549 | U65: =Dashboard!S17 -> 1.629335437 | V65: =Dashboard!T17 -> 1.670068823 | W65: =Dashboard!U17 -> 1.711820544 | X65: =Dashboard!V17 -> 1.754616057 | Y65: =Dashboard!W17 -> 1.798481459 | Z65: =Dashboard!X17 -> 1.843443495 | AA65: =Dashboard!Y17 -> 1.889529583 | AB65: =Dashboard!Z17 -> 1.936767822 | AC65: =Dashboard!AA17 -> 1.985187018 | AD65: =Dashboard!AB17 -> 2.034816693 | BF65: Increment to Max | BG65: =MAX(BG$73:BG$5072)-BG64 -> 0 | BH65: 8.186636293 | BI65: 11.47684756 | BJ65: 14.48634013 | BK65: 17.02216732 | BL65: 18.59348063 | BM65: 21.95131581 | BN65: 25.9765434 | BO65: 25.90479877 | BP65: 26.8098945 | BQ65: 28.01116097 | BR65: 30.53278683 | BS65: 31.63291153 | BT65: 32.77805771 | BU65: 36.5209359 | BV65: 39.02981412 | BW65: 41.2991816 | BX65: 39.06307691 | BY65: 43.90344501 | BZ65: 47.47732578 | CA65: 52.14526271 | CB65: 52.8864782 | CC65: 56.08145323 | CD65: 55.73843757 | CE65: 58.19162397 | CF65: =MAX(CF$73:CF$5072)-CF64 -> 60.50197294
D66: Planning Standard Peak Load Forecast (MW) | E66: =Dashboard!C18 -> 90 | F66: =Dashboard!D18 -> 92.83995058 | G66: =Dashboard!E18 -> 95.75089992 | H66: =Dashboard!F18 -> 98.73462299 | I66: =Dashboard!G18 -> 101.7929391 | J66: =Dashboard!H18 -> 104.9277132 | K66: =Dashboard!I18 -> 108.1408566 | L66: =Dashboard!J18 -> 111.4343286 | M66: =Dashboard!K18 -> 114.8101374 | N66: =Dashboard!L18 -> 118.2703414 | O66: =Dashboard!M18 -> 121.8170505 | P66: =Dashboard!N18 -> 125.4524274 | Q66: =Dashboard!O18 -> 129.1786886 | R66: =Dashboard!P18 -> 132.9981064 | S66: =Dashboard!Q18 -> 136.9130096 | T66: =Dashboard!R18 -> 140.9257855 | U66: =Dashboard!S18 -> 145.0388807 | V66: =Dashboard!T18 -> 149.2548033 | W66: =Dashboard!U18 -> 153.5761239 | X66: =Dashboard!V18 -> 158.0054776 | Y66: =Dashboard!W18 -> 162.5455651 | Z66: =Dashboard!X18 -> 167.1991548 | AA66: =Dashboard!Y18 -> 171.9690843 | AB66: =Dashboard!Z18 -> 176.858262 | AC66: =Dashboard!AA18 -> 181.8696691 | AD66: =Dashboard!AB18 -> 187.0063614 | BF66: Capacity | BG66: =Dashboard!$C$11 -> 110 | BH66: =Dashboard!$C$11 -> 110 | BI66: =Dashboard!$C$11 -> 110 | BJ66: =Dashboard!$C$11 -> 110 | BK66: =Dashboard!$C$11 -> 110 | BL66: =Dashboard!$C$11 -> 110 | BM66: =Dashboard!$C$11 -> 110 | BN66: =Dashboard!$C$11 -> 110 | BO66: =Dashboard!$C$11 -> 110 | BP66: =Dashboard!$C$11 -> 110 | BQ66: =Dashboard!$C$11 -> 110 | BR66: =Dashboard!$C$11 -> 110 | BS66: =Dashboard!$C$11 -> 110 | BT66: =Dashboard!$C$11 -> 110 | BU66: =Dashboard!$C$11 -> 110 | BV66: =Dashboard!$C$11 -> 110 | BW66: =Dashboard!$C$11 -> 110 | BX66: =Dashboard!$C$11 -> 110 | BY66: =Dashboard!$C$11 -> 110 | BZ66: =Dashboard!$C$11 -> 110 | CA66: =Dashboard!$C$11 -> 110 | CB66: =Dashboard!$C$11 -> 110 | CC66: =Dashboard!$C$11 -> 110 | CD66: =Dashboard!$C$11 -> 110 | CE66: =Dashboard!$C$11 -> 110 | CF66: =Dashboard!$C$11 -> 110
D67: Forecast Growth (MW) | E67: =Dashboard!C19 -> 0 | F67: =Dashboard!D19 -> 2.25 | G67: =Dashboard!E19 -> 2.30625 | H67: =Dashboard!F19 -> 2.36390625 | I67: =Dashboard!G19 -> 2.423003906 | J67: =Dashboard!H19 -> 2.483579004 | K67: =Dashboard!I19 -> 2.545668479 | L67: =Dashboard!J19 -> 2.609310191 | M67: =Dashboard!K19 -> 2.674542946 | N67: =Dashboard!L19 -> 2.741406519 | O67: =Dashboard!M19 -> 2.809941682 | P67: =Dashboard!N19 -> 2.880190224 | Q67: =Dashboard!O19 -> 2.95219498 | R67: =Dashboard!P19 -> 3.025999855 | S67: =Dashboard!Q19 -> 3.101649851 | T67: =Dashboard!R19 -> 3.179191097 | U67: =Dashboard!S19 -> 3.258670875 | V67: =Dashboard!T19 -> 3.340137646 | W67: =Dashboard!U19 -> 3.423641088 | X67: =Dashboard!V19 -> 3.509232115 | Y67: =Dashboard!W19 -> 3.596962918 | Z67: =Dashboard!X19 -> 3.686886991 | AA67: =Dashboard!Y19 -> 3.779059165 | AB67: =Dashboard!Z19 -> 3.873535645 | AC67: =Dashboard!AA19 -> 3.970374036 | AD67: =Dashboard!AB19 -> 4.069633387 | BF67: Capacity w/ DER | BG67: =BG66+Dashboard!$C$13 -> 120 | BH67: =BH66+Dashboard!$C$13 -> 120 | BI67: =BI66+Dashboard!$C$13 -> 120 | BJ67: =BJ66+Dashboard!$C$13 -> 120 | BK67: =BK66+Dashboard!$C$13 -> 120 | BL67: =BL66+Dashboard!$C$13 -> 120 | BM67: =BM66+Dashboard!$C$13 -> 120 | BN67: =BN66+Dashboard!$C$13 -> 120 | BO67: =BO66+Dashboard!$C$13 -> 120 | BP67: =BP66+Dashboard!$C$13 -> 120 | BQ67: =BQ66+Dashboard!$C$13 -> 120 | BR67: =BR66+Dashboard!$C$13 -> 120 | BS67: =BS66+Dashboard!$C$13 -> 120 | BT67: =BT66+Dashboard!$C$13 -> 120 | BU67: =BU66+Dashboard!$C$13 -> 120 | BV67: =BV66+Dashboard!$C$13 -> 120 | BW67: =BW66+Dashboard!$C$13 -> 120 | BX67: =BX66+Dashboard!$C$13 -> 120 | BY67: =BY66+Dashboard!$C$13 -> 120 | BZ67: =BZ66+Dashboard!$C$13 -> 120 | CA67: =CA66+Dashboard!$C$13 -> 120 | CB67: =CB66+Dashboard!$C$13 -> 120 | CC67: =CC66+Dashboard!$C$13 -> 120 | CD67: =CD66+Dashboard!$C$13 -> 120 | CE67: =CE66+Dashboard!$C$13 -> 120 | CF67: =CF66+Dashboard!$C$13 -> 120
B69: Deferral Scenario Simulations
DS70: Binned Results for Chart
B71: Avg Percentile | E71: Percentile | AF71: Annual Load Growth (MW) | BG71: Annual Peak Load (MW) | CH71: Decision Year | CJ71: DER impact | CL71: ="Cumulative Load Growth at Planning Standard Forecast after "&Dashboard!$C$13&" MW Deferral" -> Cumulative Load Growth at Planning Standard Forecast after 10 MW Deferral | DM71: Actual Decision Year | DN71: Expected Decision Year (based on knowledge at start of deferral period) | DP71: Extra years after expected deferral (DER+wires) | DQ71: Associated Incremental Value ($) | DS71: Extra years after expected deferral (DER+wires) | DT71: Random Walk Frequency
B72: =AVERAGE(E72:AD72) -> 0.7 | D72: Planning standard | E72: =Dashboard!$C$12 -> 0.7 | F72: =Dashboard!$C$12 -> 0.7 | G72: =Dashboard!$C$12 -> 0.7 | H72: =Dashboard!$C$12 -> 0.7 | I72: =Dashboard!$C$12 -> 0.7 | J72: =Dashboard!$C$12 -> 0.7 | K72: =Dashboard!$C$12 -> 0.7 | L72: =Dashboard!$C$12 -> 0.7 | M72: =Dashboard!$C$12 -> 0.7 | N72: =Dashboard!$C$12 -> 0.7 | O72: =Dashboard!$C$12 -> 0.7 | P72: =Dashboard!$C$12 -> 0.7 | Q72: =Dashboard!$C$12 -> 0.7 | R72: =Dashboard!$C$12 -> 0.7 | S72: =Dashboard!$C$12 -> 0.7 | T72: =Dashboard!$C$12 -> 0.7 | U72: =Dashboard!$C$12 -> 0.7 | V72: =Dashboard!$C$12 -> 0.7 | W72: =Dashboard!$C$12 -> 0.7 | X72: =Dashboard!$C$12 -> 0.7 | Y72: =Dashboard!$C$12 -> 0.7 | Z72: =Dashboard!$C$12 -> 0.7 | AA72: =Dashboard!$C$12 -> 0.7 | AB72: =Dashboard!$C$12 -> 0.7 | AC72: =Dashboard!$C$12 -> 0.7 | AD72: =Dashboard!$C$12 -> 0.7 | AF72: 0 | AG72: =NORMINV(F72,Dashboard!D$19,Dashboard!D$17) -> 2.839950577 | AH72: =NORMINV(G72,Dashboard!E$19,Dashboard!E$17) -> 2.910949341 | AI72: =NORMINV(H72,Dashboard!F$19,Dashboard!F$17) -> 2.983723075 | AJ72: =NORMINV(I72,Dashboard!G$19,Dashboard!G$17) -> 3.058316152 | AK72: =NORMINV(J72,Dashboard!H$19,Dashboard!H$17) -> 3.134774055 | AL72: =NORMINV(K72,Dashboard!I$19,Dashboard!I$17) -> 3.213143407 | AM72: =NORMINV(L72,Dashboard!J$19,Dashboard!J$17) -> 3.293471992 | AN72: =NORMINV(M72,Dashboard!K$19,Dashboard!K$17) -> 3.375808792 | AO72: =NORMINV(N72,Dashboard!L$19,Dashboard!L$17) -> 3.460204012 | AP72: =NORMINV(O72,Dashboard!M$19,Dashboard!M$17) -> 3.546709112 | AQ72: =NORMINV(P72,Dashboard!N$19,Dashboard!N$17) -> 3.63537684 | AR72: =NORMINV(Q72,Dashboard!O$19,Dashboard!O$17) -> 3.726261261 | AS72: =NORMINV(R72,Dashboard!P$19,Dashboard!P$17) -> 3.819417792 | AT72: =NORMINV(S72,Dashboard!Q$19,Dashboard!Q$17) -> 3.914903237 | AU72: =NORMINV(T72,Dashboard!R$19,Dashboard!R$17) -> 4.012775818 | AV72: =NORMINV(U72,Dashboard!S$19,Dashboard!S$17) -> 4.113095213 | AW72: =NORMINV(V72,Dashboard!T$19,Dashboard!T$17) -> 4.215922594 | AX72: =NORMINV(W72,Dashboard!U$19,Dashboard!U$17) -> 4.321320658 | AY72: =NORMINV(X72,Dashboard!V$19,Dashboard!V$17) -> 4.429353675 | AZ72: =NORMINV(Y72,Dashboard!W$19,Dashboard!W$17) -> 4.540087517 | BA72: =NORMINV(Z72,Dashboard!X$19,Dashboard!X$17) -> 4.653589705 | BB72: =NORMINV(AA72,Dashboard!Y$19,Dashboard!Y$17) -> 4.769929447 | BC72: =NORMINV(AB72,Dashboard!Z$19,Dashboard!Z$17) -> 4.889177684 | BD72: =NORMINV(AC72,Dashboard!AA$19,Dashboard!AA$17) -> 5.011407126 | BE72: =NORMINV(AD72,Dashboard!AB$19,Dashboard!AB$17) -> 5.136692304 | BG72: =Dashboard!$C$16 -> 90 | BH72: =+BG72+AG72 -> 92.83995058 | BI72: =+BH72+AH72 -> 95.75089992 | BJ72: 98.73462299 | BK72: 101.7929391 | BL72: 104.9277132 | BM72: 108.1408566 | BN72: 111.4343286 | BO72: 114.8101374 | BP72: 118.2703414 | BQ72: 121.8170505 | BR72: 125.4524274 | BS72: 129.1786886 | BT72: 132.9981064 | BU72: 136.9130096 | BV72: 140.9257855 | BW72: 145.0388807 | BX72: 149.2548033 | BY72: 153.5761239 | BZ72: 158.0054776 | CA72: 162.5455651 | CB72: 167.1991548 | CC72: 171.9690843 | CD72: 176.858262 | CE72: 181.8696691 | CF72: 187.0063614 | CH72: =MATCH(TRUE,BG72:CF72+$AF$64:$BE$64>CH$61,0)+Dashboard!$C$15-1 -> 2029
B73: =AVERAGE(E73:AD73) -> 0.5557684066 | D73: Random Walk 1 | E73: =RAND() -> 0.162234346 | F73: 0.3112303925 | G73: 0.8236484059 | H73: 0.6378023475 | I73: 0.932541822 | J73: 0.815225545 | K73: 0.3215389568 | L73: 0.4029738955 | M73: 0.4563061027 | N73: 0.2207932313 | O73: =RAND() -> 0.009609860321 | P73: 0.1620815423 | Q73: 0.5936757374 | R73: 0.2341543099 | S73: 0.9209220982 | T73: 0.7853536597 | U73: 0.956612793 | V73: 0.9493953232 | W73: 0.2372595417 | X73: 0.9152925919 | Y73: =RAND() -> 0.7385027432 | Z73: 0.678806596 | AA73: 0.2857825942 | AB73: 0.7529380677 | AC73: 0.5733714416 | AD73: 0.5719246263 | AF73: 0 | AG73: =NORMINV(F73,Dashboard!D$19,Dashboard!D$17) -> 1.696088496 | AH73: =NORMINV(G73,Dashboard!E$19,Dashboard!E$17) -> 3.37791683 | AI73: =NORMINV(H73,Dashboard!F$19,Dashboard!F$17) -> 2.780651939 | AJ73: =NORMINV(I73,Dashboard!G$19,Dashboard!G$17) -> 4.234190442 | AK73: =NORMINV(J73,Dashboard!H$19,Dashboard!H$17) -> 3.597859878 | AL73: =NORMINV(K73,Dashboard!I$19,Dashboard!I$17) -> 1.95583751 | AM73: =NORMINV(L73,Dashboard!J$19,Dashboard!J$17) -> 2.288812584 | AN73: =NORMINV(M73,Dashboard!K$19,Dashboard!K$17) -> 2.52778509 | AO73: =NORMINV(N73,Dashboard!L$19,Dashboard!L$17) -> 1.686627073 | AP73: =NORMINV(O73,Dashboard!M$19,Dashboard!M$17) -> -0.4794346228 | AQ73: =NORMINV(P73,Dashboard!N$19,Dashboard!N$17) -> 1.460344399 | AR73: =NORMINV(Q73,Dashboard!O$19,Dashboard!O$17) -> 3.302045811 | AS73: =NORMINV(R73,Dashboard!P$19,Dashboard!P$17) -> 1.928721191 | AT73: =NORMINV(S73,Dashboard!Q$19,Dashboard!Q$17) -> 5.290331019 | AU73: =NORMINV(T73,Dashboard!R$19,Dashboard!R$17) -> 4.435611562 | AV73: =NORMINV(U73,Dashboard!S$19,Dashboard!S$17) -> 6.049174648 | AW73: =NORMINV(V73,Dashboard!T$19,Dashboard!T$17) -> 6.077411771 | AX73: =NORMINV(W73,Dashboard!U$19,Dashboard!U$17) -> 2.199440168 | AY73: =NORMINV(X73,Dashboard!V$19,Dashboard!V$17) -> 5.92022643 | AZ73: =NORMINV(Y73,Dashboard!W$19,Dashboard!W$17) -> 4.745718256 | BA73: =NORMINV(Z73,Dashboard!X$19,Dashboard!X$17) -> 4.542916223 | BB73: =NORMINV(AA73,Dashboard!Y$19,Dashboard!Y$17) -> 2.710061829 | BC73: =NORMINV(AB73,Dashboard!Z$19,Dashboard!Z$17) -> 5.197828794 | BD73: =NORMINV(AC73,Dashboard!AA$19,Dashboard!AA$17) -> 4.33756256 | BE73: =NORMINV(AD73,Dashboard!AB$19,Dashboard!AB$17) -> 4.438497325 | BG73: =Dashboard!$C$16 -> 90 | BH73: 91.6960885 | BI73: =+BH73+AH73 -> 95.07400533 | BJ73: =+BI73+AI73 -> 97.85465726 | BK73: =+BJ73+AJ73 -> 102.0888477 | BL73: =+BK73+AK73 -> 105.6867076 | BM73: =+BL73+AL73 -> 107.6425451 | BN73: =+BM73+AM73 -> 109.9313577 | BO73: =+BN73+AN73 -> 112.4591428 | BP73: =+BO73+AO73 -> 114.1457698 | BQ73: =+BP73+AP73 -> 113.6663352 | BR73: =+BQ73+AQ73 -> 115.1266796 | BS73: =+BR73+AR73 -> 118.4287254 | BT73: =+BS73+AS73 -> 120.3574466 | BU73: =+BT73+AT73 -> 125.6477776 | BV73: =+BU73+AU73 -> 130.0833892 | BW73: =+BV73+AV73 -> 136.1325638 | BX73: =+BW73+AW73 -> 142.2099756 | BY73: =+BX73+AX73 -> 144.4094158 | BZ73: =+BY73+AY73 -> 150.3296422 | CA73: =+BZ73+AZ73 -> 155.0753605 | CB73: =+CA73+BA73 -> 159.6182767 | CC73: =+CB73+BB73 -> 162.3283385 | CD73: =+CC73+BC73 -> 167.5261673 | CE73: =+CD73+BD73 -> 171.8637299 | CF73: =+CE73+BE73 -> 176.3022272 | CH73: =MATCH(TRUE,BG73:CF73+$AF$64:$BE$64>CH$61,0)+Dashboard!$C$15-1 -> 2029 | CJ73: =Dashboard!$C$13 -> 10 | CL73: =IF(CL$63<$CH73,BG73,CK73+AF$72) -> 90 | CM73: =IF(CM$63<$CH73,BH73,CL73+AG$72) -> 91.6960885 | CN73: 95.07400533 | CO73: 97.85465726 | CP73: 100.9129734 | CQ73: 104.0477475 | CR73: 107.2608909 | CS73: 110.5543629 | CT73: 113.9301717 | CU73: 117.3903757 | CV73: 120.9370848 | CW73: 124.5724616 | CX73: 128.2987229 | CY73: 132.1181407 | CZ73: 136.0330439 | DA73: 140.0458197 | DB73: 144.1589149 | DC73: 148.3748375 | DD73: 152.6961582 | DE73: 157.1255119 | DF73: 161.6655994 | DG73: 166.3191891 | DH73: 171.0891185 | DI73: 175.9782962 | DJ73: 180.9897034 | DK73: 186.1263957 | DM73: =MATCH(TRUE,BG73:CF73+$AF$64:$BE$64-$CJ73>DM$61,0)+Dashboard!$C$15-1 -> 2032 | DN73: =MATCH(TRUE,CL73:DK73-$CJ73>DM$61,0)+Dashboard!$C$15-1-$DM$59 -> 2032 | DP73: =DM73-DN73 -> 0 | DQ73: =INDEX('Deferral Value Calculation'!$D$66:$D$91,MATCH($DP73+($E$52-$E$51),'Deferral Value Calculation'!$B$66:$B$91,0)) -INDEX('Deferral Value Calculation'!$D$66:$D$91,MATCH($E$52-$E$51,'Deferral Value Calculation'!$B$66:$B$91,0)) -> 0 | DS73: -10 | DT73: =COUNTIF(DP$73:DP$5072,$DS73) -> 0
B74: 0.5587663326 | D74: Random Walk 2 | E74: 0.7275019001 | F74: 0.6503945834 | G74: 0.9311135538 | H74: 0.3238989779 | I74: 0.70702424 | J74: 0.9001243802 | K74: 0.8814186094 | L74: 0.1502916294 | M74: 0.008176396856 | N74: 0.8659628314 | O74: 0.5825118667 | P74: 0.2420817594 | Q74: 0.7379463947 | R74: 0.4348736297 | S74: 0.01596043459 | T74: 0.5201426513 | U74: 0.4124611238 | V74: 0.2009666893 | W74: 0.9592309267 | X74: 0.3825622452 | Y74: 0.5775190172 | Z74: 0.5959744103 | AA74: 0.7912987148 | AB74: 0.9632439221 | AC74: 0.8901580542 | AD74: 0.0750857044 | AF74: 0 | AG74: =NORMINV(F74,Dashboard!D$19,Dashboard!D$17) -> 2.684684225 | AH74: =NORMINV(G74,Dashboard!E$19,Dashboard!E$17) -> 4.017644116 | AI74: =NORMINV(H74,Dashboard!F$19,Dashboard!F$17) -> 1.823962356 | AJ74: =NORMINV(I74,Dashboard!G$19,Dashboard!G$17) -> 3.082923717 | AK74: =NORMINV(J74,Dashboard!H$19,Dashboard!H$17) -> 4.075876773 | AL74: =NORMINV(K74,Dashboard!I$19,Dashboard!I$17) -> 4.050296239 | AM74: =NORMINV(L74,Dashboard!J$19,Dashboard!J$17) -> 1.258752863 | AN74: =NORMINV(M74,Dashboard!K$19,Dashboard!K$17) -> -0.5361723239 | AO74: =NORMINV(N74,Dashboard!L$19,Dashboard!L$17) -> 4.259471403 | AP74: =NORMINV(O74,Dashboard!M$19,Dashboard!M$17) -> 3.102630336 | AQ74: =NORMINV(P74,Dashboard!N$19,Dashboard!N$17) -> 1.872668277 | AR74: =NORMINV(Q74,Dashboard!O$19,Dashboard!O$17) -> 3.89250904 | AS74: =NORMINV(R74,Dashboard!P$19,Dashboard!P$17) -> 2.777898839 | AT74: =NORMINV(S74,Dashboard!Q$19,Dashboard!Q$17) -> -0.2254901367 | AU74: =NORMINV(T74,Dashboard!R$19,Dashboard!R$17) -> 3.259484128 | AV74: =NORMINV(U74,Dashboard!S$19,Dashboard!S$17) -> 2.898231613 | AW74: =NORMINV(V74,Dashboard!T$19,Dashboard!T$17) -> 1.940330545 | AX74: =NORMINV(W74,Dashboard!U$19,Dashboard!U$17) -> 6.405341944 | AY74: =NORMINV(X74,Dashboard!V$19,Dashboard!V$17) -> 2.98502605 | AZ74: =NORMINV(Y74,Dashboard!W$19,Dashboard!W$17) -> 3.948656962 | BA74: =NORMINV(Z74,Dashboard!X$19,Dashboard!X$17) -> 4.134734816 | BB74: =NORMINV(AA74,Dashboard!Y$19,Dashboard!Y$17) -> 5.311346249 | BC74: =NORMINV(AB74,Dashboard!Z$19,Dashboard!Z$17) -> 7.339648571 | BD74: =NORMINV(AC74,Dashboard!AA$19,Dashboard!AA$17) -> 6.406931256 | BE74: =NORMINV(AD74,Dashboard!AB$19,Dashboard!AB$17) -> 1.141682157 | BG74: =Dashboard!$C$16 -> 90 | BH74: 92.68468423 | BI74: 96.70232834 | BJ74: 98.5262907 | BK74: 101.6092144 | BL74: 105.6850912 | BM74: 109.7353874 | BN74: 110.9941403 | BO74: 110.457968 | BP74: 114.7174394 | BQ74: 117.8200697 | BR74: 119.692738 | BS74: 123.585247 | BT74: 126.3631459 | BU74: 126.1376557 | BV74: 129.3971399 | BW74: 132.2953715 | BX74: 134.235702 | BY74: 140.641044 | BZ74: 143.62607 | CA74: 147.574727 | CB74: 151.7094618 | CC74: 157.020808 | CD74: 164.3604566 | CE74: 170.7673879 | CF74: 171.90907 | CH74: =MATCH(TRUE,BG74:CF74+$AF$64:$BE$64>CH$61,0)+Dashboard!$C$15-1 -> 2029 | CJ74: =Dashboard!$C$13 -> 10 | CL74: =IF(CL$63<$CH74,BG74,CK74+AF$72) -> 90 | CM74: 92.68468423 | CN74: 96.70232834 | CO74: 98.5262907 | CP74: 101.5846068 | CQ74: 104.7193809 | CR74: 107.9325243 | CS74: 111.2259963 | CT74: 114.6018051 | CU74: 118.0620091 | CV74: 121.6087182 | CW74: 125.2440951 | CX74: 128.9703563 | CY74: 132.7897741 | CZ74: 136.7046773 | DA74: 140.7174532 | DB74: 144.8305484 | DC74: 149.046471 | DD74: 153.3677916 | DE74: 157.7971453 | DF74: 162.3372328 | DG74: 166.9908225 | DH74: 171.760752 | DI74: 176.6499297 | DJ74: 181.6613368 | DK74: 186.7980291 | DM74: =MATCH(TRUE,BG74:CF74+$AF$64:$BE$64-$CJ74>DM$61,0)+Dashboard!$C$15-1 -> 2032 | DN74: =MATCH(TRUE,CL74:DK74-$CJ74>DM$61,0)+Dashboard!$C$15-1-$DM$59 -> 2032 | DP74: 0 | DQ74: =INDEX('Deferral Value Calculation'!$D$66:$D$91,MATCH($DP74+($E$52-$E$51),'Deferral Value Calculation'!$B$66:$B$91,0)) -INDEX('Deferral Value Calculation'!$D$66:$D$91,MATCH($E$52-$E$51,'Deferral Value Calculation'!$B$66:$B$91,0)) -> 0 | DS74: =+DS73+1 -> -9 | DT74: 0
B75: 0.5071856737 | D75: Random Walk 3 | E75: 0.8095118088 | F75: 0.786336888 | G75: 0.5437227655 | H75: 0.8860177733 | I75: 0.439045993 | J75: 0.3065681183 | K75: 0.6218128407 | L75: 0.4105806612 | M75: 0.3289010691 | N75: 0.2127567112 | O75: 0.6585167666 | P75: 0.320009281 | Q75: 0.3584548472 | R75: 0.6424985439 | S75: 0.1400090913 | T75: 0.6759176225 | U75: 0.3941122875 | V75: 0.7649548511 | W75: 0.6940200221 | X75: 0.52312981 | Y75: 0.9730122825 | Z75: 0.1622405965 | AA75: 0.03594544977 | AB75: 0.4839099859 | AC75: 0.4773919506 | AD75: 0.5374494991 | AF75: 0 | AG75: =NORMINV(F75,Dashboard!D$19,Dashboard!D$17) -> 3.142997271 | AH75: =NORMINV(G75,Dashboard!E$19,Dashboard!E$17) -> 2.432882786 | AI75: =NORMINV(H75,Dashboard!F$19,Dashboard!F$17) -> 3.788891322 | AJ75: =NORMINV(I75,Dashboard!G$19,Dashboard!G$17) -> 2.237173551 | AK75: =NORMINV(J75,Dashboard!H$19,Dashboard!H$17) -> 1.85572803 | AL75: =NORMINV(K75,Dashboard!I$19,Dashboard!I$17) -> 2.940559497 | AM75: =NORMINV(L75,Dashboard!J$19,Dashboard!J$17) -> 2.314390877 | AN75: =NORMINV(M75,Dashboard!K$19,Dashboard!K$17) -> 2.082198986 | AO75: =NORMINV(N75,Dashboard!L$19,Dashboard!L$17) -> 1.649103267 | AP75: =NORMINV(O75,Dashboard!M$19,Dashboard!M$17) -> 3.383757741 | AQ75: =NORMINV(P75,Dashboard!N$19,Dashboard!N$17) -> 2.206696844 | AR75: =NORMINV(Q75,Dashboard!O$19,Dashboard!O$17) -> 2.416973853 | AS75: =NORMINV(R75,Dashboard!P$19,Dashboard!P$17) -> 3.578464738 | AT75: =NORMINV(S75,Dashboard!Q$19,Dashboard!Q$17) -> 1.426327033 | AU75: =NORMINV(T75,Dashboard!R$19,Dashboard!R$17) -> 3.904544569 | AV75: =NORMINV(U75,Dashboard!S$19,Dashboard!S$17) -> 2.821003987 | AW75: =NORMINV(V75,Dashboard!T$19,Dashboard!T$17) -> 4.546482032 | AX75: =NORMINV(W75,Dashboard!U$19,Dashboard!U$17) -> 4.292009543 | AY75: =NORMINV(X75,Dashboard!V$19,Dashboard!V$17) -> 3.611018016 | AZ75: =NORMINV(Y75,Dashboard!W$19,Dashboard!W$17) -> 7.06269723 | BA75: =NORMINV(Z75,Dashboard!X$19,Dashboard!X$17) -> 1.870558859 | BB75: =NORMINV(AA75,Dashboard!Y$19,Dashboard!Y$17) -> 0.378267979 | BC75: =NORMINV(AB75,Dashboard!Z$19,Dashboard!Z$17) -> 3.795401347 | BD75: =NORMINV(AC75,Dashboard!AA$19,Dashboard!AA$17) -> 3.857813252 | BE75: =NORMINV(AD75,Dashboard!AB$19,Dashboard!AB$17) -> 4.260927045 | BG75: =Dashboard!$C$16 -> 90 | BH75: 93.14299727 | BI75: 95.57588006 | BJ75: 99.36477138 | BK75: 101.6019449 | BL75: 103.457673 | BM75: 106.3982325 | BN75: 108.7126233 | BO75: 110.7948223 | BP75: 112.4439256 | BQ75: 115.8276833 | BR75: 118.0343802 | BS75: 120.451354 | BT75: 124.0298188 | BU75: 125.4561458 | BV75: 129.3606904 | BW75: 132.1816944 | BX75: 136.7281764 | BY75: 141.0201859 | BZ75: 144.6312039 | CA75: 151.6939012 | CB75: 153.56446 | CC75: 153.942728 | CD75: 157.7381294 | CE75: 161.5959426 | CF75: 165.8568697 | CH75: =MATCH(TRUE,BG75:CF75+$AF$64:$BE$64>CH$61,0)+Dashboard!$C$15-1 -> 2029 | CJ75: =Dashboard!$C$13 -> 10 | CL75: =IF(CL$63<$CH75,BG75,CK75+AF$72) -> 90 | CM75: 93.14299727 | CN75: 95.57588006 | CO75: 99.36477138 | CP75: 102.4230875 | CQ75: 105.5578616 | CR75: 108.771005 | CS75: 112.064477 | CT75: 115.4402858 | CU75: 118.9004898 | CV75: 122.4471989 | CW75: 126.0825757 | CX75: 129.808837 | CY75: 133.6282548 | CZ75: 137.543158 | DA75: 141.5559338 | DB75: 145.6690291 | DC75: 149.8849517 | DD75: 154.2062723 | DE75: 158.635626 | DF75: 163.1757135 | DG75: 167.8293032 | DH75: 172.5992327 | DI75: 177.4884103 | DJ75: 182.4998175 | DK75: 187.6365098 | DM75: =MATCH(TRUE,BG75:CF75+$AF$64:$BE$64-$CJ75>DM$61,0)+Dashboard!$C$15-1 -> 2033 | DN75: =MATCH(TRUE,CL75:DK75-$CJ75>DM$61,0)+Dashboard!$C$15-1-$DM$59 -> 2032 | DP75: 1 | DQ75: =INDEX('Deferral Value Calculation'!$D$66:$D$91,MATCH($DP75+($E$52-$E$51),'Deferral Value Calculation'!$B$66:$B$91,0)) -INDEX('Deferral Value Calculation'!$D$66:$D$91,MATCH($E$52-$E$51,'Deferral Value Calculation'!$B$66:$B$91,0)) -> 1341049.659 | DS75: =+DS74+1 -> -8 | DT75: 0
B76: 0.4156069726 | D76: Random Walk 4 | E76: 0.7468876505 | F76: 0.9824990146 | G76: 0.02474534301 | H76: 0.5884326341 | I76: 0.3225197041 | J76: 0.08184758677 | K76: 0.3446961187 | L76: 0.4487406478 | M76: 0.8582380672 | N76: 0.1806953693 | O76: 0.3850417622 | P76: 0.4214368677 | Q76: 0.3721918314 | R76: 0.8267716431 | S76: 0.779279086 | T76: 0.7920388776 | U76: 0.3120847841 | V76: 0.3158552173 | W76: 0.4309322743 | X76: 0.7781868142 | Y76: 0.1676820818 | Z76: 0.001782977502 | AA76: 0.06302159592 | AB76: 0.082765375 | AC76: 0.3666777271 | AD76: 0.1307302361 | AF76: 0 | AG76: =NORMINV(F76,Dashboard!D$19,Dashboard!D$17) -> 4.621877549 | AH76: =NORMINV(G76,Dashboard!E$19,Dashboard!E$17) -> 0.04112053836 | AI76: =NORMINV(H76,Dashboard!F$19,Dashboard!F$17) -> 2.62809047 | AJ76: =NORMINV(I76,Dashboard!G$19,Dashboard!G$17) -> 1.8649081 | AK76: =NORMINV(J76,Dashboard!H$19,Dashboard!H$17) -> 0.7540757331 | AL76: =NORMINV(K76,Dashboard!I$19,Dashboard!I$17) -> 2.036942112 | AM76: =NORMINV(L76,Dashboard!J$19,Dashboard!J$17) -> 2.441213551 | AN76: =NORMINV(M76,Dashboard!K$19,Dashboard!K$17) -> 4.108682147 | AO76: =NORMINV(N76,Dashboard!L$19,Dashboard!L$17) -> 1.490340627 | AP76: =NORMINV(O76,Dashboard!M$19,Dashboard!M$17) -> 2.399316974 | AQ76: =NORMINV(P76,Dashboard!N$19,Dashboard!N$17) -> 2.594736035 | AR76: =NORMINV(Q76,Dashboard!O$19,Dashboard!O$17) -> 2.470907808 | AS76: =NORMINV(R76,Dashboard!P$19,Dashboard!P$17) -> 4.450465583 | AT76: =NORMINV(S76,Dashboard!Q$19,Dashboard!Q$17) -> 4.295414005 | AU76: =NORMINV(T76,Dashboard!R$19,Dashboard!R$17) -> 4.472352598 | AV76: =NORMINV(U76,Dashboard!S$19,Dashboard!S$17) -> 2.46037864 | AW76: =NORMINV(V76,Dashboard!T$19,Dashboard!T$17) -> 2.53963894 | AX76: =NORMINV(W76,Dashboard!U$19,Dashboard!U$17) -> 3.125782323 | AY76: =NORMINV(X76,Dashboard!V$19,Dashboard!V$17) -> 4.853415258 | AZ76: =NORMINV(Y76,Dashboard!W$19,Dashboard!W$17) -> 1.864368036 | BA76: =NORMINV(Z76,Dashboard!X$19,Dashboard!X$17) -> -1.685285511 | BB76: =NORMINV(AA76,Dashboard!Y$19,Dashboard!Y$17) -> 0.8882808966 | BC76: =NORMINV(AB76,Dashboard!Z$19,Dashboard!Z$17) -> 1.187803766 | BD76: =NORMINV(AC76,Dashboard!AA$19,Dashboard!AA$17) -> 3.294089415 | BE76: =NORMINV(AD76,Dashboard!AB$19,Dashboard!AB$17) -> 1.784644326 | BG76: =Dashboard!$C$16 -> 90 | BH76: 94.62187755 | BI76: 94.66299809 | BJ76: 97.29108856 | BK76: 99.15599666 | BL76: 99.91007239 | BM76: 101.9470145 | BN76: 104.3882281 | BO76: 108.4969102 | BP76: 109.9872508 | BQ76: 112.3865678 | BR76: 114.9813038 | BS76: 117.4522116 | BT76: 121.9026772 | BU76: 126.1980912 | BV76: 130.6704438 | BW76: 133.1308225 | BX76: 135.6704614 | BY76: 138.7962437 | BZ76: 143.649659 | CA76: 145.514027 | CB76: 143.8287415 | CC76: 144.7170224 | CD76: 145.9048262 | CE76: 149.1989156 | CF76: 150.9835599 | CH76: =MATCH(TRUE,BG76:CF76+$AF$64:$BE$64>CH$61,0)+Dashboard!$C$15-1 -> 2031 | CJ76: =Dashboard!$C$13 -> 10 | CL76: =IF(CL$63<$CH76,BG76,CK76+AF$72) -> 90 | CM76: 94.62187755 | CN76: 94.66299809 | CO76: 97.29108856 | CP76: 99.15599666 | CQ76: 99.91007239 | CR76: 103.1232158 | CS76: 106.4166878 | CT76: 109.7924966 | CU76: 113.2527006 | CV76: 116.7994097 | CW76: 120.4347865 | CX76: 124.1610478 | CY76: 127.9804656 | CZ76: 131.8953688 | DA76: 135.9081447 | DB76: 140.0212399 | DC76: 144.2371625 | DD76: 148.5584831 | DE76: 152.9878368 | DF76: 157.5279243 | DG76: 162.181514 | DH76: 166.9514435 | DI76: 171.8406211 | DJ76: 176.8520283 | DK76: 181.9887206 | DM76: =MATCH(TRUE,BG76:CF76+$AF$64:$BE$64-$CJ76>DM$61,0)+Dashboard!$C$15-1 -> 2034 | DN76: =MATCH(TRUE,CL76:DK76-$CJ76>DM$61,0)+Dashboard!$C$15-1-$DM$59 -> 2033 | DP76: 1 | DQ76: =INDEX('Deferral Value Calculation'!$D$66:$D$91,MATCH($DP76+($E$52-$E$51),'Deferral Value Calculation'!$B$66:$B$91,0)) -INDEX('Deferral Value Calculation'!$D$66:$D$91,MATCH($E$52-$E$51,'Deferral Value Calculation'!$B$66:$B$91,0)) -> 1341049.659 | DS76: -7 | DT76: 0
B77: 0.5416891397 | D77: Random Walk 5 | E77: 0.5069120929 | F77: 0.3830574574 | G77: 0.2643880129 | H77: 0.2639165878 | I77: 0.9961813302 | J77: 0.5062539474 | K77: 0.06836513873 | L77: 0.1401585237 | M77: 0.8577271388 | N77: 0.913620967 | O77: 0.5814622251 | P77: 0.9444979297 | Q77: 0.5904945894 | R77: 0.4914161418 | S77: 0.8068840475 | T77: 0.8202068525 | U77: 0.9370944076 | V77: 0.4841540926 | W77: 0.7805643219 | X77: 0.2442686477 | Y77: 0.9187932515 | Z77: 0.08465900617 | AA77: 0.1517536652 | AB77: 0.4256446783 | AC77: 0.3322605388 | AD77: 0.5891820384 | AF77: 0 | AG77: =NORMINV(F77,Dashboard!D$19,Dashboard!D$17) -> 1.91535687 | AH77: =NORMINV(G77,Dashboard!E$19,Dashboard!E$17) -> 1.579924783 | AI77: =NORMINV(H77,Dashboard!F$19,Dashboard!F$17) -> 1.617718972 | AJ77: =NORMINV(I77,Dashboard!G$19,Dashboard!G$17) -> 5.65492246 | AK77: =NORMINV(J77,Dashboard!H$19,Dashboard!H$17) -> 2.503046492 | AL77: =NORMINV(K77,Dashboard!I$19,Dashboard!I$17) -> 0.6515916221 | AM77: =NORMINV(L77,Dashboard!J$19,Dashboard!J$17) -> 1.200794903 | AN77: =NORMINV(M77,Dashboard!K$19,Dashboard!K$17) -> 4.10564206 | AO77: =NORMINV(N77,Dashboard!L$19,Dashboard!L$17) -> 4.610216447 | AP77: =NORMINV(O77,Dashboard!M$19,Dashboard!M$17) -> 3.098853735 | AQ77: =NORMINV(P77,Dashboard!N$19,Dashboard!N$17) -> 5.175264045 | AR77: =NORMINV(Q77,Dashboard!O$19,Dashboard!O$17) -> 3.28995181 | AS77: =NORMINV(R77,Dashboard!P$19,Dashboard!P$17) -> 2.993442816 | AT77: =NORMINV(S77,Dashboard!Q$19,Dashboard!Q$17) -> 4.445394726 | AU77: =NORMINV(T77,Dashboard!R$19,Dashboard!R$17) -> 4.635504912 | AV77: =NORMINV(U77,Dashboard!S$19,Dashboard!S$17) -> 5.752907947 | AW77: =NORMINV(V77,Dashboard!T$19,Dashboard!T$17) -> 3.273785396 | AX77: =NORMINV(W77,Dashboard!U$19,Dashboard!U$17) -> 4.748762243 | AY77: =NORMINV(X77,Dashboard!V$19,Dashboard!V$17) -> 2.293919864 | AZ77: =NORMINV(Y77,Dashboard!W$19,Dashboard!W$17) -> 6.109441959 | BA77: =NORMINV(Z77,Dashboard!X$19,Dashboard!X$17) -> 1.15326108 | BB77: =NORMINV(AA77,Dashboard!Y$19,Dashboard!Y$17) -> 1.834844425 | BC77: =NORMINV(AB77,Dashboard!Z$19,Dashboard!Z$17) -> 3.510442897 | BD77: =NORMINV(AC77,Dashboard!AA$19,Dashboard!AA$17) -> 3.109438801 | BE77: =NORMINV(AD77,Dashboard!AB$19,Dashboard!AB$17) -> 4.528365271 | BG77: =Dashboard!$C$16 -> 90 | BH77: 91.91535687 | BI77: 93.49528165 | BJ77: 95.11300062 | BK77: 100.7679231 | BL77: 103.2709696 | BM77: 103.9225612 | BN77: 105.1233561 | BO77: 109.2289982 | BP77: 113.8392146 | BQ77: 116.9380683 | BR77: 122.1133324 | BS77: 125.4032842 | BT77: 128.396727 | BU77: 132.8421217 | BV77: 137.4776267 | BW77: 143.2305346 | BX77: 146.50432 | BY77: 151.2530822 | BZ77: 153.5470021 | CA77: 159.6564441 | CB77: 160.8097051 | CC77: 162.6445496 | CD77: 166.1549925 | CE77: 169.2644313 | CF77: 173.7927965 | CH77: =MATCH(TRUE,BG77:CF77+$AF$64:$BE$64>CH$61,0)+Dashboard!$C$15-1 -> 2029 | CJ77: =Dashboard!$C$13 -> 10 | CL77: =IF(CL$63<$CH77,BG77,CK77+AF$72) -> 90 | CM77: 91.91535687 | CN77: 93.49528165 | CO77: 95.11300062 | CP77: 98.17131678 | CQ77: 101.3060908 | CR77: 104.5192342 | CS77: 107.8127062 | CT77: 111.188515 | CU77: 114.648719 | CV77: 118.1954281 | CW77: 121.830805 | CX77: 125.5570662 | CY77: 129.376484 | CZ77: 133.2913873 | DA77: 137.3041631 | DB77: 141.4172583 | DC77: 145.6331809 | DD77: 149.9545016 | DE77: 154.3838552 | DF77: 158.9239428 | DG77: 163.5775325 | DH77: 168.3474619 | DI77: 173.2366396 | DJ77: 178.2480467 | DK77: 183.384739 | DM77: =MATCH(TRUE,BG77:CF77+$AF$64:$BE$64-$CJ77>DM$61,0)+Dashboard!$C$15-1 -> 2034 | DN77: =MATCH(TRUE,CL77:DK77-$CJ77>DM$61,0)+Dashboard!$C$15-1-$DM$59 -> 2033 | DP77: 1 | DQ77: =INDEX('Deferral Value Calculation'!$D$66:$D$91,MATCH($DP77+($E$52-$E$51),'Deferral Value Calculation'!$B$66:$B$91,0)) -INDEX('Deferral Value Calculation'!$D$66:$D$91,MATCH($E$52-$E$51,'Deferral Value Calculation'!$B$66:$B$91,0)) -> 1341049.659 | DS77: -6 | DT77: 0
B78: 0.4522837914 | D78: Random Walk 6 | E78: 0.6616626548 | F78: 0.2335942183 | G78: 0.6168637666 | H78: 0.6698287051 | I78: 0.01350392843 | J78: 0.1918976849 | K78: 0.5124456901 | L78: 0.2572626314 | M78: 0.2438936234 | N78: 0.6732199116 | O78: 0.4000478859 | P78: 0.1856719522 | Q78: 0.5318535619 | R78: 0.4149932126 | S78: 0.4807022588 | T78: 0.6179167689 | U78: 0.3837849965 | V78: 0.05575175618 | W78: 0.4301488914 | X78: 0.9179505807 | Y78: 0.5839541747 | Z78: 0.342377968 | AA78: 0.04194582922 | AB78: 0.6358089817 | AC78: 0.7882186226 | AD78: 0.8740783195 | AF78: 0 | AG78: =NORMINV(F78,Dashboard!D$19,Dashboard!D$17) -> 1.432056096 | AH78: =NORMINV(G78,Dashboard!E$19,Dashboard!E$17) -> 2.649021217 | AI78: =NORMINV(H78,Dashboard!F$19,Dashboard!F$17) -> 2.88330399 | AJ78: =NORMINV(I78,Dashboard!G$19,Dashboard!G$17) -> -0.2561166432 | AK78: =NORMINV(J78,Dashboard!H$19,Dashboard!H$17) -> 1.402074083 | AL78: =NORMINV(K78,Dashboard!I$19,Dashboard!I$17) -> 2.585383174 | AM78: =NORMINV(L78,Dashboard!J$19,Dashboard!J$17) -> 1.758926013 | AN78: =NORMINV(M78,Dashboard!K$19,Dashboard!K$17) -> 1.746700511 | AO78: =NORMINV(N78,Dashboard!L$19,Dashboard!L$17) -> 3.356608089 | AP78: =NORMINV(O78,Dashboard!M$19,Dashboard!M$17) -> 2.454170529 | AQ78: =NORMINV(P78,Dashboard!N$19,Dashboard!N$17) -> 1.592804443 | AR78: =NORMINV(Q78,Dashboard!O$19,Dashboard!O$17) -> 3.070179552 | AS78: =NORMINV(R78,Dashboard!P$19,Dashboard!P$17) -> 2.701130056 | AT78: =NORMINV(S78,Dashboard!Q$19,Dashboard!Q$17) -> 3.02660366 | AU78: =NORMINV(T78,Dashboard!R$19,Dashboard!R$17) -> 3.656092046 | AV78: =NORMINV(U78,Dashboard!S$19,Dashboard!S$17) -> 2.777112744 | AW78: =NORMINV(V78,Dashboard!T$19,Dashboard!T$17) -> 0.6822707704 | AX78: =NORMINV(W78,Dashboard!U$19,Dashboard!U$17) -> 3.12236904 | AY78: =NORMINV(X78,Dashboard!V$19,Dashboard!V$17) -> 5.950635732 | AZ78: =NORMINV(Y78,Dashboard!W$19,Dashboard!W$17) -> 3.978276451 | BA78: =NORMINV(Z78,Dashboard!X$19,Dashboard!X$17) -> 2.938482389 | BB78: =NORMINV(AA78,Dashboard!Y$19,Dashboard!Y$17) -> 0.5129338351 | BC78: =NORMINV(AB78,Dashboard!Z$19,Dashboard!Z$17) -> 4.546133636 | BD78: =NORMINV(AC78,Dashboard!AA$19,Dashboard!AA$17) -> 5.559030952 | BE78: =NORMINV(AD78,Dashboard!AB$19,Dashboard!AB$17) -> 6.401296253 | BG78: =Dashboard!$C$16 -> 90 | BH78: 91.4320561 | BI78: 94.08107731 | BJ78: 96.9643813 | BK78: 96.70826466 | BL78: 98.11033874 | BM78: 100.6957219 | BN78: 102.4546479 | BO78: 104.2013484 | BP78: 107.5579565 | BQ78: 110.0121271 | BR78: 111.6049315 | BS78: 114.6751111 | BT78: 117.3762411 | BU78: 120.4028448 | BV78: 124.0589368 | BW78: 126.8360496 | BX78: 127.5183203 | BY78: 130.6406894 | BZ78: 136.5913251 | CA78: 140.5696016 | CB78: 143.5080839 | CC78: 144.0210178 | CD78: 148.5671514 | CE78: 154.1261824 | CF78: 160.5274786 | CH78: =MATCH(TRUE,BG78:CF78+$AF$64:$BE$64>CH$61,0)+Dashboard!$C$15-1 -> 2031 | CJ78: =Dashboard!$C$13 -> 10 | CL78: =IF(CL$63<$CH78,BG78,CK78+AF$72) -> 90 | CM78: 91.4320561 | CN78: 94.08107731 | CO78: 96.9643813 | CP78: 96.70826466 | CQ78: 98.11033874 | CR78: 101.3234821 | CS78: 104.6169541 | CT78: 107.9927629 | CU78: 111.4529669 | CV78: 114.9996761 | CW78: 118.6350529 | CX78: 122.3613142 | CY78: 126.1807319 | CZ78: 130.0956352 | DA78: 134.108411 | DB78: 138.2215062 | DC78: 142.4374288 | DD78: 146.7587495 | DE78: 151.1881031 | DF78: 155.7281907 | DG78: 160.3817804 | DH78: 165.1517098 | DI78: 170.0408875 | DJ78: 175.0522946 | DK78: 180.1889869 | DM78: =MATCH(TRUE,BG78:CF78+$AF$64:$BE$64-$CJ78>DM$61,0)+Dashboard!$C$15-1 -> 2035 | DN78: =MATCH(TRUE,CL78:DK78-$CJ78>DM$61,0)+Dashboard!$C$15-1-$DM$59 -> 2034 | DP78: 1 | DQ78: =INDEX('Deferral Value Calculation'!$D$66:$D$91,MATCH($DP78+($E$52-$E$51),'Deferral Value Calculation'!$B$66:$B$91,0)) -INDEX('Deferral Value Calculation'!$D$66:$D$91,MATCH($E$52-$E$51,'Deferral Value Calculation'!$B$66:$B$91,0)) -> 1341049.659 | DS78: -5 | DT78: 0
B79: 0.4641567695 | D79: Random Walk 7 | E79: 0.570596095 | F79: 0.8093043822 | G79: 0.7233370912 | H79: 0.4463414638 | I79: 0.4902576561 | J79: 0.8936217679 | K79: 0.9664851055 | L79: 0.05762484333 | M79: 0.06027732336 | N79: 0.1802437456 | O79: 0.2709205837 | P79: 0.6038166317 | Q79: 0.169494345 | R79: 0.5218115351 | S79: 0.4933437015 | T79: 0.8196733911 | U79: 0.08890788855 | V79: 0.1861801718 | W79: 0.7515300094 | X79: 0.5551850429 | Y79: 0.728302636 | Z79: 0.04203136272 | AA79: 0.1430881284 | AB79: 0.4874278934 | AC79: 0.213271042 | AD79: 0.7950021704 | AF79: 0 | AG79: =NORMINV(F79,Dashboard!D$19,Dashboard!D$17) -> 3.234752744 | AH79: =NORMINV(G79,Dashboard!E$19,Dashboard!E$17) -> 2.989803876 | AI79: =NORMINV(H79,Dashboard!F$19,Dashboard!F$17) -> 2.204448796 | AJ79: =NORMINV(I79,Dashboard!G$19,Dashboard!G$17) -> 2.393415561 | AK79: =NORMINV(J79,Dashboard!H$19,Dashboard!H$17) -> 4.03087555 | AL79: =NORMINV(K79,Dashboard!I$19,Dashboard!I$17) -> 4.876831602 | AM79: =NORMINV(L79,Dashboard!J$19,Dashboard!J$17) -> 0.5544402178 | AN79: =NORMINV(M79,Dashboard!K$19,Dashboard!K$17) -> 0.5984961782 | AO79: =NORMINV(N79,Dashboard!L$19,Dashboard!L$17) -> 1.487985327 | AP79: =NORMINV(O79,Dashboard!M$19,Dashboard!M$17) -> 1.952865693 | AQ79: =NORMINV(P79,Dashboard!N$19,Dashboard!N$17) -> 3.259278742 | AR79: =NORMINV(Q79,Dashboard!O$19,Dashboard!O$17) -> 1.540801669 | AS79: =NORMINV(R79,Dashboard!P$19,Dashboard!P$17) -> 3.108761975 | AT79: =NORMINV(S79,Dashboard!Q$19,Dashboard!Q$17) -> 3.075773344 | AU79: =NORMINV(T79,Dashboard!R$19,Dashboard!R$17) -> 4.632273925 | AV79: =NORMINV(U79,Dashboard!S$19,Dashboard!S$17) -> 1.063123774 | AW79: =NORMINV(V79,Dashboard!T$19,Dashboard!T$17) -> 1.850334713 | AX79: =NORMINV(W79,Dashboard!U$19,Dashboard!U$17) -> 4.586501902 | AY79: =NORMINV(X79,Dashboard!V$19,Dashboard!V$17) -> 3.752724597 | AZ79: =NORMINV(Y79,Dashboard!W$19,Dashboard!W$17) -> 4.689877692 | BA79: =NORMINV(Z79,Dashboard!X$19,Dashboard!X$17) -> 0.5021823941 | BB79: =NORMINV(AA79,Dashboard!Y$19,Dashboard!Y$17) -> 1.763786273 | BC79: =NORMINV(AB79,Dashboard!Z$19,Dashboard!Z$17) -> 3.812491017 | BD79: =NORMINV(AC79,Dashboard!AA$19,Dashboard!AA$17) -> 2.391906612 | BE79: =NORMINV(AD79,Dashboard!AB$19,Dashboard!AB$17) -> 5.746121443 | BG79: =Dashboard!$C$16 -> 90 | BH79: 93.23475274 | BI79: 96.22455662 | BJ79: 98.42900542 | BK79: 100.822421 | BL79: 104.8532965 | BM79: 109.7301281 | BN79: 110.2845683 | BO79: 110.8830645 | BP79: 112.3710499 | BQ79: 114.3239155 | BR79: 117.5831943 | BS79: 119.123996 | BT79: 122.2327579 | BU79: 125.3085313 | BV79: 129.9408052 | BW79: 131.003929 | BX79: 132.8542637 | BY79: 137.4407656 | BZ79: 141.1934902 | CA79: 145.8833679 | CB79: 146.3855503 | CC79: 148.1493365 | CD79: 151.9618276 | CE79: 154.3537342 | CF79: 160.0998556 | CH79: =MATCH(TRUE,BG79:CF79+$AF$64:$BE$64>CH$61,0)+Dashboard!$C$15-1 -> 2029 | CJ79: =Dashboard!$C$13 -> 10 | CL79: =IF(CL$63<$CH79,BG79,CK79+AF$72) -> 90 | CM79: 93.23475274 | CN79: 96.22455662 | CO79: 98.42900542 | CP79: 101.4873216 | CQ79: 104.6220956 | CR79: 107.835239 | CS79: 111.128711 | CT79: 114.5045198 | CU79: 117.9647238 | CV79: 121.5114329 | CW79: 125.1468098 | CX79: 128.873071 | CY79: 132.6924888 | CZ79: 136.6073921 | DA79: 140.6201679 | DB79: 144.7332631 | DC79: 148.9491857 | DD79: 153.2705063 | DE79: 157.69986 | DF79: 162.2399475 | DG79: 166.8935372 | DH79: 171.6634667 | DI79: 176.5526444 | DJ79: 181.5640515 | DK79: 186.7007438 | DM79: =MATCH(TRUE,BG79:CF79+$AF$64:$BE$64-$CJ79>DM$61,0)+Dashboard!$C$15-1 -> 2032 | DN79: =MATCH(TRUE,CL79:DK79-$CJ79>DM$61,0)+Dashboard!$C$15-1-$DM$59 -> 2032 | DP79: 0 | DQ79: =INDEX('Deferral Value Calculation'!$D$66:$D$91,MATCH($DP79+($E$52-$E$51),'Deferral Value Calculation'!$B$66:$B$91,0)) -INDEX('Deferral Value Calculation'!$D$66:$D$91,MATCH($E$52-$E$51,'Deferral Value Calculation'!$B$66:$B$91,0)) -> 0 | DS79: -4 | DT79: 0
B80: 0.4145909851 | D80: Random Walk 8 | E80: 0.9528260193 | F80: 0.5484901021 | G80: 0.07136345204 | H80: 0.4509650609 | I80: 0.7218311457 | J80: 0.2647406808 | K80: 0.2661168948 | L80: 0.04611566209 | M80: 0.7960255494 | N80: 0.2348367587 | O80: 0.5084472596 | P80: 0.597578954 | Q80: 0.5672532961 | R80: 0.2297895809 | S80: 0.3818255334 | T80: 0.5092560853 | U80: 0.5173047798 | V80: 0.2858911759 | W80: 0.297435126 | X80: 0.2948144412 | Y80: 0.1249349416 | Z80: 0.04061089274 | AA80: 0.9932780693 | AB80: 0.4928926781 | AC80: 0.05754999121 | AD80: 0.527191483 | AF80: 0 | AG80: =NORMINV(F80,Dashboard!D$19,Dashboard!D$17) -> 2.387078436 | AH80: =NORMINV(G80,Dashboard!E$19,Dashboard!E$17) -> 0.6161014444 | AI80: =NORMINV(H80,Dashboard!F$19,Dashboard!F$17) -> 2.218261856 | AJ80: =NORMINV(I80,Dashboard!G$19,Dashboard!G$17) -> 3.135718296 | AK80: =NORMINV(J80,Dashboard!H$19,Dashboard!H$17) -> 1.702744347 | AL80: =NORMINV(K80,Dashboard!I$19,Dashboard!I$17) -> 1.750656542 | AM80: =NORMINV(L80,Dashboard!J$19,Dashboard!J$17) -> 0.4126061506 | AN80: =NORMINV(M80,Dashboard!K$19,Dashboard!K$17) -> 3.781146469 | AO80: =NORMINV(N80,Dashboard!L$19,Dashboard!L$17) -> 1.750373858 | AP80: =NORMINV(O80,Dashboard!M$19,Dashboard!M$17) -> 2.839692955 | AQ80: =NORMINV(P80,Dashboard!N$19,Dashboard!N$17) -> 3.236016777 | AR80: =NORMINV(Q80,Dashboard!O$19,Dashboard!O$17) -> 3.202224529 | AS80: =NORMINV(R80,Dashboard!P$19,Dashboard!P$17) -> 1.907075893 | AT80: =NORMINV(S80,Dashboard!Q$19,Dashboard!Q$17) -> 2.635332653 | AU80: =NORMINV(T80,Dashboard!R$19,Dashboard!R$17) -> 3.216075511 | AV80: =NORMINV(U80,Dashboard!S$19,Dashboard!S$17) -> 3.329368166 | AW80: =NORMINV(V80,Dashboard!T$19,Dashboard!T$17) -> 2.395833156 | AX80: =NORMINV(W80,Dashboard!U$19,Dashboard!U$17) -> 2.513309081 | AY80: =NORMINV(X80,Dashboard!V$19,Dashboard!V$17) -> 2.562837998 | AZ80: =NORMINV(Y80,Dashboard!W$19,Dashboard!W$17) -> 1.527512386 | BA80: =NORMINV(Z80,Dashboard!X$19,Dashboard!X$17) -> 0.4725841359 | BB80: =NORMINV(AA80,Dashboard!Y$19,Dashboard!Y$17) -> 8.449578728 | BC80: =NORMINV(AB80,Dashboard!Z$19,Dashboard!Z$17) -> 3.839029498 | BD80: =NORMINV(AC80,Dashboard!AA$19,Dashboard!AA$17) -> 0.8423581157 | BE80: =NORMINV(AD80,Dashboard!AB$19,Dashboard!AB$17) -> 4.208431896 | BG80: =Dashboard!$C$16 -> 90 | BH80: 92.38707844 | BI80: 93.00317988 | BJ80: 95.22144174 | BK80: 98.35716003 | BL80: 100.0599044 | BM80: 101.8105609 | BN80: 102.2231671 | BO80: 106.0043135 | BP80: 107.7546874 | BQ80: 110.5943804 | BR80: 113.8303971 | BS80: 117.0326217 | BT80: 118.9396976 | BU80: 121.5750302 | BV80: 124.7911057 | BW80: 128.1204739 | BX80: 130.516307 | BY80: 133.0296161 | BZ80: 135.5924541 | CA80: 137.1199665 | CB80: 137.5925506 | CC80: 146.0421294 | CD80: 149.8811589 | CE80: 150.723517 | CF80: 154.9319489 | CH80: =MATCH(TRUE,BG80:CF80+$AF$64:$BE$64>CH$61,0)+Dashboard!$C$15-1 -> 2031 | CJ80: =Dashboard!$C$13 -> 10 | CL80: =IF(CL$63<$CH80,BG80,CK80+AF$72) -> 90 | CM80: 92.38707844 | CN80: 93.00317988 | CO80: 95.22144174 | CP80: 98.35716003 | CQ80: 100.0599044 | CR80: 103.2730478 | CS80: 106.5665198 | CT80: 109.9423286 | CU80: 113.4025326 | CV80: 116.9492417 | CW80: 120.5846185 | CX80: 124.3108798 | CY80: 128.1302976 | CZ80: 132.0452008 | DA80: 136.0579766 | DB80: 140.1710719 | DC80: 144.3869944 | DD80: 148.7083151 | DE80: 153.1376688 | DF80: 157.6777563 | DG80: 162.331346 | DH80: 167.1012755 | DI80: 171.9904531 | DJ80: 177.0018603 | DK80: 182.1385526 | DM80: =MATCH(TRUE,BG80:CF80+$AF$64:$BE$64-$CJ80>DM$61,0)+Dashboard!$C$15-1 -> 2035 | DN80: =MATCH(TRUE,CL80:DK80-$CJ80>DM$61,0)+Dashboard!$C$15-1-$DM$59 -> 2033 | DP80: 2 | DQ80: =INDEX('Deferral Value Calculation'!$D$66:$D$91,MATCH($DP80+($E$52-$E$51),'Deferral Value Calculation'!$B$66:$B$91,0)) -INDEX('Deferral Value Calculation'!$D$66:$D$91,MATCH($E$52-$E$51,'Deferral Value Calculation'!$B$66:$B$91,0)) -> 2657265.066 | DS80: -3 | DT80: 0
B81: 0.3921833323 | D81: Random Walk 9 | E81: 0.250300656 | F81: 0.408027625 | G81: 0.07546093875 | H81: 0.1330138178 | I81: 0.3714815657 | J81: 0.07705419622 | K81: 0.4742069189 | L81: 0.0905518172 | M81: 0.8063683682 | N81: 0.7299980267 | O81: 0.7784260272 | P81: 0.1728261537 | Q81: 0.1612911711 | R81: 0.342869885 | S81: 0.5159931081 | T81: 0.9238018865 | U81: 0.8683137927 | V81: 0.8561006074 | W81: 0.1894837441 | X81: 0.5269263834 | Y81: 0.4664207524 | Z81: 0.1731523843 | AA81: 0.2696664435 | AB81: 0.1105326815 | AC81: 0.1981488913 | AD81: 0.2263487974 | AF81: 0 | AG81: =NORMINV(F81,Dashboard!D$19,Dashboard!D$17) -> 1.988300696 | AH81: =NORMINV(G81,Dashboard!E$19,Dashboard!E$17) -> 0.6500363606 | AI81: =NORMINV(H81,Dashboard!F$19,Dashboard!F$17) -> 1.049270528 | AJ81: =NORMINV(I81,Dashboard!G$19,Dashboard!G$17) -> 2.025713733 | AK81: =NORMINV(J81,Dashboard!H$19,Dashboard!H$17) -> 0.713819262 | AL81: =NORMINV(K81,Dashboard!I$19,Dashboard!I$17) -> 2.463317662 | AM81: =NORMINV(L81,Dashboard!J$19,Dashboard!J$17) -> 0.8645105737 | AN81: =NORMINV(M81,Dashboard!K$19,Dashboard!K$17) -> 3.830735949 | AO81: =NORMINV(N81,Dashboard!L$19,Dashboard!L$17) -> 3.581383103 | AP81: =NORMINV(O81,Dashboard!M$19,Dashboard!M$17) -> 3.887397347 | AQ81: =NORMINV(P81,Dashboard!N$19,Dashboard!N$17) -> 1.522100022 | AR81: =NORMINV(Q81,Dashboard!O$19,Dashboard!O$17) -> 1.492090773 | AS81: =NORMINV(R81,Dashboard!P$19,Dashboard!P$17) -> 2.413774662 | AT81: =NORMINV(S81,Dashboard!Q$19,Dashboard!Q$17) -> 3.163837187 | AU81: =NORMINV(T81,Dashboard!R$19,Dashboard!R$17) -> 5.454090856 | AV81: =NORMINV(U81,Dashboard!S$19,Dashboard!S$17) -> 5.081010389 | AW81: =NORMINV(V81,Dashboard!T$19,Dashboard!T$17) -> 5.115358813 | AX81: =NORMINV(W81,Dashboard!U$19,Dashboard!U$17) -> 1.917580815 | AY81: =NORMINV(X81,Dashboard!V$19,Dashboard!V$17) -> 3.627748992 | AZ81: =NORMINV(Y81,Dashboard!W$19,Dashboard!W$17) -> 3.445404299 | BA81: =NORMINV(Z81,Dashboard!X$19,Dashboard!X$17) -> 1.95076691 | BB81: =NORMINV(AA81,Dashboard!Y$19,Dashboard!Y$17) -> 2.619224136 | BC81: =NORMINV(AB81,Dashboard!Z$19,Dashboard!Z$17) -> 1.503512569 | BD81: =NORMINV(AC81,Dashboard!AA$19,Dashboard!AA$17) -> 2.286435674 | BE81: =NORMINV(AD81,Dashboard!AB$19,Dashboard!AB$17) -> 2.541637988 | BG81: =Dashboard!$C$16 -> 90 | BH81: 91.9883007 | BI81: 92.63833706 | BJ81: 93.68760758 | BK81: 95.71332132 | BL81: 96.42714058 | BM81: 98.89045824 | BN81: 99.75496882 | BO81: 103.5857048 | BP81: 107.1670879 | BQ81: 111.0544852 | BR81: 112.5765852 | BS81: 114.068676 | BT81: 116.4824507 | BU81: 119.6462879 | BV81: 125.1003787 | BW81: 130.1813891 | BX81: 135.2967479 | BY81: 137.2143287 | BZ81: 140.8420777 | CA81: 144.287482 | CB81: 146.2382489 | CC81: 148.8574731 | CD81: 150.3609856 | CE81: 152.6474213 | CF81: 155.1890593 | CH81: =MATCH(TRUE,BG81:CF81+$AF$64:$BE$64>CH$61,0)+Dashboard!$C$15-1 -> 2032 | CJ81: =Dashboard!$C$13 -> 10 | CL81: =IF(CL$63<$CH81,BG81,CK81+AF$72) -> 90 | CM81: 91.9883007 | CN81: 92.63833706 | CO81: 93.68760758 | CP81: 95.71332132 | CQ81: 96.42714058 | CR81: 98.89045824 | CS81: 102.1839302 | CT81: 105.559739 | CU81: 109.019943 | CV81: 112.5666521 | CW81: 116.202029 | CX81: 119.9282902 | CY81: 123.747708 | CZ81: 127.6626113 | DA81: 131.6753871 | DB81: 135.7884823 | DC81: 140.0044049 | DD81: 144.3257256 | DE81: 148.7550792 | DF81: 153.2951668 | DG81: 157.9487565 | DH81: 162.7186859 | DI81: 167.6078636 | DJ81: 172.6192707 | DK81: 177.755963 | DM81: =MATCH(TRUE,BG81:CF81+$AF$64:$BE$64-$CJ81>DM$61,0)+Dashboard!$C$15-1 -> 2035 | DN81: =MATCH(TRUE,CL81:DK81-$CJ81>DM$61,0)+Dashboard!$C$15-1-$DM$59 -> 2035 | DP81: 0 | DQ81: =INDEX('Deferral Value Calculation'!$D$66:$D$91,MATCH($DP81+($E$52-$E$51),'Deferral Value Calculation'!$B$66:$B$91,0)) -INDEX('Deferral Value Calculation'!$D$66:$D$91,MATCH($E$52-$E$51,'Deferral Value Calculation'!$B$66:$B$91,0)) -> 0 | DS81: -2 | DT81: 8
B82: 0.4604211924 | D82: Random Walk 10 | E82: 0.6812258019 | F82: 0.5257702847 | G82: 0.5090057476 | H82: 0.7220869765 | I82: 0.8466685644 | J82: 0.8532729052 | K82: 0.1425617226 | L82: 0.4679438091 | M82: 0.1795706824 | N82: 0.1140545994 | O82: 0.1294102159 | P82: 0.6542760212 | Q82: 0.1628665464 | R82: 0.8505376576 | S82: 0.1813510635 | T82: 0.3475768915 | U82: 0.2631056669 | V82: 0.5582581345 | W82: 0.5607455939 | X82: 0.7791057375 | Y82: 0.9414836592 | Z82: 0.0672719167 | AA82: 0.4262258476 | AB82: 0.3803579086 | AC82: 0.001852955968 | AD82: 0.6243640918 | AF82: 0 | AG82: =NORMINV(F82,Dashboard!D$19,Dashboard!D$17) -> 2.322721703 | AH82: =NORMINV(G82,Dashboard!E$19,Dashboard!E$17) -> 2.332282926 | AI82: =NORMINV(H82,Dashboard!F$19,Dashboard!F$17) -> 3.060138709 | AJ82: =NORMINV(I82,Dashboard!G$19,Dashboard!G$17) -> 3.661461062 | AK82: =NORMINV(J82,Dashboard!H$19,Dashboard!H$17) -> 3.788171033 | AL82: =NORMINV(K82,Dashboard!I$19,Dashboard!I$17) -> 1.18516057 | AM82: =NORMINV(L82,Dashboard!J$19,Dashboard!J$17) -> 2.504364233 | AN82: =NORMINV(M82,Dashboard!K$19,Dashboard!K$17) -> 1.448261751 | AO82: =NORMINV(N82,Dashboard!L$19,Dashboard!L$17) -> 1.089374916 | AP82: =NORMINV(O82,Dashboard!M$19,Dashboard!M$17) -> 1.223471787 | AQ82: =NORMINV(P82,Dashboard!N$19,Dashboard!N$17) -> 3.451750787 | AR82: =NORMINV(Q82,Dashboard!O$19,Dashboard!O$17) -> 1.501567959 | AS82: =NORMINV(R82,Dashboard!P$19,Dashboard!P$17) -> 4.597616612 | AT82: =NORMINV(S82,Dashboard!Q$19,Dashboard!Q$17) -> 1.690045129 | AU82: =NORMINV(T82,Dashboard!R$19,Dashboard!R$17) -> 2.556275241 | AV82: =NORMINV(U82,Dashboard!S$19,Dashboard!S$17) -> 2.225998026 | AW82: =NORMINV(V82,Dashboard!T$19,Dashboard!T$17) -> 3.584893618 | AX82: =NORMINV(W82,Dashboard!U$19,Dashboard!U$17) -> 3.68530969 | AY82: =NORMINV(X82,Dashboard!V$19,Dashboard!V$17) -> 4.858841594 | AZ82: =NORMINV(Y82,Dashboard!W$19,Dashboard!W$17) -> 6.415814546 | BA82: =NORMINV(Z82,Dashboard!X$19,Dashboard!X$17) -> 0.9283183908 | BB82: =NORMINV(AA82,Dashboard!Y$19,Dashboard!Y$17) -> 3.42762337 | BC82: =NORMINV(AB82,Dashboard!Z$19,Dashboard!Z$17) -> 3.283710576 | BD82: =NORMINV(AC82,Dashboard!AA$19,Dashboard!AA$17) -> -1.790969764 | BE82: =NORMINV(AD82,Dashboard!AB$19,Dashboard!AB$17) -> 4.714594617 | BG82: =Dashboard!$C$16 -> 90 | BH82: 92.3227217 | BI82: 94.65500463 | BJ82: 97.71514334 | BK82: 101.3766044 | BL82: 105.1647754 | BM82: 106.349936 | BN82: 108.8543002 | BO82: 110.302562 | BP82: 111.3919369 | BQ82: 112.6154087 | BR82: 116.0671595 | BS82: 117.5687274 | BT82: 122.166344 | BU82: 123.8563892 | BV82: 126.4126644 | BW82: 128.6386624 | BX82: 132.2235561 | BY82: 135.9088658 | BZ82: 140.7677073 | CA82: 147.1835219 | CB82: 148.1118403 | CC82: 151.5394637 | CD82: 154.8231742 | CE82: 153.0322045 | CF82: 157.7467991 | CH82: =MATCH(TRUE,BG82:CF82+$AF$64:$BE$64>CH$61,0)+Dashboard!$C$15-1 -> 2029 | CJ82: =Dashboard!$C$13 -> 10 | CL82: =IF(CL$63<$CH82,BG82,CK82+AF$72) -> 90 | CM82: 92.3227217 | CN82: 94.65500463 | CO82: 97.71514334 | CP82: 100.7734595 | CQ82: 103.9082335 | CR82: 107.121377 | CS82: 110.4148489 | CT82: 113.7906577 | CU82: 117.2508617 | CV82: 120.7975709 | CW82: 124.4329477 | CX82: 128.159209 | CY82: 131.9786268 | CZ82: 135.89353 | DA82: 139.9063058 | DB82: 144.019401 | DC82: 148.2353236 | DD82: 152.5566443 | DE82: 156.9859979 | DF82: 161.5260855 | DG82: 166.1796752 | DH82: 170.9496046 | DI82: 175.8387823 | DJ82: 180.8501894 | DK82: 185.9868817 | DM82: =MATCH(TRUE,BG82:CF82+$AF$64:$BE$64-$CJ82>DM$61,0)+Dashboard!$C$15-1 -> 2033 | DN82: =MATCH(TRUE,CL82:DK82-$CJ82>DM$61,0)+Dashboard!$C$15-1-$DM$59 -> 2032 | DP82: 1 | DQ82: =INDEX('Deferral Value Calculation'!$D$66:$D$91,MATCH($DP82+($E$52-$E$51),'Deferral Value Calculation'!$B$66:$B$91,0)) -INDEX('Deferral Value Calculation'!$D$66:$D$91,MATCH($E$52-$E$51,'Deferral Value Calculation'!$B$66:$B$91,0)) -> 1341049.659 | DS82: -1 | DT82: 433
B83: 0.5338380399 | D83: Random Walk 11 | E83: =RAND() -> 0.2717208988 | F83: 0.639948173 | G83: 0.927485143 | H83: 0.4372125154 | I83: 0.1321563223 | J83: 0.9460611374 | K83: 0.6134655751 | L83: 0.2917928553 | M83: 0.984478959 | N83: 0.3780019831 | O83: =RAND() -> 0.1001145802 | P83: 0.2879509743 | Q83: 0.2998105962 | R83: 0.5252836316 | S83: 0.8505703903 | T83: 0.1283706513 | U83: 0.3669975721 | V83: 0.4445416237 | W83: 0.8341494559 | X83: 0.6584704693 | Y83: =RAND() -> 0.9408891287 | Z83: 0.1786931643 | AA83: 0.8034310012 | AB83: 0.7379420077 | AC83: 0.6693022069 | AD83: 0.4309480222 | AF83: 0 | AG83: =NORMINV(F83,Dashboard!D$19,Dashboard!D$17) -> 2.653110299 | AH83: =NORMINV(G83,Dashboard!E$19,Dashboard!E$17) -> 3.986715248 | AI83: =NORMINV(H83,Dashboard!F$19,Dashboard!F$17) -> 2.177110005 | AJ83: =NORMINV(I83,Dashboard!G$19,Dashboard!G$17) -> 1.070657793 | AK83: =NORMINV(J83,Dashboard!H$19,Dashboard!H$17) -> 4.480135326 | AL83: =NORMINV(K83,Dashboard!I$19,Dashboard!I$17) -> 2.912706841 | AM83: =NORMINV(L83,Dashboard!J$19,Dashboard!J$17) -> 1.894157419 | AN83: =NORMINV(M83,Dashboard!K$19,Dashboard!K$17) -> 5.558412798 | AO83: =NORMINV(N83,Dashboard!L$19,Dashboard!L$17) -> 2.31548443 | AP83: =NORMINV(O83,Dashboard!M$19,Dashboard!M$17) -> 1.010316002 | AQ83: =NORMINV(P83,Dashboard!N$19,Dashboard!N$17) -> 2.074628851 | AR83: =NORMINV(Q83,Dashboard!O$19,Dashboard!O$17) -> 2.177324488 | AS83: =NORMINV(R83,Dashboard!P$19,Dashboard!P$17) -> 3.121953027 | AT83: =NORMINV(S83,Dashboard!Q$19,Dashboard!Q$17) -> 4.712775283 | AU83: =NORMINV(T83,Dashboard!R$19,Dashboard!R$17) -> 1.376387954 | AV83: =NORMINV(U83,Dashboard!S$19,Dashboard!S$17) -> 2.704996724 | AW83: =NORMINV(V83,Dashboard!T$19,Dashboard!T$17) -> 3.107222631 | AX83: =NORMINV(W83,Dashboard!U$19,Dashboard!U$17) -> 5.085293618 | AY83: =NORMINV(X83,Dashboard!V$19,Dashboard!V$17) -> 4.225628413 | AZ83: =NORMINV(Y83,Dashboard!W$19,Dashboard!W$17) -> 6.406696814 | BA83: =NORMINV(Z83,Dashboard!X$19,Dashboard!X$17) -> 1.990261209 | BB83: =NORMINV(AA83,Dashboard!Y$19,Dashboard!Y$17) -> 5.392604866 | BC83: =NORMINV(AB83,Dashboard!Z$19,Dashboard!Z$17) -> 5.107283088 | BD83: =NORMINV(AC83,Dashboard!AA$19,Dashboard!AA$17) -> 4.839860473 | BE83: =NORMINV(AD83,Dashboard!AB$19,Dashboard!AB$17) -> 3.715654464 | BG83: =Dashboard!$C$16 -> 90 | BH83: 92.6531103 | BI83: 96.63982555 | BJ83: 98.81693555 | BK83: 99.88759335 | BL83: 104.3677287 | BM83: 107.2804355 | BN83: 109.1745929 | BO83: 114.7330057 | BP83: 117.0484902 | BQ83: 118.0588062 | BR83: 120.133435 | BS83: 122.3107595 | BT83: 125.4327125 | BU83: 130.1454878 | BV83: 131.5218758 | BW83: 134.2268725 | BX83: 137.3340951 | BY83: 142.4193887 | BZ83: 146.6450171 | CA83: 153.051714 | CB83: 155.0419752 | CC83: 160.43458 | CD83: 165.5418631 | CE83: 170.3817236 | CF83: 174.0973781 | CH83: =MATCH(TRUE,BG83:CF83+$AF$64:$BE$64>CH$61,0)+Dashboard!$C$15-1 -> 2030 | CJ83: =Dashboard!$C$13 -> 10 | CL83: =IF(CL$63<$CH83,BG83,CK83+AF$72) -> 90 | CM83: 92.6531103 | CN83: 96.63982555 | CO83: 98.81693555 | CP83: 99.88759335 | CQ83: 103.0223674 | CR83: 106.2355108 | CS83: 109.5289828 | CT83: 112.9047916 | CU83: 116.3649956 | CV83: 119.9117047 | CW83: 123.5470816 | CX83: 127.2733428 | CY83: 131.0927606 | CZ83: 135.0076638 | DA83: 139.0204397 | DB83: 143.1335349 | DC83: 147.3494575 | DD83: 151.6707781 | DE83: 156.1001318 | DF83: 160.6402193 | DG83: 165.293809 | DH83: 170.0637385 | DI83: 174.9529162 | DJ83: 179.9643233 | DK83: 185.1010156 | DM83: =MATCH(TRUE,BG83:CF83+$AF$64:$BE$64-$CJ83>DM$61,0)+Dashboard!$C$15-1 -> 2033 | DN83: =MATCH(TRUE,CL83:DK83-$CJ83>DM$61,0)+Dashboard!$C$15-1-$DM$59 -> 2033 | DP83: 0 | DQ83: =INDEX('Deferral Value Calculation'!$D$66:$D$91,MATCH($DP83+($E$52-$E$51),'Deferral Value Calculation'!$B$66:$B$91,0)) -INDEX('Deferral Value Calculation'!$D$66:$D$91,MATCH($E$52-$E$51,'Deferral Value Calculation'!$B$66:$B$91,0)) -> 0 | DS83: 0 | DT83: 1860
B84: 0.5196470723 | D84: Random Walk 12 | E84: 0.403508088 | F84: 0.603251342 | G84: 0.8019148642 | H84: 0.2723032184 | I84: 0.4628438629 | J84: 0.5476919668 | K84: 0.4014405112 | L84: 0.07523984606 | M84: 0.8508483559 | N84: 0.9756857469 | O84: 0.9220150876 | P84: 0.06632593237 | Q84: 0.007200514635 | R84: 0.8727477984 | S84: 0.9652377996 | T84: 0.02443974271 | U84: 0.679039651 | V84: 0.230092872 | W84: 0.482631183 | X84: 0.2298620464 | Y84: 0.52906046 | Z84: 0.8665088566 | AA84: 0.6470366135 | AB84: 0.3513637 | AC84: 0.4705074215 | AD84: 0.7720263991 | AF84: 0 | AG84: =NORMINV(F84,Dashboard!D$19,Dashboard!D$17) -> 2.544493371 | AH84: =NORMINV(G84,Dashboard!E$19,Dashboard!E$17) -> 3.2846544 | AI84: =NORMINV(H84,Dashboard!F$19,Dashboard!F$17) -> 1.64780584 | AJ84: =NORMINV(I84,Dashboard!G$19,Dashboard!G$17) -> 2.310005077 | AK84: =NORMINV(J84,Dashboard!H$19,Dashboard!H$17) -> 2.632385383 | AL84: =NORMINV(K84,Dashboard!I$19,Dashboard!I$17) -> 2.227943254 | AM84: =NORMINV(L84,Dashboard!J$19,Dashboard!J$17) -> 0.7334259892 | AN84: =NORMINV(M84,Dashboard!K$19,Dashboard!K$17) -> 4.065410666 | AO84: =NORMINV(N84,Dashboard!L$19,Dashboard!L$17) -> 5.444206453 | AP84: =NORMINV(O84,Dashboard!M$19,Dashboard!M$17) -> 4.80325413 | AQ84: =NORMINV(P84,Dashboard!N$19,Dashboard!N$17) -> 0.7146813869 | AR84: =NORMINV(Q84,Dashboard!O$19,Dashboard!O$17) -> -0.6599653453 | AS84: =NORMINV(R84,Dashboard!P$19,Dashboard!P$17) -> 4.750027938 | AT84: =NORMINV(S84,Dashboard!Q$19,Dashboard!Q$17) -> 5.916392133 | AU84: =NORMINV(T84,Dashboard!R$19,Dashboard!R$17) -> 0.04825792397 | AV84: =NORMINV(U84,Dashboard!S$19,Dashboard!S$17) -> 4.016336331 | AW84: =NORMINV(V84,Dashboard!T$19,Dashboard!T$17) -> 2.106723298 | AX84: =NORMINV(W84,Dashboard!U$19,Dashboard!U$17) -> 3.349089709 | AY84: =NORMINV(X84,Dashboard!V$19,Dashboard!V$17) -> 2.212042277 | AZ84: =NORMINV(Y84,Dashboard!W$19,Dashboard!W$17) -> 3.728087164 | BA84: =NORMINV(Z84,Dashboard!X$19,Dashboard!X$17) -> 5.733180884 | BB84: =NORMINV(AA84,Dashboard!Y$19,Dashboard!Y$17) -> 4.49203945 | BC84: =NORMINV(AB84,Dashboard!Z$19,Dashboard!Z$17) -> 3.134384936 | BD84: =NORMINV(AC84,Dashboard!AA$19,Dashboard!AA$17) -> 3.823481318 | BE84: =NORMINV(AD84,Dashboard!AB$19,Dashboard!AB$17) -> 5.586664353 | BG84: =Dashboard!$C$16 -> 90 | BH84: 92.54449337 | BI84: 95.82914777 | BJ84: 97.47695361 | BK84: 99.78695869 | BL84: 102.4193441 | BM84: 104.6472873 | BN84: 105.3807133 | BO84: 109.446124 | BP84: 114.8903304 | BQ84: 119.6935846 | BR84: 120.408266 | BS84: 119.7483006 | BT84: 124.4983285 | BU84: 130.4147207 | BV84: 130.4629786 | BW84: 134.4793149 | BX84: 136.5860382 | BY84: 139.9351279 | BZ84: 142.1471702 | CA84: 145.8752574 | CB84: 151.6084383 | CC84: 156.1004777 | CD84: 159.2348626 | CE84: 163.058344 | CF84: 168.6450083 | CH84: =MATCH(TRUE,BG84:CF84+$AF$64:$BE$64>CH$61,0)+Dashboard!$C$15-1 -> 2030 | CJ84: =Dashboard!$C$13 -> 10 | CL84: =IF(CL$63<$CH84,BG84,CK84+AF$72) -> 90 | CM84: 92.54449337 | CN84: 95.82914777 | CO84: 97.47695361 | CP84: 99.78695869 | CQ84: 102.9217327 | CR84: 106.1348762 | CS84: 109.4283481 | CT84: 112.8041569 | CU84: 116.2643609 | CV84: 119.8110701 | CW84: 123.4464469 | CX84: 127.1727082 | CY84: 130.992126 | CZ84: 134.9070292 | DA84: 138.919805 | DB84: 143.0329002 | DC84: 147.2488228 | DD84: 151.5701435 | DE84: 155.9994971 | DF84: 160.5395847 | DG84: 165.1931744 | DH84: 169.9631038 | DI84: 174.8522815 | DJ84: 179.8636886 | DK84: 185.0003809 | DM84: =MATCH(TRUE,BG84:CF84+$AF$64:$BE$64-$CJ84>DM$61,0)+Dashboard!$C$15-1 -> 2033 | DN84: =MATCH(TRUE,CL84:DK84-$CJ84>DM$61,0)+Dashboard!$C$15-1-$DM$59 -> 2033 | DP84: 0 | DQ84: =INDEX('Deferral Value Calculation'!$D$66:$D$91,MATCH($DP84+($E$52-$E$51),'Deferral Value Calculation'!$B$66:$B$91,0)) -INDEX('Deferral Value Calculation'!$D$66:$D$91,MATCH($E$52-$E$51,'Deferral Value Calculation'!$B$66:$B$91,0)) -> 0 | DS84: 1 | DT84: 1837
B85: 0.4806824118 | D85: Random Walk 13 | E85: 0.2173364922 | F85: 0.03638416082 | G85: 0.4853017284 | H85: 0.4815916219 | I85: 0.6070469978 | J85: 0.7471146949 | K85: 0.8854055249 | L85: 0.549096753 | M85: 0.4885392026 | N85: 0.277081213 | O85: 0.9454941761 | P85: 0.1247805473 | Q85: 0.4741418785 | R85: 0.5889280095 | S85: 0.4208516842 | T85: 0.348212985 | U85: 0.3487638808 | V85: 0.2836476062 | W85: 0.2601337247 | X85: 0.9300076599 | Y85: 0.7796438709 | Z85: 0.3425844282 | AA85: 0.8232541827 | AB85: 0.3977336125 | AC85: 0.6470374023 | AD85: 0.007628669489 | AF85: 0 | AG85: =NORMINV(F85,Dashboard!D$19,Dashboard!D$17) -> 0.231433822 | AH85: =NORMINV(G85,Dashboard!E$19,Dashboard!E$17) -> 2.263755681 | AI85: =NORMINV(H85,Dashboard!F$19,Dashboard!F$17) -> 2.309348065 | AJ85: =NORMINV(I85,Dashboard!G$19,Dashboard!G$17) -> 2.75208501 | AK85: =NORMINV(J85,Dashboard!H$19,Dashboard!H$17) -> 3.309912493 | AL85: =NORMINV(K85,Dashboard!I$19,Dashboard!I$17) -> 4.07618892 | AM85: =NORMINV(L85,Dashboard!J$19,Dashboard!J$17) -> 2.770278042 | AN85: =NORMINV(M85,Dashboard!K$19,Dashboard!K$17) -> 2.63612058 | AO85: =NORMINV(N85,Dashboard!L$19,Dashboard!L$17) -> 1.930588415 | AP85: =NORMINV(O85,Dashboard!M$19,Dashboard!M$17) -> 5.061620112 | AQ85: =NORMINV(P85,Dashboard!N$19,Dashboard!N$17) -> 1.222041531 | AR85: =NORMINV(Q85,Dashboard!O$19,Dashboard!O$17) -> 2.856452123 | AS85: =NORMINV(R85,Dashboard!P$19,Dashboard!P$17) -> 3.366104512 | AT85: =NORMINV(S85,Dashboard!Q$19,Dashboard!Q$17) -> 2.791926626 | AU85: =NORMINV(T85,Dashboard!R$19,Dashboard!R$17) -> 2.559011121 | AV85: =NORMINV(U85,Dashboard!S$19,Dashboard!S$17) -> 2.625413553 | AW85: =NORMINV(V85,Dashboard!T$19,Dashboard!T$17) -> 2.384792306 | AX85: =NORMINV(W85,Dashboard!U$19,Dashboard!U$17) -> 2.323054838 | AY85: =NORMINV(X85,Dashboard!V$19,Dashboard!V$17) -> 6.098778855 | AZ85: =NORMINV(Y85,Dashboard!W$19,Dashboard!W$17) -> 4.983575961 | BA85: =NORMINV(Z85,Dashboard!X$19,Dashboard!X$17) -> 2.939518239 | BB85: =NORMINV(AA85,Dashboard!Y$19,Dashboard!Y$17) -> 5.532236422 | BC85: =NORMINV(AB85,Dashboard!Z$19,Dashboard!Z$17) -> 3.371491019 | BD85: =NORMINV(AC85,Dashboard!AA$19,Dashboard!AA$17) -> 4.719453162 | BE85: =NORMINV(AD85,Dashboard!AB$19,Dashboard!AB$17) -> -0.8672640536 | BG85: =Dashboard!$C$16 -> 90 | BH85: 90.23143382 | BI85: 92.4951895 | BJ85: 94.80453757 | BK85: 97.55662258 | BL85: 100.8665351 | BM85: 104.942724 | BN85: 107.713002 | BO85: 110.3491226 | BP85: 112.279711 | BQ85: 117.3413311 | BR85: 118.5633727 | BS85: 121.4198248 | BT85: 124.7859293 | BU85: 127.5778559 | BV85: 130.1368671 | BW85: 132.7622806 | BX85: 135.1470729 | BY85: 137.4701277 | BZ85: 143.5689066 | CA85: 148.5524826 | CB85: 151.4920008 | CC85: 157.0242372 | CD85: 160.3957282 | CE85: 165.1151814 | CF85: 164.2479174 | CH85: =MATCH(TRUE,BG85:CF85+$AF$64:$BE$64>CH$61,0)+Dashboard!$C$15-1 -> 2030 | CJ85: =Dashboard!$C$13 -> 10 | CL85: =IF(CL$63<$CH85,BG85,CK85+AF$72) -> 90 | CM85: 90.23143382 | CN85: 92.4951895 | CO85: 94.80453757 | CP85: 97.55662258 | CQ85: 100.6913966 | CR85: 103.90454 | CS85: 107.198012 | CT85: 110.5738208 | CU85: 114.0340248 | CV85: 117.5807339 | CW85: 121.2161108 | CX85: 124.942372 | CY85: 128.7617898 | CZ85: 132.6766931 | DA85: 136.6894689 | DB85: 140.8025641 | DC85: 145.0184867 | DD85: 149.3398074 | DE85: 153.769161 | DF85: 158.3092486 | DG85: 162.9628383 | DH85: 167.7327677 | DI85: 172.6219454 | DJ85: 177.6333525 | DK85: 182.7700448 | DM85: =MATCH(TRUE,BG85:CF85+$AF$64:$BE$64-$CJ85>DM$61,0)+Dashboard!$C$15-1 -> 2033 | DN85: =MATCH(TRUE,CL85:DK85-$CJ85>DM$61,0)+Dashboard!$C$15-1-$DM$59 -> 2033 | DP85: 0 | DQ85: =INDEX('Deferral Value Calculation'!$D$66:$D$91,MATCH($DP85+($E$52-$E$51),'Deferral Value Calculation'!$B$66:$B$91,0)) -INDEX('Deferral Value Calculation'!$D$66:$D$91,MATCH($E$52-$E$51,'Deferral Value Calculation'!$B$66:$B$91,0)) -> 0 | DS85: 2 | DT85: 718
B86: 0.4604137518 | D86: Random Walk 14 | E86: 0.8586457038 | F86: 0.2834027889 | G86: 0.6397836807 | H86: 0.716772982 | I86: 0.9441987018 | J86: 0.2266382275 | K86: 0.1929624997 | L86: 0.2611900431 | M86: 0.09208484642 | N86: 0.1334042825 | O86: 0.1817122889 | P86: 0.5470603849 | Q86: 0.5882306648 | R86: 0.6161523319 | S86: 0.01365575493 | T86: 0.1824931415 | U86: 0.8355973813 | V86: 0.309027699 | W86: 0.4654261178 | X86: 0.8387686254 | Y86: 0.7670140971 | Z86: 0.3018849017 | AA86: 0.6096112782 | AB86: 0.1708983385 | AC86: 0.640217157 | AD86: 0.5539236287 | AF86: 0 | AG86: =NORMINV(F86,Dashboard!D$19,Dashboard!D$17) -> 1.605642295 | AH86: =NORMINV(G86,Dashboard!E$19,Dashboard!E$17) -> 2.718931114 | AI86: =NORMINV(H86,Dashboard!F$19,Dashboard!F$17) -> 3.041498239 | AJ86: =NORMINV(I86,Dashboard!G$19,Dashboard!G$17) -> 4.350541086 | AK86: =NORMINV(J86,Dashboard!H$19,Dashboard!H$17) -> 1.552281722 | AL86: =NORMINV(K86,Dashboard!I$19,Dashboard!I$17) -> 1.442081677 | AM86: =NORMINV(L86,Dashboard!J$19,Dashboard!J$17) -> 1.774747267 | AN86: =NORMINV(M86,Dashboard!K$19,Dashboard!K$17) -> 0.8986123693 | AO86: =NORMINV(N86,Dashboard!L$19,Dashboard!L$17) -> 1.219319913 | AP86: =NORMINV(O86,Dashboard!M$19,Dashboard!M$17) -> 1.53302134 | AQ86: =NORMINV(P86,Dashboard!N$19,Dashboard!N$17) -> 3.05046392 | AR86: =NORMINV(Q86,Dashboard!O$19,Dashboard!O$17) -> 3.28135872 | AS86: =NORMINV(R86,Dashboard!P$19,Dashboard!P$17) -> 3.472926161 | AT86: =NORMINV(S86,Dashboard!Q$19,Dashboard!Q$17) -> -0.3210773554 | AU86: =NORMINV(T86,Dashboard!R$19,Dashboard!R$17) -> 1.739168978 | AV86: =NORMINV(U86,Dashboard!S$19,Dashboard!S$17) -> 4.849754793 | AW86: =NORMINV(V86,Dashboard!T$19,Dashboard!T$17) -> 2.507427567 | AX86: =NORMINV(W86,Dashboard!U$19,Dashboard!U$17) -> 3.2751019 | AY86: =NORMINV(X86,Dashboard!V$19,Dashboard!V$17) -> 5.245266195 | AZ86: =NORMINV(Y86,Dashboard!W$19,Dashboard!W$17) -> 4.908143685 | BA86: =NORMINV(Z86,Dashboard!X$19,Dashboard!X$17) -> 2.730163772 | BB86: =NORMINV(AA86,Dashboard!Y$19,Dashboard!Y$17) -> 4.304926652 | BC86: =NORMINV(AB86,Dashboard!Z$19,Dashboard!Z$17) -> 2.032402995 | BD86: =NORMINV(AC86,Dashboard!AA$19,Dashboard!AA$17) -> 4.683134202 | BE86: =NORMINV(AD86,Dashboard!AB$19,Dashboard!AB$17) -> 4.345515312 | BG86: =Dashboard!$C$16 -> 90 | BH86: 91.6056423 | BI86: 94.32457341 | BJ86: 97.36607165 | BK86: 101.7166127 | BL86: 103.2688945 | BM86: 104.7109761 | BN86: 106.4857234 | BO86: 107.3843358 | BP86: 108.6036557 | BQ86: 110.136677 | BR86: 113.1871409 | BS86: 116.4684997 | BT86: 119.9414258 | BU86: 119.6203485 | BV86: 121.3595174 | BW86: 126.2092722 | BX86: 128.7166998 | BY86: 131.9918017 | BZ86: 137.2370679 | CA86: 142.1452116 | CB86: 144.8753754 | CC86: 149.180302 | CD86: 151.212705 | CE86: 155.8958392 | CF86: 160.2413545 | CH86: =MATCH(TRUE,BG86:CF86+$AF$64:$BE$64>CH$61,0)+Dashboard!$C$15-1 -> 2029 | CJ86: =Dashboard!$C$13 -> 10 | CL86: =IF(CL$63<$CH86,BG86,CK86+AF$72) -> 90 | CM86: 91.6056423 | CN86: 94.32457341 | CO86: 97.36607165 | CP86: 100.4243878 | CQ86: 103.5591619 | CR86: 106.7723053 | CS86: 110.0657773 | CT86: 113.441586 | CU86: 116.9017901 | CV86: 120.4484992 | CW86: 124.083876 | CX86: 127.8101373 | CY86: 131.6295551 | CZ86: 135.5444583 | DA86: 139.5572341 | DB86: 143.6703293 | DC86: 147.8862519 | DD86: 152.2075726 | DE86: 156.6369263 | DF86: 161.1770138 | DG86: 165.8306035 | DH86: 170.6005329 | DI86: 175.4897106 | DJ86: 180.5011177 | DK86: 185.63781 | DM86: =MATCH(TRUE,BG86:CF86+$AF$64:$BE$64-$CJ86>DM$61,0)+Dashboard!$C$15-1 -> 2035 | DN86: =MATCH(TRUE,CL86:DK86-$CJ86>DM$61,0)+Dashboard!$C$15-1-$DM$59 -> 2032 | DP86: 3 | DQ86: =INDEX('Deferral Value Calculation'!$D$66:$D$91,MATCH($DP86+($E$52-$E$51),'Deferral Value Calculation'!$B$66:$B$91,0)) -INDEX('Deferral Value Calculation'!$D$66:$D$91,MATCH($E$52-$E$51,'Deferral Value Calculation'!$B$66:$B$91,0)) -> 3949106.113 | DS86: 3 | DT86: 134
B87: 0.5106764275 | D87: Random Walk 15 | E87: 0.2320012482 | F87: 0.6644866507 | G87: 0.8478018231 | H87: 0.6696253144 | I87: 0.6601190016 | J87: 0.4067244981 | K87: 0.7194031272 | L87: 0.2968647466 | M87: 0.2568791642 | N87: 0.6924462607 | O87: 0.435474428 | P87: 0.7644095902 | Q87: 0.9191779246 | R87: 0.0644563029 | S87: 0.3749061015 | T87: 0.7522701825 | U87: 0.8511113443 | V87: 0.7638835062 | W87: 0.2132749772 | X87: 0.9334396977 | Y87: 0.4963980927 | Z87: 0.0806389585 | AA87: 0.5427815415 | AB87: 0.319801541 | AC87: 0.3040127312 | AD87: 0.01519836028 | AF87: 0 | AG87: =NORMINV(F87,Dashboard!D$19,Dashboard!D$17) -> 2.727831763 | AH87: =NORMINV(G87,Dashboard!E$19,Dashboard!E$17) -> 3.49056842 | AI87: =NORMINV(H87,Dashboard!F$19,Dashboard!F$17) -> 2.882640399 | AJ87: =NORMINV(I87,Dashboard!G$19,Dashboard!G$17) -> 2.923097287 | AK87: =NORMINV(J87,Dashboard!H$19,Dashboard!H$17) -> 2.190542808 | AL87: =NORMINV(K87,Dashboard!I$19,Dashboard!I$17) -> 3.285273385 | AM87: =NORMINV(L87,Dashboard!J$19,Dashboard!J$17) -> 1.913355841 | AN87: =NORMINV(M87,Dashboard!K$19,Dashboard!K$17) -> 1.801308926 | AO87: =NORMINV(N87,Dashboard!L$19,Dashboard!L$17) -> 3.430591079 | AP87: =NORMINV(O87,Dashboard!M$19,Dashboard!M$17) -> 2.581699453 | AQ87: =NORMINV(P87,Dashboard!N$19,Dashboard!N$17) -> 3.917863876 | AR87: =NORMINV(Q87,Dashboard!O$19,Dashboard!O$17) -> 5.018086754 | AS87: =NORMINV(R87,Dashboard!P$19,Dashboard!P$17) -> 0.7286548444 | AT87: =NORMINV(S87,Dashboard!Q$19,Dashboard!Q$17) -> 2.607111944 | AU87: =NORMINV(T87,Dashboard!R$19,Dashboard!R$17) -> 4.262740551 | AV87: =NORMINV(U87,Dashboard!S$19,Dashboard!S$17) -> 4.955153979 | AW87: =NORMINV(V87,Dashboard!T$19,Dashboard!T$17) -> 4.540667593 | AX87: =NORMINV(W87,Dashboard!U$19,Dashboard!U$17) -> 2.062556739 | AY87: =NORMINV(X87,Dashboard!V$19,Dashboard!V$17) -> 6.144505813 | AZ87: =NORMINV(Y87,Dashboard!W$19,Dashboard!W$17) -> 3.580724851 | BA87: =NORMINV(Z87,Dashboard!X$19,Dashboard!X$17) -> 1.104616168 | BB87: =NORMINV(AA87,Dashboard!Y$19,Dashboard!Y$17) -> 3.982077383 | BC87: =NORMINV(AB87,Dashboard!Z$19,Dashboard!Z$17) -> 2.966636696 | BD87: =NORMINV(AC87,Dashboard!AA$19,Dashboard!AA$17) -> 2.952183502 | BE87: =NORMINV(AD87,Dashboard!AB$19,Dashboard!AB$17) -> -0.3355047111 | BG87: =Dashboard!$C$16 -> 90 | BH87: 92.72783176 | BI87: 96.21840018 | BJ87: 99.10104058 | BK87: 102.0241379 | BL87: 104.2146807 | BM87: 107.4999541 | BN87: 109.4133099 | BO87: 111.2146188 | BP87: 114.6452099 | BQ87: 117.2269094 | BR87: 121.1447732 | BS87: 126.16286 | BT87: 126.8915148 | BU87: 129.4986268 | BV87: 133.7613673 | BW87: 138.7165213 | BX87: 143.2571889 | BY87: 145.3197456 | BZ87: 151.4642515 | CA87: 155.0449763 | CB87: 156.1495925 | CC87: 160.1316699 | CD87: 163.0983066 | CE87: 166.0504901 | CF87: 165.7149853 | CH87: =MATCH(TRUE,BG87:CF87+$AF$64:$BE$64>CH$61,0)+Dashboard!$C$15-1 -> 2029 | CJ87: =Dashboard!$C$13 -> 10 | CL87: =IF(CL$63<$CH87,BG87,CK87+AF$72) -> 90 | CM87: 92.72783176 | CN87: 96.21840018 | CO87: 99.10104058 | CP87: 102.1593567 | CQ87: 105.2941308 | CR87: 108.5072742 | CS87: 111.8007462 | CT87: 115.176555 | CU87: 118.636759 | CV87: 122.1834681 | CW87: 125.8188449 | CX87: 129.5451062 | CY87: 133.364524 | CZ87: 137.2794272 | DA87: 141.292203 | DB87: 145.4052983 | DC87: 149.6212209 | DD87: 153.9425415 | DE87: 158.3718952 | DF87: 162.9119827 | DG87: 167.5655724 | DH87: 172.3355019 | DI87: 177.2246795 | DJ87: 182.2360867 | DK87: 187.372779 | DM87: =MATCH(TRUE,BG87:CF87+$AF$64:$BE$64-$CJ87>DM$61,0)+Dashboard!$C$15-1 -> 2033 | DN87: =MATCH(TRUE,CL87:DK87-$CJ87>DM$61,0)+Dashboard!$C$15-1-$DM$59 -> 2032 | DP87: 1 | DQ87: =INDEX('Deferral Value Calculation'!$D$66:$D$91,MATCH($DP87+($E$52-$E$51),'Deferral Value Calculation'!$B$66:$B$91,0)) -INDEX('Deferral Value Calculation'!$D$66:$D$91,MATCH($E$52-$E$51,'Deferral Value Calculation'!$B$66:$B$91,0)) -> 1341049.659 | DS87: 4 | DT87: 8
B88: 0.4543307411 | D88: Random Walk 16 | E88: 0.1932145708 | F88: 0.2524745384 | G88: 0.2313865459 | H88: 0.5556912443 | I88: 0.851260226 | J88: 0.6422045234 | K88: 0.1376744558 | L88: 0.6766386513 | M88: 0.6911264304 | N88: 0.1621870222 | O88: 0.3542925559 | P88: 0.8398412772 | Q88: 0.2621839876 | R88: 0.4878788791 | S88: 0.5561742814 | T88: 0.4374128295 | U88: 0.3338046353 | V88: 0.5526422569 | W88: 0.3938738458 | X88: 0.1697463934 | Y88: 0.3189030726 | Z88: 0.8147550769 | AA88: 0.4436028198 | AB88: 0.4137000094 | AC88: 0.8547130059 | AD88: 0.1852161339 | AF88: 0 | AG88: =NORMINV(F88,Dashboard!D$19,Dashboard!D$17) -> 1.499936611 | AH88: =NORMINV(G88,Dashboard!E$19,Dashboard!E$17) -> 1.459523889 | AI88: =NORMINV(H88,Dashboard!F$19,Dashboard!F$17) -> 2.529443234 | AJ88: =NORMINV(I88,Dashboard!G$19,Dashboard!G$17) -> 3.685211607 | AK88: =NORMINV(J88,Dashboard!H$19,Dashboard!H$17) -> 2.936034513 | AL88: =NORMINV(K88,Dashboard!I$19,Dashboard!I$17) -> 1.157226229 | AM88: =NORMINV(L88,Dashboard!J$19,Dashboard!J$17) -> 3.20725946 | AN88: =NORMINV(M88,Dashboard!K$19,Dashboard!K$17) -> 3.34190262 | AO88: =NORMINV(N88,Dashboard!L$19,Dashboard!L$17) -> 1.390565929 | AP88: =NORMINV(O88,Dashboard!M$19,Dashboard!M$17) -> 2.284823992 | AQ88: =NORMINV(P88,Dashboard!N$19,Dashboard!N$17) -> 4.31136503 | AR88: =NORMINV(Q88,Dashboard!O$19,Dashboard!O$17) -> 2.012471784 | AS88: =NORMINV(R88,Dashboard!P$19,Dashboard!P$17) -> 2.980023084 | AT88: =NORMINV(S88,Dashboard!Q$19,Dashboard!Q$17) -> 3.320745119 | AU88: =NORMINV(T88,Dashboard!R$19,Dashboard!R$17) -> 2.92877907 | AV88: =NORMINV(U88,Dashboard!S$19,Dashboard!S$17) -> 2.558982996 | AW88: =NORMINV(V88,Dashboard!T$19,Dashboard!T$17) -> 3.561154309 | AX88: =NORMINV(W88,Dashboard!U$19,Dashboard!U$17) -> 2.962756511 | AY88: =NORMINV(X88,Dashboard!V$19,Dashboard!V$17) -> 1.833279147 | AZ88: =NORMINV(Y88,Dashboard!W$19,Dashboard!W$17) -> 2.75029471 | BA88: =NORMINV(Z88,Dashboard!X$19,Dashboard!X$17) -> 5.337794212 | BB88: =NORMINV(AA88,Dashboard!Y$19,Dashboard!Y$17) -> 3.511046499 | BC88: =NORMINV(AB88,Dashboard!Z$19,Dashboard!Z$17) -> 3.451247942 | BD88: =NORMINV(AC88,Dashboard!AA$19,Dashboard!AA$17) -> 6.068445303 | BE88: =NORMINV(AD88,Dashboard!AB$19,Dashboard!AB$17) -> 2.247121423 | BG88: =Dashboard!$C$16 -> 90 | BH88: 91.49993661 | BI88: 92.9594605 | BJ88: 95.48890373 | BK88: 99.17411534 | BL88: 102.1101499 | BM88: 103.2673761 | BN88: 106.4746355 | BO88: 109.8165382 | BP88: 111.2071041 | BQ88: 113.4919281 | BR88: 117.8032931 | BS88: 119.8157649 | BT88: 122.795788 | BU88: 126.1165331 | BV88: 129.0453122 | BW88: 131.6042952 | BX88: 135.1654495 | BY88: 138.128206 | BZ88: 139.9614851 | CA88: 142.7117798 | CB88: 148.0495741 | CC88: 151.5606206 | CD88: 155.0118685 | CE88: 161.0803138 | CF88: 163.3274352 | CH88: =MATCH(TRUE,BG88:CF88+$AF$64:$BE$64>CH$61,0)+Dashboard!$C$15-1 -> 2030 | CJ88: =Dashboard!$C$13 -> 10 | CL88: =IF(CL$63<$CH88,BG88,CK88+AF$72) -> 90 | CM88: 91.49993661 | CN88: 92.9594605 | CO88: 95.48890373 | CP88: 99.17411534 | CQ88: 102.3088894 | CR88: 105.5220328 | CS88: 108.8155048 | CT88: 112.1913136 | CU88: 115.6515176 | CV88: 119.1982267 | CW88: 122.8336035 | CX88: 126.5598648 | CY88: 130.3792826 | CZ88: 134.2941858 | DA88: 138.3069617 | DB88: 142.4200569 | DC88: 146.6359795 | DD88: 150.9573001 | DE88: 155.3866538 | DF88: 159.9267413 | DG88: 164.580331 | DH88: 169.3502605 | DI88: 174.2394382 | DJ88: 179.2508453 | DK88: 184.3875376 | DM88: =MATCH(TRUE,BG88:CF88+$AF$64:$BE$64-$CJ88>DM$61,0)+Dashboard!$C$15-1 -> 2033 | DN88: =MATCH(TRUE,CL88:DK88-$CJ88>DM$61,0)+Dashboard!$C$15-1-$DM$59 -> 2033 | DP88: 0 | DQ88: =INDEX('Deferral Value Calculation'!$D$66:$D$91,MATCH($DP88+($E$52-$E$51),'Deferral Value Calculation'!$B$66:$B$91,0)) -INDEX('Deferral Value Calculation'!$D$66:$D$91,MATCH($E$52-$E$51,'Deferral Value Calculation'!$B$66:$B$91,0)) -> 0 | DS88: 5 | DT88: 2
B89: 0.583992302 | D89: Random Walk 17 | E89: 0.4291725948 | F89: 0.6502764128 | G89: 0.5026311742 | H89: 0.7921269809 | I89: 0.3866396231 | J89: 0.3854140852 | K89: 0.03793880609 | L89: 0.7367600631 | M89: 0.4799565841 | N89: 0.8929551125 | O89: 0.8684608612 | P89: 0.1511792415 | Q89: 0.9411911014 | R89: 0.8495065578 | S89: 0.8365764001 | T89: 0.1376113053 | U89: 0.2530392733 | V89: 0.403098457 | W89: 0.4852137679 | X89: 0.8164803052 | Y89: 0.6513848419 | Z89: 0.8701963639 | AA89: 0.4768154227 | AB89: 0.9119556384 | AC89: 0.8533006692 | AD89: 0.3839182094 | AF89: 0 | AG89: =NORMINV(F89,Dashboard!D$19,Dashboard!D$17) -> 2.684325185 | AH89: =NORMINV(G89,Dashboard!E$19,Dashboard!E$17) -> 2.313855348 | AI89: =NORMINV(H89,Dashboard!F$19,Dashboard!F$17) -> 3.325807546 | AJ89: =NORMINV(I89,Dashboard!G$19,Dashboard!G$17) -> 2.073984523 | AK89: =NORMINV(J89,Dashboard!H$19,Dashboard!H$17) -> 2.121855924 | AL89: =NORMINV(K89,Dashboard!I$19,Dashboard!I$17) -> 0.2862313928 | AM89: =NORMINV(L89,Dashboard!J$19,Dashboard!J$17) -> 3.435663923 | AN89: =NORMINV(M89,Dashboard!K$19,Dashboard!K$17) -> 2.607328274 | AO89: =NORMINV(N89,Dashboard!L$19,Dashboard!L$17) -> 4.444365427 | AP89: =NORMINV(O89,Dashboard!M$19,Dashboard!M$17) -> 4.382307798 | AQ89: =NORMINV(P89,Dashboard!N$19,Dashboard!N$17) -> 1.394892108 | AR89: =NORMINV(Q89,Dashboard!O$19,Dashboard!O$17) -> 5.262067948 | AS89: =NORMINV(R89,Dashboard!P$19,Dashboard!P$17) -> 4.590924986 | AT89: =NORMINV(S89,Dashboard!Q$19,Dashboard!Q$17) -> 4.622209078 | AU89: =NORMINV(T89,Dashboard!R$19,Dashboard!R$17) -> 1.444760733 | AV89: =NORMINV(U89,Dashboard!S$19,Dashboard!S$17) -> 2.175234272 | AW89: =NORMINV(V89,Dashboard!T$19,Dashboard!T$17) -> 2.930411011 | AX89: =NORMINV(W89,Dashboard!U$19,Dashboard!U$17) -> 3.360180344 | AY89: =NORMINV(X89,Dashboard!V$19,Dashboard!V$17) -> 5.09195353 | AZ89: =NORMINV(Y89,Dashboard!W$19,Dashboard!W$17) -> 4.29668363 | BA89: =NORMINV(Z89,Dashboard!X$19,Dashboard!X$17) -> 5.765037438 | BB89: =NORMINV(AA89,Dashboard!Y$19,Dashboard!Y$17) -> 3.669187048 | BC89: =NORMINV(AB89,Dashboard!Z$19,Dashboard!Z$17) -> 6.493781898 | BD89: =NORMINV(AC89,Dashboard!AA$19,Dashboard!AA$17) -> 6.056200246 | BE89: =NORMINV(AD89,Dashboard!AB$19,Dashboard!AB$17) -> 3.468943023 | BG89: =Dashboard!$C$16 -> 90 | BH89: 92.68432518 | BI89: 94.99818053 | BJ89: 98.32398808 | BK89: 100.3979726 | BL89: 102.5198285 | BM89: 102.8060599 | BN89: 106.2417238 | BO89: 108.8490521 | BP89: 113.2934175 | BQ89: 117.6757253 | BR89: 119.0706174 | BS89: 124.3326854 | BT89: 128.9236104 | BU89: 133.5458195 | BV89: 134.9905802 | BW89: 137.1658145 | BX89: 140.0962255 | BY89: 143.4564058 | BZ89: 148.5483593 | CA89: 152.845043 | CB89: 158.6100804 | CC89: 162.2792675 | CD89: 168.7730494 | CE89: 174.8292496 | CF89: 178.2981926 | CH89: =MATCH(TRUE,BG89:CF89+$AF$64:$BE$64>CH$61,0)+Dashboard!$C$15-1 -> 2029 | CJ89: =Dashboard!$C$13 -> 10 | CL89: =IF(CL$63<$CH89,BG89,CK89+AF$72) -> 90 | CM89: 92.68432518 | CN89: 94.99818053 | CO89: 98.32398808 | CP89: 101.3823042 | CQ89: 104.5170783 | CR89: 107.7302217 | CS89: 111.0236937 | CT89: 114.3995025 | CU89: 117.8597065 | CV89: 121.4064156 | CW89: 125.0417924 | CX89: 128.7680537 | CY89: 132.5874715 | CZ89: 136.5023747 | DA89: 140.5151505 | DB89: 144.6282458 | DC89: 148.8441684 | DD89: 153.165489 | DE89: 157.5948427 | DF89: 162.1349302 | DG89: 166.7885199 | DH89: 171.5584494 | DI89: 176.447627 | DJ89: 181.4590342 | DK89: 186.5957265 | DM89: =MATCH(TRUE,BG89:CF89+$AF$64:$BE$64-$CJ89>DM$61,0)+Dashboard!$C$15-1 -> 2034 | DN89: =MATCH(TRUE,CL89:DK89-$CJ89>DM$61,0)+Dashboard!$C$15-1-$DM$59 -> 2032 | DP89: 2 | DQ89: =INDEX('Deferral Value Calculation'!$D$66:$D$91,MATCH($DP89+($E$52-$E$51),'Deferral Value Calculation'!$B$66:$B$91,0)) -INDEX('Deferral Value Calculation'!$D$66:$D$91,MATCH($E$52-$E$51,'Deferral Value Calculation'!$B$66:$B$91,0)) -> 2657265.066 | DS89: 6 | DT89: 0
B90: 0.5809510826 | D90: Random Walk 18 | E90: 0.9678287555 | F90: 0.4169739336 | G90: 0.7488788541 | H90: 0.8540762266 | I90: 0.9469497249 | J90: 0.9878229323 | K90: 0.9167008862 | L90: 0.4190872331 | M90: 0.7818384653 | N90: 0.6222377665 | O90: 0.03597016991 | P90: 0.3420748429 | Q90: 0.5061161005 | R90: 0.5166064357 | S90: 0.7715830811 | T90: 0.1370164997 | U90: 0.5499444929 | V90: 0.6944088156 | W90: 0.125941039 | X90: 0.9442537942 | Y90: 0.3123509512 | Z90: 0.7187252214 | AA90: 0.4184380347 | AB90: 0.2957326027 | AC90: 0.7088959863 | AD90: 0.3642753008 | AF90: 0 | AG90: =NORMINV(F90,Dashboard!D$19,Dashboard!D$17) -> 2.01415386 | AH90: =NORMINV(G90,Dashboard!E$19,Dashboard!E$17) -> 3.079957484 | AI90: =NORMINV(H90,Dashboard!F$19,Dashboard!F$17) -> 3.60977616 | AJ90: =NORMINV(I90,Dashboard!G$19,Dashboard!G$17) -> 4.380756114 | AK90: =NORMINV(J90,Dashboard!H$19,Dashboard!H$17) -> 5.279463189 | AL90: =NORMINV(K90,Dashboard!I$19,Dashboard!I$17) -> 4.306274898 | AM90: =NORMINV(L90,Dashboard!J$19,Dashboard!J$17) -> 2.342861645 | AN90: =NORMINV(M90,Dashboard!K$19,Dashboard!K$17) -> 3.715498135 | AO90: =NORMINV(N90,Dashboard!L$19,Dashboard!L$17) -> 3.16819318 | AP90: =NORMINV(O90,Dashboard!M$19,Dashboard!M$17) -> 0.2817030178 | AQ90: =NORMINV(P90,Dashboard!N$19,Dashboard!N$17) -> 2.294349336 | AR90: =NORMINV(Q90,Dashboard!O$19,Dashboard!O$17) -> 2.974825608 | AS90: =NORMINV(R90,Dashboard!P$19,Dashboard!P$17) -> 3.088998433 | AT90: =NORMINV(S90,Dashboard!Q$19,Dashboard!Q$17) -> 4.255572896 | AU90: =NORMINV(T90,Dashboard!R$19,Dashboard!R$17) -> 1.440456319 | AV90: =NORMINV(U90,Dashboard!S$19,Dashboard!S$17) -> 3.463186866 | AW90: =NORMINV(V90,Dashboard!T$19,Dashboard!T$17) -> 4.18917797 | AX90: =NORMINV(W90,Dashboard!U$19,Dashboard!U$17) -> 1.462254327 | AY90: =NORMINV(X90,Dashboard!V$19,Dashboard!V$17) -> 6.301740118 | AZ90: =NORMINV(Y90,Dashboard!W$19,Dashboard!W$17) -> 2.717150343 | BA90: =NORMINV(Z90,Dashboard!X$19,Dashboard!X$17) -> 4.754349008 | BB90: =NORMINV(AA90,Dashboard!Y$19,Dashboard!Y$17) -> 3.390022063 | BC90: =NORMINV(AB90,Dashboard!Z$19,Dashboard!Z$17) -> 2.8340453 | BD90: =NORMINV(AC90,Dashboard!AA$19,Dashboard!AA$17) -> 5.062549182 | BE90: =NORMINV(AD90,Dashboard!AB$19,Dashboard!AB$17) -> 3.36344171 | BG90: =Dashboard!$C$16 -> 90 | BH90: 92.01415386 | BI90: 95.09411134 | BJ90: 98.7038875 | BK90: 103.0846436 | BL90: 108.3641068 | BM90: 112.6703817 | BN90: 115.0132434 | BO90: 118.7287415 | BP90: 121.8969347 | BQ90: 122.1786377 | BR90: 124.472987 | BS90: 127.4478126 | BT90: 130.5368111 | BU90: 134.792384 | BV90: 136.2328403 | BW90: 139.6960271 | BX90: 143.8852051 | BY90: 145.3474594 | BZ90: 151.6491996 | CA90: 154.3663499 | CB90: 159.1206989 | CC90: 162.510721 | CD90: 165.3447663 | CE90: 170.4073155 | CF90: 173.7707572 | CH90: =MATCH(TRUE,BG90:CF90+$AF$64:$BE$64>CH$61,0)+Dashboard!$C$15-1 -> 2029 | CJ90: =Dashboard!$C$13 -> 10 | CL90: =IF(CL$63<$CH90,BG90,CK90+AF$72) -> 90 | CM90: 92.01415386 | CN90: 95.09411134 | CO90: 98.7038875 | CP90: 101.7622037 | CQ90: 104.8969777 | CR90: 108.1101211 | CS90: 111.4035931 | CT90: 114.7794019 | CU90: 118.2396059 | CV90: 121.786315 | CW90: 125.4216919 | CX90: 129.1479531 | CY90: 132.9673709 | CZ90: 136.8822742 | DA90: 140.89505 | DB90: 145.0081452 | DC90: 149.2240678 | DD90: 153.5453884 | DE90: 157.9747421 | DF90: 162.5148296 | DG90: 167.1684193 | DH90: 171.9383488 | DI90: 176.8275265 | DJ90: 181.8389336 | DK90: 186.9756259 | DM90: =MATCH(TRUE,BG90:CF90+$AF$64:$BE$64-$CJ90>DM$61,0)+Dashboard!$C$15-1 -> 2031 | DN90: =MATCH(TRUE,CL90:DK90-$CJ90>DM$61,0)+Dashboard!$C$15-1-$DM$59 -> 2032 | DP90: -1 | DQ90: =INDEX('Deferral Value Calculation'!$D$66:$D$91,MATCH($DP90+($E$52-$E$51),'Deferral Value Calculation'!$B$66:$B$91,0)) -INDEX('Deferral Value Calculation'!$D$66:$D$91,MATCH($E$52-$E$51,'Deferral Value Calculation'!$B$66:$B$91,0)) -> -1366352.483 | DS90: 7 | DT90: 0
B91: 0.5252696729 | D91: Random Walk 19 | E91: 0.5119036458 | F91: 0.4614702946 | G91: 0.5948319989 | H91: 0.1304992106 | I91: 0.27890871 | J91: 0.1427450364 | K91: 0.9669195253 | L91: 0.9208478563 | M91: 0.9644106069 | N91: 0.3179743498 | O91: 0.3269814713 | P91: 0.5691511949 | Q91: 0.9847629896 | R91: 0.3137859618 | S91: 0.5270049166 | T91: 0.2456290191 | U91: 0.8070436527 | V91: 0.1945163875 | W91: 0.003265520857 | X91: 0.1769497385 | Y91: 0.3241654333 | Z91: 0.9872424008 | AA91: 0.8934799493 | AB91: 0.8456513564 | AC91: 0.7323725337 | AD91: 0.4344977358 | AF91: 0 | AG91: =NORMINV(F91,Dashboard!D$19,Dashboard!D$17) -> 2.14117843 | AH91: =NORMINV(G91,Dashboard!E$19,Dashboard!E$17) -> 2.582991454 | AI91: =NORMINV(H91,Dashboard!F$19,Dashboard!F$17) -> 1.035350246 | AJ91: =NORMINV(I91,Dashboard!G$19,Dashboard!G$17) -> 1.712959025 | AK91: =NORMINV(J91,Dashboard!H$19,Dashboard!H$17) -> 1.157264017 | AL91: =NORMINV(K91,Dashboard!I$19,Dashboard!I$17) -> 4.884287119 | AM91: =NORMINV(L91,Dashboard!J$19,Dashboard!J$17) -> 4.449914534 | AN91: =NORMINV(M91,Dashboard!K$19,Dashboard!K$17) -> 5.087428839 | AO91: =NORMINV(N91,Dashboard!L$19,Dashboard!L$17) -> 2.0925557 | AP91: =NORMINV(O91,Dashboard!M$19,Dashboard!M$17) -> 2.180144347 | AQ91: =NORMINV(P91,Dashboard!N$19,Dashboard!N$17) -> 3.131074355 | AR91: =NORMINV(Q91,Dashboard!O$19,Dashboard!O$17) -> 6.146283959 | AS91: =NORMINV(R91,Dashboard!P$19,Dashboard!P$17) -> 2.291972157 | AT91: =NORMINV(S91,Dashboard!Q$19,Dashboard!Q$17) -> 3.206707485 | AU91: =NORMINV(T91,Dashboard!R$19,Dashboard!R$17) -> 2.085057727 | AV91: =NORMINV(U91,Dashboard!S$19,Dashboard!S$17) -> 4.671391875 | AW91: =NORMINV(V91,Dashboard!T$19,Dashboard!T$17) -> 1.901585858 | AX91: =NORMINV(W91,Dashboard!U$19,Dashboard!U$17) -> -1.232263715 | AY91: =NORMINV(X91,Dashboard!V$19,Dashboard!V$17) -> 1.882611589 | AZ91: =NORMINV(Y91,Dashboard!W$19,Dashboard!W$17) -> 2.77670753 | BA91: =NORMINV(Z91,Dashboard!X$19,Dashboard!X$17) -> 7.804240202 | BB91: =NORMINV(AA91,Dashboard!Y$19,Dashboard!Y$17) -> 6.131994682 | BC91: =NORMINV(AB91,Dashboard!Z$19,Dashboard!Z$17) -> 5.845086507 | BD91: =NORMINV(AC91,Dashboard!AA$19,Dashboard!AA$17) -> 5.201198593 | BE91: =NORMINV(AD91,Dashboard!AB$19,Dashboard!AB$17) -> 3.734021743 | BG91: =Dashboard!$C$16 -> 90 | BH91: 92.14117843 | BI91: 94.72416988 | BJ91: 95.75952013 | BK91: 97.47247915 | BL91: 98.62974317 | BM91: 103.5140303 | BN91: 107.9639448 | BO91: 113.0513737 | BP91: 115.1439294 | BQ91: 117.3240737 | BR91: 120.4551481 | BS91: 126.601432 | BT91: 128.8934042 | BU91: 132.1001117 | BV91: 134.1851694 | BW91: 138.8565613 | BX91: 140.7581471 | BY91: 139.5258834 | BZ91: 141.408495 | CA91: 144.1852025 | CB91: 151.9894427 | CC91: 158.1214374 | CD91: 163.9665239 | CE91: 169.1677225 | CF91: 172.9017443 | CH91: =MATCH(TRUE,BG91:CF91+$AF$64:$BE$64>CH$61,0)+Dashboard!$C$15-1 -> 2031 | CJ91: =Dashboard!$C$13 -> 10 | CL91: =IF(CL$63<$CH91,BG91,CK91+AF$72) -> 90 | CM91: 92.14117843 | CN91: 94.72416988 | CO91: 95.75952013 | CP91: 97.47247915 | CQ91: 98.62974317 | CR91: 101.8428866 | CS91: 105.1363586 | CT91: 108.5121674 | CU91: 111.9723714 | CV91: 115.5190805 | CW91: 119.1544573 | CX91: 122.8807186 | CY91: 126.7001364 | CZ91: 130.6150396 | DA91: 134.6278154 | DB91: 138.7409106 | DC91: 142.9568332 | DD91: 147.2781539 | DE91: 151.7075076 | DF91: 156.2475951 | DG91: 160.9011848 | DH91: 165.6711142 | DI91: 170.5602919 | DJ91: 175.5716991 | DK91: 180.7083914 | DM91: =MATCH(TRUE,BG91:CF91+$AF$64:$BE$64-$CJ91>DM$61,0)+Dashboard!$C$15-1 -> 2033 | DN91: =MATCH(TRUE,CL91:DK91-$CJ91>DM$61,0)+Dashboard!$C$15-1-$DM$59 -> 2034 | DP91: -1 | DQ91: =INDEX('Deferral Value Calculation'!$D$66:$D$91,MATCH($DP91+($E$52-$E$51),'Deferral Value Calculation'!$B$66:$B$91,0)) -INDEX('Deferral Value Calculation'!$D$66:$D$91,MATCH($E$52-$E$51,'Deferral Value Calculation'!$B$66:$B$91,0)) -> -1366352.483 | DS91: 8 | DT91: 0
B92: 0.5070699565 | D92: Random Walk 20 | E92: 0.2315396338 | F92: 0.7555119569 | G92: 0.7798438461 | H92: 0.04341873346 | I92: 0.05849835826 | J92: 0.640252198 | K92: 0.5919244166 | L92: 0.2389477116 | M92: 0.558829757 | N92: 0.2286779698 | O92: 0.3508597221 | P92: 0.1255360251 | Q92: 0.9384446699 | R92: 0.5068687349 | S92: 0.6274571392 | T92: 0.2321043995 | U92: 0.1688523268 | V92: 0.8311301792 | W92: 0.5084114828 | X92: 0.6911894249 | Y92: 0.544159565 | Z92: 0.9008709025 | AA92: 0.1475166579 | AB92: 0.7555314111 | AC92: 0.8003497023 | AD92: 0.9270919434 | AF92: 0 | AG92: =NORMINV(F92,Dashboard!D$19,Dashboard!D$17) -> 3.028430571 | AH92: =NORMINV(G92,Dashboard!E$19,Dashboard!E$17) -> 3.196077289 | AI92: =NORMINV(H92,Dashboard!F$19,Dashboard!F$17) -> 0.3400226964 | AJ92: =NORMINV(I92,Dashboard!G$19,Dashboard!G$17) -> 0.523968631 | AK92: =NORMINV(J92,Dashboard!H$19,Dashboard!H$17) -> 2.929546579 | AL92: =NORMINV(K92,Dashboard!I$19,Dashboard!I$17) -> 2.841600015 | AM92: =NORMINV(L92,Dashboard!J$19,Dashboard!J$17) -> 1.683407473 | AN92: =NORMINV(M92,Dashboard!K$19,Dashboard!K$17) -> 2.872462991 | AO92: =NORMINV(N92,Dashboard!L$19,Dashboard!L$17) -> 1.722689296 | AP92: =NORMINV(O92,Dashboard!M$19,Dashboard!M$17) -> 2.271837244 | AQ92: =NORMINV(P92,Dashboard!N$19,Dashboard!N$17) -> 1.227321989 | AR92: =NORMINV(Q92,Dashboard!O$19,Dashboard!O$17) -> 5.22811218 | AS92: =NORMINV(R92,Dashboard!P$19,Dashboard!P$17) -> 3.052051014 | AT92: =NORMINV(S92,Dashboard!Q$19,Dashboard!Q$17) -> 3.605863336 | AU92: =NORMINV(T92,Dashboard!R$19,Dashboard!R$17) -> 2.015711929 | AV92: =NORMINV(U92,Dashboard!S$19,Dashboard!S$17) -> 1.696610032 | AW92: =NORMINV(V92,Dashboard!T$19,Dashboard!T$17) -> 4.941134056 | AX92: =NORMINV(W92,Dashboard!U$19,Dashboard!U$17) -> 3.459736575 | AY92: =NORMINV(X92,Dashboard!V$19,Dashboard!V$17) -> 4.385179654 | AZ92: =NORMINV(Y92,Dashboard!W$19,Dashboard!W$17) -> 3.796448022 | BA92: =NORMINV(Z92,Dashboard!X$19,Dashboard!X$17) -> 6.058532143 | BB92: =NORMINV(AA92,Dashboard!Y$19,Dashboard!Y$17) -> 1.800450203 | BC92: =NORMINV(AB92,Dashboard!Z$19,Dashboard!Z$17) -> 5.213779444 | BD92: =NORMINV(AC92,Dashboard!AA$19,Dashboard!AA$17) -> 5.643630598 | BE92: =NORMINV(AD92,Dashboard!AB$19,Dashboard!AB$17) -> 7.029212722 | BG92: =Dashboard!$C$16 -> 90 | BH92: 93.02843057 | BI92: 96.22450786 | BJ92: 96.56453056 | BK92: 97.08849919 | BL92: 100.0180458 | BM92: 102.8596458 | BN92: 104.5430533 | BO92: 107.4155162 | BP92: 109.1382055 | BQ92: 111.4100428 | BR92: 112.6373648 | BS92: 117.865477 | BT92: 120.917528 | BU92: 124.5233913 | BV92: 126.5391032 | BW92: 128.2357133 | BX92: 133.1768473 | BY92: 136.6365839 | BZ92: 141.0217636 | CA92: 144.8182116 | CB92: 150.8767437 | CC92: 152.6771939 | CD92: 157.8909734 | CE92: 163.534604 | CF92: 170.5638167 | CH92: =MATCH(TRUE,BG92:CF92+$AF$64:$BE$64>CH$61,0)+Dashboard!$C$15-1 -> 2031 | CJ92: =Dashboard!$C$13 -> 10 | CL92: =IF(CL$63<$CH92,BG92,CK92+AF$72) -> 90 | CM92: 93.02843057 | CN92: 96.22450786 | CO92: 96.56453056 | CP92: 97.08849919 | CQ92: 100.0180458 | CR92: 103.2311892 | CS92: 106.5246612 | CT92: 109.90047 | CU92: 113.360674 | CV92: 116.9073831 | CW92: 120.5427599 | CX92: 124.2690212 | CY92: 128.088439 | CZ92: 132.0033422 | DA92: 136.016118 | DB92: 140.1292132 | DC92: 144.3451358 | DD92: 148.6664565 | DE92: 153.0958102 | DF92: 157.6358977 | DG92: 162.2894874 | DH92: 167.0594168 | DI92: 171.9485945 | DJ92: 176.9600016 | DK92: 182.096694 | DM92: =MATCH(TRUE,BG92:CF92+$AF$64:$BE$64-$CJ92>DM$61,0)+Dashboard!$C$15-1 -> 2034 | DN92: =MATCH(TRUE,CL92:DK92-$CJ92>DM$61,0)+Dashboard!$C$15-1-$DM$59 -> 2033 | DP92: 1 | DQ92: =INDEX('Deferral Value Calculation'!$D$66:$D$91,MATCH($DP92+($E$52-$E$51),'Deferral Value Calculation'!$B$66:$B$91,0)) -INDEX('Deferral Value Calculation'!$D$66:$D$91,MATCH($E$52-$E$51,'Deferral Value Calculation'!$B$66:$B$91,0)) -> 1341049.659 | DS92: 9 | DT92: 0
B93: 0.4540285094 | D93: Random Walk 21 | E93: =RAND() -> 0.1120293681 | F93: 0.0221261489 | G93: 0.2435146802 | H93: 0.7949302723 | I93: 0.5443071878 | J93: 0.3576030479 | K93: 0.7555274124 | L93: 0.3842377954 | M93: 0.1532195498 | N93: 0.2463878358 | O93: =RAND() -> 0.7548128892 | P93: 0.3248506997 | Q93: 0.5529631042 | R93: 0.9468483482 | S93: 0.316140885 | T93: 0.1612920543 | U93: 0.5328488124 | V93: 0.5847351488 | W93: 0.7726086621 | X93: 0.3479011872 | Y93: =RAND() -> 0.2968033406 | Z93: 0.2914864821 | AA93: 0.58836225 | AB93: 0.2948652547 | AC93: 0.7406589467 | AD93: 0.68367988 | AF93: 0 | AG93: =NORMINV(F93,Dashboard!D$19,Dashboard!D$17) -> -0.01315474411 | AH93: =NORMINV(G93,Dashboard!E$19,Dashboard!E$17) -> 1.504780392 | AI93: =NORMINV(H93,Dashboard!F$19,Dashboard!F$17) -> 3.337419865 | AJ93: =NORMINV(I93,Dashboard!G$19,Dashboard!G$17) -> 2.557833121 | AK93: =NORMINV(J93,Dashboard!H$19,Dashboard!H$17) -> 2.030483353 | AL93: =NORMINV(K93,Dashboard!I$19,Dashboard!I$17) -> 3.42645387 | AM93: =NORMINV(L93,Dashboard!J$19,Dashboard!J$17) -> 2.225259558 | AN93: =NORMINV(M93,Dashboard!K$19,Dashboard!K$17) -> 1.306885406 | AO93: =NORMINV(N93,Dashboard!L$19,Dashboard!L$17) -> 1.80124007 | AP93: =NORMINV(O93,Dashboard!M$19,Dashboard!M$17) -> 3.77896938 | AQ93: =NORMINV(P93,Dashboard!N$19,Dashboard!N$17) -> 2.226132074 | AR93: =NORMINV(Q93,Dashboard!O$19,Dashboard!O$17) -> 3.148739155 | AS93: =NORMINV(R93,Dashboard!P$19,Dashboard!P$17) -> 5.469546378 | AT93: =NORMINV(S93,Dashboard!Q$19,Dashboard!Q$17) -> 2.359552654 | AU93: =NORMINV(T93,Dashboard!R$19,Dashboard!R$17) -> 1.606824304 | AV93: =NORMINV(U93,Dashboard!S$19,Dashboard!S$17) -> 3.392981923 | AW93: =NORMINV(V93,Dashboard!T$19,Dashboard!T$17) -> 3.697569542 | AX93: =NORMINV(W93,Dashboard!U$19,Dashboard!U$17) -> 4.703167729 | AY93: =NORMINV(X93,Dashboard!V$19,Dashboard!V$17) -> 2.823189434 | AZ93: =NORMINV(Y93,Dashboard!W$19,Dashboard!W$17) -> 2.637262993 | BA93: =NORMINV(Z93,Dashboard!X$19,Dashboard!X$17) -> 2.674749248 | BB93: =NORMINV(AA93,Dashboard!Y$19,Dashboard!Y$17) -> 4.201055528 | BC93: =NORMINV(AB93,Dashboard!Z$19,Dashboard!Z$17) -> 2.82917892 | BD93: =NORMINV(AC93,Dashboard!AA$19,Dashboard!AA$17) -> 5.251570523 | BE93: =NORMINV(AD93,Dashboard!AB$19,Dashboard!AB$17) -> 5.042304255 | BG93: =Dashboard!$C$16 -> 90 | BH93: 89.98684526 | BI93: 91.49162565 | BJ93: 94.82904551 | BK93: 97.38687863 | BL93: 99.41736199 | BM93: 102.8438159 | BN93: 105.0690754 | BO93: 106.3759608 | BP93: 108.1772009 | BQ93: 111.9561703 | BR93: 114.1823023 | BS93: 117.3310415 | BT93: 122.8005879 | BU93: 125.1601405 | BV93: 126.7669648 | BW93: 130.1599468 | BX93: 133.8575163 | BY93: 138.560684 | BZ93: 141.3838735 | CA93: 144.0211365 | CB93: 146.6958857 | CC93: 150.8969412 | CD93: 153.7261202 | CE93: 158.9776907 | CF93: 164.0199949 | CH93: =MATCH(TRUE,BG93:CF93+$AF$64:$BE$64>CH$61,0)+Dashboard!$C$15-1 -> 2031 | CJ93: =Dashboard!$C$13 -> 10 | CL93: =IF(CL$63<$CH93,BG93,CK93+AF$72) -> 90 | CM93: 89.98684526 | CN93: 91.49162565 | CO93: 94.82904551 | CP93: 97.38687863 | CQ93: 99.41736199 | CR93: 102.6305054 | CS93: 105.9239774 | CT93: 109.2997862 | CU93: 112.7599902 | CV93: 116.3066993 | CW93: 119.9420761 | CX93: 123.6683374 | CY93: 127.4877552 | CZ93: 131.4026584 | DA93: 135.4154342 | DB93: 139.5285295 | DC93: 143.7444521 | DD93: 148.0657727 | DE93: 152.4951264 | DF93: 157.0352139 | DG93: 161.6888036 | DH93: 166.4587331 | DI93: 171.3479107 | DJ93: 176.3593179 | DK93: 181.4960102 | DM93: =MATCH(TRUE,BG93:CF93+$AF$64:$BE$64-$CJ93>DM$61,0)+Dashboard!$C$15-1 -> 2035 | DN93: =MATCH(TRUE,CL93:DK93-$CJ93>DM$61,0)+Dashboard!$C$15-1-$DM$59 -> 2034 | DP93: 1 | DQ93: =INDEX('Deferral Value Calculation'!$D$66:$D$91,MATCH($DP93+($E$52-$E$51),'Deferral Value Calculation'!$B$66:$B$91,0)) -INDEX('Deferral Value Calculation'!$D$66:$D$91,MATCH($E$52-$E$51,'Deferral Value Calculation'!$B$66:$B$91,0)) -> 1341049.659 | DS93: 10 | DT93: 0
B94: 0.5068390386 | D94: Random Walk 22 | E94: 0.204532787 | F94: 0.6496962121 | G94: 0.3714163862 | H94: 0.264194724 | I94: 0.03562456866 | J94: 0.6329952016 | K94: 0.160367134 | L94: 0.3899512234 | M94: 0.08188940987 | N94: 0.7142933474 | O94: 0.1862754103 | P94: 0.4226683413 | Q94: 0.9939366599 | R94: 0.4844390898 | S94: 0.9180677101 | T94: 0.5006454388 | U94: 0.6759386086 | V94: 0.2244515095 | W94: 0.906187103 | X94: 0.5787056431 | Y94: 0.7688987378 | Z94: 0.5642547018 | AA94: 0.696377668 | AB94: 0.6220780327 | AC94: 0.3865994062 | AD94: 0.7433299497 | AF94: 0 | AG94: =NORMINV(F94,Dashboard!D$19,Dashboard!D$17) -> 2.682562986 | AH94: =NORMINV(G94,Dashboard!E$19,Dashboard!E$17) -> 1.927904682 | AI94: =NORMINV(H94,Dashboard!F$19,Dashboard!F$17) -> 1.618724462 | AJ94: =NORMINV(I94,Dashboard!G$19,Dashboard!G$17) -> 0.2375921632 | AK94: =NORMINV(J94,Dashboard!H$19,Dashboard!H$17) -> 2.905535039 | AL94: =NORMINV(K94,Dashboard!I$19,Dashboard!I$17) -> 1.281807581 | AM94: =NORMINV(L94,Dashboard!J$19,Dashboard!J$17) -> 2.244729328 | AN94: =NORMINV(M94,Dashboard!K$19,Dashboard!K$17) -> 0.8124267919 | AO94: =NORMINV(N94,Dashboard!L$19,Dashboard!L$17) -> 3.517185196 | AP94: =NORMINV(O94,Dashboard!M$19,Dashboard!M$17) -> 1.557121497 | AQ94: =NORMINV(P94,Dashboard!N$19,Dashboard!N$17) -> 2.599268175 | AR94: =NORMINV(Q94,Dashboard!O$19,Dashboard!O$17) -> 6.654891626 | AS94: =NORMINV(R94,Dashboard!P$19,Dashboard!P$17) -> 2.966969688 | AT94: =NORMINV(S94,Dashboard!Q$19,Dashboard!Q$17) -> 5.260694292 | AU94: =NORMINV(T94,Dashboard!R$19,Dashboard!R$17) -> 3.181762866 | AV94: =NORMINV(U94,Dashboard!S$19,Dashboard!S$17) -> 4.002253299 | AW94: =NORMINV(V94,Dashboard!T$19,Dashboard!T$17) -> 2.075486169 | AX94: =NORMINV(W94,Dashboard!U$19,Dashboard!U$17) -> 5.679196104 | AY94: =NORMINV(X94,Dashboard!V$19,Dashboard!V$17) -> 3.857669572 | AZ94: =NORMINV(Y94,Dashboard!W$19,Dashboard!W$17) -> 4.919251305 | BA94: =NORMINV(Z94,Dashboard!X$19,Dashboard!X$17) -> 3.985092375 | BB94: =NORMINV(AA94,Dashboard!Y$19,Dashboard!Y$17) -> 4.750297172 | BC94: =NORMINV(AB94,Dashboard!Z$19,Dashboard!Z$17) -> 4.475760092 | BD94: =NORMINV(AC94,Dashboard!AA$19,Dashboard!AA$17) -> 3.398256529 | BE94: =NORMINV(AD94,Dashboard!AB$19,Dashboard!AB$17) -> 5.399682548 | BG94: =Dashboard!$C$16 -> 90 | BH94: 92.68256299 | BI94: 94.61046767 | BJ94: 96.22919213 | BK94: 96.46678429 | BL94: 99.37231933 | BM94: 100.6541269 | BN94: 102.8988562 | BO94: 103.711283 | BP94: 107.2284682 | BQ94: 108.7855897 | BR94: 111.3848579 | BS94: 118.0397495 | BT94: 121.0067192 | BU94: 126.2674135 | BV94: 129.4491764 | BW94: 133.4514297 | BX94: 135.5269158 | BY94: 141.2061119 | BZ94: 145.0637815 | CA94: 149.9830328 | CB94: 153.9681252 | CC94: 158.7184224 | CD94: 163.1941825 | CE94: 166.592439 | CF94: 171.9921215 | CH94: =MATCH(TRUE,BG94:CF94+$AF$64:$BE$64>CH$61,0)+Dashboard!$C$15-1 -> 2031 | CJ94: =Dashboard!$C$13 -> 10 | CL94: =IF(CL$63<$CH94,BG94,CK94+AF$72) -> 90 | CM94: 92.68256299 | CN94: 94.61046767 | CO94: 96.22919213 | CP94: 96.46678429 | CQ94: 99.37231933 | CR94: 102.5854627 | CS94: 105.8789347 | CT94: 109.2547435 | CU94: 112.7149475 | CV94: 116.2616566 | CW94: 119.8970335 | CX94: 123.6232947 | CY94: 127.4427125 | CZ94: 131.3576158 | DA94: 135.3703916 | DB94: 139.4834868 | DC94: 143.6994094 | DD94: 148.0207301 | DE94: 152.4500837 | DF94: 156.9901713 | DG94: 161.643761 | DH94: 166.4136904 | DI94: 171.3028681 | DJ94: 176.3142752 | DK94: 181.4509675 | DM94: =MATCH(TRUE,BG94:CF94+$AF$64:$BE$64-$CJ94>DM$61,0)+Dashboard!$C$15-1 -> 2036 | DN94: =MATCH(TRUE,CL94:DK94-$CJ94>DM$61,0)+Dashboard!$C$15-1-$DM$59 -> 2034 | DP94: 2 | DQ94: =INDEX('Deferral Value Calculation'!$D$66:$D$91,MATCH($DP94+($E$52-$E$51),'Deferral Value Calculation'!$B$66:$B$91,0)) -INDEX('Deferral Value Calculation'!$D$66:$D$91,MATCH($E$52-$E$51,'Deferral Value Calculation'!$B$66:$B$91,0)) -> 2657265.066
B95: 0.5320629692 | D95: Random Walk 23 | E95: 0.810535624 | F95: 0.1012891781 | G95: 0.7697967132 | H95: 0.08136833481 | I95: 0.1463107285 | J95: 0.3474458146 | K95: 0.7893797007 | L95: 0.5577988927 | M95: 0.4938831085 | N95: 0.5334537276 | O95: 0.7353981784 | P95: 0.7532186007 | Q95: 0.1475323781 | R95: 0.8177722572 | S95: 0.06368622376 | T95: 0.8062958063 | U95: 0.2468657164 | V95: 0.495254027 | W95: 0.9232039433 | X95: 0.4587908318 | Y95: 0.6108399904 | Z95: 0.8307656748 | AA95: 0.8224135737 | AB95: 0.8543061648 | AC95: 0.5210215105 | AD95: 0.1150104988 | AF95: 0 | AG95: =NORMINV(F95,Dashboard!D$19,Dashboard!D$17) -> 0.8164799457 | AH95: =NORMINV(G95,Dashboard!E$19,Dashboard!E$17) -> 3.157460968 | AI95: =NORMINV(H95,Dashboard!F$19,Dashboard!F$17) -> 0.7139867179 | AJ95: =NORMINV(I95,Dashboard!G$19,Dashboard!G$17) -> 1.148033485 | AK95: =NORMINV(J95,Dashboard!H$19,Dashboard!H$17) -> 1.996517538 | AL95: =NORMINV(K95,Dashboard!I$19,Dashboard!I$17) -> 3.569371889 | AM95: =NORMINV(L95,Dashboard!J$19,Dashboard!J$17) -> 2.798995226 | AN95: =NORMINV(M95,Dashboard!K$19,Dashboard!K$17) -> 2.654038062 | AO95: =NORMINV(N95,Dashboard!L$19,Dashboard!L$17) -> 2.856483335 | AP95: =NORMINV(O95,Dashboard!M$19,Dashboard!M$17) -> 3.693980427 | AQ95: =NORMINV(P95,Dashboard!N$19,Dashboard!N$17) -> 3.866155926 | AR95: =NORMINV(Q95,Dashboard!O$19,Dashboard!O$17) -> 1.406609457 | AS95: =NORMINV(R95,Dashboard!P$19,Dashboard!P$17) -> 4.398151492 | AT95: =NORMINV(S95,Dashboard!Q$19,Dashboard!Q$17) -> 0.7373463644 | AU95: =NORMINV(T95,Dashboard!R$19,Dashboard!R$17) -> 4.553121144 | AV95: =NORMINV(U95,Dashboard!S$19,Dashboard!S$17) -> 2.143576457 | AW95: =NORMINV(V95,Dashboard!T$19,Dashboard!T$17) -> 3.320269388 | AX95: =NORMINV(W95,Dashboard!U$19,Dashboard!U$17) -> 5.86633644 | AY95: =NORMINV(X95,Dashboard!V$19,Dashboard!V$17) -> 3.327663653 | AZ95: =NORMINV(Y95,Dashboard!W$19,Dashboard!W$17) -> 4.103251651 | BA95: =NORMINV(Z95,Dashboard!X$19,Dashboard!X$17) -> 5.451422581 | BB95: =NORMINV(AA95,Dashboard!Y$19,Dashboard!Y$17) -> 5.526122431 | BC95: =NORMINV(AB95,Dashboard!Z$19,Dashboard!Z$17) -> 5.91698516 | BD95: =NORMINV(AC95,Dashboard!AA$19,Dashboard!AA$17) -> 4.075028173 | BE95: =NORMINV(AD95,Dashboard!AB$19,Dashboard!AB$17) -> 1.627233202 | BG95: =Dashboard!$C$16 -> 90 | BH95: 90.81647995 | BI95: 93.97394091 | BJ95: 94.68792763 | BK95: 95.83596112 | BL95: 97.83247865 | BM95: 101.4018505 | BN95: 104.2008458 | BO95: 106.8548838 | BP95: 109.7113672 | BQ95: 113.4053476 | BR95: 117.2715035 | BS95: 118.678113 | BT95: 123.0762645 | BU95: 123.8136108 | BV95: 128.366732 | BW95: 130.5103084 | BX95: 133.8305778 | BY95: 139.6969143 | BZ95: 143.0245779 | CA95: 147.1278296 | CB95: 152.5792521 | CC95: 158.1053746 | CD95: 164.0223597 | CE95: 168.0973879 | CF95: 169.7246211 | CH95: =MATCH(TRUE,BG95:CF95+$AF$64:$BE$64>CH$61,0)+Dashboard!$C$15-1 -> 2031 | CJ95: =Dashboard!$C$13 -> 10 | CL95: =IF(CL$63<$CH95,BG95,CK95+AF$72) -> 90 | CM95: 90.81647995 | CN95: 93.97394091 | CO95: 94.68792763 | CP95: 95.83596112 | CQ95: 97.83247865 | CR95: 101.0456221 | CS95: 104.3390941 | CT95: 107.7149028 | CU95: 111.1751069 | CV95: 114.721816 | CW95: 118.3571928 | CX95: 122.0834541 | CY95: 125.9028719 | CZ95: 129.8177751 | DA95: 133.8305509 | DB95: 137.9436461 | DC95: 142.1595687 | DD95: 146.4808894 | DE95: 150.9102431 | DF95: 155.4503306 | DG95: 160.1039203 | DH95: 164.8738497 | DI95: 169.7630274 | DJ95: 174.7744345 | DK95: 179.9111268 | DM95: =MATCH(TRUE,BG95:CF95+$AF$64:$BE$64-$CJ95>DM$61,0)+Dashboard!$C$15-1 -> 2034 | DN95: =MATCH(TRUE,CL95:DK95-$CJ95>DM$61,0)+Dashboard!$C$15-1-$DM$59 -> 2034 | DP95: 0 | DQ95: =INDEX('Deferral Value Calculation'!$D$66:$D$91,MATCH($DP95+($E$52-$E$51),'Deferral Value Calculation'!$B$66:$B$91,0)) -INDEX('Deferral Value Calculation'!$D$66:$D$91,MATCH($E$52-$E$51,'Deferral Value Calculation'!$B$66:$B$91,0)) -> 0
B96: 0.5212937265 | D96: Random Walk 24 | E96: 0.6318302865 | F96: 0.832190689 | G96: 0.495537124 | H96: 0.9836615111 | I96: 0.579888968 | J96: 0.5877013302 | K96: 0.8862120778 | L96: 0.8325620565 | M96: 0.2410087609 | N96: 0.009664682381 | O96: 0.3330575244 | P96: 0.1522852363 | Q96: 0.1282273537 | R96: 0.778802188 | S96: 0.8243164524 | T96: 0.8584955015 | U96: 0.09036598178 | V96: 0.3438590075 | W96: 0.7299260496 | X96: 0.8517507963 | Y96: 0.3734126573 | Z96: 0.5304715162 | AA96: 0.4737227321 | AB96: 0.3894646926 | AC96: 0.4530685123 | AD96: 0.1621532012 | AF96: 0 | AG96: =NORMINV(F96,Dashboard!D$19,Dashboard!D$17) -> 3.333215625 | AH96: =NORMINV(G96,Dashboard!E$19,Dashboard!E$17) -> 2.293349985 | AI96: =NORMINV(H96,Dashboard!F$19,Dashboard!F$17) -> 4.888593452 | AJ96: =NORMINV(I96,Dashboard!G$19,Dashboard!G$17) -> 2.667254138 | AK96: =NORMINV(J96,Dashboard!H$19,Dashboard!H$17) -> 2.758804128 | AL96: =NORMINV(K96,Dashboard!I$19,Dashboard!I$17) -> 4.081504571 | AM96: =NORMINV(L96,Dashboard!J$19,Dashboard!J$17) -> 3.86744026 | AN96: =NORMINV(M96,Dashboard!K$19,Dashboard!K$17) -> 1.734359069 | AO96: =NORMINV(N96,Dashboard!L$19,Dashboard!L$17) -> -0.4648291569 | AP96: =NORMINV(O96,Dashboard!M$19,Dashboard!M$17) -> 2.20371647 | AQ96: =NORMINV(P96,Dashboard!N$19,Dashboard!N$17) -> 1.401671243 | AR96: =NORMINV(Q96,Dashboard!O$19,Dashboard!O$17) -> 1.277103984 | AS96: =NORMINV(R96,Dashboard!P$19,Dashboard!P$17) -> 4.188216991 | AT96: =NORMINV(S96,Dashboard!Q$19,Dashboard!Q$17) -> 4.546926949 | AU96: =NORMINV(T96,Dashboard!R$19,Dashboard!R$17) -> 4.885756064 | AV96: =NORMINV(U96,Dashboard!S$19,Dashboard!S$17) -> 1.077797705 | AW96: =NORMINV(V96,Dashboard!T$19,Dashboard!T$17) -> 2.668847108 | AX96: =NORMINV(W96,Dashboard!U$19,Dashboard!U$17) -> 4.472284125 | AY96: =NORMINV(X96,Dashboard!V$19,Dashboard!V$17) -> 5.34100191 | AZ96: =NORMINV(Y96,Dashboard!W$19,Dashboard!W$17) -> 3.01636229 | BA96: =NORMINV(Z96,Dashboard!X$19,Dashboard!X$17) -> 3.827827802 | BB96: =NORMINV(AA96,Dashboard!Y$19,Dashboard!Y$17) -> 3.654510742 | BC96: =NORMINV(AB96,Dashboard!Z$19,Dashboard!Z$17) -> 3.329856831 | BD96: =NORMINV(AC96,Dashboard!AA$19,Dashboard!AA$17) -> 3.736295761 | BE96: =NORMINV(AD96,Dashboard!AB$19,Dashboard!AB$17) -> 2.064022569 | BG96: =Dashboard!$C$16 -> 90 | BH96: 93.33321562 | BI96: 95.62656561 | BJ96: 100.5151591 | BK96: 103.1824132 | BL96: 105.9412173 | BM96: 110.0227219 | BN96: 113.8901622 | BO96: 115.6245212 | BP96: 115.1596921 | BQ96: 117.3634085 | BR96: 118.7650798 | BS96: 120.0421838 | BT96: 124.2304008 | BU96: 128.7773277 | BV96: 133.6630838 | BW96: 134.7408815 | BX96: 137.4097286 | BY96: 141.8820127 | BZ96: 147.2230146 | CA96: 150.2393769 | CB96: 154.0672047 | CC96: 157.7217155 | CD96: 161.0515723 | CE96: 164.787868 | CF96: 166.8518906 | CH96: =MATCH(TRUE,BG96:CF96+$AF$64:$BE$64>CH$61,0)+Dashboard!$C$15-1 -> 2029 | CJ96: =Dashboard!$C$13 -> 10 | CL96: =IF(CL$63<$CH96,BG96,CK96+AF$72) -> 90 | CM96: 93.33321562 | CN96: 95.62656561 | CO96: 100.5151591 | CP96: 103.5734752 | CQ96: 106.7082493 | CR96: 109.9213927 | CS96: 113.2148647 | CT96: 116.5906735 | CU96: 120.0508775 | CV96: 123.5975866 | CW96: 127.2329634 | CX96: 130.9592247 | CY96: 134.7786425 | CZ96: 138.6935457 | DA96: 142.7063215 | DB96: 146.8194167 | DC96: 151.0353393 | DD96: 155.35666 | DE96: 159.7860137 | DF96: 164.3261012 | DG96: 168.9796909 | DH96: 173.7496203 | DI96: 178.638798 | DJ96: 183.6502051 | DK96: 188.7868975 | DM96: =MATCH(TRUE,BG96:CF96+$AF$64:$BE$64-$CJ96>DM$61,0)+Dashboard!$C$15-1 -> 2031 | DN96: =MATCH(TRUE,CL96:DK96-$CJ96>DM$61,0)+Dashboard!$C$15-1-$DM$59 -> 2031 | DP96: 0 | DQ96: =INDEX('Deferral Value Calculation'!$D$66:$D$91,MATCH($DP96+($E$52-$E$51),'Deferral Value Calculation'!$B$66:$B$91,0)) -INDEX('Deferral Value Calculation'!$D$66:$D$91,MATCH($E$52-$E$51,'Deferral Value Calculation'!$B$66:$B$91,0)) -> 0
B97: 0.5741483329 | D97: Random Walk 25 | E97: 0.4102787931 | F97: 0.8787249059 | G97: 0.8422717366 | H97: 0.3552408168 | I97: 0.8118998161 | J97: 0.9305177669 | K97: 0.7462540815 | L97: 0.1741433624 | M97: 0.3402268165 | N97: 0.6482973077 | O97: 0.9919780374 | P97: 0.5559862734 | Q97: 0.278473521 | R97: 0.9741606338 | S97: 0.221059798 | T97: 0.8698990521 | U97: 0.8654984614 | V97: 0.9307147244 | W97: 0.8911448328 | X97: 0.382591666 | Y97: 0.8675240958 | Z97: 0.4210589232 | AA97: 0.1076087341 | AB97: 0.03456504218 | AC97: 0.3197716211 | AD97: 0.07796583399 | AF97: 0 | AG97: =NORMINV(F97,Dashboard!D$19,Dashboard!D$17) -> 3.564715861 | AH97: =NORMINV(G97,Dashboard!E$19,Dashboard!E$17) -> 3.46380112 | AI97: =NORMINV(H97,Dashboard!F$19,Dashboard!F$17) -> 1.925154237 | AJ97: =NORMINV(I97,Dashboard!G$19,Dashboard!G$17) -> 3.495084895 | AK97: =NORMINV(J97,Dashboard!H$19,Dashboard!H$17) -> 4.321003115 | AL97: =NORMINV(K97,Dashboard!I$19,Dashboard!I$17) -> 3.389237074 | AM97: =NORMINV(L97,Dashboard!J$19,Dashboard!J$17) -> 1.385651132 | AN97: =NORMINV(M97,Dashboard!K$19,Dashboard!K$17) -> 2.123795466 | AO97: =NORMINV(N97,Dashboard!L$19,Dashboard!L$17) -> 3.263271086 | AP97: =NORMINV(O97,Dashboard!M$19,Dashboard!M$17) -> 6.192991747 | AQ97: =NORMINV(P97,Dashboard!N$19,Dashboard!N$17) -> 3.082956509 | AR97: =NORMINV(Q97,Dashboard!O$19,Dashboard!O$17) -> 2.085161581 | AS97: =NORMINV(R97,Dashboard!P$19,Dashboard!P$17) -> 5.96999557 | AT97: =NORMINV(S97,Dashboard!Q$19,Dashboard!Q$17) -> 1.909656538 | AU97: =NORMINV(T97,Dashboard!R$19,Dashboard!R$17) -> 4.968939082 | AV97: =NORMINV(U97,Dashboard!S$19,Dashboard!S$17) -> 5.059675169 | AW97: =NORMINV(V97,Dashboard!T$19,Dashboard!T$17) -> 5.813735357 | AX97: =NORMINV(W97,Dashboard!U$19,Dashboard!U$17) -> 5.533698517 | AY97: =NORMINV(X97,Dashboard!V$19,Dashboard!V$17) -> 2.985161352 | AZ97: =NORMINV(Y97,Dashboard!W$19,Dashboard!W$17) -> 5.60184429 | BA97: =NORMINV(Z97,Dashboard!X$19,Dashboard!X$17) -> 3.319700259 | BB97: =NORMINV(AA97,Dashboard!Y$19,Dashboard!Y$17) -> 1.437278633 | BC97: =NORMINV(AB97,Dashboard!Z$19,Dashboard!Z$17) -> 0.353327137 | BD97: =NORMINV(AC97,Dashboard!AA$19,Dashboard!AA$17) -> 3.040636474 | BE97: =NORMINV(AD97,Dashboard!AB$19,Dashboard!AB$17) -> 1.182456375 | BG97: =Dashboard!$C$16 -> 90 | BH97: 93.56471586 | BI97: 97.02851698 | BJ97: 98.95367122 | BK97: 102.4487561 | BL97: 106.7697592 | BM97: 110.1589963 | BN97: 111.5446474 | BO97: 113.6684429 | BP97: 116.931714 | BQ97: 123.1247057 | BR97: 126.2076622 | BS97: 128.2928238 | BT97: 134.2628194 | BU97: 136.1724759 | BV97: 141.141415 | BW97: 146.2010902 | BX97: 152.0148255 | BY97: 157.5485241 | BZ97: 160.5336854 | CA97: 166.1355297 | CB97: 169.45523 | CC97: 170.8925086 | CD97: 171.2458357 | CE97: 174.2864722 | CF97: 175.4689286 | CH97: =MATCH(TRUE,BG97:CF97+$AF$64:$BE$64>CH$61,0)+Dashboard!$C$15-1 -> 2029 | CJ97: =Dashboard!$C$13 -> 10 | CL97: =IF(CL$63<$CH97,BG97,CK97+AF$72) -> 90 | CM97: 93.56471586 | CN97: 97.02851698 | CO97: 98.95367122 | CP97: 102.0119874 | CQ97: 105.1467614 | CR97: 108.3599048 | CS97: 111.6533768 | CT97: 115.0291856 | CU97: 118.4893896 | CV97: 122.0360987 | CW97: 125.6714756 | CX97: 129.3977368 | CY97: 133.2171546 | CZ97: 137.1320579 | DA97: 141.1448337 | DB97: 145.2579289 | DC97: 149.4738515 | DD97: 153.7951722 | DE97: 158.2245258 | DF97: 162.7646133 | DG97: 167.418203 | DH97: 172.1881325 | DI97: 177.0773102 | DJ97: 182.0887173 | DK97: 187.2254096 | DM97: =MATCH(TRUE,BG97:CF97+$AF$64:$BE$64-$CJ97>DM$61,0)+Dashboard!$C$15-1 -> 2031 | DN97: =MATCH(TRUE,CL97:DK97-$CJ97>DM$61,0)+Dashboard!$C$15-1-$DM$59 -> 2032 | DP97: -1 | DQ97: =INDEX('Deferral Value Calculation'!$D$66:$D$91,MATCH($DP97+($E$52-$E$51),'Deferral Value Calculation'!$B$66:$B$91,0)) -INDEX('Deferral Value Calculation'!$D$66:$D$91,MATCH($E$52-$E$51,'Deferral Value Calculation'!$B$66:$B$91,0)) -> -1366352.483
B98: 0.4762296853 | D98: Random Walk 26 | E98: 0.1199809895 | F98: 0.2310636951 | G98: 0.5840872583 | H98: 0.7181162032 | I98: 0.1445859397 | J98: 0.4101829525 | K98: 0.5461306585 | L98: 0.009609365135 | M98: 0.4922700508 | N98: 0.6262764347 | O98: 0.04210369531 | P98: 0.03498247584 | Q98: 0.449720159 | R98: 0.8385426922 | S98: 0.90311477 | T98: 0.924178521 | U98: 0.3024523578 | V98: 0.8012972387 | W98: 0.3767426987 | X98: 0.3787474923 | Y98: 0.6795740654 | Z98: 0.8898466003 | AA98: 0.5361665214 | AB98: 0.3828186599 | AC98: 0.2471211637 | AD98: 0.7122591576 | AF98: 0 | AG98: =NORMINV(F98,Dashboard!D$19,Dashboard!D$17) -> 1.422733145 | AH98: =NORMINV(G98,Dashboard!E$19,Dashboard!E$17) -> 2.551128669 | AI98: =NORMINV(H98,Dashboard!F$19,Dashboard!F$17) -> 3.046193926 | AJ98: =NORMINV(I98,Dashboard!G$19,Dashboard!G$17) -> 1.13888448 | AK98: =NORMINV(J98,Dashboard!H$19,Dashboard!H$17) -> 2.201600422 | AL98: =NORMINV(K98,Dashboard!I$19,Dashboard!I$17) -> 2.693178906 | AM98: =NORMINV(L98,Dashboard!J$19,Dashboard!J$17) -> -0.4452278063 | AN98: =NORMINV(M98,Dashboard!K$19,Dashboard!K$17) -> 2.648630206 | AO98: =NORMINV(N98,Dashboard!L$19,Dashboard!L$17) -> 3.182783036 | AP98: =NORMINV(O98,Dashboard!M$19,Dashboard!M$17) -> 0.383867767 | AQ98: =NORMINV(P98,Dashboard!N$19,Dashboard!N$17) -> 0.2705398528 | AR98: =NORMINV(Q98,Dashboard!O$19,Dashboard!O$17) -> 2.765662908 | AS98: =NORMINV(R98,Dashboard!P$19,Dashboard!P$17) -> 4.521579323 | AT98: =NORMINV(S98,Dashboard!Q$19,Dashboard!Q$17) -> 5.116955585 | AU98: =NORMINV(T98,Dashboard!R$19,Dashboard!R$17) -> 5.458277391 | AV98: =NORMINV(U98,Dashboard!S$19,Dashboard!S$17) -> 2.415717516 | AW98: =NORMINV(V98,Dashboard!T$19,Dashboard!T$17) -> 4.753456659 | AX98: =NORMINV(W98,Dashboard!U$19,Dashboard!U$17) -> 2.886049105 | AY98: =NORMINV(X98,Dashboard!V$19,Dashboard!V$17) -> 2.96745584 | AZ98: =NORMINV(Y98,Dashboard!W$19,Dashboard!W$17) -> 4.43596904 | BA98: =NORMINV(Z98,Dashboard!X$19,Dashboard!X$17) -> 5.946419143 | BB98: =NORMINV(AA98,Dashboard!Y$19,Dashboard!Y$17) -> 3.950591719 | BC98: =NORMINV(AB98,Dashboard!Z$19,Dashboard!Z$17) -> 3.296211747 | BD98: =NORMINV(AC98,Dashboard!AA$19,Dashboard!AA$17) -> 2.613345897 | BE98: =NORMINV(AD98,Dashboard!AB$19,Dashboard!AB$17) -> 5.209124032 | BG98: =Dashboard!$C$16 -> 90 | BH98: 91.42273315 | BI98: 93.97386181 | BJ98: 97.02005574 | BK98: 98.15894022 | BL98: 100.3605406 | BM98: 103.0537195 | BN98: 102.6084917 | BO98: 105.2571219 | BP98: 108.439905 | BQ98: 108.8237728 | BR98: 109.0943126 | BS98: 111.8599755 | BT98: 116.3815548 | BU98: 121.4985104 | BV98: 126.9567878 | BW98: 129.3725053 | BX98: 134.125962 | BY98: 137.0120111 | BZ98: 139.9794669 | CA98: 144.415436 | CB98: 150.3618551 | CC98: 154.3124468 | CD98: 157.6086586 | CE98: 160.2220045 | CF98: 165.4311285 | CH98: =MATCH(TRUE,BG98:CF98+$AF$64:$BE$64>CH$61,0)+Dashboard!$C$15-1 -> 2030 | CJ98: =Dashboard!$C$13 -> 10 | CL98: =IF(CL$63<$CH98,BG98,CK98+AF$72) -> 90 | CM98: 91.42273315 | CN98: 93.97386181 | CO98: 97.02005574 | CP98: 98.15894022 | CQ98: 101.2937143 | CR98: 104.5068577 | CS98: 107.8003297 | CT98: 111.1761385 | CU98: 114.6363425 | CV98: 118.1830516 | CW98: 121.8184284 | CX98: 125.5446897 | CY98: 129.3641075 | CZ98: 133.2790107 | DA98: 137.2917865 | DB98: 141.4048818 | DC98: 145.6208043 | DD98: 149.942125 | DE98: 154.3714787 | DF98: 158.9115662 | DG98: 163.5651559 | DH98: 168.3350853 | DI98: 173.224263 | DJ98: 178.2356702 | DK98: 183.3723625 | DM98: =MATCH(TRUE,BG98:CF98+$AF$64:$BE$64-$CJ98>DM$61,0)+Dashboard!$C$15-1 -> 2035 | DN98: =MATCH(TRUE,CL98:DK98-$CJ98>DM$61,0)+Dashboard!$C$15-1-$DM$59 -> 2033 | DP98: 2 | DQ98: =INDEX('Deferral Value Calculation'!$D$66:$D$91,MATCH($DP98+($E$52-$E$51),'Deferral Value Calculation'!$B$66:$B$91,0)) -INDEX('Deferral Value Calculation'!$D$66:$D$91,MATCH($E$52-$E$51,'Deferral Value Calculation'!$B$66:$B$91,0)) -> 2657265.066
B99: 0.4595572734 | D99: Random Walk 27 | E99: 0.4841734683 | F99: 0.3592695062 | G99: 0.1251924102 | H99: 0.03953025805 | I99: 0.3207746257 | J99: 0.6763915369 | K99: 0.140191548 | L99: 0.7992393313 | M99: 0.5921994145 | N99: 0.03674303846 | O99: 0.04235866672 | P99: 0.783458661 | Q99: 0.5424090454 | R99: 0.9228730158 | S99: 0.1463786799 | T99: 0.5494789283 | U99: 0.7038329606 | V99: 0.380886512 | W99: 0.9305908938 | X99: 0.01404715135 | Y99: 0.9385275901 | Z99: 0.3879931071 | AA99: 0.2939653983 | AB99: 0.5094495402 | AC99: 0.4654578379 | AD99: 0.7630759818 | AF99: 0 | AG99: =NORMINV(F99,Dashboard!D$19,Dashboard!D$17) -> 1.844536437 | AH99: =NORMINV(G99,Dashboard!E$19,Dashboard!E$17) -> 0.9808306117 | AI99: =NORMINV(H99,Dashboard!F$19,Dashboard!F$17) -> 0.2882034588 | AJ99: =NORMINV(I99,Dashboard!G$19,Dashboard!G$17) -> 1.859008821 | AK99: =NORMINV(J99,Dashboard!H$19,Dashboard!H$17) -> 3.051861484 | AL99: =NORMINV(K99,Dashboard!I$19,Dashboard!I$17) -> 1.171695916 | AM99: =NORMINV(L99,Dashboard!J$19,Dashboard!J$17) -> 3.70379486 | AN99: =NORMINV(M99,Dashboard!K$19,Dashboard!K$17) -> 2.986403152 | AO99: =NORMINV(N99,Dashboard!L$19,Dashboard!L$17) -> 0.288121891 | AP99: =NORMINV(O99,Dashboard!M$19,Dashboard!M$17) -> 0.3878458083 | AQ99: =NORMINV(P99,Dashboard!N$19,Dashboard!N$17) -> 4.009120323 | AR99: =NORMINV(Q99,Dashboard!O$19,Dashboard!O$17) -> 3.109406333 | AS99: =NORMINV(R99,Dashboard!P$19,Dashboard!P$17) -> 5.181518381 | AT99: =NORMINV(S99,Dashboard!Q$19,Dashboard!Q$17) -> 1.470039413 | AU99: =NORMINV(T99,Dashboard!R$19,Dashboard!R$17) -> 3.376849306 | AV99: =NORMINV(U99,Dashboard!S$19,Dashboard!S$17) -> 4.131109481 | AW99: =NORMINV(V99,Dashboard!T$19,Dashboard!T$17) -> 2.833850744 | AX99: =NORMINV(W99,Dashboard!U$19,Dashboard!U$17) -> 5.957488559 | AY99: =NORMINV(X99,Dashboard!V$19,Dashboard!V$17) -> -0.3438469128 | AZ99: =NORMINV(Y99,Dashboard!W$19,Dashboard!W$17) -> 6.371174773 | BA99: =NORMINV(Z99,Dashboard!X$19,Dashboard!X$17) -> 3.162328629 | BB99: =NORMINV(AA99,Dashboard!Y$19,Dashboard!Y$17) -> 2.755242116 | BC99: =NORMINV(AB99,Dashboard!Z$19,Dashboard!Z$17) -> 3.919415156 | BD99: =NORMINV(AC99,Dashboard!AA$19,Dashboard!AA$17) -> 3.798272555 | BE99: =NORMINV(AD99,Dashboard!AB$19,Dashboard!AB$17) -> 5.527034449 | BG99: =Dashboard!$C$16 -> 90 | BH99: 91.84453644 | BI99: 92.82536705 | BJ99: 93.11357051 | BK99: 94.97257933 | BL99: 98.02444081 | BM99: 99.19613673 | BN99: 102.8999316 | BO99: 105.8863347 | BP99: 106.1744566 | BQ99: 106.5623024 | BR99: 110.5714228 | BS99: 113.6808291 | BT99: 118.8623475 | BU99: 120.3323869 | BV99: 123.7092362 | BW99: 127.8403457 | BX99: 130.6741964 | BY99: 136.631685 | BZ99: 136.2878381 | CA99: 142.6590128 | CB99: 145.8213415 | CC99: 148.5765836 | CD99: 152.4959987 | CE99: 156.2942713 | CF99: 161.8213057 | CH99: =MATCH(TRUE,BG99:CF99+$AF$64:$BE$64>CH$61,0)+Dashboard!$C$15-1 -> 2032 | CJ99: =Dashboard!$C$13 -> 10 | CL99: =IF(CL$63<$CH99,BG99,CK99+AF$72) -> 90 | CM99: 91.84453644 | CN99: 92.82536705 | CO99: 93.11357051 | CP99: 94.97257933 | CQ99: 98.02444081 | CR99: 99.19613673 | CS99: 102.4896087 | CT99: 105.8654175 | CU99: 109.3256215 | CV99: 112.8723306 | CW99: 116.5077075 | CX99: 120.2339687 | CY99: 124.0533865 | CZ99: 127.9682898 | DA99: 131.9810656 | DB99: 136.0941608 | DC99: 140.3100834 | DD99: 144.631404 | DE99: 149.0607577 | DF99: 153.6008452 | DG99: 158.2544349 | DH99: 163.0243644 | DI99: 167.9135421 | DJ99: 172.9249492 | DK99: 178.0616415 | DM99: =MATCH(TRUE,BG99:CF99+$AF$64:$BE$64-$CJ99>DM$61,0)+Dashboard!$C$15-1 -> 2036 | DN99: =MATCH(TRUE,CL99:DK99-$CJ99>DM$61,0)+Dashboard!$C$15-1-$DM$59 -> 2034 | DP99: 2 | DQ99: =INDEX('Deferral Value Calculation'!$D$66:$D$91,MATCH($DP99+($E$52-$E$51),'Deferral Value Calculation'!$B$66:$B$91,0)) -INDEX('Deferral Value Calculation'!$D$66:$D$91,MATCH($E$52-$E$51,'Deferral Value Calculation'!$B$66:$B$91,0)) -> 2657265.066
B100: 0.5145516139 | D100: Random Walk 28 | E100: 0.3942462724 | F100: 0.8528083894 | G100: 0.5741115565 | H100: 0.04769464976 | I100: 0.1747073938 | J100: 0.7183896435 | K100: 0.8239061253 | L100: 0.1992915271 | M100: 0.2307014681 | N100: 0.8785339091 | O100: 0.8685743084 | P100: 0.2191683848 | Q100: 0.8906174219 | R100: 0.6158573508 | S100: 0.138839271 | T100: 0.756391087 | U100: 0.2576014684 | V100: 0.3973950183 | W100: 0.6552866928 | X100: 0.9590754082 | Y100: 0.06417449572 | Z100: 0.3965936728 | AA100: 0.2046865736 | AB100: 0.819493953 | AC100: 0.6667168465 | AD100: 0.5734790739 | AF100: 0 | AG100: =NORMINV(F100,Dashboard!D$19,Dashboard!D$17) -> 3.429623776 | AH100: =NORMINV(G100,Dashboard!E$19,Dashboard!E$17) -> 2.5217134 | AI100: =NORMINV(H100,Dashboard!F$19,Dashboard!F$17) -> 0.3928463578 | AJ100: =NORMINV(I100,Dashboard!G$19,Dashboard!G$17) -> 1.289371223 | AK100: =NORMINV(J100,Dashboard!H$19,Dashboard!H$17) -> 3.201413175 | AL100: =NORMINV(K100,Dashboard!I$19,Dashboard!I$17) -> 3.729855096 | AM100: =NORMINV(L100,Dashboard!J$19,Dashboard!J$17) -> 1.50797967 | AN100: =NORMINV(M100,Dashboard!K$19,Dashboard!K$17) -> 1.689590779 | AO100: =NORMINV(N100,Dashboard!L$19,Dashboard!L$17) -> 4.34196182 | AP100: =NORMINV(O100,Dashboard!M$19,Dashboard!M$17) -> 4.383055372 | AQ100: =NORMINV(P100,Dashboard!N$19,Dashboard!N$17) -> 1.764109469 | AR100: =NORMINV(Q100,Dashboard!O$19,Dashboard!O$17) -> 4.767526676 | AS100: =NORMINV(R100,Dashboard!P$19,Dashboard!P$17) -> 3.471757683 | AT100: =NORMINV(S100,Dashboard!Q$19,Dashboard!Q$17) -> 1.418153292 | AU100: =NORMINV(T100,Dashboard!R$19,Dashboard!R$17) -> 4.283547798 | AV100: =NORMINV(U100,Dashboard!S$19,Dashboard!S$17) -> 2.198368361 | AW100: =NORMINV(V100,Dashboard!T$19,Dashboard!T$17) -> 2.905760104 | AX100: =NORMINV(W100,Dashboard!U$19,Dashboard!U$17) -> 4.107741607 | AY100: =NORMINV(X100,Dashboard!V$19,Dashboard!V$17) -> 6.56236233 | AZ100: =NORMINV(Y100,Dashboard!W$19,Dashboard!W$17) -> 0.862111393 | BA100: =NORMINV(Z100,Dashboard!X$19,Dashboard!X$17) -> 3.203584151 | BB100: =NORMINV(AA100,Dashboard!Y$19,Dashboard!Y$17) -> 2.22020244 | BC100: =NORMINV(AB100,Dashboard!Z$19,Dashboard!Z$17) -> 5.642653463 | BD100: =NORMINV(AC100,Dashboard!AA$19,Dashboard!AA$17) -> 4.825722259 | BE100: =NORMINV(AD100,Dashboard!AB$19,Dashboard!AB$17) -> 4.446560092 | BG100: =Dashboard!$C$16 -> 90 | BH100: 93.42962378 | BI100: 95.95133718 | BJ100: 96.34418353 | BK100: 97.63355476 | BL100: 100.8349679 | BM100: 104.564823 | BN100: 106.0728027 | BO100: 107.7623935 | BP100: 112.1043553 | BQ100: 116.4874107 | BR100: 118.2515201 | BS100: 123.0190468 | BT100: 126.4908045 | BU100: 127.9089578 | BV100: 132.1925056 | BW100: 134.3908739 | BX100: 137.2966341 | BY100: 141.4043757 | BZ100: 147.966738 | CA100: 148.8288494 | CB100: 152.0324335 | CC100: 154.252636 | CD100: 159.8952894 | CE100: 164.7210117 | CF100: 169.1675718 | CH100: =MATCH(TRUE,BG100:CF100+$AF$64:$BE$64>CH$61,0)+Dashboard!$C$15-1 -> 2030 | CJ100: =Dashboard!$C$13 -> 10 | CL100: =IF(CL$63<$CH100,BG100,CK100+AF$72) -> 90 | CM100: 93.42962378 | CN100: 95.95133718 | CO100: 96.34418353 | CP100: 97.63355476 | CQ100: 100.7683288 | CR100: 103.9814722 | CS100: 107.2749442 | CT100: 110.650753 | CU100: 114.110957 | CV100: 117.6576661 | CW100: 121.293043 | CX100: 125.0193042 | CY100: 128.838722 | CZ100: 132.7536253 | DA100: 136.7664011 | DB100: 140.8794963 | DC100: 145.0954189 | DD100: 149.4167395 | DE100: 153.8460932 | DF100: 158.3861807 | DG100: 163.0397704 | DH100: 167.8096999 | DI100: 172.6988776 | DJ100: 177.7102847 | DK100: 182.846977 | DM100: =MATCH(TRUE,BG100:CF100+$AF$64:$BE$64-$CJ100>DM$61,0)+Dashboard!$C$15-1 -> 2034 | DN100: =MATCH(TRUE,CL100:DK100-$CJ100>DM$61,0)+Dashboard!$C$15-1-$DM$59 -> 2033 | DP100: 1 | DQ100: =INDEX('Deferral Value Calculation'!$D$66:$D$91,MATCH($DP100+($E$52-$E$51),'Deferral Value Calculation'!$B$66:$B$91,0)) -INDEX('Deferral Value Calculation'!$D$66:$D$91,MATCH($E$52-$E$51,'Deferral Value Calculation'!$B$66:$B$91,0)) -> 1341049.659
B101: 0.5143763785 | D101: Random Walk 29 | E101: 0.3506642849 | F101: 0.008674349741 | G101: 0.8760499317 | H101: 0.8426574066 | I101: 0.7190027632 | J101: 0.1911301761 | K101: 0.06033923533 | L101: 0.2947754307 | M101: 0.652716842 | N101: 0.1897162195 | O101: 0.7396952824 | P101: 0.3444057339 | Q101: 0.4008646847 | R101: 0.9398712695 | S101: 0.7976029005 | T101: 0.5780943269 | U101: 0.4457293763 | V101: 0.259982023 | W101: 0.9201349799 | X101: 0.8885312421 | Y101: 0.001232572362 | Z101: 0.2958049071 | AA101: 0.5574473799 | AB101: 0.3538857267 | AC101: 0.7615921943 | AD101: 0.9031846012 | AF101: 0 | AG101: =NORMINV(F101,Dashboard!D$19,Dashboard!D$17) -> -0.4266372839 | AH101: =NORMINV(G101,Dashboard!E$19,Dashboard!E$17) -> 3.638645355 | AI101: =NORMINV(H101,Dashboard!F$19,Dashboard!F$17) -> 3.552288808 | AJ101: =NORMINV(I101,Dashboard!G$19,Dashboard!G$17) -> 3.125531581 | AK101: =NORMINV(J101,Dashboard!H$19,Dashboard!H$17) -> 1.398578962 | AL101: =NORMINV(K101,Dashboard!I$19,Dashboard!I$17) -> 0.5703161618 | AM101: =NORMINV(L101,Dashboard!J$19,Dashboard!J$17) -> 1.905465721 | AN101: =NORMINV(M101,Dashboard!K$19,Dashboard!K$17) -> 3.19964375 | AO101: =NORMINV(N101,Dashboard!L$19,Dashboard!L$17) -> 1.536637133 | AP101: =NORMINV(O101,Dashboard!M$19,Dashboard!M$17) -> 3.712503748 | AQ101: =NORMINV(P101,Dashboard!N$19,Dashboard!N$17) -> 2.303477471 | AR101: =NORMINV(Q101,Dashboard!O$19,Dashboard!O$17) -> 2.581532721 | AS101: =NORMINV(R101,Dashboard!P$19,Dashboard!P$17) -> 5.376738535 | AT101: =NORMINV(S101,Dashboard!Q$19,Dashboard!Q$17) -> 4.393625966 | AU101: =NORMINV(T101,Dashboard!R$19,Dashboard!R$17) -> 3.49237431 | AV101: =NORMINV(U101,Dashboard!S$19,Dashboard!S$17) -> 3.036334046 | AW101: =NORMINV(V101,Dashboard!T$19,Dashboard!T$17) -> 2.265613982 | AX101: =NORMINV(W101,Dashboard!U$19,Dashboard!U$17) -> 5.830426672 | AY101: =NORMINV(X101,Dashboard!V$19,Dashboard!V$17) -> 5.647677729 | AZ101: =NORMINV(Y101,Dashboard!W$19,Dashboard!W$17) -> -1.848096763 | BA101: =NORMINV(Z101,Dashboard!X$19,Dashboard!X$17) -> 2.69787096 | BB101: =NORMINV(AA101,Dashboard!Y$19,Dashboard!Y$17) -> 4.052097186 | BC101: =NORMINV(AB101,Dashboard!Z$19,Dashboard!Z$17) -> 3.147536734 | BD101: =NORMINV(AC101,Dashboard!AA$19,Dashboard!AA$17) -> 5.382702694 | BE101: =NORMINV(AD101,Dashboard!AB$19,Dashboard!AB$17) -> 6.714718008 | BG101: =Dashboard!$C$16 -> 90 | BH101: 89.57336272 | BI101: 93.21200807 | BJ101: 96.76429688 | BK101: 99.88982846 | BL101: 101.2884074 | BM101: 101.8587236 | BN101: 103.7641893 | BO101: 106.9638331 | BP101: 108.5004702 | BQ101: 112.2129739 | BR101: 114.5164514 | BS101: 117.0979841 | BT101: 122.4747227 | BU101: 126.8683486 | BV101: 130.3607229 | BW101: 133.397057 | BX101: 135.662671 | BY101: 141.4930976 | BZ101: 147.1407754 | CA101: 145.2926786 | CB101: 147.9905496 | CC101: 152.0426468 | CD101: 155.1901835 | CE101: 160.5728862 | CF101: 167.2876042 | CH101: =MATCH(TRUE,BG101:CF101+$AF$64:$BE$64>CH$61,0)+Dashboard!$C$15-1 -> 2030 | CJ101: =Dashboard!$C$13 -> 10 | CL101: =IF(CL$63<$CH101,BG101,CK101+AF$72) -> 90 | CM101: 89.57336272 | CN101: 93.21200807 | CO101: 96.76429688 | CP101: 99.88982846 | CQ101: 103.0246025 | CR101: 106.2377459 | CS101: 109.5312179 | CT101: 112.9070267 | CU101: 116.3672307 | CV101: 119.9139398 | CW101: 123.5493167 | CX101: 127.2755779 | CY101: 131.0949957 | CZ101: 135.009899 | DA101: 139.0226748 | DB101: 143.13577 | DC101: 147.3516926 | DD101: 151.6730132 | DE101: 156.1023669 | DF101: 160.6424544 | DG101: 165.2960441 | DH101: 170.0659736 | DI101: 174.9551513 | DJ101: 179.9665584 | DK101: 185.1032507 | DM101: =MATCH(TRUE,BG101:CF101+$AF$64:$BE$64-$CJ101>DM$61,0)+Dashboard!$C$15-1 -> 2035 | DN101: =MATCH(TRUE,CL101:DK101-$CJ101>DM$61,0)+Dashboard!$C$15-1-$DM$59 -> 2033 | DP101: 2 | DQ101: =INDEX('Deferral Value Calculation'!$D$66:$D$91,MATCH($DP101+($E$52-$E$51),'Deferral Value Calculation'!$B$66:$B$91,0)) -INDEX('Deferral Value Calculation'!$D$66:$D$91,MATCH($E$52-$E$51,'Deferral Value Calculation'!$B$66:$B$91,0)) -> 2657265.066
B102: 0.5169217309 | D102: Random Walk 30 | E102: 0.7031222524 | F102: 0.7252870037 | G102: 0.7200059477 | H102: 0.3680397822 | I102: 0.775367851 | J102: 0.02211614639 | K102: 0.2710795525 | L102: 0.9583364099 | M102: 0.8036247262 | N102: 0.4278003835 | O102: 0.4244893418 | P102: 0.607407427 | Q102: 0.7737396592 | R102: 0.445263606 | S102: 0.6160816746 | T102: 0.432990728 | U102: 0.06314184126 | V102: 0.5096006694 | W102: 0.5395589843 | X102: 0.2344379892 | Y102: 0.3819414824 | Z102: 0.1854767766 | AA102: 0.5750303758 | AB102: 0.8097911861 | AC102: 0.6801525446 | AD102: 0.3860806609 | AF102: 0 | AG102: =NORMINV(F102,Dashboard!D$19,Dashboard!D$17) -> 2.923448045 | AH102: =NORMINV(G102,Dashboard!E$19,Dashboard!E$17) -> 2.978359487 | AI102: =NORMINV(H102,Dashboard!F$19,Dashboard!F$17) -> 1.965529507 | AJ102: =NORMINV(I102,Dashboard!G$19,Dashboard!G$17) -> 3.339677316 | AK102: =NORMINV(J102,Dashboard!H$19,Dashboard!H$17) -> -0.0147559379 | AL102: =NORMINV(K102,Dashboard!I$19,Dashboard!I$17) -> 1.769810761 | AM102: =NORMINV(L102,Dashboard!J$19,Dashboard!J$17) -> 4.868580032 | AN102: =NORMINV(M102,Dashboard!K$19,Dashboard!K$17) -> 3.817428465 | AO102: =NORMINV(N102,Dashboard!L$19,Dashboard!L$17) -> 2.491970037 | AP102: =NORMINV(O102,Dashboard!M$19,Dashboard!M$17) -> 2.542404727 | AQ102: =NORMINV(P102,Dashboard!N$19,Dashboard!N$17) -> 3.272714382 | AR102: =NORMINV(Q102,Dashboard!O$19,Dashboard!O$17) -> 4.061067916 | AS102: =NORMINV(R102,Dashboard!P$19,Dashboard!P$17) -> 2.817754892 | AT102: =NORMINV(S102,Dashboard!Q$19,Dashboard!Q$17) -> 3.559462406 | AU102: =NORMINV(T102,Dashboard!R$19,Dashboard!R$17) -> 2.910922937 | AV102: =NORMINV(U102,Dashboard!S$19,Dashboard!S$17) -> 0.7675434279 | AW102: =NORMINV(V102,Dashboard!T$19,Dashboard!T$17) -> 3.38033225 | AX102: =NORMINV(W102,Dashboard!U$19,Dashboard!U$17) -> 3.593663778 | AY102: =NORMINV(X102,Dashboard!V$19,Dashboard!V$17) -> 2.2383477 | AZ102: =NORMINV(Y102,Dashboard!W$19,Dashboard!W$17) -> 3.056724793 | BA102: =NORMINV(Z102,Dashboard!X$19,Dashboard!X$17) -> 2.037579038 | BB102: =NORMINV(AA102,Dashboard!Y$19,Dashboard!Y$17) -> 4.136550494 | BC102: =NORMINV(AB102,Dashboard!Z$19,Dashboard!Z$17) -> 5.572327112 | BD102: =NORMINV(AC102,Dashboard!AA$19,Dashboard!AA$17) -> 4.899690517 | BE102: =NORMINV(AD102,Dashboard!AB$19,Dashboard!AB$17) -> 3.480454337 | BG102: =Dashboard!$C$16 -> 90 | BH102: 92.92344805 | BI102: 95.90180753 | BJ102: 97.86733704 | BK102: 101.2070144 | BL102: 101.1922584 | BM102: 102.9620692 | BN102: 107.8306492 | BO102: 111.6480777 | BP102: 114.1400477 | BQ102: 116.6824524 | BR102: 119.9551668 | BS102: 124.0162347 | BT102: 126.8339896 | BU102: 130.393452 | BV102: 133.304375 | BW102: 134.0719184 | BX102: 137.4522507 | BY102: 141.0459144 | BZ102: 143.2842621 | CA102: 146.3409869 | CB102: 148.378566 | CC102: 152.5151165 | CD102: 158.0874436 | CE102: 162.9871341 | CF102: 166.4675884 | CH102: =MATCH(TRUE,BG102:CF102+$AF$64:$BE$64>CH$61,0)+Dashboard!$C$15-1 -> 2029 | CJ102: =Dashboard!$C$13 -> 10 | CL102: =IF(CL$63<$CH102,BG102,CK102+AF$72) -> 90 | CM102: 92.92344805 | CN102: 95.90180753 | CO102: 97.86733704 | CP102: 100.9256532 | CQ102: 104.0604272 | CR102: 107.2735707 | CS102: 110.5670426 | CT102: 113.9428514 | CU102: 117.4030554 | CV102: 120.9497646 | CW102: 124.5851414 | CX102: 128.3114027 | CY102: 132.1308205 | CZ102: 136.0457237 | DA102: 140.0584995 | DB102: 144.1715947 | DC102: 148.3875173 | DD102: 152.708838 | DE102: 157.1381916 | DF102: 161.6782792 | DG102: 166.3318689 | DH102: 171.1017983 | DI102: 175.990976 | DJ102: 181.0023831 | DK102: 186.1390754 | DM102: =MATCH(TRUE,BG102:CF102+$AF$64:$BE$64-$CJ102>DM$61,0)+Dashboard!$C$15-1 -> 2033 | DN102: =MATCH(TRUE,CL102:DK102-$CJ102>DM$61,0)+Dashboard!$C$15-1-$DM$59 -> 2032 | DP102: 1 | DQ102: =INDEX('Deferral Value Calculation'!$D$66:$D$91,MATCH($DP102+($E$52-$E$51),'Deferral Value Calculation'!$B$66:$B$91,0)) -INDEX('Deferral Value Calculation'!$D$66:$D$91,MATCH($E$52-$E$51,'Deferral Value Calculation'!$B$66:$B$91,0)) -> 1341049.659
B103: 0.4968248145 | D103: Random Walk 31 | E103: =RAND() -> 0.2640275582 | F103: 0.6292923388 | G103: 0.5600275141 | H103: 0.7381455737 | I103: 0.6608460218 | J103: 0.05874332594 | K103: 0.872206635 | L103: 0.4019219416 | M103: 0.4686392972 | N103: 0.8936896558 | O103: =RAND() -> 0.4659051756 | P103: 0.1202734017 | Q103: 0.5530054909 | R103: 0.1056556363 | S103: 0.6316588029 | T103: 0.6787503069 | U103: 0.9578242445 | V103: 0.2437751472 | W103: 0.2646441628 | X103: 0.2794039043 | Y103: =RAND() -> 0.772955874 | Z103: 0.8341354741 | AA103: 0.005908601462 | AB103: 0.4557825646 | AC103: 0.8758517541 | AD103: 0.1243747744 | AF103: 0 | AG103: =NORMINV(F103,Dashboard!D$19,Dashboard!D$17) -> 2.62122713 | AH103: =NORMINV(G103,Dashboard!E$19,Dashboard!E$17) -> 2.480416817 | AI103: =NORMINV(H103,Dashboard!F$19,Dashboard!F$17) -> 3.117565386 | AJ103: =NORMINV(I103,Dashboard!G$19,Dashboard!G$17) -> 2.925502421 | AK103: =NORMINV(J103,Dashboard!H$19,Dashboard!H$17) -> 0.5396684873 | AL103: =NORMINV(K103,Dashboard!I$19,Dashboard!I$17) -> 3.992733518 | AM103: =NORMINV(L103,Dashboard!J$19,Dashboard!J$17) -> 2.285265821 | AN103: =NORMINV(M103,Dashboard!K$19,Dashboard!K$17) -> 2.569312036 | AO103: =NORMINV(N103,Dashboard!L$19,Dashboard!L$17) -> 4.449839456 | AP103: =NORMINV(O103,Dashboard!M$19,Dashboard!M$17) -> 2.689722045 | AQ103: =NORMINV(P103,Dashboard!N$19,Dashboard!N$17) -> 1.190064134 | AR103: =NORMINV(Q103,Dashboard!O$19,Dashboard!O$17) -> 3.148897385 | AS103: =NORMINV(R103,Dashboard!P$19,Dashboard!P$17) -> 1.134798508 | AT103: =NORMINV(S103,Dashboard!Q$19,Dashboard!Q$17) -> 3.623114643 | AU103: =NORMINV(T103,Dashboard!R$19,Dashboard!R$17) -> 3.917092612 | AV103: =NORMINV(U103,Dashboard!S$19,Dashboard!S$17) -> 6.070866724 | AW103: =NORMINV(V103,Dashboard!T$19,Dashboard!T$17) -> 2.180758562 | AX103: =NORMINV(W103,Dashboard!U$19,Dashboard!U$17) -> 2.346747166 | AY103: =NORMINV(X103,Dashboard!V$19,Dashboard!V$17) -> 2.483460351 | AZ103: =NORMINV(Y103,Dashboard!W$19,Dashboard!W$17) -> 4.943336207 | BA103: =NORMINV(Z103,Dashboard!X$19,Dashboard!X$17) -> 5.476201538 | BB103: =NORMINV(AA103,Dashboard!Y$19,Dashboard!Y$17) -> -0.9779382355 | BC103: =NORMINV(AB103,Dashboard!Z$19,Dashboard!Z$17) -> 3.658429323 | BD103: =NORMINV(AC103,Dashboard!AA$19,Dashboard!AA$17) -> 6.262266375 | BE103: =NORMINV(AD103,Dashboard!AB$19,Dashboard!AB$17) -> 1.722692216 | BG103: =Dashboard!$C$16 -> 90 | BH103: 92.62122713 | BI103: 95.10164395 | BJ103: 98.21920933 | BK103: 101.1447118 | BL103: 101.6843802 | BM103: 105.6771138 | BN103: 107.9623796 | BO103: 110.5316916 | BP103: 114.9815311 | BQ103: 117.6712531 | BR103: 118.8613173 | BS103: 122.0102146 | BT103: 123.1450131 | BU103: 126.7681278 | BV103: 130.6852204 | BW103: 136.7560871 | BX103: 138.9368457 | BY103: 141.2835929 | BZ103: 143.7670532 | CA103: 148.7103894 | CB103: 154.1865909 | CC103: 153.2086527 | CD103: 156.867082 | CE103: 163.1293484 | CF103: 164.8520406 | CH103: =MATCH(TRUE,BG103:CF103+$AF$64:$BE$64>CH$61,0)+Dashboard!$C$15-1 -> 2029 | CJ103: =Dashboard!$C$13 -> 10 | CL103: =IF(CL$63<$CH103,BG103,CK103+AF$72) -> 90 | CM103: 92.62122713 | CN103: 95.10164395 | CO103: 98.21920933 | CP103: 101.2775255 | CQ103: 104.4122995 | CR103: 107.6254429 | CS103: 110.9189149 | CT103: 114.2947237 | CU103: 117.7549277 | CV103: 121.3016369 | CW103: 124.9370137 | CX103: 128.663275 | CY103: 132.4826927 | CZ103: 136.397596 | DA103: 140.4103718 | DB103: 144.523467 | DC103: 148.7393896 | DD103: 153.0607103 | DE103: 157.4900639 | DF103: 162.0301515 | DG103: 166.6837412 | DH103: 171.4536706 | DI103: 176.3428483 | DJ103: 181.3542554 | DK103: 186.4909477 | DM103: =MATCH(TRUE,BG103:CF103+$AF$64:$BE$64-$CJ103>DM$61,0)+Dashboard!$C$15-1 -> 2033 | DN103: =MATCH(TRUE,CL103:DK103-$CJ103>DM$61,0)+Dashboard!$C$15-1-$DM$59 -> 2032 | DP103: 1 | DQ103: =INDEX('Deferral Value Calculation'!$D$66:$D$91,MATCH($DP103+($E$52-$E$51),'Deferral Value Calculation'!$B$66:$B$91,0)) -INDEX('Deferral Value Calculation'!$D$66:$D$91,MATCH($E$52-$E$51,'Deferral Value Calculation'!$B$66:$B$91,0)) -> 1341049.659
B104: 0.5338422166 | D104: Random Walk 32 | E104: 0.4703637486 | F104: 0.8126262104 | G104: 0.9839719559 | H104: 0.9228273405 | I104: 0.03419942451 | J104: 0.142561264 | K104: 0.7782797696 | L104: 0.8489138289 | M104: 0.1336377373 | N104: 0.6428739454 | O104: 0.5719052891 | P104: 0.4768208935 | Q104: 0.2323066142 | R104: 0.8055386458 | S104: 0.5930761765 | T104: 0.7930409835 | U104: 0.9127409217 | V104: 0.9274327193 | W104: 0.5352456811 | X104: 0.6534190264 | Y104: 0.2283419054 | Z104: 0.2437274298 | AA104: 0.08013548372 | AB104: 0.609139733 | AC104: 0.2588245914 | AD104: 0.1879463126 | AF104: 0 | AG104: =NORMINV(F104,Dashboard!D$19,Dashboard!D$17) -> 3.248567508 | AH104: =NORMINV(G104,Dashboard!E$19,Dashboard!E$17) -> 4.7782162 | AI104: =NORMINV(H104,Dashboard!F$19,Dashboard!F$17) -> 4.047420617 | AJ104: =NORMINV(I104,Dashboard!G$19,Dashboard!G$17) -> 0.2151989772 | AK104: =NORMINV(J104,Dashboard!H$19,Dashboard!H$17) -> 1.156251687 | AL104: =NORMINV(K104,Dashboard!I$19,Dashboard!I$17) -> 3.521164087 | AM104: =NORMINV(L104,Dashboard!J$19,Dashboard!J$17) -> 3.955435156 | AN104: =NORMINV(M104,Dashboard!K$19,Dashboard!K$17) -> 1.191029212 | AO104: =NORMINV(N104,Dashboard!L$19,Dashboard!L$17) -> 3.243291429 | AP104: =NORMINV(O104,Dashboard!M$19,Dashboard!M$17) -> 3.064560299 | AQ104: =NORMINV(P104,Dashboard!N$19,Dashboard!N$17) -> 2.796471545 | AR104: =NORMINV(Q104,Dashboard!O$19,Dashboard!O$17) -> 1.872766697 | AS104: =NORMINV(R104,Dashboard!P$19,Dashboard!P$17) -> 4.329559262 | AT104: =NORMINV(S104,Dashboard!Q$19,Dashboard!Q$17) -> 3.46681523 | AU104: =NORMINV(T104,Dashboard!R$19,Dashboard!R$17) -> 4.477919575 | AV104: =NORMINV(U104,Dashboard!S$19,Dashboard!S$17) -> 5.471028725 | AW104: =NORMINV(V104,Dashboard!T$19,Dashboard!T$17) -> 5.773317928 | AX104: =NORMINV(W104,Dashboard!U$19,Dashboard!U$17) -> 3.575073982 | AY104: =NORMINV(X104,Dashboard!V$19,Dashboard!V$17) -> 4.201546956 | AZ104: =NORMINV(Y104,Dashboard!W$19,Dashboard!W$17) -> 2.258319893 | BA104: =NORMINV(Z104,Dashboard!X$19,Dashboard!X$17) -> 2.406868824 | BB104: =NORMINV(AA104,Dashboard!Y$19,Dashboard!Y$17) -> 1.125855767 | BC104: =NORMINV(AB104,Dashboard!Z$19,Dashboard!Z$17) -> 4.410170592 | BD104: =NORMINV(AC104,Dashboard!AA$19,Dashboard!AA$17) -> 2.686010913 | BE104: =NORMINV(AD104,Dashboard!AB$19,Dashboard!AB$17) -> 2.267824363 | BG104: =Dashboard!$C$16 -> 90 | BH104: 93.24856751 | BI104: 98.02678371 | BJ104: 102.0742043 | BK104: 102.2894033 | BL104: 103.445655 | BM104: 106.9668191 | BN104: 110.9222542 | BO104: 112.1132834 | BP104: 115.3565749 | BQ104: 118.4211352 | BR104: 121.2176067 | BS104: 123.0903734 | BT104: 127.4199327 | BU104: 130.8867479 | BV104: 135.3646675 | BW104: 140.8356962 | BX104: 146.6090141 | BY104: 150.1840881 | BZ104: 154.3856351 | CA104: 156.643955 | CB104: 159.0508238 | CC104: 160.1766796 | CD104: 164.5868502 | CE104: 167.2728611 | CF104: 169.5406854 | CH104: =MATCH(TRUE,BG104:CF104+$AF$64:$BE$64>CH$61,0)+Dashboard!$C$15-1 -> 2028 | CJ104: =Dashboard!$C$13 -> 10 | CL104: =IF(CL$63<$CH104,BG104,CK104+AF$72) -> 90 | CM104: 93.24856751 | CN104: 98.02678371 | CO104: 101.0105068 | CP104: 104.0688229 | CQ104: 107.203597 | CR104: 110.4167404 | CS104: 113.7102124 | CT104: 117.0860212 | CU104: 120.5462252 | CV104: 124.0929343 | CW104: 127.7283111 | CX104: 131.4545724 | CY104: 135.2739902 | CZ104: 139.1888934 | DA104: 143.2016693 | DB104: 147.3147645 | DC104: 151.5306871 | DD104: 155.8520077 | DE104: 160.2813614 | DF104: 164.8214489 | DG104: 169.4750386 | DH104: 174.2449681 | DI104: 179.1341457 | DJ104: 184.1455529 | DK104: 189.2822452 | DM104: =MATCH(TRUE,BG104:CF104+$AF$64:$BE$64-$CJ104>DM$61,0)+Dashboard!$C$15-1 -> 2032 | DN104: =MATCH(TRUE,CL104:DK104-$CJ104>DM$61,0)+Dashboard!$C$15-1-$DM$59 -> 2031 | DP104: 1 | DQ104: =INDEX('Deferral Value Calculation'!$D$66:$D$91,MATCH($DP104+($E$52-$E$51),'Deferral Value Calculation'!$B$66:$B$91,0)) -INDEX('Deferral Value Calculation'!$D$66:$D$91,MATCH($E$52-$E$51,'Deferral Value Calculation'!$B$66:$B$91,0)) -> 1341049.659
B105: 0.5255337402 | D105: Random Walk 33 | E105: 0.2416191206 | F105: 0.05573694487 | G105: 0.3441881246 | H105: 0.4107531367 | I105: 0.04433734553 | J105: 0.7727629507 | K105: 0.1375818312 | L105: 0.5784251339 | M105: 0.8680839546 | N105: 0.8798421674 | O105: 0.7590220413 | P105: 0.9246110103 | Q105: 0.5660225393 | R105: 0.9487697848 | S105: 0.8292282489 | T105: 0.7649303126 | U105: 0.2957095764 | V105: 0.9130784646 | W105: 0.8522098612 | X105: 0.2541513616 | Y105: 0.1279935425 | Z105: 0.01528005689 | AA105: 0.437192214 | AB105: 0.8504864014 | AC105: 0.479361954 | AD105: 0.3124991658 | AF105: 0 | AG105: =NORMINV(F105,Dashboard!D$19,Dashboard!D$17) -> 0.4594463955 | AH105: =NORMINV(G105,Dashboard!E$19,Dashboard!E$17) -> 1.843778157 | AI105: =NORMINV(H105,Dashboard!F$19,Dashboard!F$17) -> 2.097248101 | AJ105: =NORMINV(I105,Dashboard!G$19,Dashboard!G$17) -> 0.3605059947 | AK105: =NORMINV(J105,Dashboard!H$19,Dashboard!H$17) -> 3.41240885 | AL105: =NORMINV(K105,Dashboard!I$19,Dashboard!I$17) -> 1.156690343 | AM105: =NORMINV(L105,Dashboard!J$19,Dashboard!J$17) -> 2.867457367 | AN105: =NORMINV(M105,Dashboard!K$19,Dashboard!K$17) -> 4.168782693 | AO105: =NORMINV(N105,Dashboard!L$19,Dashboard!L$17) -> 4.350883757 | AP105: =NORMINV(O105,Dashboard!M$19,Dashboard!M$17) -> 3.797861264 | AQ105: =NORMINV(P105,Dashboard!N$19,Dashboard!N$17) -> 4.949302927 | AR105: =NORMINV(Q105,Dashboard!O$19,Dashboard!O$17) -> 3.197606113 | AS105: =NORMINV(R105,Dashboard!P$19,Dashboard!P$17) -> 5.496790362 | AT105: =NORMINV(S105,Dashboard!Q$19,Dashboard!Q$17) -> 4.576670334 | AU105: =NORMINV(T105,Dashboard!R$19,Dashboard!R$17) -> 4.327280136 | AV105: =NORMINV(U105,Dashboard!S$19,Dashboard!S$17) -> 2.384075172 | AW105: =NORMINV(V105,Dashboard!T$19,Dashboard!T$17) -> 5.611361865 | AX105: =NORMINV(W105,Dashboard!U$19,Dashboard!U$17) -> 5.214134023 | AY105: =NORMINV(X105,Dashboard!V$19,Dashboard!V$17) -> 2.348583722 | AZ105: =NORMINV(Y105,Dashboard!W$19,Dashboard!W$17) -> 1.554019131 | BA105: =NORMINV(Z105,Dashboard!X$19,Dashboard!X$17) -> -0.3000276003 | BB105: =NORMINV(AA105,Dashboard!Y$19,Dashboard!Y$17) -> 3.480339951 | BC105: =NORMINV(AB105,Dashboard!Z$19,Dashboard!Z$17) -> 5.884911226 | BD105: =NORMINV(AC105,Dashboard!AA$19,Dashboard!AA$17) -> 3.867630671 | BE105: =NORMINV(AD105,Dashboard!AB$19,Dashboard!AB$17) -> 3.075058191 | BG105: =Dashboard!$C$16 -> 90 | BH105: 90.4594464 | BI105: 92.30322455 | BJ105: 94.40047265 | BK105: 94.76097865 | BL105: 98.1733875 | BM105: 99.33007784 | BN105: 102.1975352 | BO105: 106.3663179 | BP105: 110.7172017 | BQ105: 114.5150629 | BR105: 119.4643658 | BS105: 122.661972 | BT105: 128.1587623 | BU105: 132.7354327 | BV105: 137.0627128 | BW105: 139.446788 | BX105: 145.0581498 | BY105: 150.2722839 | BZ105: 152.6208676 | CA105: 154.1748867 | CB105: 153.8748591 | CC105: 157.3551991 | CD105: 163.2401103 | CE105: 167.107741 | CF105: 170.1827991 | CH105: =MATCH(TRUE,BG105:CF105+$AF$64:$BE$64>CH$61,0)+Dashboard!$C$15-1 -> 2032 | CJ105: =Dashboard!$C$13 -> 10 | CL105: =IF(CL$63<$CH105,BG105,CK105+AF$72) -> 90 | CM105: 90.4594464 | CN105: 92.30322455 | CO105: 94.40047265 | CP105: 94.76097865 | CQ105: 98.1733875 | CR105: 99.33007784 | CS105: 102.6235498 | CT105: 105.9993586 | CU105: 109.4595626 | CV105: 113.0062717 | CW105: 116.6416486 | CX105: 120.3679098 | CY105: 124.1873276 | CZ105: 128.1022309 | DA105: 132.1150067 | DB105: 136.2281019 | DC105: 140.4440245 | DD105: 144.7653452 | DE105: 149.1946988 | DF105: 153.7347864 | DG105: 158.3883761 | DH105: 163.1583055 | DI105: 168.0474832 | DJ105: 173.0588903 | DK105: 178.1955826 | DM105: =MATCH(TRUE,BG105:CF105+$AF$64:$BE$64-$CJ105>DM$61,0)+Dashboard!$C$15-1 -> 2034 | DN105: =MATCH(TRUE,CL105:DK105-$CJ105>DM$61,0)+Dashboard!$C$15-1-$DM$59 -> 2034 | DP105: 0 | DQ105: =INDEX('Deferral Value Calculation'!$D$66:$D$91,MATCH($DP105+($E$52-$E$51),'Deferral Value Calculation'!$B$66:$B$91,0)) -INDEX('Deferral Value Calculation'!$D$66:$D$91,MATCH($E$52-$E$51,'Deferral Value Calculation'!$B$66:$B$91,0)) -> 0
B106: 0.5543501062 | D106: Random Walk 34 | E106: 0.2522622004 | F106: 0.9567810132 | G106: 0.8916193826 | H106: 0.9154125049 | I106: 0.7473936646 | J106: 0.3876974491 | K106: 0.08891175064 | L106: 0.6022831026 | M106: 0.5169474555 | N106: 0.137822452 | O106: 0.7682304458 | P106: 0.1727311798 | Q106: 0.9115200048 | R106: 0.2929975467 | S106: 0.09533741545 | T106: 0.252073436 | U106: 0.9252496893 | V106: 0.7582463235 | W106: 0.265932545 | X106: 0.4352275109 | Y106: 0.8933297096 | Z106: 0.7501970308 | AA106: 0.9827274497 | AB106: 0.547558493 | AC106: 0.5904177887 | AD106: 0.2741952157 | AF106: 0 | AG106: =NORMINV(F106,Dashboard!D$19,Dashboard!D$17) -> 4.178806145 | AH106: =NORMINV(G106,Dashboard!E$19,Dashboard!E$17) -> 3.730574022 | AI106: =NORMINV(H106,Dashboard!F$19,Dashboard!F$17) -> 3.988925798 | AJ106: =NORMINV(I106,Dashboard!G$19,Dashboard!G$17) -> 3.230240349 | AK106: =NORMINV(J106,Dashboard!H$19,Dashboard!H$17) -> 2.129264988 | AL106: =NORMINV(K106,Dashboard!I$19,Dashboard!I$17) -> 0.8305411403 | AM106: =NORMINV(L106,Dashboard!J$19,Dashboard!J$17) -> 2.9475565 | AN106: =NORMINV(M106,Dashboard!K$19,Dashboard!K$17) -> 2.731368634 | AO106: =NORMINV(N106,Dashboard!L$19,Dashboard!L$17) -> 1.247127607 | AP106: =NORMINV(O106,Dashboard!M$19,Dashboard!M$17) -> 3.839829816 | AQ106: =NORMINV(P106,Dashboard!N$19,Dashboard!N$17) -> 1.52156511 | AR106: =NORMINV(Q106,Dashboard!O$19,Dashboard!O$17) -> 4.945184287 | AS106: =NORMINV(R106,Dashboard!P$19,Dashboard!P$17) -> 2.201946279 | AT106: =NORMINV(S106,Dashboard!Q$19,Dashboard!Q$17) -> 1.072263004 | AU106: =NORMINV(T106,Dashboard!R$19,Dashboard!R$17) -> 2.11737434 | AV106: =NORMINV(U106,Dashboard!S$19,Dashboard!S$17) -> 5.607028151 | AW106: =NORMINV(V106,Dashboard!T$19,Dashboard!T$17) -> 4.510309128 | AX106: =NORMINV(W106,Dashboard!U$19,Dashboard!U$17) -> 2.353476848 | AY106: =NORMINV(X106,Dashboard!V$19,Dashboard!V$17) -> 3.223088381 | AZ106: =NORMINV(Y106,Dashboard!W$19,Dashboard!W$17) -> 5.835050948 | BA106: =NORMINV(Z106,Dashboard!X$19,Dashboard!X$17) -> 4.931413961 | BB106: =NORMINV(AA106,Dashboard!Y$19,Dashboard!Y$17) -> 7.772864948 | BC106: =NORMINV(AB106,Dashboard!Z$19,Dashboard!Z$17) -> 4.104970173 | BD106: =NORMINV(AC106,Dashboard!AA$19,Dashboard!AA$17) -> 4.424227124 | BE106: =NORMINV(AD106,Dashboard!AB$19,Dashboard!AB$17) -> 2.848389777 | BG106: =Dashboard!$C$16 -> 90 | BH106: 94.17880615 | BI106: 97.90938017 | BJ106: 101.898306 | BK106: 105.1285463 | BL106: 107.2578113 | BM106: 108.0883524 | BN106: 111.0359089 | BO106: 113.7672776 | BP106: 115.0144052 | BQ106: 118.854235 | BR106: 120.3758001 | BS106: 125.3209844 | BT106: 127.5229307 | BU106: 128.5951937 | BV106: 130.712568 | BW106: 136.3195962 | BX106: 140.8299053 | BY106: 143.1833821 | BZ106: 146.4064705 | CA106: 152.2415215 | CB106: 157.1729354 | CC106: 164.9458004 | CD106: 169.0507706 | CE106: 173.4749977 | CF106: 176.3233875 | CH106: =MATCH(TRUE,BG106:CF106+$AF$64:$BE$64>CH$61,0)+Dashboard!$C$15-1 -> 2028 | CJ106: =Dashboard!$C$13 -> 10 | CL106: =IF(CL$63<$CH106,BG106,CK106+AF$72) -> 90 | CM106: 94.17880615 | CN106: 97.90938017 | CO106: 100.8931032 | CP106: 103.9514194 | CQ106: 107.0861934 | CR106: 110.2993369 | CS106: 113.5928088 | CT106: 116.9686176 | CU106: 120.4288217 | CV106: 123.9755308 | CW106: 127.6109076 | CX106: 131.3371689 | CY106: 135.1565867 | CZ106: 139.0714899 | DA106: 143.0842657 | DB106: 147.1973609 | DC106: 151.4132835 | DD106: 155.7346042 | DE106: 160.1639579 | DF106: 164.7040454 | DG106: 169.3576351 | DH106: 174.1275645 | DI106: 179.0167422 | DJ106: 184.0281493 | DK106: 189.1648416 | DM106: =MATCH(TRUE,BG106:CF106+$AF$64:$BE$64-$CJ106>DM$61,0)+Dashboard!$C$15-1 -> 2032 | DN106: =MATCH(TRUE,CL106:DK106-$CJ106>DM$61,0)+Dashboard!$C$15-1-$DM$59 -> 2031 | DP106: 1 | DQ106: =INDEX('Deferral Value Calculation'!$D$66:$D$91,MATCH($DP106+($E$52-$E$51),'Deferral Value Calculation'!$B$66:$B$91,0)) -INDEX('Deferral Value Calculation'!$D$66:$D$91,MATCH($E$52-$E$51,'Deferral Value Calculation'!$B$66:$B$91,0)) -> 1341049.659
B107: 0.5336077105 | D107: Random Walk 35 | E107: 0.6847287155 | F107: 0.4270744723 | G107: 0.8113905669 | H107: 0.0659253683 | I107: 0.2756888844 | J107: 0.05529312779 | K107: 0.4485968881 | L107: 0.774795302 | M107: 0.007750491682 | N107: 0.1230740334 | O107: 0.9846842674 | P107: 0.8572617524 | Q107: 0.2091352556 | R107: 0.4003780099 | S107: 0.8663949119 | T107: 0.8676814102 | U107: 0.8295983388 | V107: 0.9665857608 | W107: 0.9700804296 | X107: 0.7078418962 | Y107: 0.1419635799 | Z107: 0.8047499848 | AA107: 0.2250508198 | AB107: 0.009418062443 | AC107: 0.3745594719 | AD107: 0.9840986714 | AF107: 0 | AG107: =NORMINV(F107,Dashboard!D$19,Dashboard!D$17) -> 2.043194296 | AH107: =NORMINV(G107,Dashboard!E$19,Dashboard!E$17) -> 3.324496523 | AI107: =NORMINV(H107,Dashboard!F$19,Dashboard!F$17) -> 0.5828876822 | AJ107: =NORMINV(I107,Dashboard!G$19,Dashboard!G$17) -> 1.701316019 | AK107: =NORMINV(J107,Dashboard!H$19,Dashboard!H$17) -> 0.5022248524 | AL107: =NORMINV(K107,Dashboard!I$19,Dashboard!I$17) -> 2.381209255 | AM107: =NORMINV(L107,Dashboard!J$19,Dashboard!J$17) -> 3.593976023 | AN107: =NORMINV(M107,Dashboard!K$19,Dashboard!K$17) -> -0.5622660646 | AO107: =NORMINV(N107,Dashboard!L$19,Dashboard!L$17) -> 1.151724866 | AP107: =NORMINV(O107,Dashboard!M$19,Dashboard!M$17) -> 5.847246462 | AQ107: =NORMINV(P107,Dashboard!N$19,Dashboard!N$17) -> 4.418352336 | AR107: =NORMINV(Q107,Dashboard!O$19,Dashboard!O$17) -> 1.757404215 | AS107: =NORMINV(R107,Dashboard!P$19,Dashboard!P$17) -> 2.64416589 | AT107: =NORMINV(S107,Dashboard!Q$19,Dashboard!Q$17) -> 4.822305818 | AU107: =NORMINV(T107,Dashboard!R$19,Dashboard!R$17) -> 4.952381364 | AV107: =NORMINV(U107,Dashboard!S$19,Dashboard!S$17) -> 4.810741915 | AW107: =NORMINV(V107,Dashboard!T$19,Dashboard!T$17) -> 6.401082903 | AX107: =NORMINV(W107,Dashboard!U$19,Dashboard!U$17) -> 6.64524795 | AY107: =NORMINV(X107,Dashboard!V$19,Dashboard!V$17) -> 4.469166787 | AZ107: =NORMINV(Y107,Dashboard!W$19,Dashboard!W$17) -> 1.669819955 | BA107: =NORMINV(Z107,Dashboard!X$19,Dashboard!X$17) -> 5.26987203 | BB107: =NORMINV(AA107,Dashboard!Y$19,Dashboard!Y$17) -> 2.352000284 | BC107: =NORMINV(AB107,Dashboard!Z$19,Dashboard!Z$17) -> -0.6754640277 | BD107: =NORMINV(AC107,Dashboard!AA$19,Dashboard!AA$17) -> 3.335508599 | BE107: =NORMINV(AD107,Dashboard!AB$19,Dashboard!AB$17) -> 8.438145225 | BG107: =Dashboard!$C$16 -> 90 | BH107: 92.0431943 | BI107: 95.36769082 | BJ107: 95.9505785 | BK107: 97.65189452 | BL107: 98.15411937 | BM107: 100.5353286 | BN107: 104.1293047 | BO107: 103.5670386 | BP107: 104.7187635 | BQ107: 110.5660099 | BR107: 114.9843622 | BS107: 116.7417665 | BT107: 119.3859324 | BU107: 124.2082382 | BV107: 129.1606195 | BW107: 133.9713615 | BX107: 140.3724444 | BY107: 147.0176923 | BZ107: 151.4868591 | CA107: 153.156679 | CB107: 158.4265511 | CC107: 160.7785514 | CD107: 160.1030873 | CE107: 163.4385959 | CF107: 171.8767412 | CH107: =MATCH(TRUE,BG107:CF107+$AF$64:$BE$64>CH$61,0)+Dashboard!$C$15-1 -> 2031 | CJ107: =Dashboard!$C$13 -> 10 | CL107: =IF(CL$63<$CH107,BG107,CK107+AF$72) -> 90 | CM107: 92.0431943 | CN107: 95.36769082 | CO107: 95.9505785 | CP107: 97.65189452 | CQ107: 98.15411937 | CR107: 101.3672628 | CS107: 104.6607348 | CT107: 108.0365436 | CU107: 111.4967476 | CV107: 115.0434567 | CW107: 118.6788335 | CX107: 122.4050948 | CY107: 126.2245126 | CZ107: 130.1394158 | DA107: 134.1521916 | DB107: 138.2652868 | DC107: 142.4812094 | DD107: 146.8025301 | DE107: 151.2318838 | DF107: 155.7719713 | DG107: 160.425561 | DH107: 165.1954904 | DI107: 170.0846681 | DJ107: 175.0960753 | DK107: 180.2327676 | DM107: =MATCH(TRUE,BG107:CF107+$AF$64:$BE$64-$CJ107>DM$61,0)+Dashboard!$C$15-1 -> 2035 | DN107: =MATCH(TRUE,CL107:DK107-$CJ107>DM$61,0)+Dashboard!$C$15-1-$DM$59 -> 2034 | DP107: 1 | DQ107: =INDEX('Deferral Value Calculation'!$D$66:$D$91,MATCH($DP107+($E$52-$E$51),'Deferral Value Calculation'!$B$66:$B$91,0)) -INDEX('Deferral Value Calculation'!$D$66:$D$91,MATCH($E$52-$E$51,'Deferral Value Calculation'!$B$66:$B$91,0)) -> 1341049.659
B108: 0.4380145568 | D108: Random Walk 36 | E108: 0.3357357939 | F108: 0.9225189124 | G108: 0.3857981733 | H108: 0.4593867299 | I108: 0.7191767167 | J108: 0.4677696692 | K108: 0.3384384743 | L108: 0.4246484098 | M108: 0.3037048419 | N108: 0.5366660149 | O108: 0.6178592144 | P108: 0.0863681132 | Q108: 0.04589692866 | R108: 0.5213989488 | S108: 0.2260925666 | T108: 0.7406720565 | U108: 0.7542916502 | V108: 0.4734748219 | W108: 0.07402096479 | X108: 0.8718613864 | Y108: 0.3978678202 | Z108: 0.1036899139 | AA108: 0.1159320388 | AB108: 0.08442997212 | AC108: 0.7752593844 | AD108: 0.6054189603 | AF108: 0 | AG108: =NORMINV(F108,Dashboard!D$19,Dashboard!D$17) -> 3.84999835 | AH108: =NORMINV(G108,Dashboard!E$19,Dashboard!E$17) -> 1.971512295 | AI108: =NORMINV(H108,Dashboard!F$19,Dashboard!F$17) -> 2.243372025 | AJ108: =NORMINV(I108,Dashboard!G$19,Dashboard!G$17) -> 3.126156654 | AK108: =NORMINV(J108,Dashboard!H$19,Dashboard!H$17) -> 2.383146118 | AL108: =NORMINV(K108,Dashboard!I$19,Dashboard!I$17) -> 2.015242076 | AM108: =NORMINV(L108,Dashboard!J$19,Dashboard!J$17) -> 2.361405226 | AN108: =NORMINV(M108,Dashboard!K$19,Dashboard!K$17) -> 1.987487012 | AO108: =NORMINV(N108,Dashboard!L$19,Dashboard!L$17) -> 2.867563095 | AP108: =NORMINV(O108,Dashboard!M$19,Dashboard!M$17) -> 3.231240614 | AQ108: =NORMINV(P108,Dashboard!N$19,Dashboard!N$17) -> 0.9166719418 | AR108: =NORMINV(Q108,Dashboard!O$19,Dashboard!O$17) -> 0.4634797286 | AS108: =NORMINV(R108,Dashboard!P$19,Dashboard!P$17) -> 3.107194931 | AT108: =NORMINV(S108,Dashboard!Q$19,Dashboard!Q$17) -> 1.935775231 | AU108: =NORMINV(T108,Dashboard!R$19,Dashboard!R$17) -> 4.205145793 | AV108: =NORMINV(U108,Dashboard!S$19,Dashboard!S$17) -> 4.379747013 | AW108: =NORMINV(V108,Dashboard!T$19,Dashboard!T$17) -> 3.229014898 | AX108: =NORMINV(W108,Dashboard!U$19,Dashboard!U$17) -> 0.947522705 | AY108: =NORMINV(X108,Dashboard!V$19,Dashboard!V$17) -> 5.501132172 | AZ108: =NORMINV(Y108,Dashboard!W$19,Dashboard!W$17) -> 3.131390243 | BA108: =NORMINV(Z108,Dashboard!X$19,Dashboard!X$17) -> 1.362667876 | BB108: =NORMINV(AA108,Dashboard!Y$19,Dashboard!Y$17) -> 1.519992701 | BC108: =NORMINV(AB108,Dashboard!Z$19,Dashboard!Z$17) -> 1.208782764 | BD108: =NORMINV(AC108,Dashboard!AA$19,Dashboard!AA$17) -> 5.471731623 | BE108: =NORMINV(AD108,Dashboard!AB$19,Dashboard!AB$17) -> 4.613741044 | BG108: =Dashboard!$C$16 -> 90 | BH108: 93.84999835 | BI108: 95.82151065 | BJ108: 98.06488267 | BK108: 101.1910393 | BL108: 103.5741854 | BM108: 105.5894275 | BN108: 107.9508327 | BO108: 109.9383198 | BP108: 112.8058829 | BQ108: 116.0371235 | BR108: 116.9537954 | BS108: 117.4172751 | BT108: 120.5244701 | BU108: 122.4602453 | BV108: 126.6653911 | BW108: 131.0451381 | BX108: 134.274153 | BY108: 135.2216757 | BZ108: 140.7228079 | CA108: 143.8541981 | CB108: 145.216866 | CC108: 146.7368587 | CD108: 147.9456415 | CE108: 153.4173731 | CF108: 158.0311141 | CH108: =MATCH(TRUE,BG108:CF108+$AF$64:$BE$64>CH$61,0)+Dashboard!$C$15-1 -> 2029 | CJ108: =Dashboard!$C$13 -> 10 | CL108: =IF(CL$63<$CH108,BG108,CK108+AF$72) -> 90 | CM108: 93.84999835 | CN108: 95.82151065 | CO108: 98.06488267 | CP108: 101.1231988 | CQ108: 104.2579729 | CR108: 107.4711163 | CS108: 110.7645883 | CT108: 114.1403971 | CU108: 117.6006011 | CV108: 121.1473102 | CW108: 124.782687 | CX108: 128.5089483 | CY108: 132.3283661 | CZ108: 136.2432693 | DA108: 140.2560451 | DB108: 144.3691404 | DC108: 148.5850629 | DD108: 152.9063836 | DE108: 157.3357373 | DF108: 161.8758248 | DG108: 166.5294145 | DH108: 171.2993439 | DI108: 176.1885216 | DJ108: 181.1999288 | DK108: 186.3366211 | DM108: =MATCH(TRUE,BG108:CF108+$AF$64:$BE$64-$CJ108>DM$61,0)+Dashboard!$C$15-1 -> 2033 | DN108: =MATCH(TRUE,CL108:DK108-$CJ108>DM$61,0)+Dashboard!$C$15-1-$DM$59 -> 2032 | DP108: 1 | DQ108: =INDEX('Deferral Value Calculation'!$D$66:$D$91,MATCH($DP108+($E$52-$E$51),'Deferral Value Calculation'!$B$66:$B$91,0)) -INDEX('Deferral Value Calculation'!$D$66:$D$91,MATCH($E$52-$E$51,'Deferral Value Calculation'!$B$66:$B$91,0)) -> 1341049.659
B109: 0.4981318177 | D109: Random Walk 37 | E109: 0.1264401264 | F109: 0.6228783552 | G109: 0.2918953629 | H109: 0.201989432 | I109: 0.119928185 | J109: 0.9457324842 | K109: 0.3621940324 | L109: 0.164071217 | M109: 0.6609102392 | N109: 0.9548290753 | O109: 0.3099118329 | P109: 0.2479024084 | Q109: 0.7004234207 | R109: 0.3273749087 | S109: 0.9873172856 | T109: 0.3111681263 | U109: 0.4860459453 | V109: 0.5305128054 | W109: 0.9811407227 | X109: 0.2519173511 | Y109: 0.1863007325 | Z109: 0.7249878432 | AA109: 0.58385161 | AB109: 0.8584641791 | AC109: 0.06898670061 | AD109: 0.9442528789 | AF109: 0 | AG109: =NORMINV(F109,Dashboard!D$19,Dashboard!D$17) -> 2.602180341 | AH109: =NORMINV(G109,Dashboard!E$19,Dashboard!E$17) -> 1.674503454 | AI109: =NORMINV(H109,Dashboard!F$19,Dashboard!F$17) -> 1.377523511 | AJ109: =NORMINV(I109,Dashboard!G$19,Dashboard!G$17) -> 0.9990700891 | AK109: =NORMINV(J109,Dashboard!H$19,Dashboard!H$17) -> 4.47641856 | AL109: =NORMINV(K109,Dashboard!I$19,Dashboard!I$17) -> 2.096866663 | AM109: =NORMINV(L109,Dashboard!J$19,Dashboard!J$17) -> 1.33353716 | AN109: =NORMINV(M109,Dashboard!K$19,Dashboard!K$17) -> 3.229441888 | AO109: =NORMINV(N109,Dashboard!L$19,Dashboard!L$17) -> 5.06282573 | AP109: =NORMINV(O109,Dashboard!M$19,Dashboard!M$17) -> 2.112935263 | AQ109: =NORMINV(P109,Dashboard!N$19,Dashboard!N$17) -> 1.899333704 | AR109: =NORMINV(Q109,Dashboard!O$19,Dashboard!O$17) -> 3.72805943 | AS109: =NORMINV(R109,Dashboard!P$19,Dashboard!P$17) -> 2.349426432 | AT109: =NORMINV(S109,Dashboard!Q$19,Dashboard!Q$17) -> 6.568971111 | AU109: =NORMINV(T109,Dashboard!R$19,Dashboard!R$17) -> 2.396248558 | AV109: =NORMINV(U109,Dashboard!S$19,Dashboard!S$17) -> 3.20166896 | AW109: =NORMINV(V109,Dashboard!T$19,Dashboard!T$17) -> 3.467996419 | AX109: =NORMINV(W109,Dashboard!U$19,Dashboard!U$17) -> 6.980633294 | AY109: =NORMINV(X109,Dashboard!V$19,Dashboard!V$17) -> 2.33632688 | AZ109: =NORMINV(Y109,Dashboard!W$19,Dashboard!W$17) -> 1.993417042 | BA109: =NORMINV(Z109,Dashboard!X$19,Dashboard!X$17) -> 4.788756845 | BB109: =NORMINV(AA109,Dashboard!Y$19,Dashboard!Y$17) -> 4.179179886 | BC109: =NORMINV(AB109,Dashboard!Z$19,Dashboard!Z$17) -> 5.952548782 | BD109: =NORMINV(AC109,Dashboard!AA$19,Dashboard!AA$17) -> 1.025586742 | BE109: =NORMINV(AD109,Dashboard!AB$19,Dashboard!AB$17) -> 7.308069973 | BG109: =Dashboard!$C$16 -> 90 | BH109: 92.60218034 | BI109: 94.27668379 | BJ109: 95.65420731 | BK109: 96.65327739 | BL109: 101.129696 | BM109: 103.2265626 | BN109: 104.5600998 | BO109: 107.7895417 | BP109: 112.8523674 | BQ109: 114.9653027 | BR109: 116.8646364 | BS109: 120.5926958 | BT109: 122.9421222 | BU109: 129.5110933 | BV109: 131.9073419 | BW109: 135.1090109 | BX109: 138.5770073 | BY109: 145.5576406 | BZ109: 147.8939674 | CA109: 149.8873845 | CB109: 154.6761413 | CC109: 158.8553212 | CD109: 164.80787 | CE109: 165.8334567 | CF109: 173.1415267 | CH109: =MATCH(TRUE,BG109:CF109+$AF$64:$BE$64>CH$61,0)+Dashboard!$C$15-1 -> 2030 | CJ109: =Dashboard!$C$13 -> 10 | CL109: =IF(CL$63<$CH109,BG109,CK109+AF$72) -> 90 | CM109: 92.60218034 | CN109: 94.27668379 | CO109: 95.65420731 | CP109: 96.65327739 | CQ109: 99.78805145 | CR109: 103.0011949 | CS109: 106.2946668 | CT109: 109.6704756 | CU109: 113.1306797 | CV109: 116.6773888 | CW109: 120.3127656 | CX109: 124.0390269 | CY109: 127.8584447 | CZ109: 131.7733479 | DA109: 135.7861237 | DB109: 139.8992189 | DC109: 144.1151415 | DD109: 148.4364622 | DE109: 152.8658159 | DF109: 157.4059034 | DG109: 162.0594931 | DH109: 166.8294225 | DI109: 171.7186002 | DJ109: 176.7300073 | DK109: 181.8666996 | DM109: =MATCH(TRUE,BG109:CF109+$AF$64:$BE$64-$CJ109>DM$61,0)+Dashboard!$C$15-1 -> 2034 | DN109: =MATCH(TRUE,CL109:DK109-$CJ109>DM$61,0)+Dashboard!$C$15-1-$DM$59 -> 2033 | DP109: 1 | DQ109: =INDEX('Deferral Value Calculation'!$D$66:$D$91,MATCH($DP109+($E$52-$E$51),'Deferral Value Calculation'!$B$66:$B$91,0)) -INDEX('Deferral Value Calculation'!$D$66:$D$91,MATCH($E$52-$E$51,'Deferral Value Calculation'!$B$66:$B$91,0)) -> 1341049.659
B110: 0.4907202121 | D110: Random Walk 38 | E110: 0.6209018145 | F110: 0.9162934626 | G110: 0.5592863689 | H110: 0.8391194223 | I110: 0.3103303898 | J110: 0.807754875 | K110: 0.8401743798 | L110: 0.3136701475 | M110: 0.4599277974 | N110: 0.4339515762 | O110: 0.1019714612 | P110: 0.5992072786 | Q110: 0.3299473025 | R110: 0.1104687673 | S110: 0.3744245299 | T110: 0.2455710454 | U110: 0.04968794261 | V110: 0.5500121451 | W110: 0.2994528432 | X110: 0.8930334292 | Y110: 0.9549183508 | Z110: 0.1136544071 | AA110: 0.6638861141 | AB110: 0.2531395197 | AC110: 0.6056744 | AD110: 0.5122657444 | AF110: 0 | AG110: =NORMINV(F110,Dashboard!D$19,Dashboard!D$17) -> 3.803134441 | AH110: =NORMINV(G110,Dashboard!E$19,Dashboard!E$17) -> 2.4782503 | AI110: =NORMINV(H110,Dashboard!F$19,Dashboard!F$17) -> 3.535038877 | AJ110: =NORMINV(I110,Dashboard!G$19,Dashboard!G$17) -> 1.823414546 | AK110: =NORMINV(J110,Dashboard!H$19,Dashboard!H$17) -> 3.563504548 | AL110: =NORMINV(K110,Dashboard!I$19,Dashboard!I$17) -> 3.812361079 | AM110: =NORMINV(L110,Dashboard!J$19,Dashboard!J$17) -> 1.975934327 | AN110: =NORMINV(M110,Dashboard!K$19,Dashboard!K$17) -> 2.539992544 | AO110: =NORMINV(N110,Dashboard!L$19,Dashboard!L$17) -> 2.513427713 | AP110: =NORMINV(O110,Dashboard!M$19,Dashboard!M$17) -> 1.025069642 | AQ110: =NORMINV(P110,Dashboard!N$19,Dashboard!N$17) -> 3.242080039 | AR110: =NORMINV(Q110,Dashboard!O$19,Dashboard!O$17) -> 2.302625462 | AS110: =NORMINV(R110,Dashboard!P$19,Dashboard!P$17) -> 1.174029013 | AT110: =NORMINV(S110,Dashboard!Q$19,Dashboard!Q$17) -> 2.605141867 | AU110: =NORMINV(T110,Dashboard!R$19,Dashboard!R$17) -> 2.084764967 | AV110: =NORMINV(U110,Dashboard!S$19,Dashboard!S$17) -> 0.5737103767 | AW110: =NORMINV(V110,Dashboard!T$19,Dashboard!T$17) -> 3.550051989 | AX110: =NORMINV(W110,Dashboard!U$19,Dashboard!U$17) -> 2.523266547 | AY110: =NORMINV(X110,Dashboard!V$19,Dashboard!V$17) -> 5.689908943 | AZ110: =NORMINV(Y110,Dashboard!W$19,Dashboard!W$17) -> 6.644556186 | BA110: =NORMINV(Z110,Dashboard!X$19,Dashboard!X$17) -> 1.461260229 | BB110: =NORMINV(AA110,Dashboard!Y$19,Dashboard!Y$17) -> 4.578504966 | BC110: =NORMINV(AB110,Dashboard!Z$19,Dashboard!Z$17) -> 2.586277014 | BD110: =NORMINV(AC110,Dashboard!AA$19,Dashboard!AA$17) -> 4.502528257 | BE110: =NORMINV(AD110,Dashboard!AB$19,Dashboard!AB$17) -> 4.132205032 | BG110: =Dashboard!$C$16 -> 90 | BH110: 93.80313444 | BI110: 96.28138474 | BJ110: 99.81642362 | BK110: 101.6398382 | BL110: 105.2033427 | BM110: 109.0157038 | BN110: 110.9916381 | BO110: 113.5316307 | BP110: 116.0450584 | BQ110: 117.070128 | BR110: 120.3122081 | BS110: 122.6148335 | BT110: 123.7888625 | BU110: 126.3940044 | BV110: 128.4787694 | BW110: 129.0524797 | BX110: 132.6025317 | BY110: 135.1257983 | BZ110: 140.8157072 | CA110: 147.4602634 | CB110: 148.9215236 | CC110: 153.5000286 | CD110: 156.0863056 | CE110: 160.5888339 | CF110: 164.7210389 | CH110: =MATCH(TRUE,BG110:CF110+$AF$64:$BE$64>CH$61,0)+Dashboard!$C$15-1 -> 2029 | CJ110: =Dashboard!$C$13 -> 10 | CL110: =IF(CL$63<$CH110,BG110,CK110+AF$72) -> 90 | CM110: 93.80313444 | CN110: 96.28138474 | CO110: 99.81642362 | CP110: 102.8747398 | CQ110: 106.0095138 | CR110: 109.2226572 | CS110: 112.5161292 | CT110: 115.891938 | CU110: 119.352142 | CV110: 122.8988511 | CW110: 126.534228 | CX110: 130.2604892 | CY110: 134.079907 | CZ110: 137.9948103 | DA110: 142.0075861 | DB110: 146.1206813 | DC110: 150.3366039 | DD110: 154.6579246 | DE110: 159.0872782 | DF110: 163.6273657 | DG110: 168.2809554 | DH110: 173.0508849 | DI110: 177.9400626 | DJ110: 182.9514697 | DK110: 188.088162 | DM110: =MATCH(TRUE,BG110:CF110+$AF$64:$BE$64-$CJ110>DM$61,0)+Dashboard!$C$15-1 -> 2032 | DN110: =MATCH(TRUE,CL110:DK110-$CJ110>DM$61,0)+Dashboard!$C$15-1-$DM$59 -> 2032 | DP110: 0 | DQ110: =INDEX('Deferral Value Calculation'!$D$66:$D$91,MATCH($DP110+($E$52-$E$51),'Deferral Value Calculation'!$B$66:$B$91,0)) -INDEX('Deferral Value Calculation'!$D$66:$D$91,MATCH($E$52-$E$51,'Deferral Value Calculation'!$B$66:$B$91,0)) -> 0
B111: 0.473979633 | D111: Random Walk 39 | E111: 0.2259401447 | F111: 0.3479630401 | G111: 0.8394861652 | H111: 0.5885294688 | I111: 0.08249007124 | J111: 0.9874698602 | K111: 0.1538088744 | L111: 0.06049533069 | M111: 0.8224320806 | N111: 0.5171080898 | O111: 0.5414330208 | P111: 0.2880383759 | Q111: 0.2250438592 | R111: 0.7086407463 | S111: 0.09829989832 | T111: 0.4349430728 | U111: 0.2950793846 | V111: 0.8501868384 | W111: 0.1734481762 | X111: 0.1988986649 | Y111: 0.5091972814 | Z111: 0.9261060684 | AA111: 0.901062212 | AB111: 0.5334685363 | AC111: 0.377409065 | AD111: 0.6364921307 | AF111: 0 | AG111: =NORMINV(F111,Dashboard!D$19,Dashboard!D$17) -> 1.810321092 | AH111: =NORMINV(G111,Dashboard!E$19,Dashboard!E$17) -> 3.450551586 | AI111: =NORMINV(H111,Dashboard!F$19,Dashboard!F$17) -> 2.628384629 | AJ111: =NORMINV(I111,Dashboard!G$19,Dashboard!G$17) -> 0.7408147227 | AK111: =NORMINV(J111,Dashboard!H$19,Dashboard!H$17) -> 5.265773938 | AL111: =NORMINV(K111,Dashboard!I$19,Dashboard!I$17) -> 1.24708039 | AM111: =NORMINV(L111,Dashboard!J$19,Dashboard!J$17) -> 0.5862743995 | AN111: =NORMINV(M111,Dashboard!K$19,Dashboard!K$17) -> 3.911082257 | AO111: =NORMINV(N111,Dashboard!L$19,Dashboard!L$17) -> 2.800205267 | AP111: =NORMINV(O111,Dashboard!M$19,Dashboard!M$17) -> 2.956121305 | AQ111: =NORMINV(P111,Dashboard!N$19,Dashboard!N$17) -> 2.074997757 | AR111: =NORMINV(Q111,Dashboard!O$19,Dashboard!O$17) -> 1.837344608 | AS111: =NORMINV(R111,Dashboard!P$19,Dashboard!P$17) -> 3.857269506 | AT111: =NORMINV(S111,Dashboard!Q$19,Dashboard!Q$17) -> 1.099070188 | AU111: =NORMINV(T111,Dashboard!R$19,Dashboard!R$17) -> 2.918810407 | AV111: =NORMINV(U111,Dashboard!S$19,Dashboard!S$17) -> 2.381101085 | AW111: =NORMINV(V111,Dashboard!T$19,Dashboard!T$17) -> 5.07239158 | AX111: =NORMINV(W111,Dashboard!U$19,Dashboard!U$17) -> 1.813457507 | AY111: =NORMINV(X111,Dashboard!V$19,Dashboard!V$17) -> 2.025596075 | AZ111: =NORMINV(Y111,Dashboard!W$19,Dashboard!W$17) -> 3.638429081 | BA111: =NORMINV(Z111,Dashboard!X$19,Dashboard!X$17) -> 6.35506776 | BB111: =NORMINV(AA111,Dashboard!Y$19,Dashboard!Y$17) -> 6.212069884 | BC111: =NORMINV(AB111,Dashboard!Z$19,Dashboard!Z$17) -> 4.036208318 | BD111: =NORMINV(AC111,Dashboard!AA$19,Dashboard!AA$17) -> 3.350414733 | BE111: =NORMINV(AD111,Dashboard!AB$19,Dashboard!AB$17) -> 4.779983823 | BG111: =Dashboard!$C$16 -> 90 | BH111: 91.81032109 | BI111: 95.26087268 | BJ111: 97.88925731 | BK111: 98.63007203 | BL111: 103.895846 | BM111: 105.1429264 | BN111: 105.7292008 | BO111: 109.640283 | BP111: 112.4404883 | BQ111: 115.3966096 | BR111: 117.4716073 | BS111: 119.308952 | BT111: 123.1662215 | BU111: 124.2652916 | BV111: 127.1841021 | BW111: 129.5652031 | BX111: 134.6375947 | BY111: 136.4510522 | BZ111: 138.4766483 | CA111: 142.1150774 | CB111: 148.4701451 | CC111: 154.682215 | CD111: 158.7184233 | CE111: 162.0688381 | CF111: 166.8488219 | CH111: =MATCH(TRUE,BG111:CF111+$AF$64:$BE$64>CH$61,0)+Dashboard!$C$15-1 -> 2030 | CJ111: =Dashboard!$C$13 -> 10 | CL111: =IF(CL$63<$CH111,BG111,CK111+AF$72) -> 90 | CM111: 91.81032109 | CN111: 95.26087268 | CO111: 97.88925731 | CP111: 98.63007203 | CQ111: 101.7648461 | CR111: 104.9779895 | CS111: 108.2714615 | CT111: 111.6472703 | CU111: 115.1074743 | CV111: 118.6541834 | CW111: 122.2895602 | CX111: 126.0158215 | CY111: 129.8352393 | CZ111: 133.7501425 | DA111: 137.7629183 | DB111: 141.8760136 | DC111: 146.0919362 | DD111: 150.4132568 | DE111: 154.8426105 | DF111: 159.382698 | DG111: 164.0362877 | DH111: 168.8062172 | DI111: 173.6953948 | DJ111: 178.706802 | DK111: 183.8434943 | DM111: =MATCH(TRUE,BG111:CF111+$AF$64:$BE$64-$CJ111>DM$61,0)+Dashboard!$C$15-1 -> 2033 | DN111: =MATCH(TRUE,CL111:DK111-$CJ111>DM$61,0)+Dashboard!$C$15-1-$DM$59 -> 2033 | DP111: 0 | DQ111: =INDEX('Deferral Value Calculation'!$D$66:$D$91,MATCH($DP111+($E$52-$E$51),'Deferral Value Calculation'!$B$66:$B$91,0)) -INDEX('Deferral Value Calculation'!$D$66:$D$91,MATCH($E$52-$E$51,'Deferral Value Calculation'!$B$66:$B$91,0)) -> 0
B112: 0.527715306 | D112: Random Walk 40 | E112: 0.3415729223 | F112: 0.9072977661 | G112: 0.2122119677 | H112: 0.09289566961 | I112: 0.9234994565 | J112: 0.4911141174 | K112: 0.966981527 | L112: 0.7563715713 | M112: 0.1986157485 | N112: 0.6497020859 | O112: 0.4801600122 | P112: 0.5645112273 | Q112: 0.07960646094 | R112: 0.4527360136 | S112: 0.816999731 | T112: 0.363065596 | U112: 0.6832668652 | V112: 0.6735192873 | W112: 0.7032036847 | X112: 0.907565799 | Y112: 0.2661469215 | Z112: 0.9843487086 | AA112: 0.05718823476 | AB112: 0.4198675383 | AC112: 0.1218279065 | AD112: 0.6063211358 | AF112: 0 | AG112: =NORMINV(F112,Dashboard!D$19,Dashboard!D$17) -> 3.739833985 | AH112: =NORMINV(G112,Dashboard!E$19,Dashboard!E$17) -> 1.385168635 | AI112: =NORMINV(H112,Dashboard!F$19,Dashboard!F$17) -> 0.8000257308 | AJ112: =NORMINV(I112,Dashboard!G$19,Dashboard!G$17) -> 4.15425346 | AK112: =NORMINV(J112,Dashboard!H$19,Dashboard!H$17) -> 2.455917588 | AL112: =NORMINV(K112,Dashboard!I$19,Dashboard!I$17) -> 4.885357761 | AM112: =NORMINV(L112,Dashboard!J$19,Dashboard!J$17) -> 3.515625926 | AN112: =NORMINV(M112,Dashboard!K$19,Dashboard!K$17) -> 1.542441014 | AO112: =NORMINV(N112,Dashboard!L$19,Dashboard!L$17) -> 3.268464245 | AP112: =NORMINV(O112,Dashboard!M$19,Dashboard!M$17) -> 2.740041585 | AQ112: =NORMINV(P112,Dashboard!N$19,Dashboard!N$17) -> 3.114086041 | AR112: =NORMINV(Q112,Dashboard!O$19,Dashboard!O$17) -> 0.874257663 | AS112: =NORMINV(R112,Dashboard!P$19,Dashboard!P$17) -> 2.846328449 | AT112: =NORMINV(S112,Dashboard!Q$19,Dashboard!Q$17) -> 4.503580561 | AU112: =NORMINV(T112,Dashboard!R$19,Dashboard!R$17) -> 2.622393115 | AV112: =NORMINV(U112,Dashboard!S$19,Dashboard!S$17) -> 4.035625584 | AW112: =NORMINV(V112,Dashboard!T$19,Dashboard!T$17) -> 4.091087344 | AX112: =NORMINV(W112,Dashboard!U$19,Dashboard!U$17) -> 4.337132049 | AY112: =NORMINV(X112,Dashboard!V$19,Dashboard!V$17) -> 5.835700962 | AZ112: =NORMINV(Y112,Dashboard!W$19,Dashboard!W$17) -> 2.473796379 | BA112: =NORMINV(Z112,Dashboard!X$19,Dashboard!X$17) -> 7.656198463 | BB112: =NORMINV(AA112,Dashboard!Y$19,Dashboard!Y$17) -> 0.79582482 | BC112: =NORMINV(AB112,Dashboard!Z$19,Dashboard!Z$17) -> 3.481858518 | BD112: =NORMINV(AC112,Dashboard!AA$19,Dashboard!AA$17) -> 1.655849077 | BE112: =NORMINV(AD112,Dashboard!AB$19,Dashboard!AB$17) -> 4.618511604 | BG112: =Dashboard!$C$16 -> 90 | BH112: 93.73983398 | BI112: 95.12500262 | BJ112: 95.92502835 | BK112: 100.0792818 | BL112: 102.5351994 | BM112: 107.4205572 | BN112: 110.9361831 | BO112: 112.4786241 | BP112: 115.7470883 | BQ112: 118.4871299 | BR112: 121.601216 | BS112: 122.4754736 | BT112: 125.3218021 | BU112: 129.8253826 | BV112: 132.4477758 | BW112: 136.4834013 | BX112: 140.5744887 | BY112: 144.9116207 | BZ112: 150.7473217 | CA112: 153.2211181 | CB112: 160.8773165 | CC112: 161.6731414 | CD112: 165.1549999 | CE112: 166.810849 | CF112: 171.4293606 | CH112: =MATCH(TRUE,BG112:CF112+$AF$64:$BE$64>CH$61,0)+Dashboard!$C$15-1 -> 2030 | CJ112: =Dashboard!$C$13 -> 10 | CL112: =IF(CL$63<$CH112,BG112,CK112+AF$72) -> 90 | CM112: 93.73983398 | CN112: 95.12500262 | CO112: 95.92502835 | CP112: 100.0792818 | CQ112: 103.2140559 | CR112: 106.4271993 | CS112: 109.7206713 | CT112: 113.0964801 | CU112: 116.5566841 | CV112: 120.1033932 | CW112: 123.73877 | CX112: 127.4650313 | CY112: 131.2844491 | CZ112: 135.1993523 | DA112: 139.2121281 | DB112: 143.3252233 | DC112: 147.5411459 | DD112: 151.8624666 | DE112: 156.2918203 | DF112: 160.8319078 | DG112: 165.4854975 | DH112: 170.2554269 | DI112: 175.1446046 | DJ112: 180.1560117 | DK112: 185.292704 | DM112: =MATCH(TRUE,BG112:CF112+$AF$64:$BE$64-$CJ112>DM$61,0)+Dashboard!$C$15-1 -> 2032 | DN112: =MATCH(TRUE,CL112:DK112-$CJ112>DM$61,0)+Dashboard!$C$15-1-$DM$59 -> 2032 | DP112: 0 | DQ112: =INDEX('Deferral Value Calculation'!$D$66:$D$91,MATCH($DP112+($E$52-$E$51),'Deferral Value Calculation'!$B$66:$B$91,0)) -INDEX('Deferral Value Calculation'!$D$66:$D$91,MATCH($E$52-$E$51,'Deferral Value Calculation'!$B$66:$B$91,0)) -> 0
B113: 0.5530604217 | D113: Random Walk 41 | E113: =RAND() -> 0.8909503785 | F113: 0.5817346146 | G113: 0.00758492391 | H113: 0.04327260171 | I113: 0.7954977829 | J113: 0.2019049282 | K113: 0.6608200804 | L113: 0.8453962895 | M113: 0.5759244581 | N113: 0.4089852308 | O113: =RAND() -> 0.09996564764 | P113: 0.0721223442 | Q113: 0.9419643706 | R113: 0.8235785734 | S113: 0.4315400616 | T113: 0.4097538129 | U113: 0.8794687502 | V113: 0.2998376007 | W113: 0.5040777109 | X113: 0.5340714297 | Y113: =RAND() -> 0.7875186507 | Z113: 0.5817923803 | AA113: 0.5451898227 | AB113: 0.7054478562 | AC113: 0.8799337162 | AD113: 0.8712369486 | AF113: 0 | AG113: =NORMINV(F113,Dashboard!D$19,Dashboard!D$17) -> 2.482124671 | AH113: =NORMINV(G113,Dashboard!E$19,Dashboard!E$17) -> -0.4938818252 | AI113: =NORMINV(H113,Dashboard!F$19,Dashboard!F$17) -> 0.3381446298 | AJ113: =NORMINV(I113,Dashboard!G$19,Dashboard!G$17) -> 3.423276712 | AK113: =NORMINV(J113,Dashboard!H$19,Dashboard!H$17) -> 1.446887989 | AL113: =NORMINV(K113,Dashboard!I$19,Dashboard!I$17) -> 3.073515782 | AM113: =NORMINV(L113,Dashboard!J$19,Dashboard!J$17) -> 3.935996359 | AN113: =NORMINV(M113,Dashboard!K$19,Dashboard!K$17) -> 2.930601066 | AO113: =NORMINV(N113,Dashboard!L$19,Dashboard!L$17) -> 2.425930782 | AP113: =NORMINV(O113,Dashboard!M$19,Dashboard!M$17) -> 1.009124055 | AQ113: =NORMINV(P113,Dashboard!N$19,Dashboard!N$17) -> 0.7774135167 | AR113: =NORMINV(Q113,Dashboard!O$19,Dashboard!O$17) -> 5.271852268 | AS113: =NORMINV(R113,Dashboard!P$19,Dashboard!P$17) -> 4.431711769 | AT113: =NORMINV(S113,Dashboard!Q$19,Dashboard!Q$17) -> 2.834202905 | AU113: =NORMINV(T113,Dashboard!R$19,Dashboard!R$17) -> 2.816479878 | AV113: =NORMINV(U113,Dashboard!S$19,Dashboard!S$17) -> 5.168798181 | AW113: =NORMINV(V113,Dashboard!T$19,Dashboard!T$17) -> 2.463572553 | AX113: =NORMINV(W113,Dashboard!U$19,Dashboard!U$17) -> 3.441138433 | AY113: =NORMINV(X113,Dashboard!V$19,Dashboard!V$17) -> 3.659266697 | AZ113: =NORMINV(Y113,Dashboard!W$19,Dashboard!W$17) -> 5.03186537 | BA113: =NORMINV(Z113,Dashboard!X$19,Dashboard!X$17) -> 4.067522965 | BB113: =NORMINV(AA113,Dashboard!Y$19,Dashboard!Y$17) -> 3.993553685 | BC113: =NORMINV(AB113,Dashboard!Z$19,Dashboard!Z$17) -> 4.919650742 | BD113: =NORMINV(AC113,Dashboard!AA$19,Dashboard!AA$17) -> 6.302284893 | BE113: =NORMINV(AD113,Dashboard!AB$19,Dashboard!AB$17) -> 6.373570281 | BG113: =Dashboard!$C$16 -> 90 | BH113: 92.48212467 | BI113: 91.98824285 | BJ113: 92.32638748 | BK113: 95.74966419 | BL113: 97.19655218 | BM113: 100.270068 | BN113: 104.2060643 | BO113: 107.1366654 | BP113: 109.5625962 | BQ113: 110.5717202 | BR113: 111.3491337 | BS113: 116.620986 | BT113: 121.0526978 | BU113: 123.8869007 | BV113: 126.7033806 | BW113: 131.8721787 | BX113: 134.3357513 | BY113: 137.7768897 | BZ113: 141.4361564 | CA113: 146.4680218 | CB113: 150.5355448 | CC113: 154.5290984 | CD113: 159.4487492 | CE113: 165.7510341 | CF113: 172.1246044 | CH113: =MATCH(TRUE,BG113:CF113+$AF$64:$BE$64>CH$61,0)+Dashboard!$C$15-1 -> 2031 | CJ113: =Dashboard!$C$13 -> 10 | CL113: =IF(CL$63<$CH113,BG113,CK113+AF$72) -> 90 | CM113: 92.48212467 | CN113: 91.98824285 | CO113: 92.32638748 | CP113: 95.74966419 | CQ113: 97.19655218 | CR113: 100.4096956 | CS113: 103.7031676 | CT113: 107.0789764 | CU113: 110.5391804 | CV113: 114.0858895 | CW113: 117.7212663 | CX113: 121.4475276 | CY113: 125.2669454 | CZ113: 129.1818486 | DA113: 133.1946244 | DB113: 137.3077197 | DC113: 141.5236422 | DD113: 145.8449629 | DE113: 150.2743166 | DF113: 154.8144041 | DG113: 159.4679938 | DH113: 164.2379232 | DI113: 169.1271009 | DJ113: 174.1385081 | DK113: 179.2752004 | DM113: =MATCH(TRUE,BG113:CF113+$AF$64:$BE$64-$CJ113>DM$61,0)+Dashboard!$C$15-1 -> 2034 | DN113: =MATCH(TRUE,CL113:DK113-$CJ113>DM$61,0)+Dashboard!$C$15-1-$DM$59 -> 2034 | DP113: 0 | DQ113: =INDEX('Deferral Value Calculation'!$D$66:$D$91,MATCH($DP113+($E$52-$E$51),'Deferral Value Calculation'!$B$66:$B$91,0)) -INDEX('Deferral Value Calculation'!$D$66:$D$91,MATCH($E$52-$E$51,'Deferral Value Calculation'!$B$66:$B$91,0)) -> 0
B114: 0.4998203136 | D114: Random Walk 42 | E114: 0.6367623249 | F114: 0.3291013615 | G114: 0.0497720904 | H114: 0.2336822898 | I114: 0.2244034324 | J114: 0.5745810085 | K114: 0.7675776149 | L114: 0.5757461061 | M114: 0.9294408841 | N114: 0.6066986662 | O114: 0.5188633773 | P114: 0.7562624281 | Q114: 0.7527099444 | R114: 0.2985597242 | S114: 0.5266071342 | T114: 0.6904231847 | U114: 0.7903301199 | V114: 0.3700621223 | W114: 0.3164856868 | X114: 0.1676360645 | Y114: 0.4326660581 | Z114: 0.5552943904 | AA114: 0.5759063814 | AB114: 0.4831101932 | AC114: 0.3197329632 | AD114: 0.5129126026 | AF114: 0 | AG114: =NORMINV(F114,Dashboard!D$19,Dashboard!D$17) -> 1.752304578 | AH114: =NORMINV(G114,Dashboard!E$19,Dashboard!E$17) -> 0.4069753362 | AI114: =NORMINV(H114,Dashboard!F$19,Dashboard!F$17) -> 1.504893771 | AJ114: =NORMINV(I114,Dashboard!G$19,Dashboard!G$17) -> 1.505405467 | AK114: =NORMINV(J114,Dashboard!H$19,Dashboard!H$17) -> 2.717096685 | AL114: =NORMINV(K114,Dashboard!I$19,Dashboard!I$17) -> 3.475973577 | AM114: =NORMINV(L114,Dashboard!J$19,Dashboard!J$17) -> 2.858528964 | AN114: =NORMINV(M114,Dashboard!K$19,Dashboard!K$17) -> 4.642524573 | AO114: =NORMINV(N114,Dashboard!L$19,Dashboard!L$17) -> 3.112489945 | AP114: =NORMINV(O114,Dashboard!M$19,Dashboard!M$17) -> 2.876398359 | AQ114: =NORMINV(P114,Dashboard!N$19,Dashboard!N$17) -> 3.88009178 | AR114: =NORMINV(Q114,Dashboard!O$19,Dashboard!O$17) -> 3.960432011 | AS114: =NORMINV(R114,Dashboard!P$19,Dashboard!P$17) -> 2.226307658 | AT114: =NORMINV(S114,Dashboard!Q$19,Dashboard!Q$17) -> 3.205157669 | AU114: =NORMINV(T114,Dashboard!R$19,Dashboard!R$17) -> 3.96929993 | AV114: =NORMINV(U114,Dashboard!S$19,Dashboard!S$17) -> 4.574468774 | AW114: =NORMINV(V114,Dashboard!T$19,Dashboard!T$17) -> 2.786194491 | AX114: =NORMINV(W114,Dashboard!U$19,Dashboard!U$17) -> 2.606163226 | AY114: =NORMINV(X114,Dashboard!V$19,Dashboard!V$17) -> 1.818573716 | AZ114: =NORMINV(Y114,Dashboard!W$19,Dashboard!W$17) -> 3.29195737 | BA114: =NORMINV(Z114,Dashboard!X$19,Dashboard!X$17) -> 3.943216454 | BB114: =NORMINV(AA114,Dashboard!Y$19,Dashboard!Y$17) -> 4.140775385 | BC114: =NORMINV(AB114,Dashboard!Z$19,Dashboard!Z$17) -> 3.791515227 | BD114: =NORMINV(AC114,Dashboard!AA$19,Dashboard!AA$17) -> 3.040421805 | BE114: =NORMINV(AD114,Dashboard!AB$19,Dashboard!AB$17) -> 4.135505995 | BG114: =Dashboard!$C$16 -> 90 | BH114: 91.75230458 | BI114: 92.15927991 | BJ114: 93.66417368 | BK114: 95.16957915 | BL114: 97.88667584 | BM114: 101.3626494 | BN114: 104.2211784 | BO114: 108.863703 | BP114: 111.9761929 | BQ114: 114.8525913 | BR114: 118.732683 | BS114: 122.693115 | BT114: 124.9194227 | BU114: 128.1245804 | BV114: 132.0938803 | BW114: 136.6683491 | BX114: 139.4545436 | BY114: 142.0607068 | BZ114: 143.8792805 | CA114: 147.1712379 | CB114: 151.1144543 | CC114: 155.2552297 | CD114: 159.0467449 | CE114: 162.0871668 | CF114: 166.2226727 | CH114: =MATCH(TRUE,BG114:CF114+$AF$64:$BE$64>CH$61,0)+Dashboard!$C$15-1 -> 2031 | CJ114: =Dashboard!$C$13 -> 10 | CL114: =IF(CL$63<$CH114,BG114,CK114+AF$72) -> 90 | CM114: 91.75230458 | CN114: 92.15927991 | CO114: 93.66417368 | CP114: 95.16957915 | CQ114: 97.88667584 | CR114: 101.0998192 | CS114: 104.3932912 | CT114: 107.7691 | CU114: 111.229304 | CV114: 114.7760132 | CW114: 118.41139 | CX114: 122.1376513 | CY114: 125.957069 | CZ114: 129.8719723 | DA114: 133.8847481 | DB114: 137.9978433 | DC114: 142.2137659 | DD114: 146.5350866 | DE114: 150.9644402 | DF114: 155.5045278 | DG114: 160.1581175 | DH114: 164.9280469 | DI114: 169.8172246 | DJ114: 174.8286317 | DK114: 179.965324 | DM114: =MATCH(TRUE,BG114:CF114+$AF$64:$BE$64-$CJ114>DM$61,0)+Dashboard!$C$15-1 -> 2034 | DN114: =MATCH(TRUE,CL114:DK114-$CJ114>DM$61,0)+Dashboard!$C$15-1-$DM$59 -> 2034 | DP114: 0 | DQ114: =INDEX('Deferral Value Calculation'!$D$66:$D$91,MATCH($DP114+($E$52-$E$51),'Deferral Value Calculation'!$B$66:$B$91,0)) -INDEX('Deferral Value Calculation'!$D$66:$D$91,MATCH($E$52-$E$51,'Deferral Value Calculation'!$B$66:$B$91,0)) -> 0
B115: 0.5163734554 | D115: Random Walk 43 | E115: 0.989572855 | F115: 0.219111409 | G115: 0.6849697823 | H115: 0.6546158788 | I115: 0.3087849969 | J115: 0.9028994722 | K115: 0.1816470009 | L115: 0.4029182189 | M115: 0.8523507135 | N115: 0.3587174549 | O115: 0.08918338027 | P115: 0.5915435642 | Q115: 0.7206913573 | R115: 0.9689994575 | S115: 0.2562506915 | T115: 0.3091826245 | U115: 0.4965117071 | V115: 0.8391186049 | W115: 0.2021802546 | X115: 0.6497758452 | Y115: 0.1013394852 | Z115: 0.3408585631 | AA115: 0.6618708042 | AB115: 0.6188046932 | AC115: 0.1290641101 | AD115: 0.8947469153 | AF115: 0 | AG115: =NORMINV(F115,Dashboard!D$19,Dashboard!D$17) -> 1.377902532 | AH115: =NORMINV(G115,Dashboard!E$19,Dashboard!E$17) -> 2.861643187 | AI115: =NORMINV(H115,Dashboard!F$19,Dashboard!F$17) -> 2.834102234 | AJ115: =NORMINV(I115,Dashboard!G$19,Dashboard!G$17) -> 1.818104315 | AK115: =NORMINV(J115,Dashboard!H$19,Dashboard!H$17) -> 4.095733621 | AL115: =NORMINV(K115,Dashboard!I$19,Dashboard!I$17) -> 1.388526815 | AM115: =NORMINV(L115,Dashboard!J$19,Dashboard!J$17) -> 2.288624925 | AN115: =NORMINV(M115,Dashboard!K$19,Dashboard!K$17) -> 4.074089329 | AO115: =NORMINV(N115,Dashboard!L$19,Dashboard!L$17) -> 2.245363958 | AP115: =NORMINV(O115,Dashboard!M$19,Dashboard!M$17) -> 0.9191307705 | AQ115: =NORMINV(P115,Dashboard!N$19,Dashboard!N$17) -> 3.213597296 | AR115: =NORMINV(Q115,Dashboard!O$19,Dashboard!O$17) -> 3.815559294 | AS115: =NORMINV(R115,Dashboard!P$19,Dashboard!P$17) -> 5.84969344 | AT115: =NORMINV(S115,Dashboard!Q$19,Dashboard!Q$17) -> 2.085940526 | AU115: =NORMINV(T115,Dashboard!R$19,Dashboard!R$17) -> 2.387304591 | AV115: =NORMINV(U115,Dashboard!S$19,Dashboard!S$17) -> 3.244424023 | AW115: =NORMINV(V115,Dashboard!T$19,Dashboard!T$17) -> 4.994911798 | AX115: =NORMINV(W115,Dashboard!U$19,Dashboard!U$17) -> 1.996224321 | AY115: =NORMINV(X115,Dashboard!V$19,Dashboard!V$17) -> 4.184259873 | AZ115: =NORMINV(Y115,Dashboard!W$19,Dashboard!W$17) -> 1.30577647 | BA115: =NORMINV(Z115,Dashboard!X$19,Dashboard!X$17) -> 2.930851944 | BB115: =NORMINV(AA115,Dashboard!Y$19,Dashboard!Y$17) -> 4.568078155 | BC115: =NORMINV(AB115,Dashboard!Z$19,Dashboard!Z$17) -> 4.459103809 | BD115: =NORMINV(AC115,Dashboard!AA$19,Dashboard!AA$17) -> 1.725472402 | BE115: =NORMINV(AD115,Dashboard!AB$19,Dashboard!AB$17) -> 6.617579612 | BG115: =Dashboard!$C$16 -> 90 | BH115: 91.37790253 | BI115: 94.23954572 | BJ115: 97.07364795 | BK115: 98.89175227 | BL115: 102.9874859 | BM115: 104.3760127 | BN115: 106.6646376 | BO115: 110.738727 | BP115: 112.9840909 | BQ115: 113.9032217 | BR115: 117.116819 | BS115: 120.9323783 | BT115: 126.7820717 | BU115: 128.8680122 | BV115: 131.2553168 | BW115: 134.4997409 | BX115: 139.4946527 | BY115: 141.490877 | BZ115: 145.6751368 | CA115: 146.9809133 | CB115: 149.9117653 | CC115: 154.4798434 | CD115: 158.9389472 | CE115: 160.6644196 | CF115: 167.2819992 | CH115: =MATCH(TRUE,BG115:CF115+$AF$64:$BE$64>CH$61,0)+Dashboard!$C$15-1 -> 2030 | CJ115: =Dashboard!$C$13 -> 10 | CL115: =IF(CL$63<$CH115,BG115,CK115+AF$72) -> 90 | CM115: 91.37790253 | CN115: 94.23954572 | CO115: 97.07364795 | CP115: 98.89175227 | CQ115: 102.0265263 | CR115: 105.2396697 | CS115: 108.5331417 | CT115: 111.9089505 | CU115: 115.3691545 | CV115: 118.9158636 | CW115: 122.5512405 | CX115: 126.2775017 | CY115: 130.0969195 | CZ115: 134.0118228 | DA115: 138.0245986 | DB115: 142.1376938 | DC115: 146.3536164 | DD115: 150.6749371 | DE115: 155.1042907 | DF115: 159.6443782 | DG115: 164.2979679 | DH115: 169.0678974 | DI115: 173.9570751 | DJ115: 178.9684822 | DK115: 184.1051745 | DM115: =MATCH(TRUE,BG115:CF115+$AF$64:$BE$64-$CJ115>DM$61,0)+Dashboard!$C$15-1 -> 2033 | DN115: =MATCH(TRUE,CL115:DK115-$CJ115>DM$61,0)+Dashboard!$C$15-1-$DM$59 -> 2033 | DP115: 0 | DQ115: =INDEX('Deferral Value Calculation'!$D$66:$D$91,MATCH($DP115+($E$52-$E$51),'Deferral Value Calculation'!$B$66:$B$91,0)) -INDEX('Deferral Value Calculation'!$D$66:$D$91,MATCH($E$52-$E$51,'Deferral Value Calculation'!$B$66:$B$91,0)) -> 0
B116: 0.493535655 | D116: Random Walk 44 | E116: 0.3555765959 | F116: 0.179027855 | G116: 0.8776740599 | H116: 0.9793891319 | I116: 0.1640534607 | J116: 0.2372836371 | K116: 0.06152203955 | L116: 0.4661488015 | M116: 0.530497251 | N116: 0.9535174558 | O116: 0.2741409338 | P116: 0.2771444751 | Q116: 0.6678508815 | R116: 0.04303722907 | S116: 0.8316661151 | T116: 0.09267428378 | U116: 0.8020665947 | V116: 0.4446164429 | W116: 0.5864788196 | X116: 0.6721661767 | Y116: 0.6149711151 | Z116: 0.7236738374 | AA116: 0.3494502256 | AB116: 0.7487789798 | AC116: 0.2984149255 | AD116: 0.6001057058 | AF116: 0 | AG116: =NORMINV(F116,Dashboard!D$19,Dashboard!D$17) -> 1.21603926 | AH116: =NORMINV(G116,Dashboard!E$19,Dashboard!E$17) -> 3.647839328 | AI116: =NORMINV(H116,Dashboard!F$19,Dashboard!F$17) -> 4.776618608 | AJ116: =NORMINV(I116,Dashboard!G$19,Dashboard!G$17) -> 1.238234842 | AK116: =NORMINV(J116,Dashboard!H$19,Dashboard!H$17) -> 1.595615567 | AL116: =NORMINV(K116,Dashboard!I$19,Dashboard!I$17) -> 0.5828034734 | AM116: =NORMINV(L116,Dashboard!J$19,Dashboard!J$17) -> 2.498473934 | AN116: =NORMINV(M116,Dashboard!K$19,Dashboard!K$17) -> 2.776870799 | AO116: =NORMINV(N116,Dashboard!L$19,Dashboard!L$17) -> 5.044133239 | AP116: =NORMINV(O116,Dashboard!M$19,Dashboard!M$17) -> 1.96648613 | AQ116: =NORMINV(P116,Dashboard!N$19,Dashboard!N$17) -> 2.028596463 | AR116: =NORMINV(Q116,Dashboard!O$19,Dashboard!O$17) -> 3.592801378 | AS116: =NORMINV(R116,Dashboard!P$19,Dashboard!P$17) -> 0.4289676645 | AT116: =NORMINV(S116,Dashboard!Q$19,Dashboard!Q$17) -> 4.591636087 | AU116: =NORMINV(T116,Dashboard!R$19,Dashboard!R$17) -> 1.073826988 | AV116: =NORMINV(U116,Dashboard!S$19,Dashboard!S$17) -> 4.642019066 | AW116: =NORMINV(V116,Dashboard!T$19,Dashboard!T$17) -> 3.107538899 | AX116: =NORMINV(W116,Dashboard!U$19,Dashboard!U$17) -> 3.797667719 | AY116: =NORMINV(X116,Dashboard!V$19,Dashboard!V$17) -> 4.291619873 | AZ116: =NORMINV(Y116,Dashboard!W$19,Dashboard!W$17) -> 4.122657846 | BA116: =NORMINV(Z116,Dashboard!X$19,Dashboard!X$17) -> 4.781506001 | BB116: =NORMINV(AA116,Dashboard!Y$19,Dashboard!Y$17) -> 3.048179358 | BC116: =NORMINV(AB116,Dashboard!Z$19,Dashboard!Z$17) -> 5.172433488 | BD116: =NORMINV(AC116,Dashboard!AA$19,Dashboard!AA$17) -> 2.920279932 | BE116: =NORMINV(AD116,Dashboard!AB$19,Dashboard!AB$17) -> 4.58570506 | BG116: =Dashboard!$C$16 -> 90 | BH116: 91.21603926 | BI116: 94.86387859 | BJ116: 99.6404972 | BK116: 100.878732 | BL116: 102.4743476 | BM116: 103.0571511 | BN116: 105.555625 | BO116: 108.3324958 | BP116: 113.3766291 | BQ116: 115.3431152 | BR116: 117.3717116 | BS116: 120.964513 | BT116: 121.3934807 | BU116: 125.9851168 | BV116: 127.0589438 | BW116: 131.7009628 | BX116: 134.8085017 | BY116: 138.6061694 | BZ116: 142.8977893 | CA116: 147.0204472 | CB116: 151.8019532 | CC116: 154.8501325 | CD116: 160.022566 | CE116: 162.9428459 | CF116: 167.528551 | CH116: =MATCH(TRUE,BG116:CF116+$AF$64:$BE$64>CH$61,0)+Dashboard!$C$15-1 -> 2029 | CJ116: =Dashboard!$C$13 -> 10 | CL116: =IF(CL$63<$CH116,BG116,CK116+AF$72) -> 90 | CM116: 91.21603926 | CN116: 94.86387859 | CO116: 99.6404972 | CP116: 102.6988133 | CQ116: 105.8335874 | CR116: 109.0467308 | CS116: 112.3402028 | CT116: 115.7160116 | CU116: 119.1762156 | CV116: 122.7229247 | CW116: 126.3583016 | CX116: 130.0845628 | CY116: 133.9039806 | CZ116: 137.8188838 | DA116: 141.8316597 | DB116: 145.9447549 | DC116: 150.1606775 | DD116: 154.4819981 | DE116: 158.9113518 | DF116: 163.4514393 | DG116: 168.105029 | DH116: 172.8749585 | DI116: 177.7641362 | DJ116: 182.7755433 | DK116: 187.9122356 | DM116: =MATCH(TRUE,BG116:CF116+$AF$64:$BE$64-$CJ116>DM$61,0)+Dashboard!$C$15-1 -> 2034 | DN116: =MATCH(TRUE,CL116:DK116-$CJ116>DM$61,0)+Dashboard!$C$15-1-$DM$59 -> 2032 | DP116: 2 | DQ116: =INDEX('Deferral Value Calculation'!$D$66:$D$91,MATCH($DP116+($E$52-$E$51),'Deferral Value Calculation'!$B$66:$B$91,0)) -INDEX('Deferral Value Calculation'!$D$66:$D$91,MATCH($E$52-$E$51,'Deferral Value Calculation'!$B$66:$B$91,0)) -> 2657265.066
B117: 0.43055239 | D117: Random Walk 45 | E117: 0.1403334367 | F117: 0.1228233735 | G117: 0.8099932053 | H117: 0.6223639929 | I117: 0.8149579751 | J117: 0.2895464706 | K117: 0.3234783044 | L117: 0.1050896341 | M117: 0.03156449789 | N117: 0.4900518627 | O117: 0.9122969173 | P117: 0.9141501514 | Q117: 0.4148723642 | R117: 0.2304520501 | S117: 0.3378987588 | T117: 0.9224907371 | U117: 0.56533102 | V117: 0.03389462599 | W117: 0.3558866485 | X117: 0.5026510995 | Y117: 0.08614900009 | Z117: 0.09981657236 | AA117: 0.2928865083 | AB117: 0.8003632477 | AC117: 0.3730328252 | AD117: 0.6019868605 | AF117: 0 | AG117: =NORMINV(F117,Dashboard!D$19,Dashboard!D$17) -> 0.9438884102 | AH117: =NORMINV(G117,Dashboard!E$19,Dashboard!E$17) -> 3.318545293 | AI117: =NORMINV(H117,Dashboard!F$19,Dashboard!F$17) -> 2.732315618 | AJ117: =NORMINV(I117,Dashboard!G$19,Dashboard!G$17) -> 3.508892414 | AK117: =NORMINV(J117,Dashboard!H$19,Dashboard!H$17) -> 1.794745779 | AL117: =NORMINV(K117,Dashboard!I$19,Dashboard!I$17) -> 1.962717781 | AM117: =NORMINV(L117,Dashboard!J$19,Dashboard!J$17) -> 0.9744825722 | AN117: =NORMINV(M117,Dashboard!K$19,Dashboard!K$17) -> 0.1895156004 | AO117: =NORMINV(N117,Dashboard!L$19,Dashboard!L$17) -> 2.707222733 | AP117: =NORMINV(O117,Dashboard!M$19,Dashboard!M$17) -> 4.713727408 | AQ117: =NORMINV(P117,Dashboard!N$19,Dashboard!N$17) -> 4.848458511 | AR117: =NORMINV(Q117,Dashboard!O$19,Dashboard!O$17) -> 2.63479125 | AS117: =NORMINV(R117,Dashboard!P$19,Dashboard!P$17) -> 1.910375837 | AT117: =NORMINV(S117,Dashboard!Q$19,Dashboard!Q$17) -> 2.453087701 | AU117: =NORMINV(T117,Dashboard!R$19,Dashboard!R$17) -> 5.439638269 | AV117: =NORMINV(U117,Dashboard!S$19,Dashboard!S$17) -> 3.526695699 | AW117: =NORMINV(V117,Dashboard!T$19,Dashboard!T$17) -> 0.2899152944 | AX117: =NORMINV(W117,Dashboard!U$19,Dashboard!U$17) -> 2.791165257 | AY117: =NORMINV(X117,Dashboard!V$19,Dashboard!V$17) -> 3.520892187 | AZ117: =NORMINV(Y117,Dashboard!W$19,Dashboard!W$17) -> 1.142292913 | BA117: =NORMINV(Z117,Dashboard!X$19,Dashboard!X$17) -> 1.322491068 | BB117: =NORMINV(AA117,Dashboard!Y$19,Dashboard!Y$17) -> 2.749319113 | BC117: =NORMINV(AB117,Dashboard!Z$19,Dashboard!Z$17) -> 5.506074878 | BD117: =NORMINV(AC117,Dashboard!AA$19,Dashboard!AA$17) -> 3.327508061 | BE117: =NORMINV(AD117,Dashboard!AB$19,Dashboard!AB$17) -> 4.59561971 | BG117: =Dashboard!$C$16 -> 90 | BH117: 90.94388841 | BI117: 94.2624337 | BJ117: 96.99474932 | BK117: 100.5036417 | BL117: 102.2983875 | BM117: 104.2611053 | BN117: 105.2355879 | BO117: 105.4251035 | BP117: 108.1323262 | BQ117: 112.8460536 | BR117: 117.6945121 | BS117: 120.3293034 | BT117: 122.2396792 | BU117: 124.6927669 | BV117: 130.1324052 | BW117: 133.6591009 | BX117: 133.9490162 | BY117: 136.7401814 | BZ117: 140.2610736 | CA117: 141.4033665 | CB117: 142.7258576 | CC117: 145.4751767 | CD117: 150.9812516 | CE117: 154.3087596 | CF117: 158.9043794 | CH117: =MATCH(TRUE,BG117:CF117+$AF$64:$BE$64>CH$61,0)+Dashboard!$C$15-1 -> 2029 | CJ117: =Dashboard!$C$13 -> 10 | CL117: =IF(CL$63<$CH117,BG117,CK117+AF$72) -> 90 | CM117: 90.94388841 | CN117: 94.2624337 | CO117: 96.99474932 | CP117: 100.0530655 | CQ117: 103.1878395 | CR117: 106.4009829 | CS117: 109.6944549 | CT117: 113.0702637 | CU117: 116.5304677 | CV117: 120.0771768 | CW117: 123.7125537 | CX117: 127.4388149 | CY117: 131.2582327 | CZ117: 135.173136 | DA117: 139.1859118 | DB117: 143.299007 | DC117: 147.5149296 | DD117: 151.8362503 | DE117: 156.2656039 | DF117: 160.8056914 | DG117: 165.4592812 | DH117: 170.2292106 | DI117: 175.1183883 | DJ117: 180.1297954 | DK117: 185.2664877 | DM117: =MATCH(TRUE,BG117:CF117+$AF$64:$BE$64-$CJ117>DM$61,0)+Dashboard!$C$15-1 -> 2035 | DN117: =MATCH(TRUE,CL117:DK117-$CJ117>DM$61,0)+Dashboard!$C$15-1-$DM$59 -> 2032 | DP117: 3 | DQ117: =INDEX('Deferral Value Calculation'!$D$66:$D$91,MATCH($DP117+($E$52-$E$51),'Deferral Value Calculation'!$B$66:$B$91,0)) -INDEX('Deferral Value Calculation'!$D$66:$D$91,MATCH($E$52-$E$51,'Deferral Value Calculation'!$B$66:$B$91,0)) -> 3949106.113
B118: 0.4325373958 | D118: Random Walk 46 | E118: 0.9098948147 | F118: 0.8326663011 | G118: 0.5627144616 | H118: 0.5131312086 | I118: 0.6850973129 | J118: 0.3661783762 | K118: 0.4460426286 | L118: 0.1717930506 | M118: 0.5958568439 | N118: 0.5045219855 | O118: 0.07784965362 | P118: 0.1057368716 | Q118: 0.4687885365 | R118: 0.7647047908 | S118: 0.3108272426 | T118: 0.2662623551 | U118: 0.5317193298 | V118: 0.5170900969 | W118: 0.3291793004 | X118: 0.2131950206 | Y118: 0.2308567094 | Z118: 0.3111164298 | AA118: 0.2251498265 | AB118: 0.3033705186 | AC118: 0.7269838308 | AD118: 0.2752447941 | AF118: 0 | AG118: =NORMINV(F118,Dashboard!D$19,Dashboard!D$17) -> 3.335349694 | AH118: =NORMINV(G118,Dashboard!E$19,Dashboard!E$17) -> 2.48827652 | AI118: =NORMINV(H118,Dashboard!F$19,Dashboard!F$17) -> 2.402817334 | AJ118: =NORMINV(I118,Dashboard!G$19,Dashboard!G$17) -> 3.006948823 | AK118: =NORMINV(J118,Dashboard!H$19,Dashboard!H$17) -> 2.058896664 | AL118: =NORMINV(K118,Dashboard!I$19,Dashboard!I$17) -> 2.372988036 | AM118: =NORMINV(L118,Dashboard!J$19,Dashboard!J$17) -> 1.373666937 | AN118: =NORMINV(M118,Dashboard!K$19,Dashboard!K$17) -> 2.999015008 | AO118: =NORMINV(N118,Dashboard!L$19,Dashboard!L$17) -> 2.756943687 | AP118: =NORMINV(O118,Dashboard!M$19,Dashboard!M$17) -> 0.8153251727 | AQ118: =NORMINV(P118,Dashboard!N$19,Dashboard!N$17) -> 1.080757853 | AR118: =NORMINV(Q118,Dashboard!O$19,Dashboard!O$17) -> 2.836593639 | AS118: =NORMINV(R118,Dashboard!P$19,Dashboard!P$17) -> 4.117657647 | AT118: =NORMINV(S118,Dashboard!Q$19,Dashboard!Q$17) -> 2.336307093 | AU118: =NORMINV(T118,Dashboard!R$19,Dashboard!R$17) -> 2.187034458 | AV118: =NORMINV(U118,Dashboard!S$19,Dashboard!S$17) -> 3.388353796 | AW118: =NORMINV(V118,Dashboard!T$19,Dashboard!T$17) -> 3.41170282 | AX118: =NORMINV(W118,Dashboard!U$19,Dashboard!U$17) -> 2.666707436 | AY118: =NORMINV(X118,Dashboard!V$19,Dashboard!V$17) -> 2.113638205 | AZ118: =NORMINV(Y118,Dashboard!W$19,Dashboard!W$17) -> 2.2732295 | BA118: =NORMINV(Z118,Dashboard!X$19,Dashboard!X$17) -> 2.778643984 | BB118: =NORMINV(AA118,Dashboard!Y$19,Dashboard!Y$17) -> 2.352623895 | BC118: =NORMINV(AB118,Dashboard!Z$19,Dashboard!Z$17) -> 2.876621288 | BD118: =NORMINV(AC118,Dashboard!AA$19,Dashboard!AA$17) -> 5.168863608 | BE118: =NORMINV(AD118,Dashboard!AB$19,Dashboard!AB$17) -> 2.854793594 | BG118: =Dashboard!$C$16 -> 90 | BH118: 93.33534969 | BI118: 95.82362621 | BJ118: 98.22644355 | BK118: 101.2333924 | BL118: 103.292289 | BM118: 105.6652771 | BN118: 107.038944 | BO118: 110.037959 | BP118: 112.7949027 | BQ118: 113.6102279 | BR118: 114.6909857 | BS118: 117.5275794 | BT118: 121.645237 | BU118: 123.9815441 | BV118: 126.1685786 | BW118: 129.5569324 | BX118: 132.9686352 | BY118: 135.6353426 | BZ118: 137.7489808 | CA118: 140.0222103 | CB118: 142.8008543 | CC118: 145.1534782 | CD118: 148.0300995 | CE118: 153.1989631 | CF118: 156.0537567 | CH118: =MATCH(TRUE,BG118:CF118+$AF$64:$BE$64>CH$61,0)+Dashboard!$C$15-1 -> 2029 | CJ118: =Dashboard!$C$13 -> 10 | CL118: =IF(CL$63<$CH118,BG118,CK118+AF$72) -> 90 | CM118: 93.33534969 | CN118: 95.82362621 | CO118: 98.22644355 | CP118: 101.2847597 | CQ118: 104.4195338 | CR118: 107.6326772 | CS118: 110.9261492 | CT118: 114.3019579 | CU118: 117.762162 | CV118: 121.3088711 | CW118: 124.9442479 | CX118: 128.6705092 | CY118: 132.489927 | CZ118: 136.4048302 | DA118: 140.417606 | DB118: 144.5307012 | DC118: 148.7466238 | DD118: 153.0679445 | DE118: 157.4972982 | DF118: 162.0373857 | DG118: 166.6909754 | DH118: 171.4609048 | DI118: 176.3500825 | DJ118: 181.3614896 | DK118: 186.4981819 | DM118: =MATCH(TRUE,BG118:CF118+$AF$64:$BE$64-$CJ118>DM$61,0)+Dashboard!$C$15-1 -> 2033 | DN118: =MATCH(TRUE,CL118:DK118-$CJ118>DM$61,0)+Dashboard!$C$15-1-$DM$59 -> 2032 | DP118: 1 | DQ118: =INDEX('Deferral Value Calculation'!$D$66:$D$91,MATCH($DP118+($E$52-$E$51),'Deferral Value Calculation'!$B$66:$B$91,0)) -INDEX('Deferral Value Calculation'!$D$66:$D$91,MATCH($E$52-$E$51,'Deferral Value Calculation'!$B$66:$B$91,0)) -> 1341049.659
B119: 0.5362568501 | D119: Random Walk 47 | E119: 0.7867826367 | F119: 0.5387649965 | G119: 0.2385174421 | H119: 0.6644195627 | I119: 0.8257762216 | J119: 0.1508104276 | K119: 0.09885419098 | L119: 0.9283082557 | M119: 0.2446785352 | N119: 0.5276268511 | O119: 0.3306997299 | P119: 0.7748904097 | Q119: 0.2938153695 | R119: 0.3273748736 | S119: 0.9910021374 | T119: 0.4940500251 | U119: 0.9927487213 | V119: 0.3119044054 | W119: 0.8840162686 | X119: 0.04835394698 | Y119: 0.4036953305 | Z119: 0.5337980972 | AA119: 0.7463646779 | AB119: 0.8906544306 | AC119: 0.4215056021 | AD119: 0.493264957 | AF119: 0 | AG119: =NORMINV(F119,Dashboard!D$19,Dashboard!D$17) -> 2.359488211 | AH119: =NORMINV(G119,Dashboard!E$19,Dashboard!E$17) -> 1.486286287 | AI119: =NORMINV(H119,Dashboard!F$19,Dashboard!F$17) -> 2.86571073 | AJ119: =NORMINV(I119,Dashboard!G$19,Dashboard!G$17) -> 3.558913922 | AK119: =NORMINV(J119,Dashboard!H$19,Dashboard!H$17) -> 1.200855442 | AL119: =NORMINV(K119,Dashboard!I$19,Dashboard!I$17) -> 0.9061205528 | AM119: =NORMINV(L119,Dashboard!J$19,Dashboard!J$17) -> 4.51842067 | AN119: =NORMINV(M119,Dashboard!K$19,Dashboard!K$17) -> 1.75004469 | AO119: =NORMINV(N119,Dashboard!L$19,Dashboard!L$17) -> 2.836404052 | AP119: =NORMINV(O119,Dashboard!M$19,Dashboard!M$17) -> 2.194589992 | AQ119: =NORMINV(P119,Dashboard!N$19,Dashboard!N$17) -> 3.967533563 | AR119: =NORMINV(Q119,Dashboard!O$19,Dashboard!O$17) -> 2.151747779 | AS119: =NORMINV(R119,Dashboard!P$19,Dashboard!P$17) -> 2.349426285 | AT119: =NORMINV(S119,Dashboard!Q$19,Dashboard!Q$17) -> 6.770445791 | AU119: =NORMINV(T119,Dashboard!R$19,Dashboard!R$17) -> 3.155482393 | AV119: =NORMINV(U119,Dashboard!S$19,Dashboard!S$17) -> 7.241692817 | AW119: =NORMINV(V119,Dashboard!T$19,Dashboard!T$17) -> 2.521036595 | AX119: =NORMINV(W119,Dashboard!U$19,Dashboard!U$17) -> 5.469790602 | AY119: =NORMINV(X119,Dashboard!V$19,Dashboard!V$17) -> 0.5947663312 | AZ119: =NORMINV(Y119,Dashboard!W$19,Dashboard!W$17) -> 3.15850461 | BA119: =NORMINV(Z119,Dashboard!X$19,Dashboard!X$17) -> 3.843249462 | BB119: =NORMINV(AA119,Dashboard!Y$19,Dashboard!Y$17) -> 5.031994036 | BC119: =NORMINV(AB119,Dashboard!Z$19,Dashboard!Z$17) -> 6.255790922 | BD119: =NORMINV(AC119,Dashboard!AA$19,Dashboard!AA$17) -> 3.577221093 | BE119: =NORMINV(AD119,Dashboard!AB$19,Dashboard!AB$17) -> 4.035279472 | BG119: =Dashboard!$C$16 -> 90 | BH119: 92.35948821 | BI119: 93.8457745 | BJ119: 96.71148523 | BK119: 100.2703991 | BL119: 101.4712546 | BM119: 102.3773751 | BN119: 106.8957958 | BO119: 108.6458405 | BP119: 111.4822446 | BQ119: 113.6768345 | BR119: 117.6443681 | BS119: 119.7961159 | BT119: 122.1455422 | BU119: 128.915988 | BV119: 132.0714704 | BW119: 139.3131632 | BX119: 141.8341998 | BY119: 147.3039904 | BZ119: 147.8987567 | CA119: 151.0572613 | CB119: 154.9005108 | CC119: 159.9325048 | CD119: 166.1882957 | CE119: 169.7655168 | CF119: 173.8007963 | CH119: =MATCH(TRUE,BG119:CF119+$AF$64:$BE$64>CH$61,0)+Dashboard!$C$15-1 -> 2030 | CJ119: =Dashboard!$C$13 -> 10 | CL119: =IF(CL$63<$CH119,BG119,CK119+AF$72) -> 90 | CM119: 92.35948821 | CN119: 93.8457745 | CO119: 96.71148523 | CP119: 100.2703991 | CQ119: 103.4051732 | CR119: 106.6183166 | CS119: 109.9117886 | CT119: 113.2875974 | CU119: 116.7478014 | CV119: 120.2945105 | CW119: 123.9298874 | CX119: 127.6561486 | CY119: 131.4755664 | CZ119: 135.3904696 | DA119: 139.4032455 | DB119: 143.5163407 | DC119: 147.7322633 | DD119: 152.0535839 | DE119: 156.4829376 | DF119: 161.0230251 | DG119: 165.6766148 | DH119: 170.4465443 | DI119: 175.335722 | DJ119: 180.3471291 | DK119: 185.4838214 | DM119: =MATCH(TRUE,BG119:CF119+$AF$64:$BE$64-$CJ119>DM$61,0)+Dashboard!$C$15-1 -> 2034 | DN119: =MATCH(TRUE,CL119:DK119-$CJ119>DM$61,0)+Dashboard!$C$15-1-$DM$59 -> 2032 | DP119: 2 | DQ119: =INDEX('Deferral Value Calculation'!$D$66:$D$91,MATCH($DP119+($E$52-$E$51),'Deferral Value Calculation'!$B$66:$B$91,0)) -INDEX('Deferral Value Calculation'!$D$66:$D$91,MATCH($E$52-$E$51,'Deferral Value Calculation'!$B$66:$B$91,0)) -> 2657265.066
B120: 0.365090071 | D120: Random Walk 48 | E120: 0.3837079189 | F120: 0.3172214212 | G120: 0.07116147765 | H120: 0.79388096 | I120: 0.1871980263 | J120: 0.03644538444 | K120: 0.4445178934 | L120: 0.3866504377 | M120: 0.7075068387 | N120: 0.08237578576 | O120: 0.25280679 | P120: 0.3055242493 | Q120: 0.7505307124 | R120: 0.2498721351 | S120: 0.4680718232 | T120: 0.3622257923 | U120: 0.3568193532 | V120: 0.0774999907 | W120: 0.4181750714 | X120: 0.1121568751 | Y120: 0.1983417447 | Z120: 0.9053258858 | AA120: 0.7475564624 | AB120: 0.359492318 | AC120: 0.00585902697 | AD120: 0.5114174725 | AF120: 0 | AG120: =NORMINV(F120,Dashboard!D$19,Dashboard!D$17) -> 1.715081775 | AH120: =NORMINV(G120,Dashboard!E$19,Dashboard!E$17) -> 0.6143905053 | AI120: =NORMINV(H120,Dashboard!F$19,Dashboard!F$17) -> 3.333062256 | AJ120: =NORMINV(I120,Dashboard!G$19,Dashboard!G$17) -> 1.346864237 | AK120: =NORMINV(J120,Dashboard!H$19,Dashboard!H$17) -> 0.2564121066 | AL120: =NORMINV(K120,Dashboard!I$19,Dashboard!I$17) -> 2.368077063 | AM120: =NORMINV(L120,Dashboard!J$19,Dashboard!J$17) -> 2.233491354 | AN120: =NORMINV(M120,Dashboard!K$19,Dashboard!K$17) -> 3.404848059 | AO120: =NORMINV(N120,Dashboard!L$19,Dashboard!L$17) -> 0.8371336995 | AP120: =NORMINV(O120,Dashboard!M$19,Dashboard!M$17) -> 1.874676122 | AQ120: =NORMINV(P120,Dashboard!N$19,Dashboard!N$17) -> 2.147790448 | AR120: =NORMINV(Q120,Dashboard!O$19,Dashboard!O$17) -> 3.950274199 | AS120: =NORMINV(R120,Dashboard!P$19,Dashboard!P$17) -> 2.004888038 | AT120: =NORMINV(S120,Dashboard!Q$19,Dashboard!Q$17) -> 2.977401327 | AU120: =NORMINV(T120,Dashboard!R$19,Dashboard!R$17) -> 2.618833791 | AV120: =NORMINV(U120,Dashboard!S$19,Dashboard!S$17) -> 2.660747775 | AW120: =NORMINV(V120,Dashboard!T$19,Dashboard!T$17) -> 0.9651486449 | AX120: =NORMINV(W120,Dashboard!U$19,Dashboard!U$17) -> 3.070040074 | AY120: =NORMINV(X120,Dashboard!V$19,Dashboard!V$17) -> 1.377132792 | AZ120: =NORMINV(Y120,Dashboard!W$19,Dashboard!W$17) -> 2.072643362 | BA120: =NORMINV(Z120,Dashboard!X$19,Dashboard!X$17) -> 6.106424388 | BB120: =NORMINV(AA120,Dashboard!Y$19,Dashboard!Y$17) -> 5.039035402 | BC120: =NORMINV(AB120,Dashboard!Z$19,Dashboard!Z$17) -> 3.176655332 | BD120: =NORMINV(AC120,Dashboard!AA$19,Dashboard!AA$17) -> -1.033335744 | BE120: =NORMINV(AD120,Dashboard!AB$19,Dashboard!AB$17) -> 4.127876489 | BG120: =Dashboard!$C$16 -> 90 | BH120: 91.71508177 | BI120: 92.32947228 | BJ120: 95.66253454 | BK120: 97.00939877 | BL120: 97.26581088 | BM120: 99.63388794 | BN120: 101.8673793 | BO120: 105.2722274 | BP120: 106.1093611 | BQ120: 107.9840372 | BR120: 110.1318276 | BS120: 114.0821018 | BT120: 116.0869899 | BU120: 119.0643912 | BV120: 121.683225 | BW120: 124.3439728 | BX120: 125.3091214 | BY120: 128.3791615 | BZ120: 129.7562943 | CA120: 131.8289376 | CB120: 137.935362 | CC120: 142.9743974 | CD120: 146.1510528 | CE120: 145.117717 | CF120: 149.2455935 | CH120: =MATCH(TRUE,BG120:CF120+$AF$64:$BE$64>CH$61,0)+Dashboard!$C$15-1 -> 2032 | CJ120: =Dashboard!$C$13 -> 10 | CL120: =IF(CL$63<$CH120,BG120,CK120+AF$72) -> 90 | CM120: 91.71508177 | CN120: 92.32947228 | CO120: 95.66253454 | CP120: 97.00939877 | CQ120: 97.26581088 | CR120: 99.63388794 | CS120: 102.9273599 | CT120: 106.3031687 | CU120: 109.7633727 | CV120: 113.3100818 | CW120: 116.9454587 | CX120: 120.6717199 | CY120: 124.4911377 | CZ120: 128.406041 | DA120: 132.4188168 | DB120: 136.531912 | DC120: 140.7478346 | DD120: 145.0691553 | DE120: 149.4985089 | DF120: 154.0385965 | DG120: 158.6921862 | DH120: 163.4621156 | DI120: 168.3512933 | DJ120: 173.3627004 | DK120: 178.4993927 | DM120: =MATCH(TRUE,BG120:CF120+$AF$64:$BE$64-$CJ120>DM$61,0)+Dashboard!$C$15-1 -> 2036 | DN120: =MATCH(TRUE,CL120:DK120-$CJ120>DM$61,0)+Dashboard!$C$15-1-$DM$59 -> 2034 | DP120: 2 | DQ120: =INDEX('Deferral Value Calculation'!$D$66:$D$91,MATCH($DP120+($E$52-$E$51),'Deferral Value Calculation'!$B$66:$B$91,0)) -INDEX('Deferral Value Calculation'!$D$66:$D$91,MATCH($E$52-$E$51,'Deferral Value Calculation'!$B$66:$B$91,0)) -> 2657265.066
B121: 0.614317792 | D121: Random Walk 49 | E121: 0.8850352735 | F121: 0.8482931746 | G121: 0.5972716122 | H121: 0.8909689282 | I121: 0.5708515255 | J121: 0.7266355599 | K121: 0.08711288604 | L121: 0.4782224419 | M121: 0.9755123998 | N121: 0.9958520486 | O121: 0.8822813654 | P121: 0.9020749941 | Q121: 0.5031004995 | R121: 0.7468095762 | S121: 0.9807534297 | T121: 0.1873064565 | U121: 0.6452666553 | V121: 0.1913423367 | W121: 0.8084061539 | X121: 0.5592125032 | Y121: 0.0984210804 | Z121: 0.08626261884 | AA121: 0.8748896697 | AB121: 0.2830847481 | AC121: 0.9218609102 | AD121: 0.2454337442 | AF121: 0 | AG121: =NORMINV(F121,Dashboard!D$19,Dashboard!D$17) -> 3.407783078 | AH121: =NORMINV(G121,Dashboard!E$19,Dashboard!E$17) -> 2.590254609 | AI121: =NORMINV(H121,Dashboard!F$19,Dashboard!F$17) -> 3.819714834 | AJ121: =NORMINV(I121,Dashboard!G$19,Dashboard!G$17) -> 2.639308491 | AK121: =NORMINV(J121,Dashboard!H$19,Dashboard!H$17) -> 3.231967094 | AL121: =NORMINV(K121,Dashboard!I$19,Dashboard!I$17) -> 0.8162047549 | AM121: =NORMINV(L121,Dashboard!J$19,Dashboard!J$17) -> 2.538055954 | AN121: =NORMINV(M121,Dashboard!K$19,Dashboard!K$17) -> 5.307373055 | AO121: =NORMINV(N121,Dashboard!L$19,Dashboard!L$17) -> 6.359766239 | AP121: =NORMINV(O121,Dashboard!M$19,Dashboard!M$17) -> 4.47689556 | AQ121: =NORMINV(P121,Dashboard!N$19,Dashboard!N$17) -> 4.742903973 | AR121: =NORMINV(Q121,Dashboard!O$19,Dashboard!O$17) -> 2.963667029 | AS121: =NORMINV(R121,Dashboard!P$19,Dashboard!P$17) -> 4.03136348 | AT121: =NORMINV(S121,Dashboard!Q$19,Dashboard!Q$17) -> 6.31118214 | AU121: =NORMINV(T121,Dashboard!R$19,Dashboard!R$17) -> 1.767843484 | AV121: =NORMINV(U121,Dashboard!S$19,Dashboard!S$17) -> 3.865716351 | AW121: =NORMINV(V121,Dashboard!T$19,Dashboard!T$17) -> 1.882233732 | AX121: =NORMINV(W121,Dashboard!U$19,Dashboard!U$17) -> 4.916413511 | AY121: =NORMINV(X121,Dashboard!V$19,Dashboard!V$17) -> 3.770622409 | AZ121: =NORMINV(Y121,Dashboard!W$19,Dashboard!W$17) -> 1.275841424 | BA121: =NORMINV(Z121,Dashboard!X$19,Dashboard!X$17) -> 1.172182116 | BB121: =NORMINV(AA121,Dashboard!Y$19,Dashboard!Y$17) -> 5.95166594 | BC121: =NORMINV(AB121,Dashboard!Z$19,Dashboard!Z$17) -> 2.762408133 | BD121: =NORMINV(AC121,Dashboard!AA$19,Dashboard!AA$17) -> 6.784774965 | BE121: =NORMINV(AD121,Dashboard!AB$19,Dashboard!AB$17) -> 2.667787668 | BG121: =Dashboard!$C$16 -> 90 | BH121: 93.40778308 | BI121: 95.99803769 | BJ121: 99.81775252 | BK121: 102.457061 | BL121: 105.6890281 | BM121: 106.5052329 | BN121: 109.0432888 | BO121: 114.3506619 | BP121: 120.7104281 | BQ121: 125.1873237 | BR121: 129.9302276 | BS121: 132.8938947 | BT121: 136.9252582 | BU121: 143.2364403 | BV121: 145.0042838 | BW121: 148.8700001 | BX121: 150.7522339 | BY121: 155.6686474 | BZ121: 159.4392698 | CA121: 160.7151112 | CB121: 161.8872933 | CC121: 167.8389593 | CD121: 170.6013674 | CE121: 177.3861424 | CF121: 180.05393 | CH121: =MATCH(TRUE,BG121:CF121+$AF$64:$BE$64>CH$61,0)+Dashboard!$C$15-1 -> 2029 | CJ121: =Dashboard!$C$13 -> 10 | CL121: =IF(CL$63<$CH121,BG121,CK121+AF$72) -> 90 | CM121: 93.40778308 | CN121: 95.99803769 | CO121: 99.81775252 | CP121: 102.8760687 | CQ121: 106.0108427 | CR121: 109.2239861 | CS121: 112.5174581 | CT121: 115.8932669 | CU121: 119.3534709 | CV121: 122.90018 | CW121: 126.5355569 | CX121: 130.2618181 | CY121: 134.0812359 | CZ121: 137.9961392 | DA121: 142.008915 | DB121: 146.1220102 | DC121: 150.3379328 | DD121: 154.6592535 | DE121: 159.0886071 | DF121: 163.6286946 | DG121: 168.2822844 | DH121: 173.0522138 | DI121: 177.9413915 | DJ121: 182.9527986 | DK121: 188.0894909 | DM121: =MATCH(TRUE,BG121:CF121+$AF$64:$BE$64-$CJ121>DM$61,0)+Dashboard!$C$15-1 -> 2033 | DN121: =MATCH(TRUE,CL121:DK121-$CJ121>DM$61,0)+Dashboard!$C$15-1-$DM$59 -> 2032 | DP121: 1 | DQ121: =INDEX('Deferral Value Calculation'!$D$66:$D$91,MATCH($DP121+($E$52-$E$51),'Deferral Value Calculation'!$B$66:$B$91,0)) -INDEX('Deferral Value Calculation'!$D$66:$D$91,MATCH($E$52-$E$51,'Deferral Value Calculation'!$B$66:$B$91,0)) -> 1341049.659
B122: 0.3822267799 | D122: Random Walk 50 | E122: 0.9533778698 | F122: 0.4278622635 | G122: 0.07556500402 | H122: 0.6430366208 | I122: 0.4816891551 | J122: 0.9252351533 | K122: 0.6412395837 | L122: 0.3757775851 | M122: 0.04792426018 | N122: 0.4816323959 | O122: 0.4341904304 | P122: 0.568313919 | Q122: 0.1167256817 | R122: 0.3007608617 | S122: 0.5886308527 | T122: 0.3348312265 | U122: 0.4997888109 | V122: 0.3232541593 | W122: 0.3540603343 | X122: 0.1538639884 | Y122: 0.3044933536 | Z122: 0.07184686426 | AA122: 0.001029740326 | AB122: 0.2969106876 | AC122: 0.1633763276 | AD122: 0.3724791479 | AF122: 0 | AG122: =NORMINV(F122,Dashboard!D$19,Dashboard!D$17) -> 2.045453272 | AH122: =NORMINV(G122,Dashboard!E$19,Dashboard!E$17) -> 0.6508796932 | AI122: =NORMINV(H122,Dashboard!F$19,Dashboard!F$17) -> 2.797195452 | AJ122: =NORMINV(I122,Dashboard!G$19,Dashboard!G$17) -> 2.367378268 | AK122: =NORMINV(J122,Dashboard!H$19,Dashboard!H$17) -> 4.273239417 | AL122: =NORMINV(K122,Dashboard!I$19,Dashboard!I$17) -> 3.006146967 | AM122: =NORMINV(L122,Dashboard!J$19,Dashboard!J$17) -> 2.1962702 | AN122: =NORMINV(M122,Dashboard!K$19,Dashboard!K$17) -> 0.4475552663 | AO122: =NORMINV(N122,Dashboard!L$19,Dashboard!L$17) -> 2.678275993 | AP122: =NORMINV(O122,Dashboard!M$19,Dashboard!M$17) -> 2.577116261 | AQ122: =NORMINV(P122,Dashboard!N$19,Dashboard!N$17) -> 3.128006323 | AR122: =NORMINV(Q122,Dashboard!O$19,Dashboard!O$17) -> 1.193402272 | AS122: =NORMINV(R122,Dashboard!P$19,Dashboard!P$17) -> 2.235890945 | AT122: =NORMINV(S122,Dashboard!Q$19,Dashboard!Q$17) -> 3.44907252 | AU122: =NORMINV(T122,Dashboard!R$19,Dashboard!R$17) -> 2.501051646 | AV122: =NORMINV(U122,Dashboard!S$19,Dashboard!S$17) -> 3.257808349 | AW122: =NORMINV(V122,Dashboard!T$19,Dashboard!T$17) -> 2.574213582 | AX122: =NORMINV(W122,Dashboard!U$19,Dashboard!U$17) -> 2.782767522 | AY122: =NORMINV(X122,Dashboard!V$19,Dashboard!V$17) -> 1.719521946 | AZ122: =NORMINV(Y122,Dashboard!W$19,Dashboard!W$17) -> 2.677002962 | BA122: =NORMINV(Z122,Dashboard!X$19,Dashboard!X$17) -> 0.9914531468 | BB122: =NORMINV(AA122,Dashboard!Y$19,Dashboard!Y$17) -> -2.043560144 | BC122: =NORMINV(AB122,Dashboard!Z$19,Dashboard!Z$17) -> 2.840644626 | BD122: =NORMINV(AC122,Dashboard!AA$19,Dashboard!AA$17) -> 2.023549224 | BE122: =NORMINV(AD122,Dashboard!AB$19,Dashboard!AB$17) -> 3.407718984 | BG122: =Dashboard!$C$16 -> 90 | BH122: 92.04545327 | BI122: 92.69633297 | BJ122: 95.49352842 | BK122: 97.86090668 | BL122: 102.1341461 | BM122: 105.1402931 | BN122: 107.3365633 | BO122: 107.7841185 | BP122: 110.4623945 | BQ122: 113.0395108 | BR122: 116.1675171 | BS122: 117.3609194 | BT122: 119.5968103 | BU122: 123.0458828 | BV122: 125.5469345 | BW122: 128.8047428 | BX122: 131.3789564 | BY122: 134.1617239 | BZ122: 135.8812459 | CA122: 138.5582489 | CB122: 139.549702 | CC122: 137.5061419 | CD122: 140.3467865 | CE122: 142.3703357 | CF122: 145.7780547 | CH122: =MATCH(TRUE,BG122:CF122+$AF$64:$BE$64>CH$61,0)+Dashboard!$C$15-1 -> 2030 | CJ122: =Dashboard!$C$13 -> 10 | CL122: =IF(CL$63<$CH122,BG122,CK122+AF$72) -> 90 | CM122: 92.04545327 | CN122: 92.69633297 | CO122: 95.49352842 | CP122: 97.86090668 | CQ122: 100.9956807 | CR122: 104.2088241 | CS122: 107.5022961 | CT122: 110.8781049 | CU122: 114.3383089 | CV122: 117.8850181 | CW122: 121.5203949 | CX122: 125.2466562 | CY122: 129.0660739 | CZ122: 132.9809772 | DA122: 136.993753 | DB122: 141.1068482 | DC122: 145.3227708 | DD122: 149.6440915 | DE122: 154.0734451 | DF122: 158.6135327 | DG122: 163.2671224 | DH122: 168.0370518 | DI122: 172.9262295 | DJ122: 177.9376366 | DK122: 183.0743289 | DM122: =MATCH(TRUE,BG122:CF122+$AF$64:$BE$64-$CJ122>DM$61,0)+Dashboard!$C$15-1 -> 2034 | DN122: =MATCH(TRUE,CL122:DK122-$CJ122>DM$61,0)+Dashboard!$C$15-1-$DM$59 -> 2033 | DP122: 1 | DQ122: =INDEX('Deferral Value Calculation'!$D$66:$D$91,MATCH($DP122+($E$52-$E$51),'Deferral Value Calculation'!$B$66:$B$91,0)) -INDEX('Deferral Value Calculation'!$D$66:$D$91,MATCH($E$52-$E$51,'Deferral Value Calculation'!$B$66:$B$91,0)) -> 1341049.659
B123: 0.501900416 | D123: Random Walk 51 | E123: =RAND() -> 0.7689955538 | F123: 0.8266733011 | G123: 0.5606509597 | H123: 0.4949898097 | I123: 0.5026985108 | J123: 0.1869592741 | K123: 0.2362832879 | L123: 0.2280130245 | M123: 0.3170604175 | N123: 0.1433684805 | O123: =RAND() -> 0.6215076179 | P123: 0.4532083678 | Q123: 0.6922504692 | R123: 0.02406647333 | S123: 0.9629754237 | T123: 0.4186945645 | U123: 0.2431391226 | V123: 0.1667354405 | W123: 0.7396652072 | X123: 0.1252789004 | Y123: =RAND() -> 0.6661996729 | Z123: 0.6571908199 | AA123: 0.5034311896 | AB123: 0.7338258546 | AC123: 0.8018079846 | AD123: 0.9737410867 | AF123: 0 | AG123: =NORMINV(F123,Dashboard!D$19,Dashboard!D$17) -> 3.308737978 | AH123: =NORMINV(G123,Dashboard!E$19,Dashboard!E$17) -> 2.482239749 | AI123: =NORMINV(H123,Dashboard!F$19,Dashboard!F$17) -> 2.349062083 | AJ123: =NORMINV(I123,Dashboard!G$19,Dashboard!G$17) -> 2.431198766 | AK123: =NORMINV(J123,Dashboard!H$19,Dashboard!H$17) -> 1.379432805 | AL123: =NORMINV(K123,Dashboard!I$19,Dashboard!I$17) -> 1.631379763 | AM123: =NORMINV(L123,Dashboard!J$19,Dashboard!J$17) -> 1.636811875 | AN123: =NORMINV(M123,Dashboard!K$19,Dashboard!K$17) -> 2.038088926 | AO123: =NORMINV(N123,Dashboard!L$19,Dashboard!L$17) -> 1.281186544 | AP123: =NORMINV(O123,Dashboard!M$19,Dashboard!M$17) -> 3.244699706 | AQ123: =NORMINV(P123,Dashboard!N$19,Dashboard!N$17) -> 2.710893434 | AR123: =NORMINV(Q123,Dashboard!O$19,Dashboard!O$17) -> 3.693549443 | AS123: =NORMINV(R123,Dashboard!P$19,Dashboard!P$17) -> 0.03602031335 | AT123: =NORMINV(S123,Dashboard!Q$19,Dashboard!Q$17) -> 5.871903216 | AU123: =NORMINV(T123,Dashboard!R$19,Dashboard!R$17) -> 2.852951683 | AV123: =NORMINV(U123,Dashboard!S$19,Dashboard!S$17) -> 2.124261599 | AW123: =NORMINV(V123,Dashboard!T$19,Dashboard!T$17) -> 1.724936691 | AX123: =NORMINV(W123,Dashboard!U$19,Dashboard!U$17) -> 4.523166704 | AY123: =NORMINV(X123,Dashboard!V$19,Dashboard!V$17) -> 1.49318601 | AZ123: =NORMINV(Y123,Dashboard!W$19,Dashboard!W$17) -> 4.369308716 | BA123: =NORMINV(Z123,Dashboard!X$19,Dashboard!X$17) -> 4.433128386 | BB123: =NORMINV(AA123,Dashboard!Y$19,Dashboard!Y$17) -> 3.795310675 | BC123: =NORMINV(AB123,Dashboard!Z$19,Dashboard!Z$17) -> 5.082902542 | BD123: =NORMINV(AC123,Dashboard!AA$19,Dashboard!AA$17) -> 5.65400491 | BE123: =NORMINV(AD123,Dashboard!AB$19,Dashboard!AB$17) -> 8.014867456 | BG123: =Dashboard!$C$16 -> 90 | BH123: 93.30873798 | BI123: 95.79097773 | BJ123: 98.14003981 | BK123: 100.5712386 | BL123: 101.9506714 | BM123: 103.5820511 | BN123: 105.218863 | BO123: 107.2569519 | BP123: 108.5381385 | BQ123: 111.7828382 | BR123: 114.4937316 | BS123: 118.1872811 | BT123: 118.2233014 | BU123: 124.0952046 | BV123: 126.9481563 | BW123: 129.0724179 | BX123: 130.7973546 | BY123: 135.3205213 | BZ123: 136.8137073 | CA123: 141.183016 | CB123: 145.6161444 | CC123: 149.4114551 | CD123: 154.4943576 | CE123: 160.1483625 | CF123: 168.16323 | CH123: =MATCH(TRUE,BG123:CF123+$AF$64:$BE$64>CH$61,0)+Dashboard!$C$15-1 -> 2029 | CJ123: =Dashboard!$C$13 -> 10 | CL123: =IF(CL$63<$CH123,BG123,CK123+AF$72) -> 90 | CM123: 93.30873798 | CN123: 95.79097773 | CO123: 98.14003981 | CP123: 101.198356 | CQ123: 104.33313 | CR123: 107.5462734 | CS123: 110.8397454 | CT123: 114.2155542 | CU123: 117.6757582 | CV123: 121.2224673 | CW123: 124.8578442 | CX123: 128.5841054 | CY123: 132.4035232 | CZ123: 136.3184265 | DA123: 140.3312023 | DB123: 144.4442975 | DC123: 148.6602201 | DD123: 152.9815407 | DE123: 157.4108944 | DF123: 161.9509819 | DG123: 166.6045716 | DH123: 171.3745011 | DI123: 176.2636788 | DJ123: 181.2750859 | DK123: 186.4117782 | DM123: =MATCH(TRUE,BG123:CF123+$AF$64:$BE$64-$CJ123>DM$61,0)+Dashboard!$C$15-1 -> 2035 | DN123: =MATCH(TRUE,CL123:DK123-$CJ123>DM$61,0)+Dashboard!$C$15-1-$DM$59 -> 2032 | DP123: 3 | DQ123: =INDEX('Deferral Value Calculation'!$D$66:$D$91,MATCH($DP123+($E$52-$E$51),'Deferral Value Calculation'!$B$66:$B$91,0)) -INDEX('Deferral Value Calculation'!$D$66:$D$91,MATCH($E$52-$E$51,'Deferral Value Calculation'!$B$66:$B$91,0)) -> 3949106.113
B124: 0.4851735671 | D124: Random Walk 52 | E124: 0.2504704368 | F124: 0.2334771272 | G124: 0.09520828684 | H124: 0.5583589512 | I124: 0.7945887279 | J124: 0.596651768 | K124: 0.06099135091 | L124: 0.5805455681 | M124: 0.5455584975 | N124: 0.7160064924 | O124: 0.5722538265 | P124: 0.6942772764 | Q124: 0.2304973994 | R124: 0.1673659815 | S124: 0.5354794007 | T124: 0.712731144 | U124: 0.8812260646 | V124: 0.8886048501 | W124: 0.566874324 | X124: 0.2728995841 | Y124: 0.463956443 | Z124: 0.7944517812 | AA124: 0.7363572932 | AB124: 0.2996713856 | AC124: 0.2215281179 | AD124: 0.1444806663 | AF124: 0 | AG124: =NORMINV(F124,Dashboard!D$19,Dashboard!D$17) -> 1.431625951 | AH124: =NORMINV(G124,Dashboard!E$19,Dashboard!E$17) -> 0.7964083481 | AI124: =NORMINV(H124,Dashboard!F$19,Dashboard!F$17) -> 2.537428629 | AJ124: =NORMINV(I124,Dashboard!G$19,Dashboard!G$17) -> 3.419400042 | AK124: =NORMINV(J124,Dashboard!H$19,Dashboard!H$17) -> 2.787432489 | AL124: =NORMINV(K124,Dashboard!I$19,Dashboard!I$17) -> 0.5772242184 | AM124: =NORMINV(L124,Dashboard!J$19,Dashboard!J$17) -> 2.874532703 | AN124: =NORMINV(M124,Dashboard!K$19,Dashboard!K$17) -> 2.827590418 | AO124: =NORMINV(N124,Dashboard!L$19,Dashboard!L$17) -> 3.524103615 | AP124: =NORMINV(O124,Dashboard!M$19,Dashboard!M$17) -> 3.06580818 | AQ124: =NORMINV(P124,Dashboard!N$19,Dashboard!N$17) -> 3.611774756 | AR124: =NORMINV(Q124,Dashboard!O$19,Dashboard!O$17) -> 1.864001503 | AS124: =NORMINV(R124,Dashboard!P$19,Dashboard!P$17) -> 1.566520156 | AT124: =NORMINV(S124,Dashboard!Q$19,Dashboard!Q$17) -> 3.239752713 | AU124: =NORMINV(T124,Dashboard!R$19,Dashboard!R$17) -> 4.07156012 | AV124: =NORMINV(U124,Dashboard!S$19,Dashboard!S$17) -> 5.18314102 | AW124: =NORMINV(V124,Dashboard!T$19,Dashboard!T$17) -> 5.376188698 | AX124: =NORMINV(W124,Dashboard!U$19,Dashboard!U$17) -> 3.711949218 | AY124: =NORMINV(X124,Dashboard!V$19,Dashboard!V$17) -> 2.449326641 | AZ124: =NORMINV(Y124,Dashboard!W$19,Dashboard!W$17) -> 3.434252384 | BA124: =NORMINV(Z124,Dashboard!X$19,Dashboard!X$17) -> 5.202134252 | BB124: =NORMINV(AA124,Dashboard!Y$19,Dashboard!Y$17) -> 4.973535274 | BC124: =NORMINV(AB124,Dashboard!Z$19,Dashboard!Z$17) -> 2.856062656 | BD124: =NORMINV(AC124,Dashboard!AA$19,Dashboard!AA$17) -> 2.447651185 | BE124: =NORMINV(AD124,Dashboard!AB$19,Dashboard!AB$17) -> 1.911907815 | BG124: =Dashboard!$C$16 -> 90 | BH124: 91.43162595 | BI124: 92.2280343 | BJ124: 94.76546293 | BK124: 98.18486297 | BL124: 100.9722955 | BM124: 101.5495197 | BN124: 104.4240524 | BO124: 107.2516428 | BP124: 110.7757464 | BQ124: 113.8415546 | BR124: 117.4533294 | BS124: 119.3173309 | BT124: 120.883851 | BU124: 124.1236037 | BV124: 128.1951638 | BW124: 133.3783049 | BX124: 138.7544936 | BY124: 142.4664428 | BZ124: 144.9157694 | CA124: 148.3500218 | CB124: 153.5521561 | CC124: 158.5256913 | CD124: 161.381754 | CE124: 163.8294052 | CF124: 165.741313 | CH124: =MATCH(TRUE,BG124:CF124+$AF$64:$BE$64>CH$61,0)+Dashboard!$C$15-1 -> 2030 | CJ124: =Dashboard!$C$13 -> 10 | CL124: =IF(CL$63<$CH124,BG124,CK124+AF$72) -> 90 | CM124: 91.43162595 | CN124: 92.2280343 | CO124: 94.76546293 | CP124: 98.18486297 | CQ124: 101.319637 | CR124: 104.5327804 | CS124: 107.8262524 | CT124: 111.2020612 | CU124: 114.6622652 | CV124: 118.2089743 | CW124: 121.8443512 | CX124: 125.5706124 | CY124: 129.3900302 | CZ124: 133.3049335 | DA124: 137.3177093 | DB124: 141.4308045 | DC124: 145.6467271 | DD124: 149.9680478 | DE124: 154.3974014 | DF124: 158.9374889 | DG124: 163.5910786 | DH124: 168.3610081 | DI124: 173.2501858 | DJ124: 178.2615929 | DK124: 183.3982852 | DM124: =MATCH(TRUE,BG124:CF124+$AF$64:$BE$64-$CJ124>DM$61,0)+Dashboard!$C$15-1 -> 2034 | DN124: =MATCH(TRUE,CL124:DK124-$CJ124>DM$61,0)+Dashboard!$C$15-1-$DM$59 -> 2033 | DP124: 1 | DQ124: =INDEX('Deferral Value Calculation'!$D$66:$D$91,MATCH($DP124+($E$52-$E$51),'Deferral Value Calculation'!$B$66:$B$91,0)) -INDEX('Deferral Value Calculation'!$D$66:$D$91,MATCH($E$52-$E$51,'Deferral Value Calculation'!$B$66:$B$91,0)) -> 1341049.659
B125: 0.4657077245 | D125: Random Walk 53 | E125: 0.2969649675 | F125: 0.4074659584 | G125: 0.4528778236 | H125: 0.1637110004 | I125: 0.1793087472 | J125: 0.2694291995 | K125: 0.6022561994 | L125: 0.3464651791 | M125: 0.1123768183 | N125: 0.4100382773 | O125: 0.9533136507 | P125: 0.7494505734 | Q125: 0.3602534934 | R125: 0.5690952718 | S125: 0.8780997856 | T125: 0.7415318822 | U125: 0.1899014398 | V125: 0.8205681845 | W125: 0.005349950936 | X125: 0.6724678059 | Y125: 0.1961467789 | Z125: 0.9353396354 | AA125: 0.6798126199 | AB125: 0.2191725541 | AC125: 0.2031555995 | AD125: 0.6938474394 | AF125: 0 | AG125: =NORMINV(F125,Dashboard!D$19,Dashboard!D$17) -> 1.986673107 | AH125: =NORMINV(G125,Dashboard!E$19,Dashboard!E$17) -> 2.169727163 | AI125: =NORMINV(H125,Dashboard!F$19,Dashboard!F$17) -> 1.206396178 | AJ125: =NORMINV(I125,Dashboard!G$19,Dashboard!G$17) -> 1.31084194 | AK125: =NORMINV(J125,Dashboard!H$19,Dashboard!H$17) -> 1.720449401 | AL125: =NORMINV(K125,Dashboard!I$19,Dashboard!I$17) -> 2.87557611 | AM125: =NORMINV(L125,Dashboard!J$19,Dashboard!J$17) -> 2.094126055 | AN125: =NORMINV(M125,Dashboard!K$19,Dashboard!K$17) -> 1.051116082 | AO125: =NORMINV(N125,Dashboard!L$19,Dashboard!L$17) -> 2.429644841 | AP125: =NORMINV(O125,Dashboard!M$19,Dashboard!M$17) -> 5.167298537 | AQ125: =NORMINV(P125,Dashboard!N$19,Dashboard!N$17) -> 3.849031183 | AR125: =NORMINV(Q125,Dashboard!O$19,Dashboard!O$17) -> 2.424074903 | AS125: =NORMINV(R125,Dashboard!P$19,Dashboard!P$17) -> 3.289369664 | AT125: =NORMINV(S125,Dashboard!Q$19,Dashboard!Q$17) -> 4.909198526 | AU125: =NORMINV(T125,Dashboard!R$19,Dashboard!R$17) -> 4.209368741 | AV125: =NORMINV(U125,Dashboard!S$19,Dashboard!S$17) -> 1.82769146 | AW125: =NORMINV(V125,Dashboard!T$19,Dashboard!T$17) -> 4.872480195 | AX125: =NORMINV(W125,Dashboard!U$19,Dashboard!U$17) -> -0.9455238155 | AY125: =NORMINV(X125,Dashboard!V$19,Dashboard!V$17) -> 4.293085427 | AZ125: =NORMINV(Y125,Dashboard!W$19,Dashboard!W$17) -> 2.058424278 | BA125: =NORMINV(Z125,Dashboard!X$19,Dashboard!X$17) -> 6.48299623 | BB125: =NORMINV(AA125,Dashboard!Y$19,Dashboard!Y$17) -> 4.661799933 | BC125: =NORMINV(AB125,Dashboard!Z$19,Dashboard!Z$17) -> 2.372558441 | BD125: =NORMINV(AC125,Dashboard!AA$19,Dashboard!AA$17) -> 2.321869585 | BE125: =NORMINV(AD125,Dashboard!AB$19,Dashboard!AB$17) -> 5.100849591 | BG125: =Dashboard!$C$16 -> 90 | BH125: 91.98667311 | BI125: 94.15640027 | BJ125: 95.36279645 | BK125: 96.67363839 | BL125: 98.39408779 | BM125: 101.2696639 | BN125: 103.36379 | BO125: 104.414906 | BP125: 106.8445509 | BQ125: 112.0118494 | BR125: 115.8608806 | BS125: 118.2849555 | BT125: 121.5743252 | BU125: 126.4835237 | BV125: 130.6928924 | BW125: 132.5205839 | BX125: 137.3930641 | BY125: 136.4475403 | BZ125: 140.7406257 | CA125: 142.79905 | CB125: 149.2820462 | CC125: 153.9438461 | CD125: 156.3164046 | CE125: 158.6382742 | CF125: 163.7391238 | CH125: =MATCH(TRUE,BG125:CF125+$AF$64:$BE$64>CH$61,0)+Dashboard!$C$15-1 -> 2031 | CJ125: =Dashboard!$C$13 -> 10 | CL125: =IF(CL$63<$CH125,BG125,CK125+AF$72) -> 90 | CM125: 91.98667311 | CN125: 94.15640027 | CO125: 95.36279645 | CP125: 96.67363839 | CQ125: 98.39408779 | CR125: 101.6072312 | CS125: 104.9007032 | CT125: 108.276512 | CU125: 111.736716 | CV125: 115.2834251 | CW125: 118.9188019 | CX125: 122.6450632 | CY125: 126.464481 | CZ125: 130.3793842 | DA125: 134.39216 | DB125: 138.5052553 | DC125: 142.7211779 | DD125: 147.0424985 | DE125: 151.4718522 | DF125: 156.0119397 | DG125: 160.6655294 | DH125: 165.4354589 | DI125: 170.3246365 | DJ125: 175.3360437 | DK125: 180.472736 | DM125: =MATCH(TRUE,BG125:CF125+$AF$64:$BE$64-$CJ125>DM$61,0)+Dashboard!$C$15-1 -> 2035 | DN125: =MATCH(TRUE,CL125:DK125-$CJ125>DM$61,0)+Dashboard!$C$15-1-$DM$59 -> 2034 | DP125: 1 | DQ125: =INDEX('Deferral Value Calculation'!$D$66:$D$91,MATCH($DP125+($E$52-$E$51),'Deferral Value Calculation'!$B$66:$B$91,0)) -INDEX('Deferral Value Calculation'!$D$66:$D$91,MATCH($E$52-$E$51,'Deferral Value Calculation'!$B$66:$B$91,0)) -> 1341049.659
B126: 0.5511573402 | D126: Random Walk 54 | E126: 0.9223999828 | F126: 0.03041745752 | G126: 0.2649090044 | H126: 0.7242551675 | I126: 0.746442322 | J126: 0.4292078562 | K126: 0.9921259521 | L126: 0.9868580197 | M126: 0.3871117158 | N126: 0.106040623 | O126: 0.5497976765 | P126: 0.5970240052 | Q126: 0.4446277427 | R126: 0.1449722501 | S126: 0.4722066857 | T126: 0.8374829495 | U126: 0.4816998388 | V126: 0.6546759012 | W126: 0.2285000794 | X126: 0.6484847213 | Y126: 0.03223273659 | Z126: 0.4551538658 | AA126: 0.7108741647 | AB126: 0.8634927902 | AC126: 0.8027838581 | AD126: 0.8163134769 | AF126: 0 | AG126: =NORMINV(F126,Dashboard!D$19,Dashboard!D$17) -> 0.140969922 | AH126: =NORMINV(G126,Dashboard!E$19,Dashboard!E$17) -> 1.581760184 | AI126: =NORMINV(H126,Dashboard!F$19,Dashboard!F$17) -> 3.067794064 | AJ126: =NORMINV(I126,Dashboard!G$19,Dashboard!G$17) -> 3.226636821 | AK126: =NORMINV(J126,Dashboard!H$19,Dashboard!H$17) -> 2.26205461 | AL126: =NORMINV(K126,Dashboard!I$19,Dashboard!I$17) -> 5.619183634 | AM126: =NORMINV(L126,Dashboard!J$19,Dashboard!J$17) -> 5.50824117 | AN126: =NORMINV(M126,Dashboard!K$19,Dashboard!K$17) -> 2.290940084 | AO126: =NORMINV(N126,Dashboard!L$19,Dashboard!L$17) -> 1.030956688 | AP126: =NORMINV(O126,Dashboard!M$19,Dashboard!M$17) -> 2.985774055 | AQ126: =NORMINV(P126,Dashboard!N$19,Dashboard!N$17) -> 3.233951804 | AR126: =NORMINV(Q126,Dashboard!O$19,Dashboard!O$17) -> 2.746653796 | AS126: =NORMINV(R126,Dashboard!P$19,Dashboard!P$17) -> 1.424877702 | AT126: =NORMINV(S126,Dashboard!Q$19,Dashboard!Q$17) -> 2.993520197 | AU126: =NORMINV(T126,Dashboard!R$19,Dashboard!R$17) -> 4.74361634 | AV126: =NORMINV(U126,Dashboard!S$19,Dashboard!S$17) -> 3.183904255 | AW126: =NORMINV(V126,Dashboard!T$19,Dashboard!T$17) -> 4.00478423 | AX126: =NORMINV(W126,Dashboard!U$19,Dashboard!U$17) -> 2.150396545 | AY126: =NORMINV(X126,Dashboard!V$19,Dashboard!V$17) -> 4.178149202 | AZ126: =NORMINV(Y126,Dashboard!W$19,Dashboard!W$17) -> 0.2716661079 | BA126: =NORMINV(Z126,Dashboard!X$19,Dashboard!X$17) -> 3.479222357 | BB126: =NORMINV(AA126,Dashboard!Y$19,Dashboard!Y$17) -> 4.8295248 | BC126: =NORMINV(AB126,Dashboard!Z$19,Dashboard!Z$17) -> 5.996518014 | BD126: =NORMINV(AC126,Dashboard!AA$19,Dashboard!AA$17) -> 5.660973087 | BE126: =NORMINV(AD126,Dashboard!AB$19,Dashboard!AB$17) -> 5.903827242 | BG126: =Dashboard!$C$16 -> 90 | BH126: 90.14096992 | BI126: 91.72273011 | BJ126: 94.79052417 | BK126: 98.01716099 | BL126: 100.2792156 | BM126: 105.8983992 | BN126: 111.4066404 | BO126: 113.6975805 | BP126: 114.7285372 | BQ126: 117.7143112 | BR126: 120.948263 | BS126: 123.6949168 | BT126: 125.1197945 | BU126: 128.1133147 | BV126: 132.8569311 | BW126: 136.0408353 | BX126: 140.0456196 | BY126: 142.1960161 | BZ126: 146.3741653 | CA126: 146.6458314 | CB126: 150.1250538 | CC126: 154.9545786 | CD126: 160.9510966 | CE126: 166.6120697 | CF126: 172.5158969 | CH126: =MATCH(TRUE,BG126:CF126+$AF$64:$BE$64>CH$61,0)+Dashboard!$C$15-1 -> 2030 | CJ126: =Dashboard!$C$13 -> 10 | CL126: =IF(CL$63<$CH126,BG126,CK126+AF$72) -> 90 | CM126: 90.14096992 | CN126: 91.72273011 | CO126: 94.79052417 | CP126: 98.01716099 | CQ126: 101.151935 | CR126: 104.3650785 | CS126: 107.6585504 | CT126: 111.0343592 | CU126: 114.4945632 | CV126: 118.0412724 | CW126: 121.6766492 | CX126: 125.4029105 | CY126: 129.2223283 | CZ126: 133.1372315 | DA126: 137.1500073 | DB126: 141.2631025 | DC126: 145.4790251 | DD126: 149.8003458 | DE126: 154.2296994 | DF126: 158.769787 | DG126: 163.4233767 | DH126: 168.1933061 | DI126: 173.0824838 | DJ126: 178.0938909 | DK126: 183.2305832 | DM126: =MATCH(TRUE,BG126:CF126+$AF$64:$BE$64-$CJ126>DM$61,0)+Dashboard!$C$15-1 -> 2032 | DN126: =MATCH(TRUE,CL126:DK126-$CJ126>DM$61,0)+Dashboard!$C$15-1-$DM$59 -> 2033 | DP126: -1 | DQ126: =INDEX('Deferral Value Calculation'!$D$66:$D$91,MATCH($DP126+($E$52-$E$51),'Deferral Value Calculation'!$B$66:$B$91,0)) -INDEX('Deferral Value Calculation'!$D$66:$D$91,MATCH($E$52-$E$51,'Deferral Value Calculation'!$B$66:$B$91,0)) -> -1366352.483
B127: 0.4497473027 | D127: Random Walk 55 | E127: 0.4166691343 | F127: 0.8510258855 | G127: 0.05446102102 | H127: 0.5673997106 | I127: 0.3301078882 | J127: 0.1401730523 | K127: 0.2609008287 | L127: 0.7282999711 | M127: 0.4488066848 | N127: 0.08861340004 | O127: 0.01241401814 | P127: 0.4467833027 | Q127: 0.6072612109 | R127: 0.111815895 | S127: 0.5609141215 | T127: 0.08064886366 | U127: 0.9750696524 | V127: 0.04754213496 | W127: 0.5438007476 | X127: 0.6418281948 | Y127: 0.6433548707 | Z127: 0.9826832564 | AA127: 0.5132544693 | AB127: 0.7748820733 | AC127: 0.03773975831 | AD127: 0.8269797249 | AF127: 0 | AG127: =NORMINV(F127,Dashboard!D$19,Dashboard!D$17) -> 3.420948837 | AH127: =NORMINV(G127,Dashboard!E$19,Dashboard!E$17) -> 0.4577247493 | AI127: =NORMINV(H127,Dashboard!F$19,Dashboard!F$17) -> 2.564552068 | AJ127: =NORMINV(I127,Dashboard!G$19,Dashboard!G$17) -> 1.890409143 | AK127: =NORMINV(J127,Dashboard!H$19,Dashboard!H$17) -> 1.143014868 | AL127: =NORMINV(K127,Dashboard!I$19,Dashboard!I$17) -> 1.730328191 | AM127: =NORMINV(L127,Dashboard!J$19,Dashboard!J$17) -> 3.402122355 | AN127: =NORMINV(M127,Dashboard!K$19,Dashboard!K$17) -> 2.502467091 | AO127: =NORMINV(N127,Dashboard!L$19,Dashboard!L$17) -> 0.8918575856 | AP127: =NORMINV(O127,Dashboard!M$19,Dashboard!M$17) -> -0.3429082094 | AQ127: =NORMINV(P127,Dashboard!N$19,Dashboard!N$17) -> 2.687516203 | AR127: =NORMINV(Q127,Dashboard!O$19,Dashboard!O$17) -> 3.353970793 | AS127: =NORMINV(R127,Dashboard!P$19,Dashboard!P$17) -> 1.18478859 | AT127: =NORMINV(S127,Dashboard!Q$19,Dashboard!Q$17) -> 3.339371535 | AU127: =NORMINV(T127,Dashboard!R$19,Dashboard!R$17) -> 0.9526123302 | AV127: =NORMINV(U127,Dashboard!S$19,Dashboard!S$17) -> 6.454053695 | AW127: =NORMINV(V127,Dashboard!T$19,Dashboard!T$17) -> 0.5525137256 | AX127: =NORMINV(W127,Dashboard!U$19,Dashboard!U$17) -> 3.61196481 | AY127: =NORMINV(X127,Dashboard!V$19,Dashboard!V$17) -> 4.146771476 | AZ127: =NORMINV(Y127,Dashboard!W$19,Dashboard!W$17) -> 4.257798345 | BA127: =NORMINV(Z127,Dashboard!X$19,Dashboard!X$17) -> 7.581378678 | BB127: =NORMINV(AA127,Dashboard!Y$19,Dashboard!Y$17) -> 3.841848502 | BC127: =NORMINV(AB127,Dashboard!Z$19,Dashboard!Z$17) -> 5.335837729 | BD127: =NORMINV(AC127,Dashboard!AA$19,Dashboard!AA$17) -> 0.4416256816 | BE127: =NORMINV(AD127,Dashboard!AB$19,Dashboard!AB$17) -> 5.987035265 | BG127: =Dashboard!$C$16 -> 90 | BH127: 93.42094884 | BI127: 93.87867359 | BJ127: 96.44322565 | BK127: 98.3336348 | BL127: 99.47664967 | BM127: 101.2069779 | BN127: 104.6091002 | BO127: 107.1115673 | BP127: 108.0034249 | BQ127: 107.6605167 | BR127: 110.3480329 | BS127: 113.7020037 | BT127: 114.8867923 | BU127: 118.2261638 | BV127: 119.1787761 | BW127: 125.6328298 | BX127: 126.1853436 | BY127: 129.7973084 | BZ127: 133.9440798 | CA127: 138.2018782 | CB127: 145.7832569 | CC127: 149.6251054 | CD127: 154.9609431 | CE127: 155.4025688 | CF127: 161.389604 | CH127: =MATCH(TRUE,BG127:CF127+$AF$64:$BE$64>CH$61,0)+Dashboard!$C$15-1 -> 2031 | CJ127: =Dashboard!$C$13 -> 10 | CL127: =IF(CL$63<$CH127,BG127,CK127+AF$72) -> 90 | CM127: 93.42094884 | CN127: 93.87867359 | CO127: 96.44322565 | CP127: 98.3336348 | CQ127: 99.47664967 | CR127: 102.6897931 | CS127: 105.9832651 | CT127: 109.3590739 | CU127: 112.8192779 | CV127: 116.365987 | CW127: 120.0013638 | CX127: 123.7276251 | CY127: 127.5470429 | CZ127: 131.4619461 | DA127: 135.4747219 | DB127: 139.5878171 | DC127: 143.8037397 | DD127: 148.1250604 | DE127: 152.5544141 | DF127: 157.0945016 | DG127: 161.7480913 | DH127: 166.5180207 | DI127: 171.4071984 | DJ127: 176.4186055 | DK127: 181.5552978 | DM127: =MATCH(TRUE,BG127:CF127+$AF$64:$BE$64-$CJ127>DM$61,0)+Dashboard!$C$15-1 -> 2036 | DN127: =MATCH(TRUE,CL127:DK127-$CJ127>DM$61,0)+Dashboard!$C$15-1-$DM$59 -> 2033 | DP127: 3 | DQ127: =INDEX('Deferral Value Calculation'!$D$66:$D$91,MATCH($DP127+($E$52-$E$51),'Deferral Value Calculation'!$B$66:$B$91,0)) -INDEX('Deferral Value Calculation'!$D$66:$D$91,MATCH($E$52-$E$51,'Deferral Value Calculation'!$B$66:$B$91,0)) -> 3949106.113
B128: 0.5208738535 | D128: Random Walk 56 | E128: 0.7923625178 | F128: 0.8612106366 | G128: 0.564249426 | H128: 0.7971696951 | I128: 0.8004059078 | J128: 0.3478356626 | K128: 0.4993783736 | L128: 0.02681462916 | M128: 0.9819014485 | N128: 0.7374948883 | O128: 0.7512398418 | P128: 0.531172235 | Q128: 0.08708845466 | R128: 0.4812840678 | S128: 0.8377624776 | T128: 0.1798304539 | U128: 0.08807861047 | V128: 0.5798658318 | W128: 0.7590426132 | X128: 0.5574408477 | Y128: 0.2535542752 | Z128: 0.2633106145 | AA128: 0.5350725974 | AB128: 0.2454052284 | AC128: 0.2908228907 | AD128: 0.6929259659 | AF128: 0 | AG128: =NORMINV(F128,Dashboard!D$19,Dashboard!D$17) -> 3.471496424 | AH128: =NORMINV(G128,Dashboard!E$19,Dashboard!E$17) -> 2.492770283 | AI128: =NORMINV(H128,Dashboard!F$19,Dashboard!F$17) -> 3.346764363 | AJ128: =NORMINV(I128,Dashboard!G$19,Dashboard!G$17) -> 3.444387265 | AK128: =NORMINV(J128,Dashboard!H$19,Dashboard!H$17) -> 1.997827773 | AL128: =NORMINV(K128,Dashboard!I$19,Dashboard!I$17) -> 2.543685165 | AM128: =NORMINV(L128,Dashboard!J$19,Dashboard!J$17) -> 0.09156189257 | AN128: =NORMINV(M128,Dashboard!K$19,Dashboard!K$17) -> 5.475734014 | AO128: =NORMINV(N128,Dashboard!L$19,Dashboard!L$17) -> 3.612682165 | AP128: =NORMINV(O128,Dashboard!M$19,Dashboard!M$17) -> 3.763069009 | AQ128: =NORMINV(P128,Dashboard!N$19,Dashboard!N$17) -> 2.99282998 | AR128: =NORMINV(Q128,Dashboard!O$19,Dashboard!O$17) -> 0.946319722 | AS128: =NORMINV(R128,Dashboard!P$19,Dashboard!P$17) -> 2.954993093 | AT128: =NORMINV(S128,Dashboard!Q$19,Dashboard!Q$17) -> 4.629682981 | AU128: =NORMINV(T128,Dashboard!R$19,Dashboard!R$17) -> 1.723103429 | AV128: =NORMINV(U128,Dashboard!S$19,Dashboard!S$17) -> 1.054698043 | AW128: =NORMINV(V128,Dashboard!T$19,Dashboard!T$17) -> 3.676740447 | AX128: =NORMINV(W128,Dashboard!U$19,Dashboard!U$17) -> 4.6274382 | AY128: =NORMINV(X128,Dashboard!V$19,Dashboard!V$17) -> 3.762746029 | AZ128: =NORMINV(Y128,Dashboard!W$19,Dashboard!W$17) -> 2.403946224 | BA128: =NORMINV(Z128,Dashboard!X$19,Dashboard!X$17) -> 2.519669906 | BB128: =NORMINV(AA128,Dashboard!Y$19,Dashboard!Y$17) -> 3.945389764 | BC128: =NORMINV(AB128,Dashboard!Z$19,Dashboard!Z$17) -> 2.539063187 | BD128: =NORMINV(AC128,Dashboard!AA$19,Dashboard!AA$17) -> 2.876571049 | BE128: =NORMINV(AD128,Dashboard!AB$19,Dashboard!AB$17) -> 5.095509114 | BG128: =Dashboard!$C$16 -> 90 | BH128: 93.47149642 | BI128: 95.96426671 | BJ128: 99.31103107 | BK128: 102.7554183 | BL128: 104.7532461 | BM128: 107.2969313 | BN128: 107.3884932 | BO128: 112.8642272 | BP128: 116.4769093 | BQ128: 120.2399784 | BR128: 123.2328083 | BS128: 124.1791281 | BT128: 127.1341212 | BU128: 131.7638041 | BV128: 133.4869076 | BW128: 134.5416056 | BX128: 138.218346 | BY128: 142.8457842 | BZ128: 146.6085303 | CA128: 149.0124765 | CB128: 151.5321464 | CC128: 155.4775362 | CD128: 158.0165994 | CE128: 160.8931704 | CF128: 165.9886795 | CH128: =MATCH(TRUE,BG128:CF128+$AF$64:$BE$64>CH$61,0)+Dashboard!$C$15-1 -> 2029 | CJ128: =Dashboard!$C$13 -> 10 | CL128: =IF(CL$63<$CH128,BG128,CK128+AF$72) -> 90 | CM128: 93.47149642 | CN128: 95.96426671 | CO128: 99.31103107 | CP128: 102.3693472 | CQ128: 105.5041213 | CR128: 108.7172647 | CS128: 112.0107367 | CT128: 115.3865455 | CU128: 118.8467495 | CV128: 122.3934586 | CW128: 126.0288354 | CX128: 129.7550967 | CY128: 133.5745145 | CZ128: 137.4894177 | DA128: 141.5021935 | DB128: 145.6152888 | DC128: 149.8312113 | DD128: 154.152532 | DE128: 158.5818857 | DF128: 163.1219732 | DG128: 167.7755629 | DH128: 172.5454923 | DI128: 177.43467 | DJ128: 182.4460772 | DK128: 187.5827695 | DM128: =MATCH(TRUE,BG128:CF128+$AF$64:$BE$64-$CJ128>DM$61,0)+Dashboard!$C$15-1 -> 2033 | DN128: =MATCH(TRUE,CL128:DK128-$CJ128>DM$61,0)+Dashboard!$C$15-1-$DM$59 -> 2032 | DP128: 1 | DQ128: =INDEX('Deferral Value Calculation'!$D$66:$D$91,MATCH($DP128+($E$52-$E$51),'Deferral Value Calculation'!$B$66:$B$91,0)) -INDEX('Deferral Value Calculation'!$D$66:$D$91,MATCH($E$52-$E$51,'Deferral Value Calculation'!$B$66:$B$91,0)) -> 1341049.659
B129: 0.4718071042 | D129: Random Walk 57 | E129: 0.6807342001 | F129: 0.7900674625 | G129: 0.7451520866 | H129: 0.5121435075 | I129: 0.3213128943 | J129: 0.9441856034 | K129: 0.03542018836 | L129: 0.8218619428 | M129: 0.1173215877 | N129: 0.3436577244 | O129: 0.8832588686 | P129: 0.7656796696 | Q129: 0.7170020938 | R129: 0.07304042744 | S129: 0.1680505324 | T129: 0.1255545537 | U129: 0.9645089048 | V129: 0.3710608626 | W129: 0.9419045813 | X129: 0.4378037163 | Y129: 0.373837602 | Z129: 0.349545194 | AA129: 0.5115919848 | AB129: 0.1863562529 | AC129: 0.08524215515 | AD129: 0.0006901129286 | AF129: 0 | AG129: =NORMINV(F129,Dashboard!D$19,Dashboard!D$17) -> 3.157487269 | AH129: =NORMINV(G129,Dashboard!E$19,Dashboard!E$17) -> 3.066518452 | AI129: =NORMINV(H129,Dashboard!F$19,Dashboard!F$17) -> 2.399889585 | AJ129: =NORMINV(I129,Dashboard!G$19,Dashboard!G$17) -> 1.860829871 | AK129: =NORMINV(J129,Dashboard!H$19,Dashboard!H$17) -> 4.45916007 | AL129: =NORMINV(K129,Dashboard!I$19,Dashboard!I$17) -> 0.2462942619 | AM129: =NORMINV(L129,Dashboard!J$19,Dashboard!J$17) -> 3.812833787 | AN129: =NORMINV(M129,Dashboard!K$19,Dashboard!K$17) -> 1.08521854 | AO129: =NORMINV(N129,Dashboard!L$19,Dashboard!L$17) -> 2.189697266 | AP129: =NORMINV(O129,Dashboard!M$19,Dashboard!M$17) -> 4.483875254 | AQ129: =NORMINV(P129,Dashboard!N$19,Dashboard!N$17) -> 3.923816437 | AR129: =NORMINV(Q129,Dashboard!O$19,Dashboard!O$17) -> 3.799413839 | AS129: =NORMINV(R129,Dashboard!P$19,Dashboard!P$17) -> 0.8268319663 | AT129: =NORMINV(S129,Dashboard!Q$19,Dashboard!Q$17) -> 1.60991514 | AU129: =NORMINV(T129,Dashboard!R$19,Dashboard!R$17) -> 1.354876476 | AV129: =NORMINV(U129,Dashboard!S$19,Dashboard!S$17) -> 6.200584893 | AW129: =NORMINV(V129,Dashboard!T$19,Dashboard!T$17) -> 2.790609961 | AX129: =NORMINV(W129,Dashboard!U$19,Dashboard!U$17) -> 6.112850816 | AY129: =NORMINV(X129,Dashboard!V$19,Dashboard!V$17) -> 3.234564607 | AZ129: =NORMINV(Y129,Dashboard!W$19,Dashboard!W$17) -> 3.0183801 | BA129: =NORMINV(Z129,Dashboard!X$19,Dashboard!X$17) -> 2.974306417 | BB129: =NORMINV(AA129,Dashboard!Y$19,Dashboard!Y$17) -> 3.833970571 | BC129: =NORMINV(AB129,Dashboard!Z$19,Dashboard!Z$17) -> 2.147093181 | BD129: =NORMINV(AC129,Dashboard!AA$19,Dashboard!AA$17) -> 1.249378862 | BE129: =NORMINV(AD129,Dashboard!AB$19,Dashboard!AB$17) -> -2.439245936 | BG129: =Dashboard!$C$16 -> 90 | BH129: 93.15748727 | BI129: 96.22400572 | BJ129: 98.62389531 | BK129: 100.4847252 | BL129: 104.9438852 | BM129: 105.1901795 | BN129: 109.0030133 | BO129: 110.0882318 | BP129: 112.2779291 | BQ129: 116.7618044 | BR129: 120.6856208 | BS129: 124.4850346 | BT129: 125.3118666 | BU129: 126.9217817 | BV129: 128.2766582 | BW129: 134.4772431 | BX129: 137.2678531 | BY129: 143.3807039 | BZ129: 146.6152685 | CA129: 149.6336486 | CB129: 152.607955 | CC129: 156.4419256 | CD129: 158.5890188 | CE129: 159.8383976 | CF129: 157.3991517 | CH129: =MATCH(TRUE,BG129:CF129+$AF$64:$BE$64>CH$61,0)+Dashboard!$C$15-1 -> 2029 | CJ129: =Dashboard!$C$13 -> 10 | CL129: =IF(CL$63<$CH129,BG129,CK129+AF$72) -> 90 | CM129: 93.15748727 | CN129: 96.22400572 | CO129: 98.62389531 | CP129: 101.6822115 | CQ129: 104.8169855 | CR129: 108.0301289 | CS129: 111.3236009 | CT129: 114.6994097 | CU129: 118.1596137 | CV129: 121.7063228 | CW129: 125.3416997 | CX129: 129.0679609 | CY129: 132.8873787 | CZ129: 136.802282 | DA129: 140.8150578 | DB129: 144.928153 | DC129: 149.1440756 | DD129: 153.4653962 | DE129: 157.8947499 | DF129: 162.4348374 | DG129: 167.0884271 | DH129: 171.8583566 | DI129: 176.7475343 | DJ129: 181.7589414 | DK129: 186.8956337 | DM129: =MATCH(TRUE,BG129:CF129+$AF$64:$BE$64-$CJ129>DM$61,0)+Dashboard!$C$15-1 -> 2033 | DN129: =MATCH(TRUE,CL129:DK129-$CJ129>DM$61,0)+Dashboard!$C$15-1-$DM$59 -> 2032 | DP129: 1 | DQ129: =INDEX('Deferral Value Calculation'!$D$66:$D$91,MATCH($DP129+($E$52-$E$51),'Deferral Value Calculation'!$B$66:$B$91,0)) -INDEX('Deferral Value Calculation'!$D$66:$D$91,MATCH($E$52-$E$51,'Deferral Value Calculation'!$B$66:$B$91,0)) -> 1341049.659
B130: 0.4628251697 | D130: Random Walk 58 | E130: 0.9544974887 | F130: 0.1086351406 | G130: 0.9575653547 | H130: 0.6721497995 | I130: 0.7136844078 | J130: 0.5979465932 | K130: 0.6499206608 | L130: 0.3385251078 | M130: 0.6645478792 | N130: 0.1505770706 | O130: 0.1462529463 | P130: 0.2999971448 | Q130: 0.1527333752 | R130: 0.7400295208 | S130: 0.4292624271 | T130: 0.7503860871 | U130: 0.8989551256 | V130: 0.04248475296 | W130: 0.3342153525 | X130: 0.5730841954 | Y130: 0.6614540232 | Z130: 0.07026233675 | AA130: 0.2505626822 | AB130: 0.1527573202 | AC130: 0.305615765 | AD130: 0.4173518554 | AF130: 0 | AG130: =NORMINV(F130,Dashboard!D$19,Dashboard!D$17) -> 0.8619533937 | AH130: =NORMINV(G130,Dashboard!E$19,Dashboard!E$17) -> 4.293207036 | AI130: =NORMINV(H130,Dashboard!F$19,Dashboard!F$17) -> 2.89088856 | AJ130: =NORMINV(I130,Dashboard!G$19,Dashboard!G$17) -> 3.106509885 | AK130: =NORMINV(J130,Dashboard!H$19,Dashboard!H$17) -> 2.791587086 | AL130: =NORMINV(K130,Dashboard!I$19,Dashboard!I$17) -> 3.035844933 | AM130: =NORMINV(L130,Dashboard!J$19,Dashboard!J$17) -> 2.065932129 | AN130: =NORMINV(M130,Dashboard!K$19,Dashboard!K$17) -> 3.242759377 | AO130: =NORMINV(N130,Dashboard!L$19,Dashboard!L$17) -> 1.32415206 | AP130: =NORMINV(O130,Dashboard!M$19,Dashboard!M$17) -> 1.331012795 | AQ130: =NORMINV(P130,Dashboard!N$19,Dashboard!N$17) -> 2.124991783 | AR130: =NORMINV(Q130,Dashboard!O$19,Dashboard!O$17) -> 1.439518997 | AS130: =NORMINV(R130,Dashboard!P$19,Dashboard!P$17) -> 3.99951911 | AT130: =NORMINV(S130,Dashboard!Q$19,Dashboard!Q$17) -> 2.825211773 | AU130: =NORMINV(T130,Dashboard!R$19,Dashboard!R$17) -> 4.253289095 | AV130: =NORMINV(U130,Dashboard!S$19,Dashboard!S$17) -> 5.337084353 | AW130: =NORMINV(V130,Dashboard!T$19,Dashboard!T$17) -> 0.4633566492 | AX130: =NORMINV(W130,Dashboard!U$19,Dashboard!U$17) -> 2.690463613 | AY130: =NORMINV(X130,Dashboard!V$19,Dashboard!V$17) -> 3.832488199 | AZ130: =NORMINV(Y130,Dashboard!W$19,Dashboard!W$17) -> 4.345912974 | BA130: =NORMINV(Z130,Dashboard!X$19,Dashboard!X$17) -> 0.9699462149 | BB130: =NORMINV(AA130,Dashboard!Y$19,Dashboard!Y$17) -> 2.507934596 | BC130: =NORMINV(AB130,Dashboard!Z$19,Dashboard!Z$17) -> 1.888970187 | BD130: =NORMINV(AC130,Dashboard!AA$19,Dashboard!AA$17) -> 2.961271086 | BE130: =NORMINV(AD130,Dashboard!AB$19,Dashboard!AB$17) -> 3.645022582 | BG130: =Dashboard!$C$16 -> 90 | BH130: 90.86195339 | BI130: 95.15516043 | BJ130: 98.04604899 | BK130: 101.1525589 | BL130: 103.944146 | BM130: 106.9799909 | BN130: 109.045923 | BO130: 112.2886824 | BP130: 113.6128345 | BQ130: 114.9438473 | BR130: 117.068839 | BS130: 118.508358 | BT130: 122.5078771 | BU130: 125.3330889 | BV130: 129.586378 | BW130: 134.9234624 | BX130: 135.386819 | BY130: 138.0772826 | BZ130: 141.9097708 | CA130: 146.2556838 | CB130: 147.22563 | CC130: 149.7335646 | CD130: 151.6225348 | CE130: 154.5838059 | CF130: 158.2288285 | CH130: =MATCH(TRUE,BG130:CF130+$AF$64:$BE$64>CH$61,0)+Dashboard!$C$15-1 -> 2029 | CJ130: =Dashboard!$C$13 -> 10 | CL130: =IF(CL$63<$CH130,BG130,CK130+AF$72) -> 90 | CM130: 90.86195339 | CN130: 95.15516043 | CO130: 98.04604899 | CP130: 101.1043651 | CQ130: 104.2391392 | CR130: 107.4522826 | CS130: 110.7457546 | CT130: 114.1215634 | CU130: 117.5817674 | CV130: 121.1284765 | CW130: 124.7638533 | CX130: 128.4901146 | CY130: 132.3095324 | CZ130: 136.2244356 | DA130: 140.2372115 | DB130: 144.3503067 | DC130: 148.5662293 | DD130: 152.8875499 | DE130: 157.3169036 | DF130: 161.8569911 | DG130: 166.5105808 | DH130: 171.2805103 | DI130: 176.169688 | DJ130: 181.1810951 | DK130: 186.3177874 | DM130: =MATCH(TRUE,BG130:CF130+$AF$64:$BE$64-$CJ130>DM$61,0)+Dashboard!$C$15-1 -> 2033 | DN130: =MATCH(TRUE,CL130:DK130-$CJ130>DM$61,0)+Dashboard!$C$15-1-$DM$59 -> 2032 | DP130: 1 | DQ130: =INDEX('Deferral Value Calculation'!$D$66:$D$91,MATCH($DP130+($E$52-$E$51),'Deferral Value Calculation'!$B$66:$B$91,0)) -INDEX('Deferral Value Calculation'!$D$66:$D$91,MATCH($E$52-$E$51,'Deferral Value Calculation'!$B$66:$B$91,0)) -> 1341049.659
B131: 0.5383978896 | D131: Random Walk 59 | E131: 0.1615026028 | F131: 0.3369412133 | G131: 0.0609341996 | H131: 0.7056345828 | I131: 0.149502733 | J131: 0.5679027797 | K131: 0.429805812 | L131: 0.5819786315 | M131: 0.9158586523 | N131: 0.7355485766 | O131: 0.900301053 | P131: 0.5693161969 | Q131: 0.4423219236 | R131: 0.4075347499 | S131: 0.8452155311 | T131: 0.2428013544 | U131: 0.7314368763 | V131: 0.1122288062 | W131: 0.9958502507 | X131: 0.843745736 | Y131: 0.8477218536 | Z131: 0.04878104951 | AA131: 0.7594241922 | AB131: 0.6519999894 | AC131: 0.1254730094 | AD131: 0.8285827751 | AF131: 0 | AG131: =NORMINV(F131,Dashboard!D$19,Dashboard!D$17) -> 1.776571185 | AH131: =NORMINV(G131,Dashboard!E$19,Dashboard!E$17) -> 0.5223902692 | AI131: =NORMINV(H131,Dashboard!F$19,Dashboard!F$17) -> 3.002960091 | AJ131: =NORMINV(I131,Dashboard!G$19,Dashboard!G$17) -> 1.16477615 | AK131: =NORMINV(J131,Dashboard!H$19,Dashboard!H$17) -> 2.695971321 | AL131: =NORMINV(K131,Dashboard!I$19,Dashboard!I$17) -> 2.320544103 | AM131: =NORMINV(L131,Dashboard!J$19,Dashboard!J$17) -> 2.879318871 | AN131: =NORMINV(M131,Dashboard!K$19,Dashboard!K$17) -> 4.516959161 | AO131: =NORMINV(N131,Dashboard!L$19,Dashboard!L$17) -> 3.604513301 | AP131: =NORMINV(O131,Dashboard!M$19,Dashboard!M$17) -> 4.61289703 | AQ131: =NORMINV(P131,Dashboard!N$19,Dashboard!N$17) -> 3.131679107 | AR131: =NORMINV(Q131,Dashboard!O$19,Dashboard!O$17) -> 2.738035536 | AS131: =NORMINV(R131,Dashboard!P$19,Dashboard!P$17) -> 2.672122593 | AT131: =NORMINV(S131,Dashboard!Q$19,Dashboard!Q$17) -> 4.677484849 | AU131: =NORMINV(T131,Dashboard!R$19,Dashboard!R$17) -> 2.070734721 | AV131: =NORMINV(U131,Dashboard!S$19,Dashboard!S$17) -> 4.264238818 | AW131: =NORMINV(V131,Dashboard!T$19,Dashboard!T$17) -> 1.311404718 | AX131: =NORMINV(W131,Dashboard!U$19,Dashboard!U$17) -> 7.942225122 | AY131: =NORMINV(X131,Dashboard!V$19,Dashboard!V$17) -> 5.281345852 | AZ131: =NORMINV(Y131,Dashboard!W$19,Dashboard!W$17) -> 5.443484666 | BA131: =NORMINV(Z131,Dashboard!X$19,Dashboard!X$17) -> 0.6326896963 | BB131: =NORMINV(AA131,Dashboard!Y$19,Dashboard!Y$17) -> 5.110141199 | BC131: =NORMINV(AB131,Dashboard!Z$19,Dashboard!Z$17) -> 4.630280552 | BD131: =NORMINV(AC131,Dashboard!AA$19,Dashboard!AA$17) -> 1.69127092 | BE131: =NORMINV(AD131,Dashboard!AB$19,Dashboard!AB$17) -> 5.999819074 | BG131: =Dashboard!$C$16 -> 90 | BH131: 91.77657118 | BI131: 92.29896145 | BJ131: 95.30192154 | BK131: 96.4666977 | BL131: 99.16266902 | BM131: 101.4832131 | BN131: 104.362532 | BO131: 108.8794912 | BP131: 112.4840045 | BQ131: 117.0969015 | BR131: 120.2285806 | BS131: 122.9666161 | BT131: 125.6387387 | BU131: 130.3162236 | BV131: 132.3869583 | BW131: 136.6511971 | BX131: 137.9626018 | BY131: 145.9048269 | BZ131: 151.1861728 | CA131: 156.6296575 | CB131: 157.2623472 | CC131: 162.3724884 | CD131: 167.0027689 | CE131: 168.6940398 | CF131: 174.6938589 | CH131: =MATCH(TRUE,BG131:CF131+$AF$64:$BE$64>CH$61,0)+Dashboard!$C$15-1 -> 2031 | CJ131: =Dashboard!$C$13 -> 10 | CL131: =IF(CL$63<$CH131,BG131,CK131+AF$72) -> 90 | CM131: 91.77657118 | CN131: 92.29896145 | CO131: 95.30192154 | CP131: 96.4666977 | CQ131: 99.16266902 | CR131: 102.3758124 | CS131: 105.6692844 | CT131: 109.0450932 | CU131: 112.5052972 | CV131: 116.0520063 | CW131: 119.6873832 | CX131: 123.4136444 | CY131: 127.2330622 | CZ131: 131.1479655 | DA131: 135.1607413 | DB131: 139.2738365 | DC131: 143.4897591 | DD131: 147.8110797 | DE131: 152.2404334 | DF131: 156.7805209 | DG131: 161.4341106 | DH131: 166.2040401 | DI131: 171.0932178 | DJ131: 176.1046249 | DK131: 181.2413172 | DM131: =MATCH(TRUE,BG131:CF131+$AF$64:$BE$64-$CJ131>DM$61,0)+Dashboard!$C$15-1 -> 2034 | DN131: =MATCH(TRUE,CL131:DK131-$CJ131>DM$61,0)+Dashboard!$C$15-1-$DM$59 -> 2034 | DP131: 0 | DQ131: =INDEX('Deferral Value Calculation'!$D$66:$D$91,MATCH($DP131+($E$52-$E$51),'Deferral Value Calculation'!$B$66:$B$91,0)) -INDEX('Deferral Value Calculation'!$D$66:$D$91,MATCH($E$52-$E$51,'Deferral Value Calculation'!$B$66:$B$91,0)) -> 0
B132: 0.5185229701 | D132: Random Walk 60 | E132: 0.3172100255 | F132: 0.8461468731 | G132: 0.0943601762 | H132: 0.3944046849 | I132: 0.5882431795 | J132: 0.2823560215 | K132: 0.9843982639 | L132: 0.8225706693 | M132: 0.1612156314 | N132: 0.3440692967 | O132: 0.9794628706 | P132: 0.3066456318 | Q132: 0.4452033348 | R132: 0.1454207535 | S132: 0.1636336393 | T132: 0.7366574441 | U132: 0.8757398035 | V132: 0.7091980471 | W132: 0.3445132043 | X132: 0.4441646794 | Y132: 0.891787549 | Z132: 0.6127351332 | AA132: 0.5049450213 | AB132: 0.6622032444 | AC132: 0.1530557768 | AD132: 0.6712562674 | AF132: 0 | AG132: =NORMINV(F132,Dashboard!D$19,Dashboard!D$17) -> 3.397552678 | AH132: =NORMINV(G132,Dashboard!E$19,Dashboard!E$17) -> 0.7906124016 | AI132: =NORMINV(H132,Dashboard!F$19,Dashboard!F$17) -> 2.047311795 | AJ132: =NORMINV(I132,Dashboard!G$19,Dashboard!G$17) -> 2.693202878 | AK132: =NORMINV(J132,Dashboard!H$19,Dashboard!H$17) -> 1.768486196 | AL132: =NORMINV(K132,Dashboard!I$19,Dashboard!I$17) -> 5.287949388 | AM132: =NORMINV(L132,Dashboard!J$19,Dashboard!J$17) -> 3.816385168 | AN132: =NORMINV(M132,Dashboard!K$19,Dashboard!K$17) -> 1.351347533 | AO132: =NORMINV(N132,Dashboard!L$19,Dashboard!L$17) -> 2.191230333 | AP132: =NORMINV(O132,Dashboard!M$19,Dashboard!M$17) -> 5.679987485 | AQ132: =NORMINV(P132,Dashboard!N$19,Dashboard!N$17) -> 2.152393522 | AR132: =NORMINV(Q132,Dashboard!O$19,Dashboard!O$17) -> 2.748804033 | AS132: =NORMINV(R132,Dashboard!P$19,Dashboard!P$17) -> 1.427852255 | AT132: =NORMINV(S132,Dashboard!Q$19,Dashboard!Q$17) -> 1.58241048 | AU132: =NORMINV(T132,Dashboard!R$19,Dashboard!R$17) -> 4.185523217 | AV132: =NORMINV(U132,Dashboard!S$19,Dashboard!S$17) -> 5.138843597 | AW132: =NORMINV(V132,Dashboard!T$19,Dashboard!T$17) -> 4.260418093 | AX132: =NORMINV(W132,Dashboard!U$19,Dashboard!U$17) -> 2.73861047 | AY132: =NORMINV(X132,Dashboard!V$19,Dashboard!V$17) -> 3.262851598 | AZ132: =NORMINV(Y132,Dashboard!W$19,Dashboard!W$17) -> 5.820048879 | BA132: =NORMINV(Z132,Dashboard!X$19,Dashboard!X$17) -> 4.214950407 | BB132: =NORMINV(AA132,Dashboard!Y$19,Dashboard!Y$17) -> 3.802481108 | BC132: =NORMINV(AB132,Dashboard!Z$19,Dashboard!Z$17) -> 4.684041384 | BD132: =NORMINV(AC132,Dashboard!AA$19,Dashboard!AA$17) -> 1.938703374 | BE132: =NORMINV(AD132,Dashboard!AB$19,Dashboard!AB$17) -> 4.971840076 | BG132: =Dashboard!$C$16 -> 90 | BH132: 93.39755268 | BI132: 94.18816508 | BJ132: 96.23547688 | BK132: 98.92867975 | BL132: 100.6971659 | BM132: 105.9851153 | BN132: 109.8015005 | BO132: 111.152848 | BP132: 113.3440784 | BQ132: 119.0240659 | BR132: 121.1764594 | BS132: 123.9252634 | BT132: 125.3531157 | BU132: 126.9355261 | BV132: 131.1210494 | BW132: 136.259893 | BX132: 140.5203111 | BY132: 143.2589215 | BZ132: 146.5217731 | CA132: 152.341822 | CB132: 156.5567724 | CC132: 160.3592535 | CD132: 165.0432949 | CE132: 166.9819983 | CF132: 171.9538383 | CH132: =MATCH(TRUE,BG132:CF132+$AF$64:$BE$64>CH$61,0)+Dashboard!$C$15-1 -> 2030 | CJ132: =Dashboard!$C$13 -> 10 | CL132: =IF(CL$63<$CH132,BG132,CK132+AF$72) -> 90 | CM132: 93.39755268 | CN132: 94.18816508 | CO132: 96.23547688 | CP132: 98.92867975 | CQ132: 102.0634538 | CR132: 105.2765972 | CS132: 108.5700692 | CT132: 111.945878 | CU132: 115.406082 | CV132: 118.9527911 | CW132: 122.588168 | CX132: 126.3144292 | CY132: 130.133847 | CZ132: 134.0487503 | DA132: 138.0615261 | DB132: 142.1746213 | DC132: 146.3905439 | DD132: 150.7118645 | DE132: 155.1412182 | DF132: 159.6813057 | DG132: 164.3348954 | DH132: 169.1048249 | DI132: 173.9940026 | DJ132: 179.0054097 | DK132: 184.142102 | DM132: =MATCH(TRUE,BG132:CF132+$AF$64:$BE$64-$CJ132>DM$61,0)+Dashboard!$C$15-1 -> 2032 | DN132: =MATCH(TRUE,CL132:DK132-$CJ132>DM$61,0)+Dashboard!$C$15-1-$DM$59 -> 2033 | DP132: -1 | DQ132: =INDEX('Deferral Value Calculation'!$D$66:$D$91,MATCH($DP132+($E$52-$E$51),'Deferral Value Calculation'!$B$66:$B$91,0)) -INDEX('Deferral Value Calculation'!$D$66:$D$91,MATCH($E$52-$E$51,'Deferral Value Calculation'!$B$66:$B$91,0)) -> -1366352.483
B133: 0.4285749443 | D133: Random Walk 61 | E133: =RAND() -> 0.05912511281 | F133: 0.1777908714 | G133: 0.1532631471 | H133: 0.9843160275 | I133: 0.5184236011 | J133: 0.1712622942 | K133: 0.6680711665 | L133: 0.7832639651 | M133: 0.2185209355 | N133: 0.2185459802 | O133: =RAND() -> 0.2572875271 | P133: 0.1589869342 | Q133: 0.7936223925 | R133: 0.7603708598 | S133: 0.6396543885 | T133: 0.4984248415 | U133: 0.5162642382 | V133: 0.05460039415 | W133: 0.1037527734 | X133: 0.5349286979 | Y133: =RAND() -> 0.0923210051 | Z133: 0.0578890918 | AA133: 0.8956237936 | AB133: 0.9986467833 | AC133: 0.1619476079 | AD133: 0.6660441217 | AF133: 0 | AG133: =NORMINV(F133,Dashboard!D$19,Dashboard!D$17) -> 1.210706178 | AH133: =NORMINV(G133,Dashboard!E$19,Dashboard!E$17) -> 1.127135765 | AI133: =NORMINV(H133,Dashboard!F$19,Dashboard!F$17) -> 4.907910896 | AJ133: =NORMINV(I133,Dashboard!G$19,Dashboard!G$17) -> 2.478972324 | AK133: =NORMINV(J133,Dashboard!H$19,Dashboard!H$17) -> 1.304886296 | AL133: =NORMINV(K133,Dashboard!I$19,Dashboard!I$17) -> 3.098833698 | AM133: =NORMINV(L133,Dashboard!J$19,Dashboard!J$17) -> 3.631199624 | AN133: =NORMINV(M133,Dashboard!K$19,Dashboard!K$17) -> 1.635218025 | AO133: =NORMINV(N133,Dashboard!L$19,Dashboard!L$17) -> 1.676214861 | AP133: =NORMINV(O133,Dashboard!M$19,Dashboard!M$17) -> 1.894279357 | AQ133: =NORMINV(P133,Dashboard!N$19,Dashboard!N$17) -> 1.442067765 | AR133: =NORMINV(Q133,Dashboard!O$19,Dashboard!O$17) -> 4.161199543 | AS133: =NORMINV(R133,Dashboard!P$19,Dashboard!P$17) -> 4.096441293 | AT133: =NORMINV(S133,Dashboard!Q$19,Dashboard!Q$17) -> 3.65612426 | AU133: =NORMINV(T133,Dashboard!R$19,Dashboard!R$17) -> 3.172914822 | AV133: =NORMINV(U133,Dashboard!S$19,Dashboard!S$17) -> 3.325114684 | AW133: =NORMINV(V133,Dashboard!T$19,Dashboard!T$17) -> 0.6650285418 | AX133: =NORMINV(W133,Dashboard!U$19,Dashboard!U$17) -> 1.265969631 | AY133: =NORMINV(X133,Dashboard!V$19,Dashboard!V$17) -> 3.66305127 | AZ133: =NORMINV(Y133,Dashboard!W$19,Dashboard!W$17) -> 1.211102709 | BA133: =NORMINV(Z133,Dashboard!X$19,Dashboard!X$17) -> 0.7876229024 | BB133: =NORMINV(AA133,Dashboard!Y$19,Dashboard!Y$17) -> 6.154204232 | BC133: =NORMINV(AB133,Dashboard!Z$19,Dashboard!Z$17) -> 9.682390463 | BD133: =NORMINV(AC133,Dashboard!AA$19,Dashboard!AA$17) -> 2.012016996 | BE133: =NORMINV(AD133,Dashboard!AB$19,Dashboard!AB$17) -> 4.942601814 | BG133: =Dashboard!$C$16 -> 90 | BH133: 91.21070618 | BI133: 92.33784194 | BJ133: 97.24575284 | BK133: 99.72472516 | BL133: 101.0296115 | BM133: 104.1284452 | BN133: 107.7596448 | BO133: 109.3948628 | BP133: 111.0710777 | BQ133: 112.965357 | BR133: 114.4074248 | BS133: 118.5686243 | BT133: 122.6650656 | BU133: 126.3211899 | BV133: 129.4941047 | BW133: 132.8192194 | BX133: 133.4842479 | BY133: 134.7502176 | BZ133: 138.4132688 | CA133: 139.6243715 | CB133: 140.4119944 | CC133: 146.5661987 | CD133: 156.2485891 | CE133: 158.2606061 | CF133: 163.203208 | CH133: =MATCH(TRUE,BG133:CF133+$AF$64:$BE$64>CH$61,0)+Dashboard!$C$15-1 -> 2030 | CJ133: =Dashboard!$C$13 -> 10 | CL133: =IF(CL$63<$CH133,BG133,CK133+AF$72) -> 90 | CM133: 91.21070618 | CN133: 92.33784194 | CO133: 97.24575284 | CP133: 99.72472516 | CQ133: 102.8594992 | CR133: 106.0726426 | CS133: 109.3661146 | CT133: 112.7419234 | CU133: 116.2021274 | CV133: 119.7488365 | CW133: 123.3842134 | CX133: 127.1104746 | CY133: 130.9298924 | CZ133: 134.8447957 | DA133: 138.8575715 | DB133: 142.9706667 | DC133: 147.1865893 | DD133: 151.5079099 | DE133: 155.9372636 | DF133: 160.4773511 | DG133: 165.1309408 | DH133: 169.9008703 | DI133: 174.790048 | DJ133: 179.8014551 | DK133: 184.9381474 | DM133: =MATCH(TRUE,BG133:CF133+$AF$64:$BE$64-$CJ133>DM$61,0)+Dashboard!$C$15-1 -> 2033 | DN133: =MATCH(TRUE,CL133:DK133-$CJ133>DM$61,0)+Dashboard!$C$15-1-$DM$59 -> 2033 | DP133: 0 | DQ133: =INDEX('Deferral Value Calculation'!$D$66:$D$91,MATCH($DP133+($E$52-$E$51),'Deferral Value Calculation'!$B$66:$B$91,0)) -INDEX('Deferral Value Calculation'!$D$66:$D$91,MATCH($E$52-$E$51,'Deferral Value Calculation'!$B$66:$B$91,0)) -> 0
B134: 0.6365740962 | D134: Random Walk 62 | E134: 0.3212594942 | F134: 0.9255340089 | G134: 0.6587179799 | H134: 0.7211310095 | I134: 0.8236107456 | J134: 0.6467342996 | K134: 0.2519433976 | L134: 0.8066148936 | M134: 0.6579176276 | N134: 0.4039485679 | O134: 0.7810401173 | P134: 0.306565067 | Q134: 0.5556854404 | R134: 0.7831120263 | S134: 0.6172348148 | T134: 0.5743977873 | U134: 0.2843550302 | V134: 0.9003343914 | W134: 0.5858338392 | X134: 0.8004858424 | Y134: 0.3884336959 | Z134: 0.8448550649 | AA134: 0.4109777624 | AB134: 0.8196069267 | AC134: 0.9529099403 | AD134: 0.727686731 | AF134: 0 | AG134: =NORMINV(F134,Dashboard!D$19,Dashboard!D$17) -> 3.873728472 | AH134: =NORMINV(G134,Dashboard!E$19,Dashboard!E$17) -> 2.777839818 | AI134: =NORMINV(H134,Dashboard!F$19,Dashboard!F$17) -> 3.056772696 | AJ134: =NORMINV(I134,Dashboard!G$19,Dashboard!G$17) -> 3.548747745 | AK134: =NORMINV(J134,Dashboard!H$19,Dashboard!H$17) -> 2.951135831 | AL134: =NORMINV(K134,Dashboard!I$19,Dashboard!I$17) -> 1.694923026 | AM134: =NORMINV(L134,Dashboard!J$19,Dashboard!J$17) -> 3.738475391 | AN134: =NORMINV(M134,Dashboard!K$19,Dashboard!K$17) -> 3.218527033 | AO134: =NORMINV(N134,Dashboard!L$19,Dashboard!L$17) -> 2.408134066 | AP134: =NORMINV(O134,Dashboard!M$19,Dashboard!M$17) -> 3.899792729 | AQ134: =NORMINV(P134,Dashboard!N$19,Dashboard!N$17) -> 2.152063066 | AR134: =NORMINV(Q134,Dashboard!O$19,Dashboard!O$17) -> 3.158906303 | AS134: =NORMINV(R134,Dashboard!P$19,Dashboard!P$17) -> 4.210295362 | AT134: =NORMINV(S134,Dashboard!Q$19,Dashboard!Q$17) -> 3.564146792 | AU134: =NORMINV(T134,Dashboard!R$19,Dashboard!R$17) -> 3.477370431 | AV134: =NORMINV(U134,Dashboard!S$19,Dashboard!S$17) -> 2.330027417 | AW134: =NORMINV(V134,Dashboard!T$19,Dashboard!T$17) -> 5.483602975 | AX134: =NORMINV(W134,Dashboard!U$19,Dashboard!U$17) -> 3.794833828 | AY134: =NORMINV(X134,Dashboard!V$19,Dashboard!V$17) -> 4.989001411 | AZ134: =NORMINV(Y134,Dashboard!W$19,Dashboard!W$17) -> 3.087266616 | BA134: =NORMINV(Z134,Dashboard!X$19,Dashboard!X$17) -> 5.557270542 | BB134: =NORMINV(AA134,Dashboard!Y$19,Dashboard!Y$17) -> 3.353857324 | BC134: =NORMINV(AB134,Dashboard!Z$19,Dashboard!Z$17) -> 5.643486015 | BD134: =NORMINV(AC134,Dashboard!AA$19,Dashboard!AA$17) -> 7.293077002 | BE134: =NORMINV(AD134,Dashboard!AB$19,Dashboard!AB$17) -> 5.30238978 | BG134: =Dashboard!$C$16 -> 90 | BH134: 93.87372847 | BI134: 96.65156829 | BJ134: 99.70834099 | BK134: 103.2570887 | BL134: 106.2082246 | BM134: 107.9031476 | BN134: 111.641623 | BO134: 114.86015 | BP134: 117.2682841 | BQ134: 121.1680768 | BR134: 123.3201399 | BS134: 126.4790462 | BT134: 130.6893415 | BU134: 134.2534883 | BV134: 137.7308588 | BW134: 140.0608862 | BX134: 145.5444892 | BY134: 149.339323 | BZ134: 154.3283244 | CA134: 157.415591 | CB134: 162.9728616 | CC134: 166.3267189 | CD134: 171.9702049 | CE134: 179.2632819 | CF134: 184.5656717 | CH134: =MATCH(TRUE,BG134:CF134+$AF$64:$BE$64>CH$61,0)+Dashboard!$C$15-1 -> 2029 | CJ134: =Dashboard!$C$13 -> 10 | CL134: =IF(CL$63<$CH134,BG134,CK134+AF$72) -> 90 | CM134: 93.87372847 | CN134: 96.65156829 | CO134: 99.70834099 | CP134: 102.7666571 | CQ134: 105.9014312 | CR134: 109.1145746 | CS134: 112.4080466 | CT134: 115.7838554 | CU134: 119.2440594 | CV134: 122.7907685 | CW134: 126.4261453 | CX134: 130.1524066 | CY134: 133.9718244 | CZ134: 137.8867276 | DA134: 141.8995035 | DB134: 146.0125987 | DC134: 150.2285213 | DD134: 154.5498419 | DE134: 158.9791956 | DF134: 163.5192831 | DG134: 168.1728728 | DH134: 172.9428023 | DI134: 177.8319799 | DJ134: 182.8433871 | DK134: 187.9800794 | DM134: =MATCH(TRUE,BG134:CF134+$AF$64:$BE$64-$CJ134>DM$61,0)+Dashboard!$C$15-1 -> 2032 | DN134: =MATCH(TRUE,CL134:DK134-$CJ134>DM$61,0)+Dashboard!$C$15-1-$DM$59 -> 2032 | DP134: 0 | DQ134: =INDEX('Deferral Value Calculation'!$D$66:$D$91,MATCH($DP134+($E$52-$E$51),'Deferral Value Calculation'!$B$66:$B$91,0)) -INDEX('Deferral Value Calculation'!$D$66:$D$91,MATCH($E$52-$E$51,'Deferral Value Calculation'!$B$66:$B$91,0)) -> 0
B135: 0.5570900279 | D135: Random Walk 63 | E135: 0.7817963746 | F135: 0.5796033652 | G135: 0.4451952046 | H135: 0.8639734757 | I135: 0.8479502579 | J135: 0.5274839329 | K135: 0.01745106845 | L135: 0.1228894154 | M135: 0.9134656615 | N135: 0.4477760287 | O135: 0.1090050367 | P135: 0.834233569 | Q135: 0.6661443408 | R135: 0.0886736002 | S135: 0.7880228423 | T135: 0.883899947 | U135: 0.7563527248 | V135: 0.4252537598 | W135: 0.4026930759 | X135: 0.9825845145 | Y135: 0.4024880883 | Z135: 0.01724527275 | AA135: 0.108469979 | AB135: 0.7883643937 | AC135: 0.7977912553 | AD135: 0.8855335409 | AF135: 0 | AG135: =NORMINV(F135,Dashboard!D$19,Dashboard!D$17) -> 2.475988759 | AH135: =NORMINV(G135,Dashboard!E$19,Dashboard!E$17) -> 2.147337593 | AI135: =NORMINV(H135,Dashboard!F$19,Dashboard!F$17) -> 3.662100777 | AJ135: =NORMINV(I135,Dashboard!G$19,Dashboard!G$17) -> 3.668042537 | AK135: =NORMINV(J135,Dashboard!H$19,Dashboard!H$17) -> 2.569196154 | AL135: =NORMINV(K135,Dashboard!I$19,Dashboard!I$17) -> -0.1393651508 | AM135: =NORMINV(L135,Dashboard!J$19,Dashboard!J$17) -> 1.095044834 | AN135: =NORMINV(M135,Dashboard!K$19,Dashboard!K$17) -> 4.496454348 | AO135: =NORMINV(N135,Dashboard!L$19,Dashboard!L$17) -> 2.561457554 | AP135: =NORMINV(O135,Dashboard!M$19,Dashboard!M$17) -> 1.079246971 | AQ135: =NORMINV(P135,Dashboard!N$19,Dashboard!N$17) -> 4.278567163 | AR135: =NORMINV(Q135,Dashboard!O$19,Dashboard!O$17) -> 3.585870646 | AS135: =NORMINV(R135,Dashboard!P$19,Dashboard!P$17) -> 0.98501116 | AT135: =NORMINV(S135,Dashboard!Q$19,Dashboard!Q$17) -> 4.34165808 | AU135: =NORMINV(T135,Dashboard!R$19,Dashboard!R$17) -> 5.078297804 | AV135: =NORMINV(U135,Dashboard!S$19,Dashboard!S$17) -> 4.390437061 | AW135: =NORMINV(V135,Dashboard!T$19,Dashboard!T$17) -> 3.025378261 | AX135: =NORMINV(W135,Dashboard!U$19,Dashboard!U$17) -> 3.001878462 | AY135: =NORMINV(X135,Dashboard!V$19,Dashboard!V$17) -> 7.21203003 | AZ135: =NORMINV(Y135,Dashboard!W$19,Dashboard!W$17) -> 3.152895909 | BA135: =NORMINV(Z135,Dashboard!X$19,Dashboard!X$17) -> -0.2106863027 | BB135: =NORMINV(AA135,Dashboard!Y$19,Dashboard!Y$17) -> 1.446045733 | BC135: =NORMINV(AB135,Dashboard!Z$19,Dashboard!Z$17) -> 5.424419797 | BD135: =NORMINV(AC135,Dashboard!AA$19,Dashboard!AA$17) -> 5.625539163 | BE135: =NORMINV(AD135,Dashboard!AB$19,Dashboard!AB$17) -> 6.517746105 | BG135: =Dashboard!$C$16 -> 90 | BH135: 92.47598876 | BI135: 94.62332635 | BJ135: 98.28542713 | BK135: 101.9534697 | BL135: 104.5226658 | BM135: 104.3833007 | BN135: 105.4783455 | BO135: 109.9747999 | BP135: 112.5362574 | BQ135: 113.6155044 | BR135: 117.8940715 | BS135: 121.4799422 | BT135: 122.4649533 | BU135: 126.8066114 | BV135: 131.8849092 | BW135: 136.2753463 | BX135: 139.3007245 | BY135: 142.302603 | BZ135: 149.514633 | CA135: 152.667529 | CB135: 152.4568426 | CC135: 153.9028884 | CD135: 159.3273082 | CE135: 164.9528473 | CF135: 171.4705934 | CH135: =MATCH(TRUE,BG135:CF135+$AF$64:$BE$64>CH$61,0)+Dashboard!$C$15-1 -> 2029 | CJ135: =Dashboard!$C$13 -> 10 | CL135: =IF(CL$63<$CH135,BG135,CK135+AF$72) -> 90 | CM135: 92.47598876 | CN135: 94.62332635 | CO135: 98.28542713 | CP135: 101.3437433 | CQ135: 104.4785173 | CR135: 107.6916607 | CS135: 110.9851327 | CT135: 114.3609415 | CU135: 117.8211455 | CV135: 121.3678546 | CW135: 125.0032315 | CX135: 128.7294927 | CY135: 132.5489105 | CZ135: 136.4638138 | DA135: 140.4765896 | DB135: 144.5896848 | DC135: 148.8056074 | DD135: 153.1269281 | DE135: 157.5562817 | DF135: 162.0963693 | DG135: 166.749959 | DH135: 171.5198884 | DI135: 176.4090661 | DJ135: 181.4204732 | DK135: 186.5571655 | DM135: =MATCH(TRUE,BG135:CF135+$AF$64:$BE$64-$CJ135>DM$61,0)+Dashboard!$C$15-1 -> 2033 | DN135: =MATCH(TRUE,CL135:DK135-$CJ135>DM$61,0)+Dashboard!$C$15-1-$DM$59 -> 2032 | DP135: 1 | DQ135: =INDEX('Deferral Value Calculation'!$D$66:$D$91,MATCH($DP135+($E$52-$E$51),'Deferral Value Calculation'!$B$66:$B$91,0)) -INDEX('Deferral Value Calculation'!$D$66:$D$91,MATCH($E$52-$E$51,'Deferral Value Calculation'!$B$66:$B$91,0)) -> 1341049.659
B136: 0.4350628846 | D136: Random Walk 64 | E136: 0.6248947115 | F136: 0.5007172792 | G136: 0.8178792393 | H136: 0.2236134587 | I136: 0.2528225994 | J136: 0.8517535155 | K136: 0.1081341362 | L136: 0.1438404011 | M136: 0.1396102079 | N136: 0.1342156 | O136: 0.3833283124 | P136: 0.6433329772 | Q136: 0.6083295803 | R136: 0.1613162829 | S136: 0.03048536645 | T136: 0.01764413981 | U136: 0.5882916748 | V136: 0.9967036817 | W136: 0.3312009279 | X136: 0.5802812957 | Y136: 0.7864314763 | Z136: 0.5512313232 | AA136: 0.6858966662 | AB136: 0.1818487722 | AC136: 0.2061690868 | AD136: 0.7616622859 | AF136: 0 | AG136: =NORMINV(F136,Dashboard!D$19,Dashboard!D$17) -> 2.252022697 | AH136: =NORMINV(G136,Dashboard!E$19,Dashboard!E$17) -> 3.352494823 | AI136: =NORMINV(H136,Dashboard!F$19,Dashboard!F$17) -> 1.465567166 | AJ136: =NORMINV(I136,Dashboard!G$19,Dashboard!G$17) -> 1.616587262 | AK136: =NORMINV(J136,Dashboard!H$19,Dashboard!H$17) -> 3.779986901 | AL136: =NORMINV(K136,Dashboard!I$19,Dashboard!I$17) -> 0.9717935462 | AM136: =NORMINV(L136,Dashboard!J$19,Dashboard!J$17) -> 1.222170794 | AN136: =NORMINV(M136,Dashboard!K$19,Dashboard!K$17) -> 1.227518566 | AO136: =NORMINV(N136,Dashboard!L$19,Dashboard!L$17) -> 1.224473133 | AP136: =NORMINV(O136,Dashboard!M$19,Dashboard!M$17) -> 2.393015194 | AQ136: =NORMINV(P136,Dashboard!N$19,Dashboard!N$17) -> 3.409255345 | AR136: =NORMINV(Q136,Dashboard!O$19,Dashboard!O$17) -> 3.358074524 | AS136: =NORMINV(R136,Dashboard!P$19,Dashboard!P$17) -> 1.529548371 | AT136: =NORMINV(S136,Dashboard!Q$19,Dashboard!Q$17) -> 0.1958573462 | AU136: =NORMINV(T136,Dashboard!R$19,Dashboard!R$17) -> -0.1669628378 | AV136: =NORMINV(U136,Dashboard!S$19,Dashboard!S$17) -> 3.622261504 | AW136: =NORMINV(V136,Dashboard!T$19,Dashboard!T$17) -> 7.877297282 | AX136: =NORMINV(W136,Dashboard!U$19,Dashboard!U$17) -> 2.676261166 | AY136: =NORMINV(X136,Dashboard!V$19,Dashboard!V$17) -> 3.864740406 | AZ136: =NORMINV(Y136,Dashboard!W$19,Dashboard!W$17) -> 5.02513757 | BA136: =NORMINV(Z136,Dashboard!X$19,Dashboard!X$17) -> 3.924272547 | BB136: =NORMINV(AA136,Dashboard!Y$19,Dashboard!Y$17) -> 4.694068628 | BC136: =NORMINV(AB136,Dashboard!Z$19,Dashboard!Z$17) -> 2.114288034 | BD136: =NORMINV(AC136,Dashboard!AA$19,Dashboard!AA$17) -> 2.342945721 | BE136: =NORMINV(AD136,Dashboard!AB$19,Dashboard!AB$17) -> 5.517730754 | BG136: =Dashboard!$C$16 -> 90 | BH136: =+BG136+AG136 -> 92.2520227 | BI136: 95.60451752 | BJ136: 97.07008469 | BK136: 98.68667195 | BL136: 102.4666588 | BM136: 103.4384524 | BN136: 104.6606232 | BO136: 105.8881418 | BP136: 107.1126149 | BQ136: 109.5056301 | BR136: 112.9148854 | BS136: 116.2729599 | BT136: 117.8025083 | BU136: 117.9983657 | BV136: 117.8314028 | BW136: 121.4536643 | BX136: 129.3309616 | BY136: 132.0072228 | BZ136: 135.8719632 | CA136: 140.8971008 | CB136: 144.8213733 | CC136: 149.5154419 | CD136: 151.62973 | CE136: 153.9726757 | CF136: 159.4904064 | CH136: =MATCH(TRUE,BG136:CF136+$AF$64:$BE$64>CH$61,0)+Dashboard!$C$15-1 -> 2030 | CJ136: =Dashboard!$C$13 -> 10 | CL136: =IF(CL$63<$CH136,BG136,CK136+AF$72) -> 90 | CM136: 92.2520227 | CN136: 95.60451752 | CO136: 97.07008469 | CP136: 98.68667195 | CQ136: 101.821446 | CR136: 105.0345894 | CS136: 108.3280614 | CT136: 111.7038702 | CU136: 115.1640742 | CV136: 118.7107833 | CW136: 122.3461602 | CX136: 126.0724214 | CY136: 129.8918392 | CZ136: 133.8067424 | DA136: 137.8195183 | DB136: 141.9326135 | DC136: 146.1485361 | DD136: 150.4698567 | DE136: 154.8992104 | DF136: 159.4392979 | DG136: 164.0928876 | DH136: 168.8628171 | DI136: 173.7519948 | DJ136: 178.7634019 | DK136: 183.9000942 | DM136: =MATCH(TRUE,BG136:CF136+$AF$64:$BE$64-$CJ136>DM$61,0)+Dashboard!$C$15-1 -> 2035 | DN136: =MATCH(TRUE,CL136:DK136-$CJ136>DM$61,0)+Dashboard!$C$15-1-$DM$59 -> 2033 | DP136: 2 | DQ136: =INDEX('Deferral Value Calculation'!$D$66:$D$91,MATCH($DP136+($E$52-$E$51),'Deferral Value Calculation'!$B$66:$B$91,0)) -INDEX('Deferral Value Calculation'!$D$66:$D$91,MATCH($E$52-$E$51,'Deferral Value Calculation'!$B$66:$B$91,0)) -> 2657265.066
B137: =AVERAGE(E137:AD137) -> 0.4426928012 | D137: Random Walk 65 | E137: 0.1052255486 | F137: 0.9887474863 | G137: 0.1437856946 | H137: 0.9510486283 | I137: 0.898830817 | J137: 0.4417776872 | K137: 0.405166707 | L137: 0.5506055347 | M137: 0.6695880817 | N137: 0.009986523009 | O137: 0.1823095883 | P137: 0.719608218 | Q137: 0.4002979642 | R137: 0.9398519846 | S137: 0.3805494261 | T137: 0.07062332423 | U137: 0.8004720124 | V137: 0.2326016532 | W137: 0.515538471 | X137: 0.08326818478 | Y137: 0.2974441974 | Z137: 0.1168195141 | AA137: 0.02736033899 | AB137: 0.5612183806 | AC137: 0.4433873174 | AD137: 0.5738995476 | AF137: 0 | AG137: =NORMINV(F137,Dashboard!D$19,Dashboard!D$17) -> 4.81695117 | AH137: =NORMINV(G137,Dashboard!E$19,Dashboard!E$17) -> 1.079942583 | AI137: =NORMINV(H137,Dashboard!F$19,Dashboard!F$17) -> 4.320165443 | AJ137: =NORMINV(I137,Dashboard!G$19,Dashboard!G$17) -> 3.967569215 | AK137: =NORMINV(J137,Dashboard!H$19,Dashboard!H$17) -> 2.301701966 | AL137: =NORMINV(K137,Dashboard!I$19,Dashboard!I$17) -> 2.240193445 | AM137: =NORMINV(L137,Dashboard!J$19,Dashboard!J$17) -> 2.775251068 | AN137: =NORMINV(M137,Dashboard!K$19,Dashboard!K$17) -> 3.261305602 | AO137: =NORMINV(N137,Dashboard!L$19,Dashboard!L$17) -> -0.4480196161 | AP137: =NORMINV(O137,Dashboard!M$19,Dashboard!M$17) -> 1.536197282 | AQ137: =NORMINV(P137,Dashboard!N$19,Dashboard!N$17) -> 3.717861931 | AR137: =NORMINV(Q137,Dashboard!O$19,Dashboard!O$17) -> 2.579368277 | AS137: =NORMINV(R137,Dashboard!P$19,Dashboard!P$17) -> 5.376494036 | AT137: =NORMINV(S137,Dashboard!Q$19,Dashboard!Q$17) -> 2.630139962 | AU137: =NORMINV(T137,Dashboard!R$19,Dashboard!R$17) -> 0.8406346349 | AV137: =NORMINV(U137,Dashboard!S$19,Dashboard!S$17) -> 4.632703167 | AW137: =NORMINV(V137,Dashboard!T$19,Dashboard!T$17) -> 2.12047676 | AX137: =NORMINV(W137,Dashboard!U$19,Dashboard!U$17) -> 3.490331945 | AY137: =NORMINV(X137,Dashboard!V$19,Dashboard!V$17) -> 1.081862589 | AZ137: =NORMINV(Y137,Dashboard!W$19,Dashboard!W$17) -> 2.64059246 | BA137: =NORMINV(Z137,Dashboard!X$19,Dashboard!X$17) -> 1.491277432 | BB137: =NORMINV(AA137,Dashboard!Y$19,Dashboard!Y$17) -> 0.1491075144 | BC137: =NORMINV(AB137,Dashboard!Z$19,Dashboard!Z$17) -> 4.171912101 | BD137: =NORMINV(AC137,Dashboard!AA$19,Dashboard!AA$17) -> 3.687709977 | BE137: =NORMINV(AD137,Dashboard!AB$19,Dashboard!AB$17) -> 4.44874206 | BG137: =Dashboard!$C$16 -> 90 | BH137: 94.81695117 | BI137: =+BH137+AH137 -> 95.89689375 | BJ137: =+BI137+AI137 -> 100.2170592 | BK137: =+BJ137+AJ137 -> 104.1846284 | BL137: =+BK137+AK137 -> 106.4863304 | BM137: =+BL137+AL137 -> 108.7265238 | BN137: =+BM137+AM137 -> 111.5017749 | BO137: =+BN137+AN137 -> 114.7630805 | BP137: =+BO137+AO137 -> 114.3150609 | BQ137: =+BP137+AP137 -> 115.8512582 | BR137: =+BQ137+AQ137 -> 119.5691201 | BS137: =+BR137+AR137 -> 122.1484884 | BT137: =+BS137+AS137 -> 127.5249824 | BU137: =+BT137+AT137 -> 130.1551224 | BV137: =+BU137+AU137 -> 130.995757 | BW137: =+BV137+AV137 -> 135.6284602 | BX137: =+BW137+AW137 -> 137.7489369 | BY137: =+BX137+AX137 -> 141.2392689 | BZ137: =+BY137+AY137 -> 142.3211315 | CA137: =+BZ137+AZ137 -> 144.9617239 | CB137: =+CA137+BA137 -> 146.4530014 | CC137: =+CB137+BB137 -> 146.6021089 | CD137: =+CC137+BC137 -> 150.774021 | CE137: =+CD137+BD137 -> 154.4617309 | CF137: =+CE137+BE137 -> 158.910473 | CH137: =MATCH(TRUE,BG137:CF137+$AF$64:$BE$64>CH$61,0)+Dashboard!$C$15-1 -> 2029 | CJ137: =Dashboard!$C$13 -> 10 | CL137: =IF(CL$63<$CH137,BG137,CK137+AF$72) -> 90 | CM137: 94.81695117 | CN137: 95.89689375 | CO137: 100.2170592 | CP137: 103.2753753 | CQ137: 106.4101494 | CR137: 109.6232928 | CS137: 112.9167648 | CT137: 116.2925736 | CU137: 119.7527776 | CV137: 123.2994867 | CW137: 126.9348636 | CX137: 130.6611248 | CY137: 134.4805426 | CZ137: 138.3954458 | DA137: 142.4082217 | DB137: 146.5213169 | DC137: 150.7372395 | DD137: 155.0585601 | DE137: 159.4879138 | DF137: 164.0280013 | DG137: 168.681591 | DH137: 173.4515205 | DI137: 178.3406982 | DJ137: 183.3521053 | DK137: 188.4887976 | DM137: =MATCH(TRUE,BG137:CF137+$AF$64:$BE$64-$CJ137>DM$61,0)+Dashboard!$C$15-1 -> 2032 | DN137: =MATCH(TRUE,CL137:DK137-$CJ137>DM$61,0)+Dashboard!$C$15-1-$DM$59 -> 2032 | DP137: =DM137-DN137 -> 0 | DQ137: =INDEX('Deferral Value Calculation'!$D$66:$D$91,MATCH($DP137+($E$52-$E$51),'Deferral Value Calculation'!$B$66:$B$91,0)) -INDEX('Deferral Value Calculation'!$D$66:$D$91,MATCH($E$52-$E$51,'Deferral Value Calculation'!$B$66:$B$91,0)) -> 0
B138: 0.4772118703 | D138: Random Walk 66 | E138: 0.2964955118 | F138: 0.2125170732 | G138: 0.07308739455 | H138: 0.07187388525 | I138: 0.4646289622 | J138: 0.7714469862 | K138: 0.3069965711 | L138: 0.5983272516 | M138: 0.7843326435 | N138: 0.5589391871 | O138: 0.7615157327 | P138: 0.9338826411 | Q138: 0.0497739408 | R138: 0.1977079899 | S138: 0.5304060902 | T138: 0.7939311728 | U138: 0.2553849738 | V138: 0.1192180131 | W138: 0.5262808367 | X138: 0.9614557194 | Y138: 0.9707282879 | Z138: 0.2443693966 | AA138: 0.6103569975 | AB138: 0.4321625908 | AC138: 0.7963483752 | AD138: 0.08534040339 | AF138: 0 | AG138: =NORMINV(F138,Dashboard!D$19,Dashboard!D$17) -> 1.352567232 | AH138: =NORMINV(G138,Dashboard!E$19,Dashboard!E$17) -> 0.6305559895 | AI138: =NORMINV(H138,Dashboard!F$19,Dashboard!F$17) -> 0.6359190781 | AJ138: =NORMINV(I138,Dashboard!G$19,Dashboard!G$17) -> 2.315448549 | AK138: =NORMINV(J138,Dashboard!H$19,Dashboard!H$17) -> 3.406999278 | AL138: =NORMINV(K138,Dashboard!I$19,Dashboard!I$17) -> 1.903674121 | AM138: =NORMINV(L138,Dashboard!J$19,Dashboard!J$17) -> 2.934195089 | AN138: =NORMINV(M138,Dashboard!K$19,Dashboard!K$17) -> 3.726854875 | AO138: =NORMINV(N138,Dashboard!L$19,Dashboard!L$17) -> 2.944654699 | AP138: =NORMINV(O138,Dashboard!M$19,Dashboard!M$17) -> 3.809138292 | AQ138: =NORMINV(P138,Dashboard!N$19,Dashboard!N$17) -> 5.048034033 | AR138: =NORMINV(Q138,Dashboard!O$19,Dashboard!O$17) -> 0.5209894174 | AS138: =NORMINV(R138,Dashboard!P$19,Dashboard!P$17) -> 1.740197254 | AT138: =NORMINV(S138,Dashboard!Q$19,Dashboard!Q$17) -> 3.21996338 | AU138: =NORMINV(T138,Dashboard!R$19,Dashboard!R$17) -> 4.482878218 | AV138: =NORMINV(U138,Dashboard!S$19,Dashboard!S$17) -> 2.18715589 | AW138: =NORMINV(V138,Dashboard!T$19,Dashboard!T$17) -> 1.371285242 | AX138: =NORMINV(W138,Dashboard!U$19,Dashboard!U$17) -> 3.536491159 | AY138: =NORMINV(X138,Dashboard!V$19,Dashboard!V$17) -> 6.611103064 | AZ138: =NORMINV(Y138,Dashboard!W$19,Dashboard!W$17) -> 6.998982203 | BA138: =NORMINV(Z138,Dashboard!X$19,Dashboard!X$17) -> 2.410641237 | BB138: =NORMINV(AA138,Dashboard!Y$19,Dashboard!Y$17) -> 4.308599101 | BC138: =NORMINV(AB138,Dashboard!Z$19,Dashboard!Z$17) -> 3.542598145 | BD138: =NORMINV(AC138,Dashboard!AA$19,Dashboard!AA$17) -> 5.615396581 | BE138: =NORMINV(AD138,Dashboard!AB$19,Dashboard!AB$17) -> 1.281894787 | BG138: =Dashboard!$C$16 -> 90 | BH138: 91.35256723 | BI138: 91.98312322 | BJ138: 92.6190423 | BK138: 94.93449085 | BL138: 98.34149013 | BM138: 100.2451642 | BN138: 103.1793593 | BO138: 106.9062142 | BP138: 109.8508689 | BQ138: 113.6600072 | BR138: 118.7080412 | BS138: 119.2290307 | BT138: 120.9692279 | BU138: 124.1891913 | BV138: 128.6720695 | BW138: 130.8592254 | BX138: 132.2305106 | BY138: 135.7670018 | BZ138: 142.3781049 | CA138: 149.3770871 | CB138: 151.7877283 | CC138: 156.0963274 | CD138: 159.6389255 | CE138: 165.2543221 | CF138: 166.5362169 | CH138: =MATCH(TRUE,BG138:CF138+$AF$64:$BE$64>CH$61,0)+Dashboard!$C$15-1 -> 2031 | CJ138: =Dashboard!$C$13 -> 10 | CL138: =IF(CL$63<$CH138,BG138,CK138+AF$72) -> 90 | CM138: 91.35256723 | CN138: 91.98312322 | CO138: 92.6190423 | CP138: 94.93449085 | CQ138: 98.34149013 | CR138: 101.5546335 | CS138: 104.8481055 | CT138: 108.2239143 | CU138: 111.6841183 | CV138: 115.2308274 | CW138: 118.8662043 | CX138: 122.5924655 | CY138: 126.4118833 | CZ138: 130.3267866 | DA138: 134.3395624 | DB138: 138.4526576 | DC138: 142.6685802 | DD138: 146.9899009 | DE138: 151.4192545 | DF138: 155.959342 | DG138: 160.6129317 | DH138: 165.3828612 | DI138: 170.2720389 | DJ138: 175.283446 | DK138: 180.4201383 | DM138: =MATCH(TRUE,BG138:CF138+$AF$64:$BE$64-$CJ138>DM$61,0)+Dashboard!$C$15-1 -> 2034 | DN138: =MATCH(TRUE,CL138:DK138-$CJ138>DM$61,0)+Dashboard!$C$15-1-$DM$59 -> 2034 | DP138: 0 | DQ138: =INDEX('Deferral Value Calculation'!$D$66:$D$91,MATCH($DP138+($E$52-$E$51),'Deferral Value Calculation'!$B$66:$B$91,0)) -INDEX('Deferral Value Calculation'!$D$66:$D$91,MATCH($E$52-$E$51,'Deferral Value Calculation'!$B$66:$B$91,0)) -> 0
B139: 0.5701293123 | D139: Random Walk 67 | E139: 0.3244274143 | F139: 0.994288532 | G139: 0.7502002602 | H139: 0.9503100385 | I139: 0.09351228242 | J139: 0.8162238458 | K139: 0.9925067328 | L139: 0.3078626345 | M139: 0.3628725716 | N139: 0.7514823665 | O139: 0.2522490985 | P139: 0.4375103717 | Q139: 0.06022444337 | R139: 0.6371908694 | S139: 0.8845388644 | T139: 0.696668724 | U139: 0.8479056965 | V139: 0.6277925956 | W139: 0.3001211606 | X139: 0.7386441726 | Y139: 0.8829363205 | Z139: 0.02036586069 | AA139: 0.1604553993 | AB139: 0.4739886835 | AC139: 0.5832737279 | AD139: 0.875809452 | AF139: 0 | AG139: =NORMINV(F139,Dashboard!D$19,Dashboard!D$17) -> 5.095673036 | AH139: =NORMINV(G139,Dashboard!E$19,Dashboard!E$17) -> 3.084747838 | AI139: =NORMINV(H139,Dashboard!F$19,Dashboard!F$17) -> 4.311608051 | AJ139: =NORMINV(I139,Dashboard!G$19,Dashboard!G$17) -> 0.8245088639 | AK139: =NORMINV(J139,Dashboard!H$19,Dashboard!H$17) -> 3.602515454 | AL139: =NORMINV(K139,Dashboard!I$19,Dashboard!I$17) -> 5.642097806 | AM139: =NORMINV(L139,Dashboard!J$19,Dashboard!J$17) -> 1.954480437 | AN139: =NORMINV(M139,Dashboard!K$19,Dashboard!K$17) -> 2.205440137 | AO139: =NORMINV(N139,Dashboard!L$19,Dashboard!L$17) -> 3.672335989 | AP139: =NORMINV(O139,Dashboard!M$19,Dashboard!M$17) -> 1.872223508 | AQ139: =NORMINV(P139,Dashboard!N$19,Dashboard!N$17) -> 2.653685782 | AR139: =NORMINV(Q139,Dashboard!O$19,Dashboard!O$17) -> 0.6599746778 | AS139: =NORMINV(R139,Dashboard!P$19,Dashboard!P$17) -> 3.557002503 | AT139: =NORMINV(S139,Dashboard!Q$19,Dashboard!Q$17) -> 4.959517181 | AU139: =NORMINV(T139,Dashboard!R$19,Dashboard!R$17) -> 3.997583653 | AV139: =NORMINV(U139,Dashboard!S$19,Dashboard!S$17) -> 4.932800845 | AW139: =NORMINV(V139,Dashboard!T$19,Dashboard!T$17) -> 3.884601155 | AX139: =NORMINV(W139,Dashboard!U$19,Dashboard!U$17) -> 2.526557981 | AY139: =NORMINV(X139,Dashboard!V$19,Dashboard!V$17) -> 4.630731925 | AZ139: =NORMINV(Y139,Dashboard!W$19,Dashboard!W$17) -> 5.736785409 | BA139: =NORMINV(Z139,Dashboard!X$19,Dashboard!X$17) -> -0.08526036576 | BB139: =NORMINV(AA139,Dashboard!Y$19,Dashboard!Y$17) -> 1.903534867 | BC139: =NORMINV(AB139,Dashboard!Z$19,Dashboard!Z$17) -> 3.747167419 | BD139: =NORMINV(AC139,Dashboard!AA$19,Dashboard!AA$17) -> 4.387810513 | BE139: =NORMINV(AD139,Dashboard!AB$19,Dashboard!AB$17) -> 6.418402935 | BG139: =Dashboard!$C$16 -> 90 | BH139: 95.09567304 | BI139: 98.18042087 | BJ139: 102.4920289 | BK139: 103.3165378 | BL139: 106.9190532 | BM139: 112.561151 | BN139: 114.5156315 | BO139: 116.7210716 | BP139: 120.3934076 | BQ139: 122.2656311 | BR139: 124.9193169 | BS139: 125.5792916 | BT139: 129.1362941 | BU139: 134.0958113 | BV139: 138.0933949 | BW139: 143.0261958 | BX139: 146.9107969 | BY139: 149.4373549 | BZ139: 154.0680868 | CA139: 159.8048722 | CB139: 159.7196119 | CC139: 161.6231467 | CD139: 165.3703142 | CE139: 169.7581247 | CF139: 176.1765276 | CH139: =MATCH(TRUE,BG139:CF139+$AF$64:$BE$64>CH$61,0)+Dashboard!$C$15-1 -> 2028 | CJ139: =Dashboard!$C$13 -> 10 | CL139: =IF(CL$63<$CH139,BG139,CK139+AF$72) -> 90 | CM139: 95.09567304 | CN139: 98.18042087 | CO139: 101.1641439 | CP139: 104.2224601 | CQ139: 107.3572342 | CR139: 110.5703776 | CS139: 113.8638496 | CT139: 117.2396583 | CU139: 120.6998624 | CV139: 124.2465715 | CW139: 127.8819483 | CX139: 131.6082096 | CY139: 135.4276274 | CZ139: 139.3425306 | DA139: 143.3553064 | DB139: 147.4684016 | DC139: 151.6843242 | DD139: 156.0056449 | DE139: 160.4349986 | DF139: 164.9750861 | DG139: 169.6286758 | DH139: 174.3986052 | DI139: 179.2877829 | DJ139: 184.29919 | DK139: 189.4358823 | DM139: =MATCH(TRUE,BG139:CF139+$AF$64:$BE$64-$CJ139>DM$61,0)+Dashboard!$C$15-1 -> 2031 | DN139: =MATCH(TRUE,CL139:DK139-$CJ139>DM$61,0)+Dashboard!$C$15-1-$DM$59 -> 2031 | DP139: 0 | DQ139: =INDEX('Deferral Value Calculation'!$D$66:$D$91,MATCH($DP139+($E$52-$E$51),'Deferral Value Calculation'!$B$66:$B$91,0)) -INDEX('Deferral Value Calculation'!$D$66:$D$91,MATCH($E$52-$E$51,'Deferral Value Calculation'!$B$66:$B$91,0)) -> 0
B140: 0.4974759061 | D140: Random Walk 68 | E140: 0.8513132398 | F140: 0.8675143086 | G140: 0.6222994496 | H140: 0.02704905691 | I140: 0.9344111997 | J140: 0.4754006927 | K140: 0.5433957872 | L140: 0.0145084934 | M140: 0.3715594231 | N140: 0.03681600249 | O140: 0.688489501 | P140: 0.3870129612 | Q140: 0.7763429017 | R140: 0.4887420774 | S140: 0.8093455603 | T140: 0.001722357406 | U140: 0.4849189161 | V140: 0.02928902339 | W140: 0.588727041 | X140: 0.03850834071 | Y140: 0.9205330455 | Z140: 0.7818106192 | AA140: 0.896179024 | AB140: 0.1292478972 | AC140: 0.2415194831 | AD140: 0.9277171563 | AF140: 0 | AG140: =NORMINV(F140,Dashboard!D$19,Dashboard!D$17) -> 3.504057493 | AH140: =NORMINV(G140,Dashboard!E$19,Dashboard!E$17) -> 2.665477933 | AI140: =NORMINV(H140,Dashboard!F$19,Dashboard!F$17) -> 0.0874052715 | AJ140: =NORMINV(I140,Dashboard!G$19,Dashboard!G$17) -> 4.251735052 | AK140: =NORMINV(J140,Dashboard!H$19,Dashboard!H$17) -> 2.406960039 | AL140: =NORMINV(K140,Dashboard!I$19,Dashboard!I$17) -> 2.684397886 | AM140: =NORMINV(L140,Dashboard!J$19,Dashboard!J$17) -> -0.2390854497 | AN140: =NORMINV(M140,Dashboard!K$19,Dashboard!K$17) -> 2.236284321 | AO140: =NORMINV(N140,Dashboard!L$19,Dashboard!L$17) -> 0.2893646754 | AP140: =NORMINV(O140,Dashboard!M$19,Dashboard!M$17) -> 3.500587884 | AQ140: =NORMINV(P140,Dashboard!N$19,Dashboard!N$17) -> 2.46672043 | AR140: =NORMINV(Q140,Dashboard!O$19,Dashboard!O$17) -> 4.07388187 | AS140: =NORMINV(R140,Dashboard!P$19,Dashboard!P$17) -> 2.983298195 | AT140: =NORMINV(S140,Dashboard!Q$19,Dashboard!Q$17) -> 4.459377201 | AU140: =NORMINV(T140,Dashboard!R$19,Dashboard!R$17) -> -1.470353971 | AV140: =NORMINV(U140,Dashboard!S$19,Dashboard!S$17) -> 3.197062966 | AW140: =NORMINV(V140,Dashboard!T$19,Dashboard!T$17) -> 0.181458091 | AX140: =NORMINV(W140,Dashboard!U$19,Dashboard!U$17) -> 3.807553942 | AY140: =NORMINV(X140,Dashboard!V$19,Dashboard!V$17) -> 0.406606679 | AZ140: =NORMINV(Y140,Dashboard!W$19,Dashboard!W$17) -> 6.130422868 | BA140: =NORMINV(Z140,Dashboard!X$19,Dashboard!X$17) -> 5.121681019 | BB140: =NORMINV(AA140,Dashboard!Y$19,Dashboard!Y$17) -> 6.160010018 | BC140: =NORMINV(AB140,Dashboard!Z$19,Dashboard!Z$17) -> 1.685077953 | BD140: =NORMINV(AC140,Dashboard!AA$19,Dashboard!AA$17) -> 2.577917864 | BE140: =NORMINV(AD140,Dashboard!AB$19,Dashboard!AB$17) -> 7.038426656 | BG140: =Dashboard!$C$16 -> 90 | BH140: 93.50405749 | BI140: 96.16953543 | BJ140: 96.2569407 | BK140: 100.5086757 | BL140: 102.9156358 | BM140: 105.6000337 | BN140: 105.3609482 | BO140: 107.5972325 | BP140: 107.8865972 | BQ140: 111.3871851 | BR140: 113.8539055 | BS140: 117.9277874 | BT140: 120.9110856 | BU140: 125.3704628 | BV140: 123.9001088 | BW140: 127.0971718 | BX140: 127.2786299 | BY140: 131.0861838 | BZ140: 131.4927905 | CA140: 137.6232134 | CB140: 142.7448944 | CC140: 148.9049044 | CD140: 150.5899824 | CE140: 153.1679002 | CF140: 160.2063269 | CH140: =MATCH(TRUE,BG140:CF140+$AF$64:$BE$64>CH$61,0)+Dashboard!$C$15-1 -> 2029 | CJ140: =Dashboard!$C$13 -> 10 | CL140: =IF(CL$63<$CH140,BG140,CK140+AF$72) -> 90 | CM140: 93.50405749 | CN140: 96.16953543 | CO140: 96.2569407 | CP140: 99.31525685 | CQ140: 102.4500309 | CR140: 105.6631743 | CS140: 108.9566463 | CT140: 112.3324551 | CU140: 115.7926591 | CV140: 119.3393682 | CW140: 122.9747451 | CX140: 126.7010063 | CY140: 130.5204241 | CZ140: 134.4353273 | DA140: 138.4481032 | DB140: 142.5611984 | DC140: 146.777121 | DD140: 151.0984416 | DE140: 155.5277953 | DF140: 160.0678828 | DG140: 164.7214725 | DH140: 169.491402 | DI140: 174.3805797 | DJ140: 179.3919868 | DK140: 184.5286791 | DM140: =MATCH(TRUE,BG140:CF140+$AF$64:$BE$64-$CJ140>DM$61,0)+Dashboard!$C$15-1 -> 2035 | DN140: =MATCH(TRUE,CL140:DK140-$CJ140>DM$61,0)+Dashboard!$C$15-1-$DM$59 -> 2033 | DP140: 2 | DQ140: =INDEX('Deferral Value Calculation'!$D$66:$D$91,MATCH($DP140+($E$52-$E$51),'Deferral Value Calculation'!$B$66:$B$91,0)) -INDEX('Deferral Value Calculation'!$D$66:$D$91,MATCH($E$52-$E$51,'Deferral Value Calculation'!$B$66:$B$91,0)) -> 2657265.066
